Workbook

Sheet Record of Changes
B2: Scottish Government Centre for Housing Market Analysis
N3: Version 3.4 - 24 March 2020
B4: Record of Any Changes Made to the Tool
B6: 1. 12/10/18 - the last version of the Tool was version 2.3.3. This is still available on the CHMA website for those who may have been using this version
B7: when drafting their HNDAs and who may continue to do so.
B9: 2. 01/11/18 and 07/11/2018 - Several corrections made to the number households for the whole area and any HMAs for Angus, Dundee City, East Lothian, Falkirk, Fife, Glasgow City, Midlothian and North Lanarkshire and Perth and Kinross.
B12: 3. 09/11/2018 - HMA map temporarily removed in order for it to be updated by SG GIS team.
B14: 4. 09/03/2020 - Corrected spellings in Argyll and Bute place names.
B16: 5. 24/03/2020 - Cleared an error message that appeared when Tool opened.

Sheet Front
B2: Scottish Government Centre for Housing Market Analysis
N5: Version 3.4 - 24 March 2020
B12: PURPOSE
B13: > To estimate how many new housing units are needed, locally, in Scotland over the next 20 years
B14: > The number of future households and those in existing housing need represent total future housing need
B15: > Estimates are broken down by houisng tenure; owner occupied, private rent, Mid-Market Rent and social rent
B16: > Demographic, economic and housing affordability scenarios are run to produce a range of estimates for alternative futures
B18: HOW TO USE
B19: > Select area required on 'Map' worksheet
B20: > Choose the 'Start Year' on this sheet
B21: > Press 'Set Areas'
B22: > The 'Scenario All' sheet shows results for the whole area. Sheets 'S1', S2' etc. show results for you Housing Market Areas within the larger area
B23: > Estimates can be produced, top down, using 'Scenario All' which splits results across sub-areas or bottom-up for each sub-area which sums to 'Scenario All'
B25: STRUCTURE
B26: > Green shading, line colours etc. indicates the default Tool settings whilst orange indicates the user's settings. The default is fixed and does not change.
B27: > LIGHT GREEN tabs are where you can make changes
B28: > RED tabs show your results
B29: > PURPLE tabs show the input data that have been pre-programmed into the Tool
B30: > Any changes made the Tool in future will be recorded below.
B31: Remember to save a copy of the Tool each time you run it
B33: Record of Any Changes Made to the Tool
B35: 1. 12/10/18 - the last version of the Tool was version 2.3.3. This is still available on the CHMA website for those who may have been using this version
B36: when drafting their HNDAs and who may continue to do so.
B38: 2. 01/11/18 and 07/11/2018 - Several corrections made to the number households for the whole area and any HMAs for Angus, Dundee City, East Lothian, Falkirk, Fife, Glasgow City, Midlothian and North Lanarkshire and Perth and Kinross.
B41: 3. 09/11/18 HMA map temporarily removed in order for it to be updated by SG GIS team.

Sheet ScenarioAll
A1: =Data!C1 -> Selected | K1: =Map!T13 -> 2018
A3: 1. Household Projections | X3: 4
A4: Choose NRS household projection variant. | X4: 4 | Y4: 4
X5: 1
X6: 1
X7: 1
X8: 1
X9: 1
X10: 1
C11: =D11-1 -> 2017 | D11: =D16 -> 2018 | E11: =D11+1 -> 2019 | F11: 2020 | G11: 2021 | H11: 2022 | I11: 2023 | J11: 2024 | K11: 2025 | L11: 2026 | M11: 2027 | N11: 2028
A12: Enter Projections Here | C12: 0 | D12: 0 | E12: 0 | F12: 0 | G12: 0 | H12: 0 | I12: 0 | J12: 0 | K12: 0 | L12: 0 | M12: 0 | N12: 0
D13: =N11+1 -> 2029 | E13: =D13+1 -> 2030 | F13: 2031 | G13: 2032 | H13: 2033 | I13: 2034 | J13: 2035 | K13: 2036 | L13: 2037 | M13: 2038 | N13: 2039
D14: 0 | E14: 0 | F14: 0 | G14: 0 | H14: 0 | I14: 0 | J14: 0 | K14: 0 | L14: 0 | M14: 0 | N14: 0
A16: 1a. Household growth Adjustment | D16: =C300 -> 2018 | E16: =D16+1 -> 2019 | F16: 2020 | G16: 2021 | H16: 2022 | I16: 2023 | J16: 2024 | K16: 2025 | L16: 2026 | M16: 2027 | N16: 2028
D17: 0 | E17: 0 | F17: 0 | G17: 0 | H17: 0 | I17: 0 | J17: 0 | K17: 0 | L17: 0 | M17: 0 | N17: 0
D18: =N16+1 -> 2029 | E18: =D18+1 -> 2030 | F18: 2031 | G18: 2032 | H18: 2033 | I18: 2034 | J18: 2035 | K18: 2036 | L18: 2037 | M18: 2038 | N18: 2039
D19: 0 | E19: 0 | F19: 0 | G19: 0 | H19: 0 | I19: 0 | J19: 0 | K19: 0 | L19: 0 | M19: 0 | N19: 0
A21: 2. Existing Need
A22: Either
A25: Total From HoTOC method | D25: =IF(B312=TRUE,SUM(C312:W312),"-") -> 790
A26: Or own exisiting need figures
A29: Existing Need | B29: 0
A31: 2a. Years to clear exisiting need
A34: Existing "Cleared" In? Enter Years | B34: 5
A41: 3. Income, Growth and Distribution
A43: Growth in median income scenario
A45: Change in income distribution
A48: Select part of income distribution interested in
B49: Example A | C49: 75 | D49: %ile
B50: Example B | C50: 25 | D50: %ile
B51: Example Year | C51: 2038
X52: 2
X53: 2
X54: 2
A57: 4. Prices and Afforability | X57: 1
X58: 1
X59: 2
X60: 2
B61: Percentile | C61: 0.25
B64: Income Ratio | C64: 3.6 | X64: 1
A114: 5. Split Need into Tenure
B115: Proportion of market who buy | C115: 0.6
B116: Upper income-to-rent threshold | C116: 0.25
A117: Lower income-to-rent treshohld | B117: Lower I-rent income limit | C117: 0.35
A118: Rent Growth Assumption
X122: 2
X123: 2
X127: 1
A269: User 1
A270: User 2
A271: User 3
A272: 2016 Principal
A273: 2016 Low Migration
A274: 2016 High Migration
A278: Scottish Government Small Area Income Estimates
A279: Own Income data
A299: Households
A300: Year | B300: =Map!T13-1 -> 2017 | C300: =B300+1 -> 2018 | D300: 2019 | E300: 2020 | F300: 2021 | G300: 2022 | H300: 2023 | I300: 2024 | J300: 2025 | K300: 2026 | L300: 2027 | M300: 2028 | N300: 2029 | O300: 2030 | P300: 2031 | Q300: 2032 | R300: 2033 | S300: 2034 | T300: 2035 | U300: 2036 | V300: 2037 | W300: 2038 | X300: Ref
A301: =CONCATENATE(CHOOSE(Y4,A269,A270,A271,A272,A273,A274)) -> 2016 Principal | C301: =HLOOKUP($A$1,Data!$C$1:$AI$184,C300-($B$300-$X$302)+24*($Y$4-1),FALSE) -> 108547 | D301: =HLOOKUP($A$1,Data!$C$1:$AI$184,D300-($B$300-$X$302)+24*($Y$4-1),FALSE) -> 109290 | E301: =HLOOKUP($A$1,Data!$C$1:$AI$184,E300-($B$300-$X$302)+24*($Y$4-1),FALSE) -> 109936 | F301: =HLOOKUP($A$1,Data!$C$1:$AI$184,F300-($B$300-$X$302)+24*($Y$4-1),FALSE) -> 110563 | G301: =HLOOKUP($A$1,Data!$C$1:$AI$184,G300-($B$300-$X$302)+24*($Y$4-1),FALSE) -> 111179 | H301: =HLOOKUP($A$1,Data!$C$1:$AI$184,H300-($B$300-$X$302)+24*($Y$4-1),FALSE) -> 111654 | I301: =HLOOKUP($A$1,Data!$C$1:$AI$184,I300-($B$300-$X$302)+24*($Y$4-1),FALSE) -> 112129 | J301: =HLOOKUP($A$1,Data!$C$1:$AI$184,J300-($B$300-$X$302)+24*($Y$4-1),FALSE) -> 112623 | K301: =HLOOKUP($A$1,Data!$C$1:$AI$184,K300-($B$300-$X$302)+24*($Y$4-1),FALSE) -> 113128 | L301: =HLOOKUP($A$1,Data!$C$1:$AI$184,L300-($B$300-$X$302)+24*($Y$4-1),FALSE) -> 113687 | M301: =HLOOKUP($A$1,Data!$C$1:$AI$184,M300-($B$300-$X$302)+24*($Y$4-1),FALSE) -> 114241 | N301: =HLOOKUP($A$1,Data!$C$1:$AI$184,N300-($B$300-$X$302)+24*($Y$4-1),FALSE) -> 114818 | O301: =HLOOKUP($A$1,Data!$C$1:$AI$184,O300-($B$300-$X$302)+24*($Y$4-1),FALSE) -> 115391 | P301: =HLOOKUP($A$1,Data!$C$1:$AI$184,P300-($B$300-$X$302)+24*($Y$4-1),FALSE) -> 116014 | Q301: =HLOOKUP($A$1,Data!$C$1:$AI$184,Q300-($B$300-$X$302)+24*($Y$4-1),FALSE) -> 116617 | R301: =HLOOKUP($A$1,Data!$C$1:$AI$184,R300-($B$300-$X$302)+24*($Y$4-1),FALSE) -> 117212 | S301: =HLOOKUP($A$1,Data!$C$1:$AI$184,S300-($B$300-$X$302)+24*($Y$4-1),FALSE) -> 117835 | T301: =HLOOKUP($A$1,Data!$C$1:$AI$184,T300-($B$300-$X$302)+24*($Y$4-1),FALSE) -> 118449 | U301: =HLOOKUP($A$1,Data!$C$1:$AI$184,U300-($B$300-$X$302)+24*($Y$4-1),FALSE) -> 119020 | V301: =HLOOKUP($A$1,Data!$C$1:$AI$184,V300-($B$300-$X$302)+24*($Y$4-1),FALSE) -> 119531 | W301: =HLOOKUP($A$1,Data!$C$1:$AI$184,W300-($B$300-$X$302)+24*($Y$4-1),FALSE) -> 120082
A302: =CONCATENATE(CHOOSE(X4,A269,A270,A271,A272,A273,A274)) -> 2016 Principal | C302: =IF($B$308=TRUE,D12,HLOOKUP($A$1,Data!$C$1:$AI$184,C300-($B$300-$X$302)+24*($X$4-1),FALSE)) -> 108547 | D302: =IF($B$308=TRUE,E12,HLOOKUP($A$1,Data!$C$1:$AI$184,D300-($B$300-$X$302)+24*($X$4-1),FALSE)) -> 109290 | E302: =IF($B$308=TRUE,F12,HLOOKUP($A$1,Data!$C$1:$AI$184,E300-($B$300-$X$302)+24*($X$4-1),FALSE)) -> 109936 | F302: =IF($B$308=TRUE,G12,HLOOKUP($A$1,Data!$C$1:$AI$184,F300-($B$300-$X$302)+24*($X$4-1),FALSE)) -> 110563 | G302: =IF($B$308=TRUE,H12,HLOOKUP($A$1,Data!$C$1:$AI$184,G300-($B$300-$X$302)+24*($X$4-1),FALSE)) -> 111179 | H302: =IF($B$308=TRUE,I12,HLOOKUP($A$1,Data!$C$1:$AI$184,H300-($B$300-$X$302)+24*($X$4-1),FALSE)) -> 111654 | I302: =IF($B$308=TRUE,J12,HLOOKUP($A$1,Data!$C$1:$AI$184,I300-($B$300-$X$302)+24*($X$4-1),FALSE)) -> 112129 | J302: =IF($B$308=TRUE,K12,HLOOKUP($A$1,Data!$C$1:$AI$184,J300-($B$300-$X$302)+24*($X$4-1),FALSE)) -> 112623 | K302: =IF($B$308=TRUE,L12,HLOOKUP($A$1,Data!$C$1:$AI$184,K300-($B$300-$X$302)+24*($X$4-1),FALSE)) -> 113128 | L302: =IF($B$308=TRUE,M12,HLOOKUP($A$1,Data!$C$1:$AI$184,L300-($B$300-$X$302)+24*($X$4-1),FALSE)) -> 113687 | M302: =IF($B$308=TRUE,N12,HLOOKUP($A$1,Data!$C$1:$AI$184,M300-($B$300-$X$302)+24*($X$4-1),FALSE)) -> 114241 | N302: =IF($B$308=TRUE,D14,HLOOKUP($A$1,Data!$C$1:$AI$184,N300-($B$300-$X$302)+24*($X$4-1),FALSE)) -> 114818 | O302: =IF($B$308=TRUE,E14,HLOOKUP($A$1,Data!$C$1:$AI$184,O300-($B$300-$X$302)+24*($X$4-1),FALSE)) -> 115391 | P302: =IF($B$308=TRUE,F14,HLOOKUP($A$1,Data!$C$1:$AI$184,P300-($B$300-$X$302)+24*($X$4-1),FALSE)) -> 116014 | Q302: =IF($B$308=TRUE,G14,HLOOKUP($A$1,Data!$C$1:$AI$184,Q300-($B$300-$X$302)+24*($X$4-1),FALSE)) -> 116617 | R302: =IF($B$308=TRUE,H14,HLOOKUP($A$1,Data!$C$1:$AI$184,R300-($B$300-$X$302)+24*($X$4-1),FALSE)) -> 117212 | S302: =IF($B$308=TRUE,I14,HLOOKUP($A$1,Data!$C$1:$AI$184,S300-($B$300-$X$302)+24*($X$4-1),FALSE)) -> 117835 | T302: =IF($B$308=TRUE,J14,HLOOKUP($A$1,Data!$C$1:$AI$184,T300-($B$300-$X$302)+24*($X$4-1),FALSE)) -> 118449 | U302: =IF($B$308=TRUE,K14,HLOOKUP($A$1,Data!$C$1:$AI$184,U300-($B$300-$X$302)+24*($X$4-1),FALSE)) -> 119020 | V302: =IF($B$308=TRUE,L14,HLOOKUP($A$1,Data!$C$1:$AI$184,V300-($B$300-$X$302)+24*($X$4-1),FALSE)) -> 119531 | W302: =IF($B$308=TRUE,M14,HLOOKUP($A$1,Data!$C$1:$AI$184,W300-($B$300-$X$302)+24*($X$4-1),FALSE)) -> 120082 | X302: 17
C303: =D302-C302 -> 743 | D303: =E302-D302 -> 646 | E303: 627 | F303: 616 | G303: 475 | H303: 475 | I303: 494 | J303: 505 | K303: 559 | L303: 554 | M303: =N302-M302 -> 577 | N303: 573 | O303: 623 | P303: 603 | Q303: 595 | R303: 623 | S303: 614 | T303: 571 | U303: 511 | V303: 551 | W303: =V303 -> 551
A304: =A302 -> 2016 Principal | C304: =(C302)*(1+E17) -> 108547 | D304: =(C304+C303)*(1+F17) -> 109290 | E304: =(D304+D303)*(1+G17) -> 109936 | F304: 110563 | G304: 111179 | H304: 111654 | I304: 112129 | J304: 112623 | K304: 113128 | L304: 113687 | M304: =(L304+L303)*(1+D19) -> 114241 | N304: =(M304+M303)*(1+E19) -> 114818 | O304: 115391 | P304: 116014 | Q304: 116617 | R304: 117212 | S304: 117835 | T304: 118449 | U304: 119020 | V304: 119531 | W304: 120082
A305: =CONCATENATE(A301," Change") -> 2016 Principal Change | C305: =D301-C301 -> 743 | D305: =E301-D301 -> 646 | E305: 627 | F305: 616 | G305: 475 | H305: 475 | I305: 494 | J305: 505 | K305: 559 | L305: 554 | M305: 577 | N305: 573 | O305: 623 | P305: 603 | Q305: 595 | R305: 623 | S305: 614 | T305: 571 | U305: 511 | V305: 551 | W305: =V305 -> 551
A306: =CONCATENATE(A302," Change") -> 2016 Principal Change | C306: =D304-C304 -> 743 | D306: =E304-D304 -> 646 | E306: 627 | F306: =G304-F304 -> 616 | G306: 475 | H306: 475 | I306: 494 | J306: 505 | K306: 559 | L306: 554 | M306: 577 | N306: 573 | O306: 623 | P306: 603 | Q306: 595 | R306: 623 | S306: 614 | T306: 571 | U306: 511 | V306: 551 | W306: =V306 -> 551
B308: FALSE
A309: Backlog Need | B309: FALSE | C309: =IF(AND(C300-$K$1+1<=$B$34,C300>=$K$1),$B$29/ScenarioAll!$B$34,0) -> 0 | D309: =IF(AND(D300-$K$1+1<=$B$34,D300>=$K$1),$B$29/ScenarioAll!$B$34,0) -> 0 | E309: =IF(AND(E300-$K$1+1<=$B$34,E300>=$K$1),$B$29/ScenarioAll!$B$34,0) -> 0 | F309: =IF(AND(F300-$K$1+1<=$B$34,F300>=$K$1),$B$29/ScenarioAll!$B$34,0) -> 0 | G309: =IF(AND(G300-$K$1+1<=$B$34,G300>=$K$1),$B$29/ScenarioAll!$B$34,0) -> 0 | H309: =IF(AND(H300-$K$1+1<=$B$34,H300>=$K$1),$B$29/ScenarioAll!$B$34,0) -> 0 | I309: =IF(AND(I300-$K$1+1<=$B$34,I300>=$K$1),$B$29/ScenarioAll!$B$34,0) -> 0 | J309: =IF(AND(J300-$K$1+1<=$B$34,J300>=$K$1),$B$29/ScenarioAll!$B$34,0) -> 0 | K309: =IF(AND(K300-$K$1+1<=$B$34,K300>=$K$1),$B$29/ScenarioAll!$B$34,0) -> 0 | L309: =IF(AND(L300-$K$1+1<=$B$34,L300>=$K$1),$B$29/ScenarioAll!$B$34,0) -> 0 | M309: =IF(AND(M300-$K$1+1<=$B$34,M300>=$K$1),$B$29/ScenarioAll!$B$34,0) -> 0 | N309: =IF(AND(N300-$K$1+1<=$B$34,N300>=$K$1),$B$29/ScenarioAll!$B$34,0) -> 0 | O309: =IF(AND(O300-$K$1+1<=$B$34,O300>=$K$1),$B$29/ScenarioAll!$B$34,0) -> 0 | P309: =IF(AND(P300-$K$1+1<=$B$34,P300>=$K$1),$B$29/ScenarioAll!$B$34,0) -> 0 | Q309: =IF(AND(Q300-$K$1+1<=$B$34,Q300>=$K$1),$B$29/ScenarioAll!$B$34,0) -> 0 | R309: =IF(AND(R300-$K$1+1<=$B$34,R300>=$K$1),$B$29/ScenarioAll!$B$34,0) -> 0 | S309: =IF(AND(S300-$K$1+1<=$B$34,S300>=$K$1),$B$29/ScenarioAll!$B$34,0) -> 0 | T309: =IF(AND(T300-$K$1+1<=$B$34,T300>=$K$1),$B$29/ScenarioAll!$B$34,0) -> 0 | U309: =IF(AND(U300-$K$1+1<=$B$34,U300>=$K$1),$B$29/ScenarioAll!$B$34,0) -> 0 | V309: =IF(AND(V300-$K$1+1<=$B$34,V300>=$K$1),$B$29/ScenarioAll!$B$34,0) -> 0 | W309: =IF(AND(W300-$K$1+1<=$B$34,W300>=$K$1),$B$29/ScenarioAll!$B$34,0) -> 0
A310: Backlog Need (TA) | C310: =IF(AND(C300-$K$1+1<=$B$34,C300>=$K$1),HLOOKUP($A$1,Data!$C$1:$AJ$202,ScenarioAll!$X$310,FALSE)/ScenarioAll!$B$34,0) -> 158 | D310: =IF(AND(D300-$K$1+1<=$B$34,D300>=$K$1),HLOOKUP($A$1,Data!$C$1:$AJ$202,ScenarioAll!$X$310,FALSE)/ScenarioAll!$B$34,0) -> 158 | E310: =IF(AND(E300-$K$1+1<=$B$34,E300>=$K$1),HLOOKUP($A$1,Data!$C$1:$AJ$202,ScenarioAll!$X$310,FALSE)/ScenarioAll!$B$34,0) -> 158 | F310: =IF(AND(F300-$K$1+1<=$B$34,F300>=$K$1),HLOOKUP($A$1,Data!$C$1:$AJ$202,ScenarioAll!$X$310,FALSE)/ScenarioAll!$B$34,0) -> 158 | G310: =IF(AND(G300-$K$1+1<=$B$34,G300>=$K$1),HLOOKUP($A$1,Data!$C$1:$AJ$202,ScenarioAll!$X$310,FALSE)/ScenarioAll!$B$34,0) -> 158 | H310: =IF(AND(H300-$K$1+1<=$B$34,H300>=$K$1),HLOOKUP($A$1,Data!$C$1:$AJ$202,ScenarioAll!$X$310,FALSE)/ScenarioAll!$B$34,0) -> 0 | I310: =IF(AND(I300-$K$1+1<=$B$34,I300>=$K$1),HLOOKUP($A$1,Data!$C$1:$AJ$202,ScenarioAll!$X$310,FALSE)/ScenarioAll!$B$34,0) -> 0 | J310: =IF(AND(J300-$K$1+1<=$B$34,J300>=$K$1),HLOOKUP($A$1,Data!$C$1:$AJ$202,ScenarioAll!$X$310,FALSE)/ScenarioAll!$B$34,0) -> 0 | K310: =IF(AND(K300-$K$1+1<=$B$34,K300>=$K$1),HLOOKUP($A$1,Data!$C$1:$AJ$202,ScenarioAll!$X$310,FALSE)/ScenarioAll!$B$34,0) -> 0 | L310: =IF(AND(L300-$K$1+1<=$B$34,L300>=$K$1),HLOOKUP($A$1,Data!$C$1:$AJ$202,ScenarioAll!$X$310,FALSE)/ScenarioAll!$B$34,0) -> 0 | M310: =IF(AND(M300-$K$1+1<=$B$34,M300>=$K$1),HLOOKUP($A$1,Data!$C$1:$AJ$202,ScenarioAll!$X$310,FALSE)/ScenarioAll!$B$34,0) -> 0 | N310: =IF(AND(N300-$K$1+1<=$B$34,N300>=$K$1),HLOOKUP($A$1,Data!$C$1:$AJ$202,ScenarioAll!$X$310,FALSE)/ScenarioAll!$B$34,0) -> 0 | O310: =IF(AND(O300-$K$1+1<=$B$34,O300>=$K$1),HLOOKUP($A$1,Data!$C$1:$AJ$202,ScenarioAll!$X$310,FALSE)/ScenarioAll!$B$34,0) -> 0 | P310: =IF(AND(P300-$K$1+1<=$B$34,P300>=$K$1),HLOOKUP($A$1,Data!$C$1:$AJ$202,ScenarioAll!$X$310,FALSE)/ScenarioAll!$B$34,0) -> 0 | Q310: =IF(AND(Q300-$K$1+1<=$B$34,Q300>=$K$1),HLOOKUP($A$1,Data!$C$1:$AJ$202,ScenarioAll!$X$310,FALSE)/ScenarioAll!$B$34,0) -> 0 | R310: =IF(AND(R300-$K$1+1<=$B$34,R300>=$K$1),HLOOKUP($A$1,Data!$C$1:$AJ$202,ScenarioAll!$X$310,FALSE)/ScenarioAll!$B$34,0) -> 0 | S310: =IF(AND(S300-$K$1+1<=$B$34,S300>=$K$1),HLOOKUP($A$1,Data!$C$1:$AJ$202,ScenarioAll!$X$310,FALSE)/ScenarioAll!$B$34,0) -> 0 | T310: =IF(AND(T300-$K$1+1<=$B$34,T300>=$K$1),HLOOKUP($A$1,Data!$C$1:$AJ$202,ScenarioAll!$X$310,FALSE)/ScenarioAll!$B$34,0) -> 0 | U310: =IF(AND(U300-$K$1+1<=$B$34,U300>=$K$1),HLOOKUP($A$1,Data!$C$1:$AJ$202,ScenarioAll!$X$310,FALSE)/ScenarioAll!$B$34,0) -> 0 | V310: =IF(AND(V300-$K$1+1<=$B$34,V300>=$K$1),HLOOKUP($A$1,Data!$C$1:$AJ$202,ScenarioAll!$X$310,FALSE)/ScenarioAll!$B$34,0) -> 0 | W310: =IF(AND(W300-$K$1+1<=$B$34,W300>=$K$1),HLOOKUP($A$1,Data!$C$1:$AJ$202,ScenarioAll!$X$310,FALSE)/ScenarioAll!$B$34,0) -> 0 | X310: 202
A311: Backlog Need (Traditional) | C311: =IF(AND(C300-$K$1+1<=$B$34,C300>=$K$1),HLOOKUP($A$1,Data!$C$1:$AJ$201,ScenarioAll!$X311,FALSE)/ScenarioAll!$B$34,0) -> 0 | D311: =IF(AND(D300-$K$1+1<=$B$34,D300>=$K$1),HLOOKUP($A$1,Data!$C$1:$AJ$201,ScenarioAll!$X311,FALSE)/ScenarioAll!$B$34,0) -> 0 | E311: =IF(AND(E300-$K$1+1<=$B$34,E300>=$K$1),HLOOKUP($A$1,Data!$C$1:$AJ$201,ScenarioAll!$X311,FALSE)/ScenarioAll!$B$34,0) -> 0 | F311: =IF(AND(F300-$K$1+1<=$B$34,F300>=$K$1),HLOOKUP($A$1,Data!$C$1:$AJ$201,ScenarioAll!$X311,FALSE)/ScenarioAll!$B$34,0) -> 0 | G311: =IF(AND(G300-$K$1+1<=$B$34,G300>=$K$1),HLOOKUP($A$1,Data!$C$1:$AJ$201,ScenarioAll!$X311,FALSE)/ScenarioAll!$B$34,0) -> 0 | H311: =IF(AND(H300-$K$1+1<=$B$34,H300>=$K$1),HLOOKUP($A$1,Data!$C$1:$AJ$201,ScenarioAll!$X311,FALSE)/ScenarioAll!$B$34,0) -> 0 | I311: =IF(AND(I300-$K$1+1<=$B$34,I300>=$K$1),HLOOKUP($A$1,Data!$C$1:$AJ$201,ScenarioAll!$X311,FALSE)/ScenarioAll!$B$34,0) -> 0 | J311: =IF(AND(J300-$K$1+1<=$B$34,J300>=$K$1),HLOOKUP($A$1,Data!$C$1:$AJ$201,ScenarioAll!$X311,FALSE)/ScenarioAll!$B$34,0) -> 0 | K311: =IF(AND(K300-$K$1+1<=$B$34,K300>=$K$1),HLOOKUP($A$1,Data!$C$1:$AJ$201,ScenarioAll!$X311,FALSE)/ScenarioAll!$B$34,0) -> 0 | L311: =IF(AND(L300-$K$1+1<=$B$34,L300>=$K$1),HLOOKUP($A$1,Data!$C$1:$AJ$201,ScenarioAll!$X311,FALSE)/ScenarioAll!$B$34,0) -> 0 | M311: =IF(AND(M300-$K$1+1<=$B$34,M300>=$K$1),HLOOKUP($A$1,Data!$C$1:$AJ$201,ScenarioAll!$X311,FALSE)/ScenarioAll!$B$34,0) -> 0 | N311: =IF(AND(N300-$K$1+1<=$B$34,N300>=$K$1),HLOOKUP($A$1,Data!$C$1:$AJ$201,ScenarioAll!$X311,FALSE)/ScenarioAll!$B$34,0) -> 0 | O311: =IF(AND(O300-$K$1+1<=$B$34,O300>=$K$1),HLOOKUP($A$1,Data!$C$1:$AJ$201,ScenarioAll!$X311,FALSE)/ScenarioAll!$B$34,0) -> 0 | P311: =IF(AND(P300-$K$1+1<=$B$34,P300>=$K$1),HLOOKUP($A$1,Data!$C$1:$AJ$201,ScenarioAll!$X311,FALSE)/ScenarioAll!$B$34,0) -> 0 | Q311: =IF(AND(Q300-$K$1+1<=$B$34,Q300>=$K$1),HLOOKUP($A$1,Data!$C$1:$AJ$201,ScenarioAll!$X311,FALSE)/ScenarioAll!$B$34,0) -> 0 | R311: =IF(AND(R300-$K$1+1<=$B$34,R300>=$K$1),HLOOKUP($A$1,Data!$C$1:$AJ$201,ScenarioAll!$X311,FALSE)/ScenarioAll!$B$34,0) -> 0 | S311: =IF(AND(S300-$K$1+1<=$B$34,S300>=$K$1),HLOOKUP($A$1,Data!$C$1:$AJ$201,ScenarioAll!$X311,FALSE)/ScenarioAll!$B$34,0) -> 0 | T311: =IF(AND(T300-$K$1+1<=$B$34,T300>=$K$1),HLOOKUP($A$1,Data!$C$1:$AJ$201,ScenarioAll!$X311,FALSE)/ScenarioAll!$B$34,0) -> 0 | U311: =IF(AND(U300-$K$1+1<=$B$34,U300>=$K$1),HLOOKUP($A$1,Data!$C$1:$AJ$201,ScenarioAll!$X311,FALSE)/ScenarioAll!$B$34,0) -> 0 | V311: =IF(AND(V300-$K$1+1<=$B$34,V300>=$K$1),HLOOKUP($A$1,Data!$C$1:$AJ$201,ScenarioAll!$X311,FALSE)/ScenarioAll!$B$34,0) -> 0 | W311: =IF(AND(W300-$K$1+1<=$B$34,W300>=$K$1),HLOOKUP($A$1,Data!$C$1:$AJ$201,ScenarioAll!$X311,FALSE)/ScenarioAll!$B$34,0) -> 0 | X311: 199
A312: =CONCATENATE("Exisiting ",A302) -> Exisiting 2016 Principal | B312: TRUE | C312: =IF($B$312=TRUE,C310,IF($B$310=TRUE,C311,C309)) -> 158 | D312: 158 | E312: 158 | F312: 158 | G312: 158 | H312: 0 | I312: 0 | J312: 0 | K312: 0 | L312: 0 | M312: 0 | N312: 0 | O312: 0 | P312: 0 | Q312: 0 | R312: 0 | S312: 0 | T312: 0 | U312: 0 | V312: 0 | W312: 0
A315: Overall | C315: =C300 -> 2018 | D315: =D300 -> 2019 | E315: 2020 | F315: 2021 | G315: 2022 | H315: 2023 | I315: 2024 | J315: 2025 | K315: 2026 | L315: 2027 | M315: 2028 | N315: 2029 | O315: 2030 | P315: 2031 | Q315: 2032 | R315: 2033 | S315: 2034 | T315: 2035 | U315: 2036 | V315: 2037 | W315: 2038
A316: =CONCATENATE("Exisiting ",A301) -> Exisiting 2016 Principal | C316: =IF(AND(C300-$K$1+1<=CoreAssumptions!$F$10,C300>=$K$1),HLOOKUP($A$1,Data!$C$1:$AJ$202,ScenarioAll!$X$310,FALSE)/CoreAssumptions!$F$10,0) -> 158 | D316: =IF(AND(D300-$K$1+1<=CoreAssumptions!$F$10,D300>=$K$1),HLOOKUP($A$1,Data!$C$1:$AJ$202,ScenarioAll!$X$310,FALSE)/CoreAssumptions!$F$10,0) -> 158 | E316: =IF(AND(E300-$K$1+1<=CoreAssumptions!$F$10,E300>=$K$1),HLOOKUP($A$1,Data!$C$1:$AJ$202,ScenarioAll!$X$310,FALSE)/CoreAssumptions!$F$10,0) -> 158 | F316: =IF(AND(F300-$K$1+1<=CoreAssumptions!$F$10,F300>=$K$1),HLOOKUP($A$1,Data!$C$1:$AJ$202,ScenarioAll!$X$310,FALSE)/CoreAssumptions!$F$10,0) -> 158 | G316: =IF(AND(G300-$K$1+1<=CoreAssumptions!$F$10,G300>=$K$1),HLOOKUP($A$1,Data!$C$1:$AJ$202,ScenarioAll!$X$310,FALSE)/CoreAssumptions!$F$10,0) -> 158 | H316: =IF(AND(H300-$K$1+1<=CoreAssumptions!$F$10,H300>=$K$1),HLOOKUP($A$1,Data!$C$1:$AJ$202,ScenarioAll!$X$310,FALSE)/CoreAssumptions!$F$10,0) -> 0 | I316: =IF(AND(I300-$K$1+1<=CoreAssumptions!$F$10,I300>=$K$1),HLOOKUP($A$1,Data!$C$1:$AJ$202,ScenarioAll!$X$310,FALSE)/CoreAssumptions!$F$10,0) -> 0 | J316: =IF(AND(J300-$K$1+1<=CoreAssumptions!$F$10,J300>=$K$1),HLOOKUP($A$1,Data!$C$1:$AJ$202,ScenarioAll!$X$310,FALSE)/CoreAssumptions!$F$10,0) -> 0 | K316: =IF(AND(K300-$K$1+1<=CoreAssumptions!$F$10,K300>=$K$1),HLOOKUP($A$1,Data!$C$1:$AJ$202,ScenarioAll!$X$310,FALSE)/CoreAssumptions!$F$10,0) -> 0 | L316: =IF(AND(L300-$K$1+1<=CoreAssumptions!$F$10,L300>=$K$1),HLOOKUP($A$1,Data!$C$1:$AJ$202,ScenarioAll!$X$310,FALSE)/CoreAssumptions!$F$10,0) -> 0 | M316: =IF(AND(M300-$K$1+1<=CoreAssumptions!$F$10,M300>=$K$1),HLOOKUP($A$1,Data!$C$1:$AJ$202,ScenarioAll!$X$310,FALSE)/CoreAssumptions!$F$10,0) -> 0 | N316: =IF(AND(N300-$K$1+1<=CoreAssumptions!$F$10,N300>=$K$1),HLOOKUP($A$1,Data!$C$1:$AJ$202,ScenarioAll!$X$310,FALSE)/CoreAssumptions!$F$10,0) -> 0 | O316: =IF(AND(O300-$K$1+1<=CoreAssumptions!$F$10,O300>=$K$1),HLOOKUP($A$1,Data!$C$1:$AJ$202,ScenarioAll!$X$310,FALSE)/CoreAssumptions!$F$10,0) -> 0 | P316: =IF(AND(P300-$K$1+1<=CoreAssumptions!$F$10,P300>=$K$1),HLOOKUP($A$1,Data!$C$1:$AJ$202,ScenarioAll!$X$310,FALSE)/CoreAssumptions!$F$10,0) -> 0 | Q316: =IF(AND(Q300-$K$1+1<=CoreAssumptions!$F$10,Q300>=$K$1),HLOOKUP($A$1,Data!$C$1:$AJ$202,ScenarioAll!$X$310,FALSE)/CoreAssumptions!$F$10,0) -> 0 | R316: =IF(AND(R300-$K$1+1<=CoreAssumptions!$F$10,R300>=$K$1),HLOOKUP($A$1,Data!$C$1:$AJ$202,ScenarioAll!$X$310,FALSE)/CoreAssumptions!$F$10,0) -> 0 | S316: =IF(AND(S300-$K$1+1<=CoreAssumptions!$F$10,S300>=$K$1),HLOOKUP($A$1,Data!$C$1:$AJ$202,ScenarioAll!$X$310,FALSE)/CoreAssumptions!$F$10,0) -> 0 | T316: =IF(AND(T300-$K$1+1<=CoreAssumptions!$F$10,T300>=$K$1),HLOOKUP($A$1,Data!$C$1:$AJ$202,ScenarioAll!$X$310,FALSE)/CoreAssumptions!$F$10,0) -> 0 | U316: =IF(AND(U300-$K$1+1<=CoreAssumptions!$F$10,U300>=$K$1),HLOOKUP($A$1,Data!$C$1:$AJ$202,ScenarioAll!$X$310,FALSE)/CoreAssumptions!$F$10,0) -> 0 | V316: =IF(AND(V300-$K$1+1<=CoreAssumptions!$F$10,V300>=$K$1),HLOOKUP($A$1,Data!$C$1:$AJ$202,ScenarioAll!$X$310,FALSE)/CoreAssumptions!$F$10,0) -> 0 | W316: =IF(AND(W300-$K$1+1<=CoreAssumptions!$F$10,W300>=$K$1),HLOOKUP($A$1,Data!$C$1:$AJ$202,ScenarioAll!$X$310,FALSE)/CoreAssumptions!$F$10,0) -> 0
A317: =CONCATENATE("Newly Arising ",A301) -> Newly Arising 2016 Principal | C317: =C305 -> 743 | D317: =D305 -> 646 | E317: 627 | F317: 616 | G317: 475 | H317: 475 | I317: 494 | J317: 505 | K317: 559 | L317: 554 | M317: 577 | N317: 573 | O317: 623 | P317: 603 | Q317: 595 | R317: 623 | S317: 614 | T317: 571 | U317: 511 | V317: 551 | W317: 551
A318: =CONCATENATE("Newly Arising ",A302) -> Newly Arising 2016 Principal | C318: =C306 -> 743 | D318: 646 | E318: 627 | F318: 616 | G318: 475 | H318: 475 | I318: 494 | J318: 505 | K318: 559 | L318: 554 | M318: 577 | N318: 573 | O318: 623 | P318: 603 | Q318: 595 | R318: 623 | S318: 614 | T318: 571 | U318: 511 | V318: 551 | W318: 551
A319: =CONCATENATE("Total ",A301) -> Total 2016 Principal | C319: =C316+C317 -> 901 | D319: =D316+D317 -> 804 | E319: 785 | F319: 774 | G319: 633 | H319: 475 | I319: 494 | J319: 505 | K319: 559 | L319: 554 | M319: 577 | N319: 573 | O319: 623 | P319: 603 | Q319: 595 | R319: 623 | S319: 614 | T319: 571 | U319: 511 | V319: 551 | W319: 551
A320: =CONCATENATE("Total ",A302) -> Total 2016 Principal | C320: =C318+C312 -> 901 | D320: =D318+D312 -> 804 | E320: 785 | F320: 774 | G320: 633 | H320: 475 | I320: 494 | J320: 505 | K320: 559 | L320: 554 | M320: 577 | N320: 573 | O320: 623 | P320: 603 | Q320: 595 | R320: 623 | S320: 614 | T320: 571 | U320: 511 | V320: 551 | W320: 551
A322: In Current Proportions | C322: =C315 -> 2018 | D322: =D315 -> 2019 | E322: 2020 | F322: 2021 | G322: 2022 | H322: 2023 | I322: 2024 | J322: 2025 | K322: 2026 | L322: 2027 | M322: 2028 | N322: 2029 | O322: 2030 | P322: 2031 | Q322: 2032 | R322: 2033 | S322: 2034 | T322: 2035 | U322: 2036 | V322: 2037 | W322: 2038
A323: Principal Private | C323: =-HLOOKUP($A$1,Data!$C$1:$AI$379,ScenarioAll!$X323,FALSE)*C319/100 -> 0 | D323: =-HLOOKUP($A$1,Data!$C$1:$AI$379,ScenarioAll!$X323,FALSE)*D319/100 -> 0 | E323: =-HLOOKUP($A$1,Data!$C$1:$AI$379,ScenarioAll!$X323,FALSE)*E319/100 -> 0 | F323: =-HLOOKUP($A$1,Data!$C$1:$AI$379,ScenarioAll!$X323,FALSE)*F319/100 -> 0 | G323: =-HLOOKUP($A$1,Data!$C$1:$AI$379,ScenarioAll!$X323,FALSE)*G319/100 -> 0 | H323: =-HLOOKUP($A$1,Data!$C$1:$AI$379,ScenarioAll!$X323,FALSE)*H319/100 -> 0 | I323: =-HLOOKUP($A$1,Data!$C$1:$AI$379,ScenarioAll!$X323,FALSE)*I319/100 -> 0 | J323: =-HLOOKUP($A$1,Data!$C$1:$AI$379,ScenarioAll!$X323,FALSE)*J319/100 -> 0 | K323: =-HLOOKUP($A$1,Data!$C$1:$AI$379,ScenarioAll!$X323,FALSE)*K319/100 -> 0 | L323: =-HLOOKUP($A$1,Data!$C$1:$AI$379,ScenarioAll!$X323,FALSE)*L319/100 -> 0 | M323: =-HLOOKUP($A$1,Data!$C$1:$AI$379,ScenarioAll!$X323,FALSE)*M319/100 -> 0 | N323: =-HLOOKUP($A$1,Data!$C$1:$AI$379,ScenarioAll!$X323,FALSE)*N319/100 -> 0 | O323: =-HLOOKUP($A$1,Data!$C$1:$AI$379,ScenarioAll!$X323,FALSE)*O319/100 -> 0 | P323: =-HLOOKUP($A$1,Data!$C$1:$AI$379,ScenarioAll!$X323,FALSE)*P319/100 -> 0 | Q323: =-HLOOKUP($A$1,Data!$C$1:$AI$379,ScenarioAll!$X323,FALSE)*Q319/100 -> 0 | R323: =-HLOOKUP($A$1,Data!$C$1:$AI$379,ScenarioAll!$X323,FALSE)*R319/100 -> 0 | S323: =-HLOOKUP($A$1,Data!$C$1:$AI$379,ScenarioAll!$X323,FALSE)*S319/100 -> 0 | T323: =-HLOOKUP($A$1,Data!$C$1:$AI$379,ScenarioAll!$X323,FALSE)*T319/100 -> 0 | U323: =-HLOOKUP($A$1,Data!$C$1:$AI$379,ScenarioAll!$X323,FALSE)*U319/100 -> 0 | V323: =-HLOOKUP($A$1,Data!$C$1:$AI$379,ScenarioAll!$X323,FALSE)*V319/100 -> 0 | W323: =-HLOOKUP($A$1,Data!$C$1:$AI$379,ScenarioAll!$X323,FALSE)*W319/100 -> 0 | X323: 216
A324: Principal Social | C324: =-HLOOKUP($A$1,Data!$C$1:$AI$379,ScenarioAll!$X324,FALSE)*C319/100 -> -103074.4 | D324: =-HLOOKUP($A$1,Data!$C$1:$AI$379,ScenarioAll!$X324,FALSE)*D319/100 -> -91977.6 | E324: =-HLOOKUP($A$1,Data!$C$1:$AI$379,ScenarioAll!$X324,FALSE)*E319/100 -> -89804 | F324: =-HLOOKUP($A$1,Data!$C$1:$AI$379,ScenarioAll!$X324,FALSE)*F319/100 -> -88545.6 | G324: =-HLOOKUP($A$1,Data!$C$1:$AI$379,ScenarioAll!$X324,FALSE)*G319/100 -> -72415.2 | H324: =-HLOOKUP($A$1,Data!$C$1:$AI$379,ScenarioAll!$X324,FALSE)*H319/100 -> -54340 | I324: =-HLOOKUP($A$1,Data!$C$1:$AI$379,ScenarioAll!$X324,FALSE)*I319/100 -> -56513.6 | J324: =-HLOOKUP($A$1,Data!$C$1:$AI$379,ScenarioAll!$X324,FALSE)*J319/100 -> -57772 | K324: =-HLOOKUP($A$1,Data!$C$1:$AI$379,ScenarioAll!$X324,FALSE)*K319/100 -> -63949.6 | L324: =-HLOOKUP($A$1,Data!$C$1:$AI$379,ScenarioAll!$X324,FALSE)*L319/100 -> -63377.6 | M324: =-HLOOKUP($A$1,Data!$C$1:$AI$379,ScenarioAll!$X324,FALSE)*M319/100 -> -66008.8 | N324: =-HLOOKUP($A$1,Data!$C$1:$AI$379,ScenarioAll!$X324,FALSE)*N319/100 -> -65551.2 | O324: =-HLOOKUP($A$1,Data!$C$1:$AI$379,ScenarioAll!$X324,FALSE)*O319/100 -> -71271.2 | P324: =-HLOOKUP($A$1,Data!$C$1:$AI$379,ScenarioAll!$X324,FALSE)*P319/100 -> -68983.2 | Q324: =-HLOOKUP($A$1,Data!$C$1:$AI$379,ScenarioAll!$X324,FALSE)*Q319/100 -> -68068 | R324: =-HLOOKUP($A$1,Data!$C$1:$AI$379,ScenarioAll!$X324,FALSE)*R319/100 -> -71271.2 | S324: =-HLOOKUP($A$1,Data!$C$1:$AI$379,ScenarioAll!$X324,FALSE)*S319/100 -> -70241.6 | T324: =-HLOOKUP($A$1,Data!$C$1:$AI$379,ScenarioAll!$X324,FALSE)*T319/100 -> -65322.4 | U324: =-HLOOKUP($A$1,Data!$C$1:$AI$379,ScenarioAll!$X324,FALSE)*U319/100 -> -58458.4 | V324: =-HLOOKUP($A$1,Data!$C$1:$AI$379,ScenarioAll!$X324,FALSE)*V319/100 -> -63034.4 | W324: =-HLOOKUP($A$1,Data!$C$1:$AI$379,ScenarioAll!$X324,FALSE)*W319/100 -> -63034.4 | X324: 217
A325: Principal PRS | C325: =-HLOOKUP($A$1,Data!$C$1:$AI$379,ScenarioAll!$X325,FALSE)*C319/100 -> -107759.6 | D325: =-HLOOKUP($A$1,Data!$C$1:$AI$379,ScenarioAll!$X325,FALSE)*D319/100 -> -96158.4 | E325: =-HLOOKUP($A$1,Data!$C$1:$AI$379,ScenarioAll!$X325,FALSE)*E319/100 -> -93886 | F325: =-HLOOKUP($A$1,Data!$C$1:$AI$379,ScenarioAll!$X325,FALSE)*F319/100 -> -92570.4 | G325: =-HLOOKUP($A$1,Data!$C$1:$AI$379,ScenarioAll!$X325,FALSE)*G319/100 -> -75706.8 | H325: =-HLOOKUP($A$1,Data!$C$1:$AI$379,ScenarioAll!$X325,FALSE)*H319/100 -> -56810 | I325: =-HLOOKUP($A$1,Data!$C$1:$AI$379,ScenarioAll!$X325,FALSE)*I319/100 -> -59082.4 | J325: =-HLOOKUP($A$1,Data!$C$1:$AI$379,ScenarioAll!$X325,FALSE)*J319/100 -> -60398 | K325: =-HLOOKUP($A$1,Data!$C$1:$AI$379,ScenarioAll!$X325,FALSE)*K319/100 -> -66856.4 | L325: =-HLOOKUP($A$1,Data!$C$1:$AI$379,ScenarioAll!$X325,FALSE)*L319/100 -> -66258.4 | M325: =-HLOOKUP($A$1,Data!$C$1:$AI$379,ScenarioAll!$X325,FALSE)*M319/100 -> -69009.2 | N325: =-HLOOKUP($A$1,Data!$C$1:$AI$379,ScenarioAll!$X325,FALSE)*N319/100 -> -68530.8 | O325: =-HLOOKUP($A$1,Data!$C$1:$AI$379,ScenarioAll!$X325,FALSE)*O319/100 -> -74510.8 | P325: =-HLOOKUP($A$1,Data!$C$1:$AI$379,ScenarioAll!$X325,FALSE)*P319/100 -> -72118.8 | Q325: =-HLOOKUP($A$1,Data!$C$1:$AI$379,ScenarioAll!$X325,FALSE)*Q319/100 -> -71162 | R325: =-HLOOKUP($A$1,Data!$C$1:$AI$379,ScenarioAll!$X325,FALSE)*R319/100 -> -74510.8 | S325: =-HLOOKUP($A$1,Data!$C$1:$AI$379,ScenarioAll!$X325,FALSE)*S319/100 -> -73434.4 | T325: =-HLOOKUP($A$1,Data!$C$1:$AI$379,ScenarioAll!$X325,FALSE)*T319/100 -> -68291.6 | U325: =-HLOOKUP($A$1,Data!$C$1:$AI$379,ScenarioAll!$X325,FALSE)*U319/100 -> -61115.6 | V325: =-HLOOKUP($A$1,Data!$C$1:$AI$379,ScenarioAll!$X325,FALSE)*V319/100 -> -65899.6 | W325: =-HLOOKUP($A$1,Data!$C$1:$AI$379,ScenarioAll!$X325,FALSE)*W319/100 -> -65899.6 | X325: 218
A326: Scenario Private | C326: =HLOOKUP($A$1,Data!$C$1:$AI$379,ScenarioAll!$X326,FALSE)*C320/100 -> 0 | D326: =HLOOKUP($A$1,Data!$C$1:$AI$379,ScenarioAll!$X326,FALSE)*D320/100 -> 0 | E326: =HLOOKUP($A$1,Data!$C$1:$AI$379,ScenarioAll!$X326,FALSE)*E320/100 -> 0 | F326: =HLOOKUP($A$1,Data!$C$1:$AI$379,ScenarioAll!$X326,FALSE)*F320/100 -> 0 | G326: =HLOOKUP($A$1,Data!$C$1:$AI$379,ScenarioAll!$X326,FALSE)*G320/100 -> 0 | H326: =HLOOKUP($A$1,Data!$C$1:$AI$379,ScenarioAll!$X326,FALSE)*H320/100 -> 0 | I326: =HLOOKUP($A$1,Data!$C$1:$AI$379,ScenarioAll!$X326,FALSE)*I320/100 -> 0 | J326: =HLOOKUP($A$1,Data!$C$1:$AI$379,ScenarioAll!$X326,FALSE)*J320/100 -> 0 | K326: =HLOOKUP($A$1,Data!$C$1:$AI$379,ScenarioAll!$X326,FALSE)*K320/100 -> 0 | L326: =HLOOKUP($A$1,Data!$C$1:$AI$379,ScenarioAll!$X326,FALSE)*L320/100 -> 0 | M326: =HLOOKUP($A$1,Data!$C$1:$AI$379,ScenarioAll!$X326,FALSE)*M320/100 -> 0 | N326: =HLOOKUP($A$1,Data!$C$1:$AI$379,ScenarioAll!$X326,FALSE)*N320/100 -> 0 | O326: =HLOOKUP($A$1,Data!$C$1:$AI$379,ScenarioAll!$X326,FALSE)*O320/100 -> 0 | P326: =HLOOKUP($A$1,Data!$C$1:$AI$379,ScenarioAll!$X326,FALSE)*P320/100 -> 0 | Q326: =HLOOKUP($A$1,Data!$C$1:$AI$379,ScenarioAll!$X326,FALSE)*Q320/100 -> 0 | R326: =HLOOKUP($A$1,Data!$C$1:$AI$379,ScenarioAll!$X326,FALSE)*R320/100 -> 0 | S326: =HLOOKUP($A$1,Data!$C$1:$AI$379,ScenarioAll!$X326,FALSE)*S320/100 -> 0 | T326: =HLOOKUP($A$1,Data!$C$1:$AI$379,ScenarioAll!$X326,FALSE)*T320/100 -> 0 | U326: =HLOOKUP($A$1,Data!$C$1:$AI$379,ScenarioAll!$X326,FALSE)*U320/100 -> 0 | V326: =HLOOKUP($A$1,Data!$C$1:$AI$379,ScenarioAll!$X326,FALSE)*V320/100 -> 0 | W326: =HLOOKUP($A$1,Data!$C$1:$AI$379,ScenarioAll!$X326,FALSE)*W320/100 -> 0 | X326: 216
A327: Scenario Social | C327: =HLOOKUP($A$1,Data!$C$1:$AI$379,ScenarioAll!$X327,FALSE)*C320/100 -> 103074.4 | D327: =HLOOKUP($A$1,Data!$C$1:$AI$379,ScenarioAll!$X327,FALSE)*D320/100 -> 91977.6 | E327: =HLOOKUP($A$1,Data!$C$1:$AI$379,ScenarioAll!$X327,FALSE)*E320/100 -> 89804 | F327: =HLOOKUP($A$1,Data!$C$1:$AI$379,ScenarioAll!$X327,FALSE)*F320/100 -> 88545.6 | G327: =HLOOKUP($A$1,Data!$C$1:$AI$379,ScenarioAll!$X327,FALSE)*G320/100 -> 72415.2 | H327: =HLOOKUP($A$1,Data!$C$1:$AI$379,ScenarioAll!$X327,FALSE)*H320/100 -> 54340 | I327: =HLOOKUP($A$1,Data!$C$1:$AI$379,ScenarioAll!$X327,FALSE)*I320/100 -> 56513.6 | J327: =HLOOKUP($A$1,Data!$C$1:$AI$379,ScenarioAll!$X327,FALSE)*J320/100 -> 57772 | K327: =HLOOKUP($A$1,Data!$C$1:$AI$379,ScenarioAll!$X327,FALSE)*K320/100 -> 63949.6 | L327: =HLOOKUP($A$1,Data!$C$1:$AI$379,ScenarioAll!$X327,FALSE)*L320/100 -> 63377.6 | M327: =HLOOKUP($A$1,Data!$C$1:$AI$379,ScenarioAll!$X327,FALSE)*M320/100 -> 66008.8 | N327: =HLOOKUP($A$1,Data!$C$1:$AI$379,ScenarioAll!$X327,FALSE)*N320/100 -> 65551.2 | O327: =HLOOKUP($A$1,Data!$C$1:$AI$379,ScenarioAll!$X327,FALSE)*O320/100 -> 71271.2 | P327: =HLOOKUP($A$1,Data!$C$1:$AI$379,ScenarioAll!$X327,FALSE)*P320/100 -> 68983.2 | Q327: =HLOOKUP($A$1,Data!$C$1:$AI$379,ScenarioAll!$X327,FALSE)*Q320/100 -> 68068 | R327: =HLOOKUP($A$1,Data!$C$1:$AI$379,ScenarioAll!$X327,FALSE)*R320/100 -> 71271.2 | S327: =HLOOKUP($A$1,Data!$C$1:$AI$379,ScenarioAll!$X327,FALSE)*S320/100 -> 70241.6 | T327: =HLOOKUP($A$1,Data!$C$1:$AI$379,ScenarioAll!$X327,FALSE)*T320/100 -> 65322.4 | U327: =HLOOKUP($A$1,Data!$C$1:$AI$379,ScenarioAll!$X327,FALSE)*U320/100 -> 58458.4 | V327: =HLOOKUP($A$1,Data!$C$1:$AI$379,ScenarioAll!$X327,FALSE)*V320/100 -> 63034.4 | W327: =HLOOKUP($A$1,Data!$C$1:$AI$379,ScenarioAll!$X327,FALSE)*W320/100 -> 63034.4 | X327: 217
A328: Scenario PRS | C328: =HLOOKUP($A$1,Data!$C$1:$AI$379,ScenarioAll!$X328,FALSE)*C320/100 -> 107759.6 | D328: =HLOOKUP($A$1,Data!$C$1:$AI$379,ScenarioAll!$X328,FALSE)*D320/100 -> 96158.4 | E328: =HLOOKUP($A$1,Data!$C$1:$AI$379,ScenarioAll!$X328,FALSE)*E320/100 -> 93886 | F328: =HLOOKUP($A$1,Data!$C$1:$AI$379,ScenarioAll!$X328,FALSE)*F320/100 -> 92570.4 | G328: =HLOOKUP($A$1,Data!$C$1:$AI$379,ScenarioAll!$X328,FALSE)*G320/100 -> 75706.8 | H328: =HLOOKUP($A$1,Data!$C$1:$AI$379,ScenarioAll!$X328,FALSE)*H320/100 -> 56810 | I328: =HLOOKUP($A$1,Data!$C$1:$AI$379,ScenarioAll!$X328,FALSE)*I320/100 -> 59082.4 | J328: =HLOOKUP($A$1,Data!$C$1:$AI$379,ScenarioAll!$X328,FALSE)*J320/100 -> 60398 | K328: =HLOOKUP($A$1,Data!$C$1:$AI$379,ScenarioAll!$X328,FALSE)*K320/100 -> 66856.4 | L328: =HLOOKUP($A$1,Data!$C$1:$AI$379,ScenarioAll!$X328,FALSE)*L320/100 -> 66258.4 | M328: =HLOOKUP($A$1,Data!$C$1:$AI$379,ScenarioAll!$X328,FALSE)*M320/100 -> 69009.2 | N328: =HLOOKUP($A$1,Data!$C$1:$AI$379,ScenarioAll!$X328,FALSE)*N320/100 -> 68530.8 | O328: =HLOOKUP($A$1,Data!$C$1:$AI$379,ScenarioAll!$X328,FALSE)*O320/100 -> 74510.8 | P328: =HLOOKUP($A$1,Data!$C$1:$AI$379,ScenarioAll!$X328,FALSE)*P320/100 -> 72118.8 | Q328: =HLOOKUP($A$1,Data!$C$1:$AI$379,ScenarioAll!$X328,FALSE)*Q320/100 -> 71162 | R328: =HLOOKUP($A$1,Data!$C$1:$AI$379,ScenarioAll!$X328,FALSE)*R320/100 -> 74510.8 | S328: =HLOOKUP($A$1,Data!$C$1:$AI$379,ScenarioAll!$X328,FALSE)*S320/100 -> 73434.4 | T328: =HLOOKUP($A$1,Data!$C$1:$AI$379,ScenarioAll!$X328,FALSE)*T320/100 -> 68291.6 | U328: =HLOOKUP($A$1,Data!$C$1:$AI$379,ScenarioAll!$X328,FALSE)*U320/100 -> 61115.6 | V328: =HLOOKUP($A$1,Data!$C$1:$AI$379,ScenarioAll!$X328,FALSE)*V320/100 -> 65899.6 | W328: =HLOOKUP($A$1,Data!$C$1:$AI$379,ScenarioAll!$X328,FALSE)*W320/100 -> 65899.6 | X328: 218
A330: Pri ces | B330: =B300 -> 2017 | C330: =B330+1 -> 2018 | D330: 2019 | E330: 2020 | F330: 2021 | G330: 2022 | H330: 2023 | I330: 2024 | J330: 2025 | K330: 2026 | L330: 2027 | M330: 2028 | N330: 2029 | O330: 2030 | P330: 2031 | Q330: 2032 | R330: 2033 | S330: 2034 | T330: 2035 | U330: 2036 | V330: 2037 | W330: 2038
A331: Principal Scenario | B331: =HLOOKUP(B330,PriceScenarios!$C$2:$AE$15,3) -> 0.04 | C331: =HLOOKUP(C330,PriceScenarios!$C$2:$AE$15,3) -> 0.04 | D331: =HLOOKUP(D330,PriceScenarios!$C$2:$AE$15,3) -> 0.04 | E331: =HLOOKUP(E330,PriceScenarios!$C$2:$AE$15,3) -> 0.04 | F331: =HLOOKUP(F330,PriceScenarios!$C$2:$AE$15,3) -> 0.04 | G331: =HLOOKUP(G330,PriceScenarios!$C$2:$AE$15,3) -> 0.04 | H331: =HLOOKUP(H330,PriceScenarios!$C$2:$AE$15,3) -> 0.04 | I331: =HLOOKUP(I330,PriceScenarios!$C$2:$AE$15,3) -> 0.04 | J331: =HLOOKUP(J330,PriceScenarios!$C$2:$AE$15,3) -> 0.04 | K331: =HLOOKUP(K330,PriceScenarios!$C$2:$AE$15,3) -> 0.04 | L331: =HLOOKUP(L330,PriceScenarios!$C$2:$AE$15,3) -> 0.04 | M331: =HLOOKUP(M330,PriceScenarios!$C$2:$AE$15,3) -> 0.04 | N331: =HLOOKUP(N330,PriceScenarios!$C$2:$AE$15,3) -> 0.04 | O331: =HLOOKUP(O330,PriceScenarios!$C$2:$AE$15,3) -> 0.04 | P331: =HLOOKUP(P330,PriceScenarios!$C$2:$AE$15,3) -> 0.04 | Q331: =HLOOKUP(Q330,PriceScenarios!$C$2:$AE$15,3) -> 0.04 | R331: =HLOOKUP(R330,PriceScenarios!$C$2:$AE$15,3) -> 0.04 | S331: =HLOOKUP(S330,PriceScenarios!$C$2:$AE$15,3) -> 0.04 | T331: =HLOOKUP(T330,PriceScenarios!$C$2:$AE$15,3) -> 0.04 | U331: =HLOOKUP(U330,PriceScenarios!$C$2:$AE$15,3) -> 0.04 | V331: =HLOOKUP(V330,PriceScenarios!$C$2:$AE$15,3) -> 0.04 | W331: =HLOOKUP(W330,PriceScenarios!$C$2:$AE$15,3) -> 0.04
A332: Principal Mean | B332: =HLOOKUP($A$1,Data!$C$1:$AI$207,ScenarioAll!$X332,FALSE) -> 225015.4035 | C332: =B332*(1+B331) -> 234016.0197 | D332: =C332*(1+C331) -> 243376.6605 | E332: 253111.7269 | F332: 263236.1959 | G332: 273765.6438 | H332: 284716.2695 | I332: 296104.9203 | J332: 307949.1171 | K332: 320267.0818 | L332: 333077.7651 | M332: 346400.8757 | N332: 360256.9107 | O332: 374667.1872 | P332: 389653.8746 | Q332: 405240.0296 | R332: 421449.6308 | S332: 438307.616 | T332: 455839.9207 | U332: 474073.5175 | V332: 493036.4582 | W332: 512757.9165 | X332: 206
A333: Principal Median | B333: =HLOOKUP($A$1,Data!$C$1:$AI$207,ScenarioAll!$X333,FALSE) -> 195000 | C333: =B333*(1+B331) -> 202800 | D333: =C333*(1+C331) -> 210912 | E333: 219348.48 | F333: 228122.4192 | G333: 237247.316 | H333: 246737.2086 | I333: 256606.697 | J333: 266870.9648 | K333: 277545.8034 | L333: 288647.6356 | M333: 300193.541 | N333: 312201.2826 | O333: 324689.3339 | P333: 337676.9073 | Q333: 351183.9836 | R333: 365231.3429 | S333: 379840.5966 | T333: 395034.2205 | U333: 410835.5893 | V333: 427269.0129 | W333: 444359.7734 | X333: 207
A334: U | B334: =IF(B333<>0,LN(B333),0) -> 12.18075484 | C334: 12.21997555 | D334: 12.25919626 | E334: 12.29841698 | F334: 12.33763769 | G334: 12.3768584 | H334: 12.41607912 | I334: 12.45529983 | J334: 12.49452054 | K334: 12.53374126 | L334: 12.57296197 | M334: 12.61218268 | N334: 12.6514034 | O334: 12.69062411 | P334: 12.72984482 | Q334: 12.76906553 | R334: 12.80828625 | S334: 12.84750696 | T334: 12.88672767 | U334: 12.92594839 | V334: 12.9651691 | W334: 13.00438981
A335: Sigma2 | B335: =IF(B332<>0,2*LN(B332)-2*B334,0) -> 0.2863386028 | C335: 0.2863386028 | D335: 0.2863386028 | E335: 0.2863386028 | F335: 0.2863386028 | G335: 0.2863386028 | H335: 0.2863386028 | I335: 0.2863386028 | J335: 0.2863386028 | K335: 0.2863386028 | L335: 0.2863386028 | M335: 0.2863386028 | N335: 0.2863386028 | O335: 0.2863386028 | P335: 0.2863386028 | Q335: 0.2863386028 | R335: 0.2863386028 | S335: 0.2863386028 | T335: 0.2863386028 | U335: 0.2863386028 | V335: 0.2863386028 | W335: 0.2863386028
A338: =CONCATENATE("Principal ",$C$61*100,"%ile") -> Principal 25%ile | B338: =EXP(SQRT(B335)*NORMSINV(CoreAssumptions!$F$2)+B334) -> 135921.2859 | C338: =EXP(SQRT(C335)*NORMSINV(CoreAssumptions!$F$2)+C334) -> 141358.1374 | D338: =EXP(SQRT(D335)*NORMSINV(CoreAssumptions!$F$2)+D334) -> 147012.4628 | E338: =EXP(SQRT(E335)*NORMSINV(CoreAssumptions!$F$2)+E334) -> 152892.9614 | F338: =EXP(SQRT(F335)*NORMSINV(CoreAssumptions!$F$2)+F334) -> 159008.6798 | G338: =EXP(SQRT(G335)*NORMSINV(CoreAssumptions!$F$2)+G334) -> 165369.027 | H338: =EXP(SQRT(H335)*NORMSINV(CoreAssumptions!$F$2)+H334) -> 171983.7881 | I338: =EXP(SQRT(I335)*NORMSINV(CoreAssumptions!$F$2)+I334) -> 178863.1396 | J338: =EXP(SQRT(J335)*NORMSINV(CoreAssumptions!$F$2)+J334) -> 186017.6652 | K338: =EXP(SQRT(K335)*NORMSINV(CoreAssumptions!$F$2)+K334) -> 193458.3718 | L338: =EXP(SQRT(L335)*NORMSINV(CoreAssumptions!$F$2)+L334) -> 201196.7067 | M338: =EXP(SQRT(M335)*NORMSINV(CoreAssumptions!$F$2)+M334) -> 209244.5749 | N338: =EXP(SQRT(N335)*NORMSINV(CoreAssumptions!$F$2)+N334) -> 217614.3579 | O338: =EXP(SQRT(O335)*NORMSINV(CoreAssumptions!$F$2)+O334) -> 226318.9323 | P338: =EXP(SQRT(P335)*NORMSINV(CoreAssumptions!$F$2)+P334) -> 235371.6895 | Q338: =EXP(SQRT(Q335)*NORMSINV(CoreAssumptions!$F$2)+Q334) -> 244786.5571 | R338: =EXP(SQRT(R335)*NORMSINV(CoreAssumptions!$F$2)+R334) -> 254578.0194 | S338: =EXP(SQRT(S335)*NORMSINV(CoreAssumptions!$F$2)+S334) -> 264761.1402 | T338: =EXP(SQRT(T335)*NORMSINV(CoreAssumptions!$F$2)+T334) -> 275351.5858 | U338: =EXP(SQRT(U335)*NORMSINV(CoreAssumptions!$F$2)+U334) -> 286365.6492 | V338: =EXP(SQRT(V335)*NORMSINV(CoreAssumptions!$F$2)+V334) -> 297820.2752 | W338: =EXP(SQRT(W335)*NORMSINV(CoreAssumptions!$F$2)+W334) -> 309733.0862
A339: Income from Afford | B339: =IF(B338/CoreAssumptions!$F$3<=B419,B419,B338/CoreAssumptions!$F$3) -> 37755.91275 | C339: =IF(C338/CoreAssumptions!$F$3<=C419,C419,C338/CoreAssumptions!$F$3) -> 39266.14926 | D339: =IF(D338/CoreAssumptions!$F$3<=D419,D419,D338/CoreAssumptions!$F$3) -> 40836.79523 | E339: =IF(E338/CoreAssumptions!$F$3<=E419,E419,E338/CoreAssumptions!$F$3) -> 42470.26704 | F339: =IF(F338/CoreAssumptions!$F$3<=F419,F419,F338/CoreAssumptions!$F$3) -> 44169.07773 | G339: =IF(G338/CoreAssumptions!$F$3<=G419,G419,G338/CoreAssumptions!$F$3) -> 45935.84084 | H339: =IF(H338/CoreAssumptions!$F$3<=H419,H419,H338/CoreAssumptions!$F$3) -> 47773.27447 | I339: =IF(I338/CoreAssumptions!$F$3<=I419,I419,I338/CoreAssumptions!$F$3) -> 49684.20545 | J339: =IF(J338/CoreAssumptions!$F$3<=J419,J419,J338/CoreAssumptions!$F$3) -> 51671.57367 | K339: =IF(K338/CoreAssumptions!$F$3<=K419,K419,K338/CoreAssumptions!$F$3) -> 53738.43661 | L339: =IF(L338/CoreAssumptions!$F$3<=L419,L419,L338/CoreAssumptions!$F$3) -> 55887.97408 | M339: =IF(M338/CoreAssumptions!$F$3<=M419,M419,M338/CoreAssumptions!$F$3) -> 58123.49304 | N339: =IF(N338/CoreAssumptions!$F$3<=N419,N419,N338/CoreAssumptions!$F$3) -> 60448.43276 | O339: =IF(O338/CoreAssumptions!$F$3<=O419,O419,O338/CoreAssumptions!$F$3) -> 62866.37007 | P339: =IF(P338/CoreAssumptions!$F$3<=P419,P419,P338/CoreAssumptions!$F$3) -> 65381.02487 | Q339: =IF(Q338/CoreAssumptions!$F$3<=Q419,Q419,Q338/CoreAssumptions!$F$3) -> 67996.26587 | R339: =IF(R338/CoreAssumptions!$F$3<=R419,R419,R338/CoreAssumptions!$F$3) -> 70716.1165 | S339: =IF(S338/CoreAssumptions!$F$3<=S419,S419,S338/CoreAssumptions!$F$3) -> 73544.76116 | T339: =IF(T338/CoreAssumptions!$F$3<=T419,T419,T338/CoreAssumptions!$F$3) -> 76486.55161 | U339: =IF(U338/CoreAssumptions!$F$3<=U419,U419,U338/CoreAssumptions!$F$3) -> 79546.01368 | V339: =IF(V338/CoreAssumptions!$F$3<=V419,V419,V338/CoreAssumptions!$F$3) -> 82727.85422 | W339: =IF(W338/CoreAssumptions!$F$3<=W419,W419,W338/CoreAssumptions!$F$3) -> 86036.96839
B340: =IF(B339>B419,VLOOKUP(B339,B$419:$AA$499,B$418+3),10) -> 60 | C340: =IF(C339>C419,VLOOKUP(C339,C$419:$AA$499,C$418+3),10) -> 62 | D340: =IF(D339>D419,VLOOKUP(D339,D$419:$AA$499,D$418+3),10) -> 63 | E340: =IF(E339>E419,VLOOKUP(E339,E$419:$AA$499,E$418+3),10) -> 63 | F340: =IF(F339>F419,VLOOKUP(F339,F$419:$AA$499,F$418+3),10) -> 65 | G340: =IF(G339>G419,VLOOKUP(G339,G$419:$AA$499,G$418+3),10) -> 66 | H340: =IF(H339>H419,VLOOKUP(H339,H$419:$AA$499,H$418+3),10) -> 67 | I340: =IF(I339>I419,VLOOKUP(I339,I$419:$AA$499,I$418+3),10) -> 68 | J340: =IF(J339>J419,VLOOKUP(J339,J$419:$AA$499,J$418+3),10) -> 69 | K340: =IF(K339>K419,VLOOKUP(K339,K$419:$AA$499,K$418+3),10) -> 70 | L340: =IF(L339>L419,VLOOKUP(L339,L$419:$AA$499,L$418+3),10) -> 71 | M340: =IF(M339>M419,VLOOKUP(M339,M$419:$AA$499,M$418+3),10) -> 72 | N340: =IF(N339>N419,VLOOKUP(N339,N$419:$AA$499,N$418+3),10) -> 73 | O340: =IF(O339>O419,VLOOKUP(O339,O$419:$AA$499,O$418+3),10) -> 74 | P340: =IF(P339>P419,VLOOKUP(P339,P$419:$AA$499,P$418+3),10) -> 75 | Q340: =IF(Q339>Q419,VLOOKUP(Q339,Q$419:$AA$499,Q$418+3),10) -> 76 | R340: =IF(R339>R419,VLOOKUP(R339,R$419:$AA$499,R$418+3),10) -> 77 | S340: =IF(S339>S419,VLOOKUP(S339,S$419:$AA$499,S$418+3),10) -> 78 | T340: =IF(T339>T419,VLOOKUP(T339,T$419:$AA$499,T$418+3),10) -> 78 | U340: =IF(U339>U419,VLOOKUP(U339,U$419:$AA$499,U$418+3),10) -> 79 | V340: =IF(V339>V419,VLOOKUP(V339,V$419:$AA$499,V$418+3),10) -> 80 | W340: =IF(W339>W419,VLOOKUP(W339,W$419:$AA$499,W$418+3),10) -> 81
A341: Principal Market | C341: =C317*(100-C340)/100 -> 282.34 | D341: =D317*(100-D340)/100 -> 239.02 | E341: 231.99 | F341: 215.6 | G341: 161.5 | H341: 156.75 | I341: 158.08 | J341: 156.55 | K341: 167.7 | L341: 160.66 | M341: 161.56 | N341: 154.71 | O341: 161.98 | P341: 150.75 | Q341: 142.8 | R341: 143.29 | S341: 135.08 | T341: 125.62 | U341: 107.31 | V341: 110.2 | W341: 104.69
A342: Princpal Subsidy | C342: =C316+(C317*(C340)/100) -> 618.66 | D342: =D316+(D317*(D340)/100) -> 564.98 | E342: 553.01 | F342: 558.4 | G342: 471.5 | H342: 318.25 | I342: 335.92 | J342: 348.45 | K342: 391.3 | L342: 393.34 | M342: 415.44 | N342: 418.29 | O342: 461.02 | P342: 452.25 | Q342: 452.2 | R342: 479.71 | S342: 478.92 | T342: 445.38 | U342: 403.69 | V342: 440.8 | W342: 446.31
A347: Scenario | B347: =VLOOKUP($X347,PriceScenarios!$B$3:$AD$21,B330-2009,FALSE) -> 0.04 | C347: =VLOOKUP($X347,PriceScenarios!$B$3:$AD$21,C330-2009,FALSE) -> 0.04 | D347: =VLOOKUP($X347,PriceScenarios!$B$3:$AD$21,D330-2009,FALSE) -> 0.04 | E347: =VLOOKUP($X347,PriceScenarios!$B$3:$AD$21,E330-2009,FALSE) -> 0.04 | F347: =VLOOKUP($X347,PriceScenarios!$B$3:$AD$21,F330-2009,FALSE) -> 0.04 | G347: =VLOOKUP($X347,PriceScenarios!$B$3:$AD$21,G330-2009,FALSE) -> 0.04 | H347: =VLOOKUP($X347,PriceScenarios!$B$3:$AD$21,H330-2009,FALSE) -> 0.04 | I347: =VLOOKUP($X347,PriceScenarios!$B$3:$AD$21,I330-2009,FALSE) -> 0.04 | J347: =VLOOKUP($X347,PriceScenarios!$B$3:$AD$21,J330-2009,FALSE) -> 0.04 | K347: =VLOOKUP($X347,PriceScenarios!$B$3:$AD$21,K330-2009,FALSE) -> 0.04 | L347: =VLOOKUP($X347,PriceScenarios!$B$3:$AD$21,L330-2009,FALSE) -> 0.04 | M347: =VLOOKUP($X347,PriceScenarios!$B$3:$AD$21,M330-2009,FALSE) -> 0.04 | N347: =VLOOKUP($X347,PriceScenarios!$B$3:$AD$21,N330-2009,FALSE) -> 0.04 | O347: =VLOOKUP($X347,PriceScenarios!$B$3:$AD$21,O330-2009,FALSE) -> 0.04 | P347: =VLOOKUP($X347,PriceScenarios!$B$3:$AD$21,P330-2009,FALSE) -> 0.04 | Q347: =VLOOKUP($X347,PriceScenarios!$B$3:$AD$21,Q330-2009,FALSE) -> 0.04 | R347: =VLOOKUP($X347,PriceScenarios!$B$3:$AD$21,R330-2009,FALSE) -> 0.04 | S347: =VLOOKUP($X347,PriceScenarios!$B$3:$AD$21,S330-2009,FALSE) -> 0.04 | T347: =VLOOKUP($X347,PriceScenarios!$B$3:$AD$21,T330-2009,FALSE) -> 0.04 | U347: =VLOOKUP($X347,PriceScenarios!$B$3:$AD$21,U330-2009,FALSE) -> 0.04 | V347: =VLOOKUP($X347,PriceScenarios!$B$3:$AD$21,V330-2009,FALSE) -> 0.04 | W347: =VLOOKUP($X347,PriceScenarios!$B$3:$AD$21,W330-2009,FALSE) -> 0.04 | X347: =CHOOSE(X60,PriceScenarios!$B$3,PriceScenarios!$B$4,PriceScenarios!$B$5,PriceScenarios!$B$6,PriceScenarios!$B$7,PriceScenarios!$B$8,PriceScenarios!$B$9,PriceScenarios!$B$10,PriceScenarios!$B$11,PriceScenarios!$B$12,PriceScenarios!$B$13,PriceScenarios!$B$14,PriceScenarios!$B$15,PriceScenarios!$B$16,PriceScenarios!$B$17,PriceScenarios!$B$18,PriceScenarios!$B$19,PriceScenarios!$B$20,PriceScenarios!$B$21) -> Modest Growth
A348: Scenario Mean | B348: =HLOOKUP($A$1,Data!$C$1:$AI$207,ScenarioAll!$X348,FALSE) -> 225015.4035 | C348: =B348*(1+B347) -> 234016.0197 | D348: =C348*(1+C347) -> 243376.6605 | E348: 253111.7269 | F348: 263236.1959 | G348: 273765.6438 | H348: 284716.2695 | I348: 296104.9203 | J348: 307949.1171 | K348: 320267.0818 | L348: 333077.7651 | M348: 346400.8757 | N348: 360256.9107 | O348: 374667.1872 | P348: 389653.8746 | Q348: 405240.0296 | R348: 421449.6308 | S348: 438307.616 | T348: 455839.9207 | U348: 474073.5175 | V348: =U348*(1+U347) -> 493036.4582 | W348: =V348*(1+V347) -> 512757.9165 | X348: 206
A349: Scenario Median | B349: =HLOOKUP($A$1,Data!$C$1:$AI$207,ScenarioAll!$X349,FALSE) -> 195000 | C349: =B349*(1+B347) -> 202800 | D349: =C349*(1+C347) -> 210912 | E349: 219348.48 | F349: 228122.4192 | G349: 237247.316 | H349: 246737.2086 | I349: 256606.697 | J349: 266870.9648 | K349: 277545.8034 | L349: 288647.6356 | M349: 300193.541 | N349: 312201.2826 | O349: 324689.3339 | P349: 337676.9073 | Q349: 351183.9836 | R349: 365231.3429 | S349: 379840.5966 | T349: 395034.2205 | U349: 410835.5893 | V349: =U349*(1+U347) -> 427269.0129 | W349: =V349*(1+V347) -> 444359.7734 | X349: 207
A350: U | B350: =IF(B349<>0,LN(B349),0) -> 12.18075484 | C350: 12.21997555 | D350: 12.25919626 | E350: 12.29841698 | F350: 12.33763769 | G350: 12.3768584 | H350: 12.41607912 | I350: 12.45529983 | J350: 12.49452054 | K350: 12.53374126 | L350: 12.57296197 | M350: 12.61218268 | N350: 12.6514034 | O350: 12.69062411 | P350: 12.72984482 | Q350: 12.76906553 | R350: 12.80828625 | S350: 12.84750696 | T350: 12.88672767 | U350: 12.92594839 | V350: =IF(V349<>0,LN(V349),0) -> 12.9651691 | W350: =IF(W349<>0,LN(W349),0) -> 13.00438981
A351: Sigma2 | B351: =IF(B348<>0,2*LN(B348)-2*B350,0) -> 0.2863386028 | C351: 0.2863386028 | D351: 0.2863386028 | E351: 0.2863386028 | F351: 0.2863386028 | G351: 0.2863386028 | H351: 0.2863386028 | I351: 0.2863386028 | J351: 0.2863386028 | K351: 0.2863386028 | L351: 0.2863386028 | M351: 0.2863386028 | N351: 0.2863386028 | O351: 0.2863386028 | P351: 0.2863386028 | Q351: 0.2863386028 | R351: 0.2863386028 | S351: 0.2863386028 | T351: 0.2863386028 | U351: 0.2863386028 | V351: =IF(V348<>0,2*LN(V348)-2*V350,0) -> 0.2863386028 | W351: =IF(W348<>0,2*LN(W348)-2*W350,0) -> 0.2863386028
A353: =CONCATENATE("Scenario ",$C$61*100,"%ile") -> Scenario 25%ile | B353: =EXP(SQRT(B351)*NORMSINV($C$61)+B350) -> 135921.2859 | C353: 141358.1374 | D353: 147012.4628 | E353: 152892.9614 | F353: 159008.6798 | G353: 165369.027 | H353: 171983.7881 | I353: 178863.1396 | J353: 186017.6652 | K353: 193458.3718 | L353: 201196.7067 | M353: 209244.5749 | N353: 217614.3579 | O353: 226318.9323 | P353: 235371.6895 | Q353: 244786.5571 | R353: 254578.0194 | S353: 264761.1402 | T353: 275351.5858 | U353: 286365.6492 | V353: =EXP(SQRT(V351)*NORMSINV($C$61)+V350) -> 297820.2752 | W353: =EXP(SQRT(W351)*NORMSINV($C$61)+W350) -> 309733.0862
A354: Income from Afford | B354: =IF(B353/$C$64<=B510,B510,B353/$C$64) -> 37755.91275 | C354: =IF(C353/$C$64<=C510,C510,C353/$C$64) -> 39266.14926 | D354: 40836.79523 | E354: 42470.26704 | F354: 44169.07773 | G354: 45935.84084 | H354: 47773.27447 | I354: 49684.20545 | J354: 51671.57367 | K354: 53738.43661 | L354: 55887.97408 | M354: 58123.49304 | N354: 60448.43276 | O354: 62866.37007 | P354: 65381.02487 | Q354: 67996.26587 | R354: 70716.1165 | S354: 73544.76116 | T354: 76486.55161 | U354: 79546.01368 | V354: 82727.85422 | W354: 86036.96839
B355: =IF(B354>B510,VLOOKUP(B354,B510:$AA$590,B509+3),10) -> 60 | C355: =IF(C354>C510,VLOOKUP(C354,C510:$AA$590,C509+3),10) -> 62 | D355: =IF(D354>D510,VLOOKUP(D354,D510:$AA$590,D509+3),10) -> 63 | E355: =IF(E354>E510,VLOOKUP(E354,E510:$AA$590,E509+3),10) -> 63 | F355: =IF(F354>F510,VLOOKUP(F354,F510:$AA$590,F509+3),10) -> 65 | G355: =IF(G354>G510,VLOOKUP(G354,G510:$AA$590,G509+3),10) -> 66 | H355: =IF(H354>H510,VLOOKUP(H354,H510:$AA$590,H509+3),10) -> 67 | I355: =IF(I354>I510,VLOOKUP(I354,I510:$AA$590,I509+3),10) -> 68 | J355: =IF(J354>J510,VLOOKUP(J354,J510:$AA$590,J509+3),10) -> 69 | K355: =IF(K354>K510,VLOOKUP(K354,K510:$AA$590,K509+3),10) -> 70 | L355: =IF(L354>L510,VLOOKUP(L354,L510:$AA$590,L509+3),10) -> 71 | M355: =IF(M354>M510,VLOOKUP(M354,M510:$AA$590,M509+3),10) -> 72 | N355: =IF(N354>N510,VLOOKUP(N354,N510:$AA$590,N509+3),10) -> 73 | O355: =IF(O354>O510,VLOOKUP(O354,O510:$AA$590,O509+3),10) -> 74 | P355: =IF(P354>P510,VLOOKUP(P354,P510:$AA$590,P509+3),10) -> 75 | Q355: =IF(Q354>Q510,VLOOKUP(Q354,Q510:$AA$590,Q509+3),10) -> 76 | R355: =IF(R354>R510,VLOOKUP(R354,R510:$AA$590,R509+3),10) -> 77 | S355: =IF(S354>S510,VLOOKUP(S354,S510:$AA$590,S509+3),10) -> 78 | T355: =IF(T354>T510,VLOOKUP(T354,T510:$AA$590,T509+3),10) -> 78 | U355: =IF(U354>U510,VLOOKUP(U354,U510:$AA$590,U509+3),10) -> 79 | V355: =IF(V354>V510,VLOOKUP(V354,V510:$AA$590,V509+3),10) -> 80 | W355: =IF(W354>W510,VLOOKUP(W354,W510:$AA$590,W509+3),10) -> 81
A356: Scenario Market | C356: =IF(OR($B$312=TRUE,$B$309=FALSE),C318*(100-C355)/100,C320*(100-C355)/100) -> 282.34 | D356: =IF(OR($B$312=TRUE,$B$309=FALSE),D318*(100-D355)/100,D320*(100-D355)/100) -> 239.02 | E356: 231.99 | F356: 215.6 | G356: 161.5 | H356: 156.75 | I356: 158.08 | J356: 156.55 | K356: 167.7 | L356: 160.66 | M356: 161.56 | N356: 154.71 | O356: 161.98 | P356: 150.75 | Q356: 142.8 | R356: 143.29 | S356: 135.08 | T356: 125.62 | U356: 107.31 | V356: 110.2 | W356: 104.69
A357: Scenario Subsidy | C357: =IF(OR($B$309=FALSE,$B$312=TRUE),C312+(C318*(C355)/100),C320*(C355)/100) -> 618.66 | D357: =IF(OR($B$309=FALSE,$B$312=TRUE),D312+(D318*(D355)/100),D320*(D355)/100) -> 564.98 | E357: 553.01 | F357: 558.4 | G357: 471.5 | H357: 318.25 | I357: 335.92 | J357: 348.45 | K357: 391.3 | L357: 393.34 | M357: 415.44 | N357: 418.29 | O357: 461.02 | P357: 452.25 | Q357: 452.2 | R357: 479.71 | S357: 478.92 | T357: 445.38 | U357: 403.69 | V357: 440.8 | W357: 446.31
A360: Intermediate
A362: Rents (Principal)
A363: Rises Principal | B363: =B331 -> 0.04 | C363: =C331 -> 0.04 | D363: 0.04 | E363: 0.04 | F363: 0.04 | G363: 0.04 | H363: 0.04 | I363: 0.04 | J363: 0.04 | K363: 0.04 | L363: 0.04 | M363: 0.04 | N363: 0.04 | O363: 0.04 | P363: 0.04 | Q363: 0.04 | R363: 0.04 | S363: 0.04 | T363: 0.04 | U363: 0.04 | V363: 0.04 | W363: 0.04
A365: Rent Median (Principal) | B365: =HLOOKUP($A$1,Data!$C$1:$AI$211,ScenarioAll!$X365,FALSE) -> 173.0769231 | C365: =B365*(1+B363) -> 180 | D365: =C365*(1+C363) -> 187.2 | E365: 194.688 | F365: 202.47552 | G365: 210.5745408 | H365: 218.9975224 | I365: 227.7574233 | J365: 236.8677203 | K365: 246.3424291 | L365: 256.1961262 | M365: 266.4439713 | N365: 277.1017301 | O365: 288.1857993 | P365: 299.7132313 | Q365: 311.7017606 | R365: 324.169831 | S365: 337.1366242 | T365: 350.6220892 | U365: 364.6469728 | V365: 379.2328517 | W365: 394.4021657 | X365: 210
A366: Rent 30th%ile (Principal) | B366: =HLOOKUP($A$1,Data!$C$1:$AI$211,ScenarioAll!$X366,FALSE) -> 150 | C366: =B366*(1+B363) -> 156 | D366: =C366*(1+C363) -> 162.24 | E366: 168.7296 | F366: 175.478784 | G366: 182.4979354 | H366: 189.7978528 | I366: 197.3897669 | J366: 205.2853576 | K366: 213.4967719 | L366: 222.0366427 | M366: 230.9181084 | N366: 240.1548328 | O366: 249.7610261 | P366: 259.7514671 | Q366: 270.1415258 | R366: 280.9471869 | S366: 292.1850743 | T366: 303.8724773 | U366: 316.0273764 | V366: 328.6684715 | W366: 341.8152103 | X366: 211
A367: Annual Rent Medain | B367: =B365*52 -> 9000 | C367: =C365*52 -> 9360 | D367: 9734.4 | E367: 10123.776 | F367: 10528.72704 | G367: 10949.87612 | H367: 11387.87117 | I367: 11843.38601 | J367: 12317.12145 | K367: 12809.80631 | L367: 13322.19856 | M367: 13855.08651 | N367: 14409.28997 | O367: 14985.66157 | P367: 15585.08803 | Q367: 16208.49155 | R367: 16856.83121 | S367: 17531.10446 | T367: 18232.34864 | U367: 18961.64258 | V367: 19720.10829 | W367: 20508.91262
A368: Annual Rent 30th | B368: =B366*52 -> 7800 | C368: 8112 | D368: 8436.48 | E368: 8773.9392 | F368: 9124.896768 | G368: 9489.892639 | H368: 9869.488344 | I368: 10264.26788 | J368: 10674.83859 | K368: 11101.83214 | L368: 11545.90542 | M368: 12007.74164 | N368: 12488.0513 | O368: 12987.57336 | P368: 13507.07629 | Q368: 14047.35934 | R368: 14609.25372 | S368: 15193.62387 | T368: 15801.36882 | U368: 16433.42357 | V368: 17090.76052 | W368: 17774.39094
A370: Income above | B370: =B367/CoreAssumptions!$F$6 -> 36000 | C370: =C367/CoreAssumptions!$F$6 -> 37440 | D370: =D367/CoreAssumptions!$F$6 -> 38937.6 | E370: =E367/CoreAssumptions!$F$6 -> 40495.104 | F370: =F367/CoreAssumptions!$F$6 -> 42114.90816 | G370: =G367/CoreAssumptions!$F$6 -> 43799.50449 | H370: =H367/CoreAssumptions!$F$6 -> 45551.48467 | I370: =I367/CoreAssumptions!$F$6 -> 47373.54405 | J370: =J367/CoreAssumptions!$F$6 -> 49268.48581 | K370: =K367/CoreAssumptions!$F$6 -> 51239.22525 | L370: =L367/CoreAssumptions!$F$6 -> 53288.79426 | M370: =M367/CoreAssumptions!$F$6 -> 55420.34603 | N370: =N367/CoreAssumptions!$F$6 -> 57637.15987 | O370: =O367/CoreAssumptions!$F$6 -> 59942.64626 | P370: =P367/CoreAssumptions!$F$6 -> 62340.35211 | Q370: =Q367/CoreAssumptions!$F$6 -> 64833.9662 | R370: =R367/CoreAssumptions!$F$6 -> 67427.32485 | S370: =S367/CoreAssumptions!$F$6 -> 70124.41784 | T370: =T367/CoreAssumptions!$F$6 -> 72929.39455 | U370: =U367/CoreAssumptions!$F$6 -> 75846.57034 | V370: =V367/CoreAssumptions!$F$6 -> 78880.43315 | W370: =W367/CoreAssumptions!$F$6 -> 82035.65048
A371: Income below | B371: =B368/CoreAssumptions!$F$5 -> 22285.71429 | C371: =C368/CoreAssumptions!$F$5 -> 23177.14286 | D371: =D368/CoreAssumptions!$F$5 -> 24104.22857 | E371: =E368/CoreAssumptions!$F$5 -> 25068.39771 | F371: =F368/CoreAssumptions!$F$5 -> 26071.13362 | G371: =G368/CoreAssumptions!$F$5 -> 27113.97897 | H371: =H368/CoreAssumptions!$F$5 -> 28198.53813 | I371: =I368/CoreAssumptions!$F$5 -> 29326.47965 | J371: =J368/CoreAssumptions!$F$5 -> 30499.53884 | K371: =K368/CoreAssumptions!$F$5 -> 31719.52039 | L371: =L368/CoreAssumptions!$F$5 -> 32988.30121 | M371: =M368/CoreAssumptions!$F$5 -> 34307.83326 | N371: =N368/CoreAssumptions!$F$5 -> 35680.14659 | O371: =O368/CoreAssumptions!$F$5 -> 37107.35245 | P371: =P368/CoreAssumptions!$F$5 -> 38591.64655 | Q371: =Q368/CoreAssumptions!$F$5 -> 40135.31241 | R371: =R368/CoreAssumptions!$F$5 -> 41740.7249 | S371: =S368/CoreAssumptions!$F$5 -> 43410.3539 | T371: =T368/CoreAssumptions!$F$5 -> 45146.76806 | U371: =U368/CoreAssumptions!$F$5 -> 46952.63878 | V371: =V368/CoreAssumptions!$F$5 -> 48830.74433 | W371: =W368/CoreAssumptions!$F$5 -> 50783.9741
A372: Above percentile | B372: =VLOOKUP(B370,B$419:$AA$499,B$418+3) -> 58 | C372: =VLOOKUP(C370,C$419:$AA$499,C$418+3) -> 59 | D372: =VLOOKUP(D370,D$419:$AA$499,D$418+3) -> 60 | E372: =VLOOKUP(E370,E$419:$AA$499,E$418+3) -> 61 | F372: =VLOOKUP(F370,F$419:$AA$499,F$418+3) -> 62 | G372: =VLOOKUP(G370,G$419:$AA$499,G$418+3) -> 63 | H372: =VLOOKUP(H370,H$419:$AA$499,H$418+3) -> 64 | I372: =VLOOKUP(I370,I$419:$AA$499,I$418+3) -> 65 | J372: =VLOOKUP(J370,J$419:$AA$499,J$418+3) -> 66 | K372: =VLOOKUP(K370,K$419:$AA$499,K$418+3) -> 67 | L372: =VLOOKUP(L370,L$419:$AA$499,L$418+3) -> 69 | M372: =VLOOKUP(M370,M$419:$AA$499,M$418+3) -> 69 | N372: =VLOOKUP(N370,N$419:$AA$499,N$418+3) -> 70 | O372: =VLOOKUP(O370,O$419:$AA$499,O$418+3) -> 72 | P372: =VLOOKUP(P370,P$419:$AA$499,P$418+3) -> 72 | Q372: =VLOOKUP(Q370,Q$419:$AA$499,Q$418+3) -> 73 | R372: =VLOOKUP(R370,R$419:$AA$499,R$418+3) -> 74 | S372: =VLOOKUP(S370,S$419:$AA$499,S$418+3) -> 75 | T372: =VLOOKUP(T370,T$419:$AA$499,T$418+3) -> 76 | U372: =VLOOKUP(U370,U$419:$AA$499,U$418+3) -> 77 | V372: =VLOOKUP(V370,V$419:$AA$499,V$418+3) -> 78 | W372: =VLOOKUP(W370,W$419:$AA$499,W$418+3) -> 79
A373: Below percentile | B373: =IF(ISERROR(VLOOKUP(B371,B$419:$AA$499,B$418+3)),10,VLOOKUP(B371,B$419:$AA$499,B$418+3)) -> 33 | C373: =VLOOKUP(C371,C$419:$AA$499,C$418+3) -> 35 | D373: =VLOOKUP(D371,D$419:$AA$499,D$418+3) -> 36 | E373: =VLOOKUP(E371,E$419:$AA$499,E$418+3) -> 37 | F373: =VLOOKUP(F371,F$419:$AA$499,F$418+3) -> 38 | G373: =VLOOKUP(G371,G$419:$AA$499,G$418+3) -> 39 | H373: =VLOOKUP(H371,H$419:$AA$499,H$418+3) -> 40 | I373: =VLOOKUP(I371,I$419:$AA$499,I$418+3) -> 41 | J373: =VLOOKUP(J371,J$419:$AA$499,J$418+3) -> 42 | K373: =VLOOKUP(K371,K$419:$AA$499,K$418+3) -> 43 | L373: =VLOOKUP(L371,L$419:$AA$499,L$418+3) -> 44 | M373: =VLOOKUP(M371,M$419:$AA$499,M$418+3) -> 45 | N373: =VLOOKUP(N371,N$419:$AA$499,N$418+3) -> 45 | O373: =VLOOKUP(O371,O$419:$AA$499,O$418+3) -> 46 | P373: =VLOOKUP(P371,P$419:$AA$499,P$418+3) -> 47 | Q373: =VLOOKUP(Q371,Q$419:$AA$499,Q$418+3) -> 48 | R373: =VLOOKUP(R371,R$419:$AA$499,R$418+3) -> 49 | S373: =VLOOKUP(S371,S$419:$AA$499,S$418+3) -> 50 | T373: =VLOOKUP(T371,T$419:$AA$499,T$418+3) -> 51 | U373: =VLOOKUP(U371,U$419:$AA$499,U$418+3) -> 52 | V373: =VLOOKUP(V371,V$419:$AA$499,V$418+3) -> 53 | W373: =VLOOKUP(W371,W$419:$AA$499,W$418+3) -> 54
A377: Social Rent | C377: =C319-C378-C379-C380 -> 418.05 | D377: =D319-D378-D379-D380 -> 390.56 | E377: 389.99 | F377: 392.08 | G377: 343.25 | H377: 190 | I377: 202.54 | J377: 212.1 | K377: 240.37 | L377: 243.76 | M377: 259.65 | N377: 257.85 | O377: 286.58 | P377: 283.41 | Q377: 285.6 | R377: 305.27 | S377: 307 | T377: 291.21 | U377: 265.72 | V377: 292.03 | W377: 297.54
A378: BM Rent | C378: =(C372-C373)/100*C317 -> 178.32 | D378: =(D372-D373)/100*D317 -> 155.04 | E378: 150.48 | F378: 147.84 | G378: 114 | H378: 114 | I378: 118.56 | J378: 121.2 | K378: 134.16 | L378: 138.5 | M378: 138.48 | N378: 143.25 | O378: 161.98 | P378: 150.75 | Q378: 148.75 | R378: 155.75 | S378: 153.5 | T378: 142.75 | U378: 127.75 | V378: 137.75 | W378: 137.75
A379: PRS | C379: =(100-C372)/100*C317-C380 -> 135.226 | D379: =(100-D372)/100*D317-D380 -> 114.988 | E379: 105.336 | F379: 104.72 | G379: 78.85 | H379: 76.95 | I379: 78.052 | J379: 77.77 | K379: 83.85 | L379: 75.344 | M379: 81.934 | N379: 79.074 | O379: 77.252 | P379: 78.39 | Q379: 74.97 | R379: 76.006 | S379: 72.452 | T379: 61.668 | U379: 53.144 | V379: 55.1 | W379: 52.896
A380: Buyers | C380: =C341*CoreAssumptions!$F$8 -> 169.404 | D380: =D341*CoreAssumptions!$F$8 -> 143.412 | E380: =E341*CoreAssumptions!$F$8 -> 139.194 | F380: =F341*CoreAssumptions!$F$8 -> 129.36 | G380: =G341*CoreAssumptions!$F$8 -> 96.9 | H380: =H341*CoreAssumptions!$F$8 -> 94.05 | I380: =I341*CoreAssumptions!$F$8 -> 94.848 | J380: =J341*CoreAssumptions!$F$8 -> 93.93 | K380: =K341*CoreAssumptions!$F$8 -> 100.62 | L380: =L341*CoreAssumptions!$F$8 -> 96.396 | M380: =M341*CoreAssumptions!$F$8 -> 96.936 | N380: =N341*CoreAssumptions!$F$8 -> 92.826 | O380: =O341*CoreAssumptions!$F$8 -> 97.188 | P380: =P341*CoreAssumptions!$F$8 -> 90.45 | Q380: =Q341*CoreAssumptions!$F$8 -> 85.68 | R380: =R341*CoreAssumptions!$F$8 -> 85.974 | S380: =S341*CoreAssumptions!$F$8 -> 81.048 | T380: =T341*CoreAssumptions!$F$8 -> 75.372 | U380: =U341*CoreAssumptions!$F$8 -> 64.386 | V380: =V341*CoreAssumptions!$F$8 -> 66.12 | W380: =W341*CoreAssumptions!$F$8 -> 62.814
A382: Rents Scenario | B382: =B330 -> 2017 | C382: =B382+1 -> 2018 | D382: 2019 | E382: 2020 | F382: 2021 | G382: 2022 | H382: 2023 | I382: 2024 | J382: 2025 | K382: 2026 | L382: 2027 | M382: 2028 | N382: 2029 | O382: 2030 | P382: 2031 | Q382: 2032 | R382: 2033 | S382: 2034 | T382: 2035 | U382: 2036 | V382: 2037 | W382: 2038
A383: Rises Scenario | B383: =VLOOKUP($X383,PriceScenarios!$B$3:$AD$21,B382-2009,FALSE) -> 0.04 | C383: =VLOOKUP($X383,PriceScenarios!$B$3:$AD$21,C382-2009,FALSE) -> 0.04 | D383: =VLOOKUP($X383,PriceScenarios!$B$3:$AD$21,D382-2009,FALSE) -> 0.04 | E383: =VLOOKUP($X383,PriceScenarios!$B$3:$AD$21,E382-2009,FALSE) -> 0.04 | F383: =VLOOKUP($X383,PriceScenarios!$B$3:$AD$21,F382-2009,FALSE) -> 0.04 | G383: =VLOOKUP($X383,PriceScenarios!$B$3:$AD$21,G382-2009,FALSE) -> 0.04 | H383: =VLOOKUP($X383,PriceScenarios!$B$3:$AD$21,H382-2009,FALSE) -> 0.04 | I383: =VLOOKUP($X383,PriceScenarios!$B$3:$AD$21,I382-2009,FALSE) -> 0.04 | J383: =VLOOKUP($X383,PriceScenarios!$B$3:$AD$21,J382-2009,FALSE) -> 0.04 | K383: =VLOOKUP($X383,PriceScenarios!$B$3:$AD$21,K382-2009,FALSE) -> 0.04 | L383: =VLOOKUP($X383,PriceScenarios!$B$3:$AD$21,L382-2009,FALSE) -> 0.04 | M383: =VLOOKUP($X383,PriceScenarios!$B$3:$AD$21,M382-2009,FALSE) -> 0.04 | N383: =VLOOKUP($X383,PriceScenarios!$B$3:$AD$21,N382-2009,FALSE) -> 0.04 | O383: =VLOOKUP($X383,PriceScenarios!$B$3:$AD$21,O382-2009,FALSE) -> 0.04 | P383: =VLOOKUP($X383,PriceScenarios!$B$3:$AD$21,P382-2009,FALSE) -> 0.04 | Q383: =VLOOKUP($X383,PriceScenarios!$B$3:$AD$21,Q382-2009,FALSE) -> 0.04 | R383: =VLOOKUP($X383,PriceScenarios!$B$3:$AD$21,R382-2009,FALSE) -> 0.04 | S383: =VLOOKUP($X383,PriceScenarios!$B$3:$AD$21,S382-2009,FALSE) -> 0.04 | T383: =VLOOKUP($X383,PriceScenarios!$B$3:$AD$21,T382-2009,FALSE) -> 0.04 | U383: =VLOOKUP($X383,PriceScenarios!$B$3:$AD$21,U382-2009,FALSE) -> 0.04 | V383: =VLOOKUP($X383,PriceScenarios!$B$3:$AD$21,V382-2009,FALSE) -> 0.04 | W383: =VLOOKUP($X383,PriceScenarios!$B$3:$AD$21,W382-2009,FALSE) -> 0.04 | X383: =CHOOSE(X123,PriceScenarios!$B$3,PriceScenarios!$B$4,PriceScenarios!$B$5,PriceScenarios!$B$6,PriceScenarios!$B$7,PriceScenarios!$B$8,PriceScenarios!$B$9,PriceScenarios!$B$10,PriceScenarios!$B$11,PriceScenarios!$B$12,PriceScenarios!$B$13,PriceScenarios!$B$14,PriceScenarios!$B$15,PriceScenarios!$B$16,PriceScenarios!$B$17,PriceScenarios!$B$18,PriceScenarios!$B$19,PriceScenarios!$B$20,PriceScenarios!$B$21) -> Modest Growth
A385: Rent Median (Scenario) | B385: =HLOOKUP($A$1,Data!$C$1:$AI$211,ScenarioAll!$X385,FALSE) -> 173.0769231 | C385: =B385*(1+B383) -> 180 | D385: =C385*(1+C383) -> 187.2 | E385: 194.688 | F385: 202.47552 | G385: 210.5745408 | H385: 218.9975224 | I385: 227.7574233 | J385: 236.8677203 | K385: 246.3424291 | L385: 256.1961262 | M385: 266.4439713 | N385: 277.1017301 | O385: 288.1857993 | P385: 299.7132313 | Q385: 311.7017606 | R385: 324.169831 | S385: 337.1366242 | T385: 350.6220892 | U385: 364.6469728 | V385: =U385*(1+U383) -> 379.2328517 | W385: =V385*(1+V383) -> 394.4021657 | X385: 210
A386: Rent 30th (Scenario) | B386: =HLOOKUP($A$1,Data!$C$1:$AI$211,ScenarioAll!$X386,FALSE) -> 150 | C386: =B386*(1+B383) -> 156 | D386: =C386*(1+C383) -> 162.24 | E386: 168.7296 | F386: 175.478784 | G386: 182.4979354 | H386: 189.7978528 | I386: 197.3897669 | J386: 205.2853576 | K386: 213.4967719 | L386: 222.0366427 | M386: 230.9181084 | N386: 240.1548328 | O386: 249.7610261 | P386: 259.7514671 | Q386: 270.1415258 | R386: 280.9471869 | S386: 292.1850743 | T386: 303.8724773 | U386: 316.0273764 | V386: =U386*(1+U383) -> 328.6684715 | W386: =V386*(1+V383) -> 341.8152103 | X386: 211
A387: Annual Rent Medain | B387: =B385*52 -> 9000 | C387: =C385*52 -> 9360 | D387: 9734.4 | E387: 10123.776 | F387: 10528.72704 | G387: 10949.87612 | H387: 11387.87117 | I387: 11843.38601 | J387: 12317.12145 | K387: 12809.80631 | L387: 13322.19856 | M387: 13855.08651 | N387: 14409.28997 | O387: 14985.66157 | P387: 15585.08803 | Q387: 16208.49155 | R387: 16856.83121 | S387: 17531.10446 | T387: 18232.34864 | U387: 18961.64258 | V387: =V385*52 -> 19720.10829 | W387: =W385*52 -> 20508.91262
A388: Annual Rent 30th | B388: =B386*52 -> 7800 | C388: 8112 | D388: 8436.48 | E388: 8773.9392 | F388: 9124.896768 | G388: 9489.892639 | H388: 9869.488344 | I388: 10264.26788 | J388: 10674.83859 | K388: 11101.83214 | L388: 11545.90542 | M388: 12007.74164 | N388: 12488.0513 | O388: 12987.57336 | P388: 13507.07629 | Q388: 14047.35934 | R388: 14609.25372 | S388: 15193.62387 | T388: 15801.36882 | U388: 16433.42357 | V388: =V386*52 -> 17090.76052 | W388: =W386*52 -> 17774.39094
A390: Income above | B390: =B387/$C$116 -> 36000 | C390: 37440 | D390: 38937.6 | E390: 40495.104 | F390: 42114.90816 | G390: 43799.50449 | H390: 45551.48467 | I390: 47373.54405 | J390: 49268.48581 | K390: 51239.22525 | L390: 53288.79426 | M390: 55420.34603 | N390: 57637.15987 | O390: 59942.64626 | P390: 62340.35211 | Q390: 64833.9662 | R390: 67427.32485 | S390: 70124.41784 | T390: 72929.39455 | U390: 75846.57034 | V390: =V387/$C$116 -> 78880.43315 | W390: =W387/$C$116 -> 82035.65048
A391: Income below | B391: =B388/$C$117 -> 22285.71429 | C391: 23177.14286 | D391: 24104.22857 | E391: 25068.39771 | F391: 26071.13362 | G391: 27113.97897 | H391: 28198.53813 | I391: 29326.47965 | J391: 30499.53884 | K391: 31719.52039 | L391: 32988.30121 | M391: 34307.83326 | N391: 35680.14659 | O391: 37107.35245 | P391: 38591.64655 | Q391: 40135.31241 | R391: 41740.7249 | S391: 43410.3539 | T391: 45146.76806 | U391: 46952.63878 | V391: =V388/$C$117 -> 48830.74433 | W391: =W388/$C$117 -> 50783.9741
A392: Above percentile | B392: =IF(ISERROR(VLOOKUP(B390,B$510:$AA$590,B$509+3)),10,VLOOKUP(B390,B$510:$AA$590,B$509+3)) -> 58 | C392: =IF(ISERROR(VLOOKUP(C390,C$510:$AA$590,C$509+3)),10,VLOOKUP(C390,C$510:$AA$590,C$509+3)) -> 59 | D392: =IF(ISERROR(VLOOKUP(D390,D$510:$AA$590,D$509+3)),10,VLOOKUP(D390,D$510:$AA$590,D$509+3)) -> 60 | E392: =IF(ISERROR(VLOOKUP(E390,E$510:$AA$590,E$509+3)),10,VLOOKUP(E390,E$510:$AA$590,E$509+3)) -> 61 | F392: =IF(ISERROR(VLOOKUP(F390,F$510:$AA$590,F$509+3)),10,VLOOKUP(F390,F$510:$AA$590,F$509+3)) -> 62 | G392: =IF(ISERROR(VLOOKUP(G390,G$510:$AA$590,G$509+3)),10,VLOOKUP(G390,G$510:$AA$590,G$509+3)) -> 63 | H392: =IF(ISERROR(VLOOKUP(H390,H$510:$AA$590,H$509+3)),10,VLOOKUP(H390,H$510:$AA$590,H$509+3)) -> 64 | I392: =IF(ISERROR(VLOOKUP(I390,I$510:$AA$590,I$509+3)),10,VLOOKUP(I390,I$510:$AA$590,I$509+3)) -> 65 | J392: =IF(ISERROR(VLOOKUP(J390,J$510:$AA$590,J$509+3)),10,VLOOKUP(J390,J$510:$AA$590,J$509+3)) -> 66 | K392: =IF(ISERROR(VLOOKUP(K390,K$510:$AA$590,K$509+3)),10,VLOOKUP(K390,K$510:$AA$590,K$509+3)) -> 67 | L392: =IF(ISERROR(VLOOKUP(L390,L$510:$AA$590,L$509+3)),10,VLOOKUP(L390,L$510:$AA$590,L$509+3)) -> 69 | M392: =IF(ISERROR(VLOOKUP(M390,M$510:$AA$590,M$509+3)),10,VLOOKUP(M390,M$510:$AA$590,M$509+3)) -> 69 | N392: =IF(ISERROR(VLOOKUP(N390,N$510:$AA$590,N$509+3)),10,VLOOKUP(N390,N$510:$AA$590,N$509+3)) -> 70 | O392: =IF(ISERROR(VLOOKUP(O390,O$510:$AA$590,O$509+3)),10,VLOOKUP(O390,O$510:$AA$590,O$509+3)) -> 72 | P392: =IF(ISERROR(VLOOKUP(P390,P$510:$AA$590,P$509+3)),10,VLOOKUP(P390,P$510:$AA$590,P$509+3)) -> 72 | Q392: =IF(ISERROR(VLOOKUP(Q390,Q$510:$AA$590,Q$509+3)),10,VLOOKUP(Q390,Q$510:$AA$590,Q$509+3)) -> 73 | R392: =IF(ISERROR(VLOOKUP(R390,R$510:$AA$590,R$509+3)),10,VLOOKUP(R390,R$510:$AA$590,R$509+3)) -> 74 | S392: =IF(ISERROR(VLOOKUP(S390,S$510:$AA$590,S$509+3)),10,VLOOKUP(S390,S$510:$AA$590,S$509+3)) -> 75 | T392: =IF(ISERROR(VLOOKUP(T390,T$510:$AA$590,T$509+3)),10,VLOOKUP(T390,T$510:$AA$590,T$509+3)) -> 76 | U392: =IF(ISERROR(VLOOKUP(U390,U$510:$AA$590,U$509+3)),10,VLOOKUP(U390,U$510:$AA$590,U$509+3)) -> 77 | V392: =IF(ISERROR(VLOOKUP(V390,V$510:$AA$590,V$509+3)),10,VLOOKUP(V390,V$510:$AA$590,V$509+3)) -> 78 | W392: =IF(ISERROR(VLOOKUP(W390,W$510:$AA$590,W$509+3)),10,VLOOKUP(W390,W$510:$AA$590,W$509+3)) -> 79
A393: Below percentile | B393: =IF(ISERROR(VLOOKUP(B391,B$510:$AA$590,B$509+3)),10,(VLOOKUP(B391,B$510:$AA$590,B$509+3))) -> 33 | C393: =IF(ISERROR(VLOOKUP(C391,C$510:$AA$590,C$509+3)),10,(VLOOKUP(C391,C$510:$AA$590,C$509+3))) -> 35 | D393: =IF(ISERROR(VLOOKUP(D391,D$510:$AA$590,D$509+3)),10,(VLOOKUP(D391,D$510:$AA$590,D$509+3))) -> 36 | E393: =IF(ISERROR(VLOOKUP(E391,E$510:$AA$590,E$509+3)),10,(VLOOKUP(E391,E$510:$AA$590,E$509+3))) -> 37 | F393: =IF(ISERROR(VLOOKUP(F391,F$510:$AA$590,F$509+3)),10,(VLOOKUP(F391,F$510:$AA$590,F$509+3))) -> 38 | G393: =IF(ISERROR(VLOOKUP(G391,G$510:$AA$590,G$509+3)),10,(VLOOKUP(G391,G$510:$AA$590,G$509+3))) -> 39 | H393: =IF(ISERROR(VLOOKUP(H391,H$510:$AA$590,H$509+3)),10,(VLOOKUP(H391,H$510:$AA$590,H$509+3))) -> 40 | I393: =IF(ISERROR(VLOOKUP(I391,I$510:$AA$590,I$509+3)),10,(VLOOKUP(I391,I$510:$AA$590,I$509+3))) -> 41 | J393: =IF(ISERROR(VLOOKUP(J391,J$510:$AA$590,J$509+3)),10,(VLOOKUP(J391,J$510:$AA$590,J$509+3))) -> 42 | K393: =IF(ISERROR(VLOOKUP(K391,K$510:$AA$590,K$509+3)),10,(VLOOKUP(K391,K$510:$AA$590,K$509+3))) -> 43 | L393: =IF(ISERROR(VLOOKUP(L391,L$510:$AA$590,L$509+3)),10,(VLOOKUP(L391,L$510:$AA$590,L$509+3))) -> 44 | M393: =IF(ISERROR(VLOOKUP(M391,M$510:$AA$590,M$509+3)),10,(VLOOKUP(M391,M$510:$AA$590,M$509+3))) -> 45 | N393: =IF(ISERROR(VLOOKUP(N391,N$510:$AA$590,N$509+3)),10,(VLOOKUP(N391,N$510:$AA$590,N$509+3))) -> 45 | O393: =IF(ISERROR(VLOOKUP(O391,O$510:$AA$590,O$509+3)),10,(VLOOKUP(O391,O$510:$AA$590,O$509+3))) -> 46 | P393: =IF(ISERROR(VLOOKUP(P391,P$510:$AA$590,P$509+3)),10,(VLOOKUP(P391,P$510:$AA$590,P$509+3))) -> 47 | Q393: =IF(ISERROR(VLOOKUP(Q391,Q$510:$AA$590,Q$509+3)),10,(VLOOKUP(Q391,Q$510:$AA$590,Q$509+3))) -> 48 | R393: =IF(ISERROR(VLOOKUP(R391,R$510:$AA$590,R$509+3)),10,(VLOOKUP(R391,R$510:$AA$590,R$509+3))) -> 49 | S393: =IF(ISERROR(VLOOKUP(S391,S$510:$AA$590,S$509+3)),10,(VLOOKUP(S391,S$510:$AA$590,S$509+3))) -> 50 | T393: =IF(ISERROR(VLOOKUP(T391,T$510:$AA$590,T$509+3)),10,(VLOOKUP(T391,T$510:$AA$590,T$509+3))) -> 51 | U393: =IF(ISERROR(VLOOKUP(U391,U$510:$AA$590,U$509+3)),10,(VLOOKUP(U391,U$510:$AA$590,U$509+3))) -> 52 | V393: =IF(ISERROR(VLOOKUP(V391,V$510:$AA$590,V$509+3)),10,(VLOOKUP(V391,V$510:$AA$590,V$509+3))) -> 53 | W393: =IF(ISERROR(VLOOKUP(W391,W$510:$AA$590,W$509+3)),10,(VLOOKUP(W391,W$510:$AA$590,W$509+3))) -> 54
A397: Social Rent | C397: =C320-C398-C399-C400 -> 418.05 | D397: 390.56 | E397: 389.99 | F397: 392.08 | G397: 343.25 | H397: 190 | I397: 202.54 | J397: 212.1 | K397: 240.37 | L397: 243.76 | M397: 259.65 | N397: 257.85 | O397: 286.58 | P397: 283.41 | Q397: 285.6 | R397: 305.27 | S397: 307 | T397: 291.21 | U397: 265.72 | V397: 292.03 | W397: 297.54
A398: BM Rent | C398: =IF($B$312=TRUE,(C392-C393)/100*C318,IF($B$309=TRUE,(C392-C393)/100*C320,(C392-C393)/100*C318)) -> 178.32 | D398: =IF($B$312=TRUE,(D392-D393)/100*D318,IF($B$309=TRUE,(D392-D393)/100*D320,(D392-D393)/100*D318)) -> 155.04 | E398: 150.48 | F398: 147.84 | G398: 114 | H398: 114 | I398: 118.56 | J398: 121.2 | K398: 134.16 | L398: 138.5 | M398: 138.48 | N398: 143.25 | O398: 161.98 | P398: 150.75 | Q398: 148.75 | R398: 155.75 | S398: 153.5 | T398: 142.75 | U398: 127.75 | V398: 137.75 | W398: 137.75
A399: PRS | C399: =IF($B$312=TRUE,(100-C392)/100*C318-C400,IF($B$309=TRUE,(100-C392)/100*C320-C400,(100-C392)/100*C318-C400)) -> 135.226 | D399: =IF($B$312=TRUE,(100-D392)/100*D318-D400,IF($B$309=TRUE,(100-D392)/100*D320-D400,(100-D392)/100*D318-D400)) -> 114.988 | E399: 105.336 | F399: 104.72 | G399: 78.85 | H399: 76.95 | I399: 78.052 | J399: 77.77 | K399: 83.85 | L399: 75.344 | M399: 81.934 | N399: 79.074 | O399: 77.252 | P399: 78.39 | Q399: 74.97 | R399: 76.006 | S399: 72.452 | T399: 61.668 | U399: 53.144 | V399: 55.1 | W399: 52.896
A400: Buyers | C400: =C356*$C$115 -> 169.404 | D400: =D356*$C$115 -> 143.412 | E400: 139.194 | F400: 129.36 | G400: 96.9 | H400: 94.05 | I400: 94.848 | J400: 93.93 | K400: 100.62 | L400: 96.396 | M400: 96.936 | N400: 92.826 | O400: 97.188 | P400: 90.45 | Q400: 85.68 | R400: 85.974 | S400: 81.048 | T400: 75.372 | U400: 64.386 | V400: 66.12 | W400: 62.814
A406: Income Change
A407: Principal | C407: =OFFSET(IncomeScenarios!D4,0,Map!$T$13-2012) -> 0.02 | D407: =OFFSET(IncomeScenarios!E4,0,Map!$T$13-2012) -> 0.02 | E407: =OFFSET(IncomeScenarios!F4,0,Map!$T$13-2012) -> 0.02 | F407: =OFFSET(IncomeScenarios!G4,0,Map!$T$13-2012) -> 0.02 | G407: =OFFSET(IncomeScenarios!H4,0,Map!$T$13-2012) -> 0.02 | H407: =OFFSET(IncomeScenarios!I4,0,Map!$T$13-2012) -> 0.02 | I407: =OFFSET(IncomeScenarios!J4,0,Map!$T$13-2012) -> 0.02 | J407: =OFFSET(IncomeScenarios!K4,0,Map!$T$13-2012) -> 0.02 | K407: =OFFSET(IncomeScenarios!L4,0,Map!$T$13-2012) -> 0.02 | L407: =OFFSET(IncomeScenarios!M4,0,Map!$T$13-2012) -> 0.02 | M407: =OFFSET(IncomeScenarios!N4,0,Map!$T$13-2012) -> 0.02 | N407: =OFFSET(IncomeScenarios!O4,0,Map!$T$13-2012) -> 0.02 | O407: =OFFSET(IncomeScenarios!P4,0,Map!$T$13-2012) -> 0.02 | P407: =OFFSET(IncomeScenarios!Q4,0,Map!$T$13-2012) -> 0.02 | Q407: =OFFSET(IncomeScenarios!R4,0,Map!$T$13-2012) -> 0.02 | R407: =OFFSET(IncomeScenarios!S4,0,Map!$T$13-2012) -> 0.02 | S407: =OFFSET(IncomeScenarios!T4,0,Map!$T$13-2012) -> 0.02 | T407: =OFFSET(IncomeScenarios!U4,0,Map!$T$13-2012) -> 0.02 | U407: =OFFSET(IncomeScenarios!V4,0,Map!$T$13-2012) -> 0.02 | V407: =OFFSET(IncomeScenarios!W4,0,Map!$T$13-2012) -> 0.02 | W407: =OFFSET(IncomeScenarios!X4,0,Map!$T$13-2012) -> 0.02
A408: Principle Distribution | C408: =OFFSET(IncomeScenarios!D26,0,Map!$T$13-2012) -> 0 | D408: =OFFSET(IncomeScenarios!E26,0,Map!$T$13-2012) -> 0 | E408: =OFFSET(IncomeScenarios!F26,0,Map!$T$13-2012) -> 0 | F408: =OFFSET(IncomeScenarios!G26,0,Map!$T$13-2012) -> 0 | G408: =OFFSET(IncomeScenarios!H26,0,Map!$T$13-2012) -> 0 | H408: =OFFSET(IncomeScenarios!I26,0,Map!$T$13-2012) -> 0 | I408: =OFFSET(IncomeScenarios!J26,0,Map!$T$13-2012) -> 0 | J408: =OFFSET(IncomeScenarios!K26,0,Map!$T$13-2012) -> 0 | K408: =OFFSET(IncomeScenarios!L26,0,Map!$T$13-2012) -> 0 | L408: =OFFSET(IncomeScenarios!M26,0,Map!$T$13-2012) -> 0 | M408: =OFFSET(IncomeScenarios!N26,0,Map!$T$13-2012) -> 0 | N408: =OFFSET(IncomeScenarios!O26,0,Map!$T$13-2012) -> 0 | O408: =OFFSET(IncomeScenarios!P26,0,Map!$T$13-2012) -> 0 | P408: =OFFSET(IncomeScenarios!Q26,0,Map!$T$13-2012) -> 0 | Q408: =OFFSET(IncomeScenarios!R26,0,Map!$T$13-2012) -> 0 | R408: =OFFSET(IncomeScenarios!S26,0,Map!$T$13-2012) -> 0 | S408: =OFFSET(IncomeScenarios!T26,0,Map!$T$13-2012) -> 0 | T408: =OFFSET(IncomeScenarios!U26,0,Map!$T$13-2012) -> 0 | U408: =OFFSET(IncomeScenarios!V26,0,Map!$T$13-2012) -> 0 | V408: =OFFSET(IncomeScenarios!W26,0,Map!$T$13-2012) -> 0 | W408: =OFFSET(IncomeScenarios!X26,0,Map!$T$13-2012) -> 0
A409: Scenario | C409: =OFFSET(IncomeScenarios!D2,$X$53,Map!$T$13-2012) -> 0.02 | D409: =OFFSET(IncomeScenarios!E2,$X$53,Map!$T$13-2012) -> 0.02 | E409: =OFFSET(IncomeScenarios!F2,$X$53,Map!$T$13-2012) -> 0.02 | F409: =OFFSET(IncomeScenarios!G2,$X$53,Map!$T$13-2012) -> 0.02 | G409: =OFFSET(IncomeScenarios!H2,$X$53,Map!$T$13-2012) -> 0.02 | H409: =OFFSET(IncomeScenarios!I2,$X$53,Map!$T$13-2012) -> 0.02 | I409: =OFFSET(IncomeScenarios!J2,$X$53,Map!$T$13-2012) -> 0.02 | J409: =OFFSET(IncomeScenarios!K2,$X$53,Map!$T$13-2012) -> 0.02 | K409: =OFFSET(IncomeScenarios!L2,$X$53,Map!$T$13-2012) -> 0.02 | L409: =OFFSET(IncomeScenarios!M2,$X$53,Map!$T$13-2012) -> 0.02 | M409: =OFFSET(IncomeScenarios!N2,$X$53,Map!$T$13-2012) -> 0.02 | N409: =OFFSET(IncomeScenarios!O2,$X$53,Map!$T$13-2012) -> 0.02 | O409: =OFFSET(IncomeScenarios!P2,$X$53,Map!$T$13-2012) -> 0.02 | P409: =OFFSET(IncomeScenarios!Q2,$X$53,Map!$T$13-2012) -> 0.02 | Q409: =OFFSET(IncomeScenarios!R2,$X$53,Map!$T$13-2012) -> 0.02 | R409: =OFFSET(IncomeScenarios!S2,$X$53,Map!$T$13-2012) -> 0.02 | S409: =OFFSET(IncomeScenarios!T2,$X$53,Map!$T$13-2012) -> 0.02 | T409: =OFFSET(IncomeScenarios!U2,$X$53,Map!$T$13-2012) -> 0.02 | U409: =OFFSET(IncomeScenarios!V2,$X$53,Map!$T$13-2012) -> 0.02 | V409: =OFFSET(IncomeScenarios!W2,$X$53,Map!$T$13-2012) -> 0.02 | W409: =OFFSET(IncomeScenarios!X2,$X$53,Map!$T$13-2012) -> 0.02
A410: Scenario Distribution | C410: =OFFSET(IncomeScenarios!D24,$X$54,Map!$T$13-2012) -> 0 | D410: =OFFSET(IncomeScenarios!E24,$X$54,Map!$T$13-2012) -> 0 | E410: =OFFSET(IncomeScenarios!F24,$X$54,Map!$T$13-2012) -> 0 | F410: =OFFSET(IncomeScenarios!G24,$X$54,Map!$T$13-2012) -> 0 | G410: =OFFSET(IncomeScenarios!H24,$X$54,Map!$T$13-2012) -> 0 | H410: =OFFSET(IncomeScenarios!I24,$X$54,Map!$T$13-2012) -> 0 | I410: =OFFSET(IncomeScenarios!J24,$X$54,Map!$T$13-2012) -> 0 | J410: =OFFSET(IncomeScenarios!K24,$X$54,Map!$T$13-2012) -> 0 | K410: =OFFSET(IncomeScenarios!L24,$X$54,Map!$T$13-2012) -> 0 | L410: =OFFSET(IncomeScenarios!M24,$X$54,Map!$T$13-2012) -> 0 | M410: =OFFSET(IncomeScenarios!N24,$X$54,Map!$T$13-2012) -> 0 | N410: =OFFSET(IncomeScenarios!O24,$X$54,Map!$T$13-2012) -> 0 | O410: =OFFSET(IncomeScenarios!P24,$X$54,Map!$T$13-2012) -> 0 | P410: =OFFSET(IncomeScenarios!Q24,$X$54,Map!$T$13-2012) -> 0 | Q410: =OFFSET(IncomeScenarios!R24,$X$54,Map!$T$13-2012) -> 0 | R410: =OFFSET(IncomeScenarios!S24,$X$54,Map!$T$13-2012) -> 0 | S410: =OFFSET(IncomeScenarios!T24,$X$54,Map!$T$13-2012) -> 0 | T410: =OFFSET(IncomeScenarios!U24,$X$54,Map!$T$13-2012) -> 0 | U410: =OFFSET(IncomeScenarios!V24,$X$54,Map!$T$13-2012) -> 0 | V410: =OFFSET(IncomeScenarios!W24,$X$54,Map!$T$13-2012) -> 0 | W410: =OFFSET(IncomeScenarios!X24,$X$54,Map!$T$13-2012) -> 0
A412: Principal
A413: Income
B414: =B382 -> 2017 | C414: =B414+1 -> 2018 | D414: 2019 | E414: 2020 | F414: 2021 | G414: 2022 | H414: 2023 | I414: 2024 | J414: 2025 | K414: 2026 | L414: 2027 | M414: 2028 | N414: 2029 | O414: 2030 | P414: 2031 | Q414: 2032 | R414: 2033 | S414: 2034 | T414: 2035 | U414: 2036 | V414: 2037 | W414: 2038
A415: Principal Median | B415: =B459 -> 30680 | C415: =C459 -> 31293.6 | D415: 31919.472 | E415: 32557.86144 | F415: 33209.01867 | G415: 33873.19904 | H415: 34550.66302 | I415: 35241.67628 | J415: 35946.50981 | K415: 36665.44001 | L415: 37398.74881 | M415: 38146.72378 | N415: 38909.65826 | O415: 39687.85142 | P415: 40481.60845 | Q415: 41291.24062 | R415: 42117.06543 | S415: 42959.40674 | T415: 43818.59488 | U415: 44694.96677 | V415: 45588.86611 | W415: 46500.64343
A416: =CONCATENATE("Principal ",C49,"%ile") -> Principal 75%ile | B416: =VLOOKUP($C$49,$A$419:$W$499,25-B418,FALSE) -> 49400 | C416: 50388 | D416: 51395.76 | E416: 52423.6752 | F416: 53472.1487 | G416: 54541.59168 | H416: 55632.42351 | I416: 56745.07198 | J416: 57879.97342 | K416: 59037.57289 | L416: 60218.32435 | M416: 61422.69083 | N416: 62651.14465 | O416: 63904.16754 | P416: 65182.2509 | Q416: 66485.89591 | R416: 67815.61383 | S416: 69171.92611 | T416: 70555.36463 | U416: 71966.47192 | V416: 73405.80136 | W416: 74873.91739
A417: =CONCATENATE("Principal",C50,"%ile") -> Principal25%ile | B417: =VLOOKUP($C$50,$A$419:$W$499,25-B418,FALSE) -> 18200 | C417: 18564 | D417: 18935.28 | E417: 19313.9856 | F417: 19700.26531 | G417: 20094.27062 | H417: 20496.15603 | I417: 20906.07915 | J417: 21324.20073 | K417: 21750.68475 | L417: 22185.69844 | M417: 22629.41241 | N417: 23082.00066 | O417: 23543.64067 | P417: 24014.51349 | Q417: 24494.80376 | R417: 24984.69983 | S417: 25484.39383 | T417: 25994.08171 | U417: 26513.96334 | V417: 27044.24261 | W417: 27585.12746
A418: 1 | B418: 23 | C418: =B418-1 -> 22 | D418: 21 | E418: 20 | F418: 19 | G418: 18 | H418: 17 | I418: 16 | J418: 15 | K418: 14 | L418: 13 | M418: 12 | N418: 11 | O418: 10 | P418: 9 | Q418: 8 | R418: 7 | S418: 6 | T418: 5 | U418: 4 | V418: 3 | W418: 2 | Y418: =2018 -> 2018 | Z418: =CONCATENATE("Principal ",C51) -> Principal 2038
A419: =Data!B299 -> 10 | B419: =HLOOKUP($A$1,Data!$C$1:$AI$379,$X419,FALSE) -> 11440 | C419: =B419*(1+C$407+(-(50-$A419)*(C$408/40))) -> 11668.8 | D419: =C419*(1+D$407+(-(50-$A419)*(D$408/40))) -> 11902.176 | E419: 12140.21952 | F419: 12383.02391 | G419: 12630.68439 | H419: 12883.29808 | I419: 13140.96404 | J419: 13403.78332 | K419: 13671.85899 | L419: 13945.29616 | M419: 14224.20209 | N419: 14508.68613 | O419: 14798.85985 | P419: 15094.83705 | Q419: 15396.73379 | R419: 15704.66847 | S419: 16018.76184 | T419: =S419*(1+T$407+(-(50-$A419)*(T$408/40))) -> 16339.13707 | U419: 16665.91981 | V419: 16999.23821 | W419: 17339.22297 | X419: 217 | Y419: =C419 -> 11668.8 | Z419: =OFFSET(B419,0,$C$51-Map!$T$13+1) -> 17339.22297 | AA419: =A419 -> 10
A420: =Data!B300 -> 11 | B420: =HLOOKUP($A$1,Data!$C$1:$AI$379,$X420,FALSE) -> 11960 | C420: =B420*(1+C$407+(-(50-$A420)*(C$408/40))) -> 12199.2 | D420: 12443.184 | E420: 12692.04768 | F420: 12945.88863 | G420: 13204.80641 | H420: 13468.90253 | I420: 13738.28059 | J420: 14013.0462 | K420: 14293.30712 | L420: 14579.17326 | M420: 14870.75673 | N420: 15168.17186 | O420: 15471.5353 | P420: 15780.96601 | Q420: 16096.58533 | R420: 16418.51703 | S420: 16746.88737 | T420: 17081.82512 | U420: 17423.46162 | V420: 17771.93086 | W420: 18127.36947 | X420: =X419+1 -> 218 | Y420: 12199.2 | Z420: =OFFSET(B420,0,$C$51-Map!$T$13+1) -> 18127.36947 | AA420: 11
A421: =Data!B301 -> 12 | B421: =HLOOKUP($A$1,Data!$C$1:$AI$379,$X421,FALSE) -> 12480 | C421: 12729.6 | D421: 12984.192 | E421: 13243.87584 | F421: 13508.75336 | G421: 13778.92842 | H421: 14054.50699 | I421: 14335.59713 | J421: 14622.30907 | K421: 14914.75526 | L421: 15213.05036 | M421: 15517.31137 | N421: 15827.6576 | O421: 16144.21075 | P421: 16467.09496 | Q421: 16796.43686 | R421: 17132.3656 | S421: 17475.01291 | T421: 17824.51317 | U421: 18181.00343 | V421: 18544.6235 | W421: 18915.51597 | X421: =X420+1 -> 219 | Y421: 12729.6 | Z421: =OFFSET(B421,0,$C$51-Map!$T$13+1) -> 18915.51597 | AA421: 12
A422: =Data!B302 -> 13 | B422: =HLOOKUP($A$1,Data!$C$1:$AI$379,$X422,FALSE) -> 13000 | C422: 13260 | D422: 13525.2 | E422: 13795.704 | F422: 14071.61808 | G422: 14353.05044 | H422: 14640.11145 | I422: 14932.91368 | J422: 15231.57195 | K422: 15536.20339 | L422: 15846.92746 | M422: 16163.86601 | N422: 16487.14333 | O422: 16816.8862 | P422: 17153.22392 | Q422: 17496.2884 | R422: 17846.21417 | S422: 18203.13845 | T422: 18567.20122 | U422: 18938.54524 | V422: 19317.31615 | W422: 19703.66247 | X422: 220 | Y422: 13260 | Z422: =OFFSET(B422,0,$C$51-Map!$T$13+1) -> 19703.66247 | AA422: 13
A423: =Data!B303 -> 14 | B423: =HLOOKUP($A$1,Data!$C$1:$AI$379,$X423,FALSE) -> 13520 | C423: 13790.4 | D423: 14066.208 | E423: 14347.53216 | F423: 14634.4828 | G423: 14927.17246 | H423: 15225.71591 | I423: 15530.23023 | J423: 15840.83483 | K423: 16157.65153 | L423: 16480.80456 | M423: 16810.42065 | N423: 17146.62906 | O423: 17489.56164 | P423: 17839.35288 | Q423: 18196.13993 | R423: 18560.06273 | S423: 18931.26399 | T423: 19309.88927 | U423: 19696.08705 | V423: 20090.00879 | W423: 20491.80897 | X423: 221 | Y423: 13790.4 | Z423: =OFFSET(B423,0,$C$51-Map!$T$13+1) -> 20491.80897 | AA423: 14
A424: =Data!B304 -> 15 | B424: =HLOOKUP($A$1,Data!$C$1:$AI$379,$X424,FALSE) -> 13520 | C424: 13790.4 | D424: 14066.208 | E424: 14347.53216 | F424: 14634.4828 | G424: 14927.17246 | H424: 15225.71591 | I424: 15530.23023 | J424: 15840.83483 | K424: 16157.65153 | L424: 16480.80456 | M424: 16810.42065 | N424: 17146.62906 | O424: 17489.56164 | P424: 17839.35288 | Q424: 18196.13993 | R424: 18560.06273 | S424: 18931.26399 | T424: 19309.88927 | U424: 19696.08705 | V424: 20090.00879 | W424: 20491.80897 | X424: 222 | Y424: 13790.4 | Z424: =OFFSET(B424,0,$C$51-Map!$T$13+1) -> 20491.80897 | AA424: 15
A425: =Data!B305 -> 16 | B425: =HLOOKUP($A$1,Data!$C$1:$AI$379,$X425,FALSE) -> 14040 | C425: 14320.8 | D425: 14607.216 | E425: 14899.36032 | F425: 15197.34753 | G425: 15501.29448 | H425: 15811.32037 | I425: 16127.54677 | J425: 16450.09771 | K425: 16779.09966 | L425: 17114.68166 | M425: 17456.97529 | N425: 17806.1148 | O425: 18162.23709 | P425: 18525.48183 | Q425: 18895.99147 | R425: 19273.9113 | S425: 19659.38953 | T425: 20052.57732 | U425: 20453.62886 | V425: 20862.70144 | W425: 21279.95547 | X425: 223 | Y425: 14320.8 | Z425: =OFFSET(B425,0,$C$51-Map!$T$13+1) -> 21279.95547 | AA425: 16
A426: =Data!B306 -> 17 | B426: =HLOOKUP($A$1,Data!$C$1:$AI$379,$X426,FALSE) -> 14560 | C426: 14851.2 | D426: 15148.224 | E426: 15451.18848 | F426: 15760.21225 | G426: 16075.41649 | H426: 16396.92482 | I426: 16724.86332 | J426: 17059.36059 | K426: 17400.5478 | L426: 17748.55876 | M426: 18103.52993 | N426: 18465.60053 | O426: 18834.91254 | P426: 19211.61079 | Q426: 19595.84301 | R426: 19987.75987 | S426: 20387.51506 | T426: 20795.26536 | U426: 21211.17067 | V426: 21635.39409 | W426: 22068.10197 | X426: 224 | Y426: 14851.2 | Z426: =OFFSET(B426,0,$C$51-Map!$T$13+1) -> 22068.10197 | AA426: 17
A427: =Data!B307 -> 18 | B427: =HLOOKUP($A$1,Data!$C$1:$AI$379,$X427,FALSE) -> 15080 | C427: 15381.6 | D427: 15689.232 | E427: 16003.01664 | F427: 16323.07697 | G427: 16649.53851 | H427: 16982.52928 | I427: 17322.17987 | J427: 17668.62347 | K427: 18021.99593 | L427: 18382.43585 | M427: 18750.08457 | N427: 19125.08626 | O427: 19507.58799 | P427: 19897.73975 | Q427: 20295.69454 | R427: 20701.60843 | S427: 21115.6406 | T427: 21537.95341 | U427: 21968.71248 | V427: 22408.08673 | W427: 22856.24847 | X427: 225 | Y427: 15381.6 | Z427: =OFFSET(B427,0,$C$51-Map!$T$13+1) -> 22856.24847 | AA427: 18
A428: =Data!B308 -> 19 | B428: =HLOOKUP($A$1,Data!$C$1:$AI$379,$X428,FALSE) -> 15600 | C428: 15912 | D428: 16230.24 | E428: 16554.8448 | F428: 16885.9417 | G428: 17223.66053 | H428: 17568.13374 | I428: 17919.49642 | J428: 18277.88634 | K428: 18643.44407 | L428: 19016.31295 | M428: 19396.63921 | N428: 19784.572 | O428: 20180.26344 | P428: 20583.8687 | Q428: 20995.54608 | R428: 21415.457 | S428: 21843.76614 | T428: 22280.64146 | U428: 22726.25429 | V428: 23180.77938 | W428: 23644.39496 | X428: 226 | Y428: 15912 | Z428: =OFFSET(B428,0,$C$51-Map!$T$13+1) -> 23644.39496 | AA428: 19
A429: =Data!B309 -> 20 | B429: =HLOOKUP($A$1,Data!$C$1:$AI$379,$X429,FALSE) -> 15600 | C429: 15912 | D429: 16230.24 | E429: 16554.8448 | F429: 16885.9417 | G429: 17223.66053 | H429: 17568.13374 | I429: 17919.49642 | J429: 18277.88634 | K429: 18643.44407 | L429: 19016.31295 | M429: 19396.63921 | N429: 19784.572 | O429: 20180.26344 | P429: 20583.8687 | Q429: 20995.54608 | R429: 21415.457 | S429: 21843.76614 | T429: 22280.64146 | U429: 22726.25429 | V429: 23180.77938 | W429: 23644.39496 | X429: 227 | Y429: 15912 | Z429: =OFFSET(B429,0,$C$51-Map!$T$13+1) -> 23644.39496 | AA429: 20
A430: =Data!B310 -> 21 | B430: =HLOOKUP($A$1,Data!$C$1:$AI$379,$X430,FALSE) -> 16120 | C430: 16442.4 | D430: 16771.248 | E430: 17106.67296 | F430: 17448.80642 | G430: 17797.78255 | H430: 18153.7382 | I430: 18516.81296 | J430: 18887.14922 | K430: 19264.89221 | L430: 19650.19005 | M430: 20043.19385 | N430: 20444.05773 | O430: 20852.93888 | P430: 21269.99766 | Q430: 21695.39761 | R430: 22129.30557 | S430: 22571.89168 | T430: 23023.32951 | U430: 23483.7961 | V430: 23953.47202 | W430: 24432.54146 | X430: 228 | Y430: 16442.4 | Z430: =OFFSET(B430,0,$C$51-Map!$T$13+1) -> 24432.54146 | AA430: 21
A431: =Data!B311 -> 22 | B431: =HLOOKUP($A$1,Data!$C$1:$AI$379,$X431,FALSE) -> 16640 | C431: 16972.8 | D431: 17312.256 | E431: 17658.50112 | F431: 18011.67114 | G431: 18371.90457 | H431: 18739.34266 | I431: 19114.12951 | J431: 19496.4121 | K431: 19886.34034 | L431: 20284.06715 | M431: 20689.74849 | N431: 21103.54346 | O431: 21525.61433 | P431: 21956.12662 | Q431: 22395.24915 | R431: 22843.15413 | S431: 23300.01722 | T431: 23766.01756 | U431: 24241.33791 | V431: 24726.16467 | W431: 25220.68796 | X431: 229 | Y431: 16972.8 | Z431: =OFFSET(B431,0,$C$51-Map!$T$13+1) -> 25220.68796 | AA431: 22
A432: =Data!B312 -> 23 | B432: =HLOOKUP($A$1,Data!$C$1:$AI$379,$X432,FALSE) -> 17160 | C432: 17503.2 | D432: 17853.264 | E432: 18210.32928 | F432: 18574.53587 | G432: 18946.02658 | H432: 19324.94711 | I432: 19711.44606 | J432: 20105.67498 | K432: 20507.78848 | L432: 20917.94425 | M432: 21336.30313 | N432: 21763.02919 | O432: 22198.28978 | P432: 22642.25557 | Q432: 23095.10069 | R432: 23557.0027 | S432: 24028.14275 | T432: 24508.70561 | U432: 24998.87972 | V432: 25498.85731 | W432: 26008.83446 | X432: 230 | Y432: 17503.2 | Z432: =OFFSET(B432,0,$C$51-Map!$T$13+1) -> 26008.83446 | AA432: 23
A433: =Data!B313 -> 24 | B433: =HLOOKUP($A$1,Data!$C$1:$AI$379,$X433,FALSE) -> 17680 | C433: 18033.6 | D433: 18394.272 | E433: 18762.15744 | F433: 19137.40059 | G433: 19520.1486 | H433: 19910.55157 | I433: 20308.7626 | J433: 20714.93786 | K433: 21129.23661 | L433: 21551.82135 | M433: 21982.85777 | N433: 22422.51493 | O433: 22870.96523 | P433: 23328.38453 | Q433: 23794.95222 | R433: 24270.85127 | S433: 24756.26829 | T433: 25251.39366 | U433: 25756.42153 | V433: 26271.54996 | W433: 26796.98096 | X433: 231 | Y433: 18033.6 | Z433: =OFFSET(B433,0,$C$51-Map!$T$13+1) -> 26796.98096 | AA433: 24
A434: =Data!B314 -> 25 | B434: =HLOOKUP($A$1,Data!$C$1:$AI$379,$X434,FALSE) -> 18200 | C434: 18564 | D434: 18935.28 | E434: 19313.9856 | F434: 19700.26531 | G434: 20094.27062 | H434: 20496.15603 | I434: 20906.07915 | J434: 21324.20073 | K434: 21750.68475 | L434: 22185.69844 | M434: 22629.41241 | N434: 23082.00066 | O434: 23543.64067 | P434: 24014.51349 | Q434: 24494.80376 | R434: 24984.69983 | S434: 25484.39383 | T434: 25994.08171 | U434: 26513.96334 | V434: 27044.24261 | W434: 27585.12746 | X434: 232 | Y434: 18564 | Z434: =OFFSET(B434,0,$C$51-Map!$T$13+1) -> 27585.12746 | AA434: 25
A435: =Data!B315 -> 26 | B435: =HLOOKUP($A$1,Data!$C$1:$AI$379,$X435,FALSE) -> 18200 | C435: 18564 | D435: 18935.28 | E435: 19313.9856 | F435: 19700.26531 | G435: 20094.27062 | H435: 20496.15603 | I435: 20906.07915 | J435: 21324.20073 | K435: 21750.68475 | L435: 22185.69844 | M435: 22629.41241 | N435: 23082.00066 | O435: 23543.64067 | P435: 24014.51349 | Q435: 24494.80376 | R435: =Q435*(1+R$407+(-(50-$A435)*(R$408/40))) -> 24984.69983 | S435: 25484.39383 | T435: 25994.08171 | U435: 26513.96334 | V435: 27044.24261 | W435: 27585.12746 | X435: 233 | Y435: 18564 | Z435: =OFFSET(B435,0,$C$51-Map!$T$13+1) -> 27585.12746 | AA435: 26
A436: =Data!B316 -> 27 | B436: =HLOOKUP($A$1,Data!$C$1:$AI$379,$X436,FALSE) -> 18720 | C436: =B436*(1+C$407+(-(50-$A436)*(C$408/40))) -> 19094.4 | D436: 19476.288 | E436: 19865.81376 | F436: 20263.13004 | G436: 20668.39264 | H436: 21081.76049 | I436: 21503.3957 | J436: 21933.46361 | K436: 22372.13288 | L436: 22819.57554 | M436: 23275.96705 | N436: 23741.48639 | O436: 24216.31612 | P436: 24700.64244 | Q436: 25194.65529 | R436: 25698.5484 | S436: 26212.51937 | T436: 26736.76975 | U436: 27271.50515 | V436: 27816.93525 | W436: 28373.27396 | X436: 234 | Y436: 19094.4 | Z436: =OFFSET(B436,0,$C$51-Map!$T$13+1) -> 28373.27396 | AA436: 27
A437: =Data!B317 -> 28 | B437: =HLOOKUP($A$1,Data!$C$1:$AI$379,$X437,FALSE) -> 19240 | C437: 19624.8 | D437: 20017.296 | E437: 20417.64192 | F437: 20825.99476 | G437: 21242.51465 | H437: 21667.36495 | I437: 22100.71225 | J437: 22542.72649 | K437: 22993.58102 | L437: 23453.45264 | M437: 23922.52169 | N437: 24400.97213 | O437: 24888.99157 | P437: 25386.7714 | Q437: 25894.50683 | R437: 26412.39697 | S437: 26940.64491 | T437: 27479.4578 | U437: 28029.04696 | V437: 28589.6279 | W437: 29161.42046 | X437: 235 | Y437: 19624.8 | Z437: =OFFSET(B437,0,$C$51-Map!$T$13+1) -> 29161.42046 | AA437: 28
A438: =Data!B318 -> 29 | B438: =HLOOKUP($A$1,Data!$C$1:$AI$379,$X438,FALSE) -> 19760 | C438: 20155.2 | D438: 20558.304 | E438: 20969.47008 | F438: 21388.85948 | G438: 21816.63667 | H438: 22252.9694 | I438: 22698.02879 | J438: 23151.98937 | K438: 23615.02916 | L438: 24087.32974 | M438: 24569.07633 | N438: 25060.45786 | O438: 25561.66702 | P438: 26072.90036 | Q438: 26594.35837 | R438: 27126.24553 | S438: 27668.77044 | T438: 28222.14585 | U438: 28786.58877 | V438: 29362.32054 | W438: 29949.56696 | X438: 236 | Y438: 20155.2 | Z438: =OFFSET(B438,0,$C$51-Map!$T$13+1) -> 29949.56696 | AA438: 29
A439: =Data!B319 -> 30 | B439: =HLOOKUP($A$1,Data!$C$1:$AI$379,$X439,FALSE) -> 20280 | C439: 20685.6 | D439: 21099.312 | E439: 21521.29824 | F439: 21951.7242 | G439: 22390.75869 | H439: 22838.57386 | I439: 23295.34534 | J439: 23761.25225 | K439: 24236.47729 | L439: 24721.20684 | M439: 25215.63097 | N439: 25719.94359 | O439: 26234.34247 | P439: 26759.02931 | Q439: 27294.2099 | R439: 27840.0941 | S439: 28396.89598 | T439: 28964.8339 | U439: 29544.13058 | V439: 30135.01319 | W439: 30737.71345 | X439: 237 | Y439: 20685.6 | Z439: =OFFSET(B439,0,$C$51-Map!$T$13+1) -> 30737.71345 | AA439: 30
A440: =Data!B320 -> 31 | B440: =HLOOKUP($A$1,Data!$C$1:$AI$379,$X440,FALSE) -> 20800 | C440: 21216 | D440: 21640.32 | E440: 22073.1264 | F440: 22514.58893 | G440: 22964.88071 | H440: 23424.17832 | I440: 23892.66189 | J440: 24370.51512 | K440: 24857.92543 | L440: 25355.08394 | M440: 25862.18561 | N440: 26379.42933 | O440: 26907.01791 | P440: 27445.15827 | Q440: 27994.06144 | R440: 28553.94267 | S440: 29125.02152 | T440: 29707.52195 | U440: 30301.67239 | V440: 30907.70584 | W440: 31525.85995 | X440: 238 | Y440: 21216 | Z440: =OFFSET(B440,0,$C$51-Map!$T$13+1) -> 31525.85995 | AA440: 31
A441: =Data!B321 -> 32 | B441: =HLOOKUP($A$1,Data!$C$1:$AI$379,$X441,FALSE) -> 21320 | C441: 21746.4 | D441: 22181.328 | E441: 22624.95456 | F441: 23077.45365 | G441: 23539.00272 | H441: 24009.78278 | I441: 24489.97843 | J441: 24979.778 | K441: 25479.37356 | L441: 25988.96103 | M441: 26508.74025 | N441: 27038.91506 | O441: 27579.69336 | P441: 28131.28723 | Q441: 28693.91297 | R441: 29267.79123 | S441: 29853.14706 | T441: 30450.21 | U441: 31059.2142 | V441: 31680.39848 | W441: 32314.00645 | X441: 239 | Y441: 21746.4 | Z441: =OFFSET(B441,0,$C$51-Map!$T$13+1) -> 32314.00645 | AA441: 32
A442: =Data!B322 -> 33 | B442: =HLOOKUP($A$1,Data!$C$1:$AI$379,$X442,FALSE) -> 21840 | C442: 22276.8 | D442: 22722.336 | E442: 23176.78272 | F442: 23640.31837 | G442: 24113.12474 | H442: 24595.38724 | I442: 25087.29498 | J442: 25589.04088 | K442: 26100.8217 | L442: 26622.83813 | M442: 27155.2949 | N442: 27698.40079 | O442: 28252.36881 | P442: 28817.41619 | Q442: 29393.76451 | R442: 29981.6398 | S442: 30581.2726 | T442: 31192.89805 | U442: 31816.75601 | V442: 32453.09113 | W442: 33102.15295 | X442: 240 | Y442: 22276.8 | Z442: =OFFSET(B442,0,$C$51-Map!$T$13+1) -> 33102.15295 | AA442: 33
A443: =Data!B323 -> 34 | B443: =HLOOKUP($A$1,Data!$C$1:$AI$379,$X443,FALSE) -> 22360 | C443: 22807.2 | D443: 23263.344 | E443: 23728.61088 | F443: 24203.1831 | G443: 24687.24676 | H443: 25180.99169 | I443: 25684.61153 | J443: 26198.30376 | K443: 26722.26983 | L443: 27256.71523 | M443: 27801.84954 | N443: 28357.88653 | O443: 28925.04426 | P443: 29503.54514 | Q443: 30093.61604 | R443: 30695.48837 | S443: 31309.39813 | T443: 31935.5861 | U443: 32574.29782 | V443: 33225.78377 | W443: 33890.29945 | X443: 241 | Y443: 22807.2 | Z443: =OFFSET(B443,0,$C$51-Map!$T$13+1) -> 33890.29945 | AA443: 34
A444: =Data!B324 -> 35 | B444: =HLOOKUP($A$1,Data!$C$1:$AI$379,$X444,FALSE) -> 22360 | C444: 22807.2 | D444: 23263.344 | E444: 23728.61088 | F444: 24203.1831 | G444: 24687.24676 | H444: 25180.99169 | I444: 25684.61153 | J444: 26198.30376 | K444: 26722.26983 | L444: 27256.71523 | M444: 27801.84954 | N444: 28357.88653 | O444: 28925.04426 | P444: 29503.54514 | Q444: 30093.61604 | R444: 30695.48837 | S444: 31309.39813 | T444: 31935.5861 | U444: 32574.29782 | V444: 33225.78377 | W444: 33890.29945 | X444: 242 | Y444: 22807.2 | Z444: =OFFSET(B444,0,$C$51-Map!$T$13+1) -> 33890.29945 | AA444: 35
A445: =Data!B325 -> 36 | B445: =HLOOKUP($A$1,Data!$C$1:$AI$379,$X445,FALSE) -> 22880 | C445: 23337.6 | D445: 23804.352 | E445: 24280.43904 | F445: 24766.04782 | G445: 25261.36878 | H445: 25766.59615 | I445: 26281.92808 | J445: 26807.56664 | K445: 27343.71797 | L445: 27890.59233 | M445: 28448.40418 | N445: 29017.37226 | O445: 29597.7197 | P445: 30189.6741 | Q445: 30793.46758 | R445: 31409.33693 | S445: 32037.52367 | T445: 32678.27414 | U445: 33331.83963 | V445: 33998.47642 | W445: 34678.44595 | X445: 243 | Y445: 23337.6 | Z445: =OFFSET(B445,0,$C$51-Map!$T$13+1) -> 34678.44595 | AA445: 36
A446: =Data!B326 -> 37 | B446: =HLOOKUP($A$1,Data!$C$1:$AI$379,$X446,FALSE) -> 23400 | C446: 23868 | D446: 24345.36 | E446: 24832.2672 | F446: 25328.91254 | G446: 25835.49079 | H446: 26352.20061 | I446: 26879.24462 | J446: 27416.82952 | K446: 27965.16611 | L446: 28524.46943 | M446: 29094.95882 | N446: 29676.85799 | O446: 30270.39515 | P446: 30875.80306 | Q446: 31493.31912 | R446: 32123.1855 | S446: 32765.64921 | T446: 33420.96219 | U446: 34089.38144 | V446: 34771.16907 | W446: 35466.59245 | X446: 244 | Y446: 23868 | Z446: =OFFSET(B446,0,$C$51-Map!$T$13+1) -> 35466.59245 | AA446: 37
A447: =Data!B327 -> 38 | B447: =HLOOKUP($A$1,Data!$C$1:$AI$379,$X447,FALSE) -> 23920 | C447: 24398.4 | D447: 24886.368 | E447: 25384.09536 | F447: 25891.77727 | G447: 26409.61281 | H447: 26937.80507 | I447: 27476.56117 | J447: 28026.09239 | K447: 28586.61424 | L447: 29158.34653 | M447: 29741.51346 | N447: 30336.34373 | O447: 30943.0706 | P447: 31561.93201 | Q447: 32193.17065 | R447: 32837.03407 | S447: 33493.77475 | T447: 34163.65024 | U447: 34846.92325 | V447: 35543.86171 | W447: 36254.73895 | X447: 245 | Y447: 24398.4 | Z447: =OFFSET(B447,0,$C$51-Map!$T$13+1) -> 36254.73895 | AA447: 38
A448: =Data!B328 -> 39 | B448: =HLOOKUP($A$1,Data!$C$1:$AI$379,$X448,FALSE) -> 24440 | C448: 24928.8 | D448: 25427.376 | E448: 25935.92352 | F448: 26454.64199 | G448: 26983.73483 | H448: 27523.40953 | I448: 28073.87772 | J448: 28635.35527 | K448: 29208.06238 | L448: 29792.22362 | M448: 30388.0681 | N448: 30995.82946 | O448: 31615.74605 | P448: 32248.06097 | Q448: 32893.02219 | R448: 33550.88263 | S448: 34221.90029 | T448: 34906.33829 | U448: 35604.46506 | V448: 36316.55436 | W448: 37042.88544 | X448: 246 | Y448: 24928.8 | Z448: =OFFSET(B448,0,$C$51-Map!$T$13+1) -> 37042.88544 | AA448: 39
A449: =Data!B329 -> 40 | B449: =HLOOKUP($A$1,Data!$C$1:$AI$379,$X449,FALSE) -> 24960 | C449: 25459.2 | D449: 25968.384 | E449: 26487.75168 | F449: 27017.50671 | G449: 27557.85685 | H449: 28109.01398 | I449: 28671.19426 | J449: 29244.61815 | K449: 29829.51051 | L449: 30426.10072 | M449: 31034.62274 | N449: 31655.31519 | O449: 32288.4215 | P449: 32934.18993 | Q449: 33592.87372 | R449: 34264.7312 | S449: 34950.02582 | T449: 35649.02634 | U449: 36362.00687 | V449: 37089.247 | W449: 37831.03194 | X449: 247 | Y449: 25459.2 | Z449: =OFFSET(B449,0,$C$51-Map!$T$13+1) -> 37831.03194 | AA449: 40
A450: =Data!B330 -> 41 | B450: =HLOOKUP($A$1,Data!$C$1:$AI$379,$X450,FALSE) -> 25480 | C450: 25989.6 | D450: 26509.392 | E450: 27039.57984 | F450: 27580.37144 | G450: 28131.97887 | H450: 28694.61844 | I450: 29268.51081 | J450: 29853.88103 | K450: 30450.95865 | L450: 31059.97782 | M450: 31681.17738 | N450: 32314.80093 | O450: 32961.09694 | P450: 33620.31888 | Q450: 34292.72526 | R450: 34978.57977 | S450: 35678.15136 | T450: 36391.71439 | U450: 37119.54868 | V450: 37861.93965 | W450: 38619.17844 | X450: 248 | Y450: 25989.6 | Z450: =OFFSET(B450,0,$C$51-Map!$T$13+1) -> 38619.17844 | AA450: 41
A451: =Data!B331 -> 42 | B451: =HLOOKUP($A$1,Data!$C$1:$AI$379,$X451,FALSE) -> 26000 | C451: 26520 | D451: 27050.4 | E451: 27591.408 | F451: 28143.23616 | G451: 28706.10088 | H451: 29280.2229 | I451: 29865.82736 | J451: 30463.14391 | K451: 31072.40678 | L451: 31693.85492 | M451: 32327.73202 | N451: 32974.28666 | O451: 33633.77239 | P451: 34306.44784 | Q451: 34992.5768 | R451: 35692.42833 | S451: =R451*(1+S$407+(-(50-$A451)*(S$408/40))) -> 36406.2769 | T451: 37134.40244 | U451: 37877.09049 | V451: 38634.6323 | W451: 39407.32494 | X451: 249 | Y451: 26520 | Z451: =OFFSET(B451,0,$C$51-Map!$T$13+1) -> 39407.32494 | AA451: 42
A452: =Data!B332 -> 43 | B452: =HLOOKUP($A$1,Data!$C$1:$AI$379,$X452,FALSE) -> 26520 | C452: =B452*(1+C$407+(-(50-$A452)*(C$408/40))) -> 27050.4 | D452: 27591.408 | E452: 28143.23616 | F452: 28706.10088 | G452: 29280.2229 | H452: 29865.82736 | I452: 30463.14391 | J452: 31072.40678 | K452: 31693.85492 | L452: 32327.73202 | M452: 32974.28666 | N452: 33633.77239 | O452: 34306.44784 | P452: 34992.5768 | Q452: 35692.42833 | R452: 36406.2769 | S452: 37134.40244 | T452: 37877.09049 | U452: 38634.6323 | V452: 39407.32494 | W452: 40195.47144 | X452: 250 | Y452: 27050.4 | Z452: =OFFSET(B452,0,$C$51-Map!$T$13+1) -> 40195.47144 | AA452: 43
A453: =Data!B333 -> 44 | B453: =HLOOKUP($A$1,Data!$C$1:$AI$379,$X453,FALSE) -> 27040 | C453: 27580.8 | D453: 28132.416 | E453: 28695.06432 | F453: 29268.96561 | G453: 29854.34492 | H453: 30451.43182 | I453: 31060.46045 | J453: 31681.66966 | K453: 32315.30306 | L453: 32961.60912 | M453: 33620.8413 | N453: 34293.25812 | O453: 34979.12329 | P453: 35678.70575 | Q453: 36392.27987 | R453: 37120.12547 | S453: 37862.52797 | T453: 38619.77853 | U453: 39392.17411 | V453: 40180.01759 | W453: 40983.61794 | X453: 251 | Y453: 27580.8 | Z453: =OFFSET(B453,0,$C$51-Map!$T$13+1) -> 40983.61794 | AA453: 44
A454: =Data!B334 -> 45 | B454: =HLOOKUP($A$1,Data!$C$1:$AI$379,$X454,FALSE) -> 27560 | C454: 28111.2 | D454: 28673.424 | E454: 29246.89248 | F454: 29831.83033 | G454: 30428.46694 | H454: 31037.03627 | I454: 31657.777 | J454: 32290.93254 | K454: 32936.75119 | L454: 33595.48622 | M454: 34267.39594 | N454: 34952.74386 | O454: 35651.79874 | P454: 36364.83471 | Q454: 37092.1314 | R454: 37833.97403 | S454: 38590.65351 | T454: 39362.46658 | U454: 40149.71591 | V454: 40952.71023 | W454: 41771.76444 | X454: 252 | Y454: 28111.2 | Z454: =OFFSET(B454,0,$C$51-Map!$T$13+1) -> 41771.76444 | AA454: 45
A455: =Data!B335 -> 46 | B455: =HLOOKUP($A$1,Data!$C$1:$AI$379,$X455,FALSE) -> 28600 | C455: 29172 | D455: 29755.44 | E455: 30350.5488 | F455: 30957.55978 | G455: 31576.71097 | H455: 32208.24519 | I455: 32852.41009 | J455: 33509.4583 | K455: 34179.64746 | L455: 34863.24041 | M455: 35560.50522 | N455: 36271.71532 | O455: 36997.14963 | P455: 37737.09262 | Q455: 38491.83448 | R455: 39261.67117 | S455: 40046.90459 | T455: 40847.84268 | U455: 41664.79953 | V455: 42498.09552 | W455: 43348.05744 | X455: 253 | Y455: 29172 | Z455: =OFFSET(B455,0,$C$51-Map!$T$13+1) -> 43348.05744 | AA455: 46
A456: =Data!B336 -> 47 | B456: =HLOOKUP($A$1,Data!$C$1:$AI$379,$X456,FALSE) -> 29120 | C456: 29702.4 | D456: 30296.448 | E456: 30902.37696 | F456: 31520.4245 | G456: 32150.83299 | H456: 32793.84965 | I456: 33449.72664 | J456: 34118.72117 | K456: 34801.0956 | L456: 35497.11751 | M456: 36207.05986 | N456: 36931.20106 | O456: 37669.82508 | P456: 38423.22158 | Q456: 39191.68601 | R456: 39975.51973 | S456: 40775.03013 | T456: 41590.53073 | U456: 42422.34134 | V456: 43270.78817 | W456: 44136.20393 | X456: 254 | Y456: 29702.4 | Z456: =OFFSET(B456,0,$C$51-Map!$T$13+1) -> 44136.20393 | AA456: 47
A457: =Data!B337 -> 48 | B457: =HLOOKUP($A$1,Data!$C$1:$AI$379,$X457,FALSE) -> 29640 | C457: 30232.8 | D457: 30837.456 | E457: 31454.20512 | F457: 32083.28922 | G457: 32724.95501 | H457: 33379.45411 | I457: 34047.04319 | J457: 34727.98405 | K457: 35422.54373 | L457: 36130.99461 | M457: 36853.6145 | N457: 37590.68679 | O457: 38342.50053 | P457: 39109.35054 | Q457: 39891.53755 | R457: 40689.3683 | S457: 41503.15566 | T457: 42333.21878 | U457: 43179.88315 | V457: 44043.48082 | W457: 44924.35043 | X457: 255 | Y457: 30232.8 | Z457: =OFFSET(B457,0,$C$51-Map!$T$13+1) -> 44924.35043 | AA457: 48
A458: =Data!B338 -> 49 | B458: =HLOOKUP($A$1,Data!$C$1:$AI$379,$X458,FALSE) -> 30160 | C458: 30763.2 | D458: 31378.464 | E458: 32006.03328 | F458: 32646.15395 | G458: 33299.07702 | H458: 33965.05857 | I458: 34644.35974 | J458: 35337.24693 | K458: 36043.99187 | L458: 36764.87171 | M458: 37500.16914 | N458: 38250.17252 | O458: 39015.17597 | P458: 39795.47949 | Q458: 40591.38908 | R458: 41403.21687 | S458: 42231.2812 | T458: 43075.90683 | U458: 43937.42496 | V458: 44816.17346 | W458: 45712.49693 | X458: 256 | Y458: 30763.2 | Z458: =OFFSET(B458,0,$C$51-Map!$T$13+1) -> 45712.49693 | AA458: 49
A459: =Data!B339 -> 50 | B459: =HLOOKUP($A$1,Data!$C$1:$AI$379,$X459,FALSE) -> 30680 | C459: 31293.6 | D459: 31919.472 | E459: 32557.86144 | F459: 33209.01867 | G459: 33873.19904 | H459: 34550.66302 | I459: 35241.67628 | J459: 35946.50981 | K459: 36665.44001 | L459: 37398.74881 | M459: 38146.72378 | N459: 38909.65826 | O459: 39687.85142 | P459: 40481.60845 | Q459: 41291.24062 | R459: 42117.06543 | S459: 42959.40674 | T459: 43818.59488 | U459: 44694.96677 | V459: 45588.86611 | W459: 46500.64343 | X459: 257 | Y459: 31293.6 | Z459: =OFFSET(B459,0,$C$51-Map!$T$13+1) -> 46500.64343 | AA459: 50
A460: =Data!B340 -> 51 | B460: =HLOOKUP($A$1,Data!$C$1:$AI$379,$X460,FALSE) -> 31200 | C460: 31824 | D460: 32460.48 | E460: 33109.6896 | F460: 33771.88339 | G460: 34447.32106 | H460: 35136.26748 | I460: 35838.99283 | J460: 36555.77269 | K460: 37286.88814 | L460: 38032.6259 | M460: 38793.27842 | N460: 39569.14399 | O460: 40360.52687 | P460: 41167.73741 | Q460: 41991.09216 | R460: 42830.914 | S460: 43687.53228 | T460: 44561.28292 | U460: 45452.50858 | V460: 46361.55875 | W460: 47288.78993 | X460: 258 | Y460: 31824 | Z460: =OFFSET(B460,0,$C$51-Map!$T$13+1) -> 47288.78993 | AA460: 51
A461: =Data!B341 -> 52 | B461: =HLOOKUP($A$1,Data!$C$1:$AI$379,$X461,FALSE) -> 31720 | C461: 32354.4 | D461: 33001.488 | E461: 33661.51776 | F461: 34334.74812 | G461: 35021.44308 | H461: 35721.87194 | I461: 36436.30938 | J461: 37165.03557 | K461: 37908.33628 | L461: 38666.503 | M461: 39439.83306 | N461: 40228.62972 | O461: 41033.20232 | P461: 41853.86636 | Q461: 42690.94369 | R461: 43544.76257 | S461: 44415.65782 | T461: 45303.97097 | U461: 46210.05039 | V461: 47134.2514 | W461: 48076.93643 | X461: 259 | Y461: 32354.4 | Z461: =OFFSET(B461,0,$C$51-Map!$T$13+1) -> 48076.93643 | AA461: 52
A462: =Data!B342 -> 53 | B462: =HLOOKUP($A$1,Data!$C$1:$AI$379,$X462,FALSE) -> 32240 | C462: 32884.8 | D462: 33542.496 | E462: 34213.34592 | F462: 34897.61284 | G462: 35595.5651 | H462: 36307.4764 | I462: 37033.62593 | J462: 37774.29844 | K462: 38529.78441 | L462: 39300.3801 | M462: 40086.3877 | N462: 40888.11546 | O462: 41705.87777 | P462: 42539.99532 | Q462: 43390.79523 | R462: 44258.61113 | S462: 45143.78335 | T462: 46046.65902 | U462: 46967.5922 | V462: 47906.94405 | W462: 48865.08293 | X462: 260 | Y462: 32884.8 | Z462: =OFFSET(B462,0,$C$51-Map!$T$13+1) -> 48865.08293 | AA462: 53
A463: =Data!B343 -> 54 | B463: =HLOOKUP($A$1,Data!$C$1:$AI$379,$X463,FALSE) -> 33280 | C463: 33945.6 | D463: 34624.512 | E463: 35317.00224 | F463: 36023.34228 | G463: 36743.80913 | H463: 37478.68531 | I463: 38228.25902 | J463: 38992.8242 | K463: 39772.68068 | L463: 40568.1343 | M463: 41379.49698 | N463: 42207.08692 | O463: 43051.22866 | P463: 43912.25323 | Q463: 44790.4983 | R463: 45686.30827 | S463: 46600.03443 | T463: 47532.03512 | U463: 48482.67582 | V463: 49452.32934 | W463: 50441.37592 | X463: 261 | Y463: 33945.6 | Z463: =OFFSET(B463,0,$C$51-Map!$T$13+1) -> 50441.37592 | AA463: 54
A464: =Data!B344 -> 55 | B464: =HLOOKUP($A$1,Data!$C$1:$AI$379,$X464,FALSE) -> 33800 | C464: 34476 | D464: 35165.52 | E464: 35868.8304 | F464: 36586.20701 | G464: 37317.93115 | H464: 38064.28977 | I464: 38825.57557 | J464: 39602.08708 | K464: 40394.12882 | L464: 41202.0114 | M464: 42026.05162 | N464: 42866.57266 | O464: 43723.90411 | P464: 44598.38219 | Q464: 45490.34984 | R464: 46400.15683 | S464: 47328.15997 | T464: 48274.72317 | U464: 49240.21763 | V464: 50225.02198 | W464: 51229.52242 | X464: 262 | Y464: 34476 | Z464: =OFFSET(B464,0,$C$51-Map!$T$13+1) -> 51229.52242 | AA464: 55
A465: =Data!B345 -> 56 | B465: =HLOOKUP($A$1,Data!$C$1:$AI$379,$X465,FALSE) -> 34320 | C465: 35006.4 | D465: 35706.528 | E465: 36420.65856 | F465: 37149.07173 | G465: 37892.05317 | H465: 38649.89423 | I465: 39422.89211 | J465: 40211.34996 | K465: 41015.57696 | L465: 41835.88849 | M465: 42672.60626 | N465: 43526.05839 | O465: 44396.57956 | P465: 45284.51115 | Q465: 46190.20137 | R465: 47114.0054 | S465: 48056.28551 | T465: 49017.41122 | U465: 49997.75944 | V465: 50997.71463 | W465: 52017.66892 | X465: 263 | Y465: 35006.4 | Z465: =OFFSET(B465,0,$C$51-Map!$T$13+1) -> 52017.66892 | AA465: 56
A466: =Data!B346 -> 57 | B466: =HLOOKUP($A$1,Data!$C$1:$AI$379,$X466,FALSE) -> 34840 | C466: 35536.8 | D466: 36247.536 | E466: 36972.48672 | F466: 37711.93645 | G466: 38466.17518 | H466: 39235.49869 | I466: 40020.20866 | J466: 40820.61283 | K466: 41637.02509 | L466: 42469.76559 | M466: 43319.1609 | N466: 44185.54412 | O466: 45069.25501 | P466: 45970.64011 | Q466: 46890.05291 | R466: 47827.85397 | S466: 48784.41104 | T466: 49760.09927 | U466: 50755.30125 | V466: 51770.40728 | W466: 52805.81542 | X466: 264 | Y466: 35536.8 | Z466: =OFFSET(B466,0,$C$51-Map!$T$13+1) -> 52805.81542 | AA466: 57
A467: =Data!B347 -> 58 | B467: =HLOOKUP($A$1,Data!$C$1:$AI$379,$X467,FALSE) -> 35880 | C467: 36597.6 | D467: 37329.552 | E467: 38076.14304 | F467: 38837.6659 | G467: 39614.41922 | H467: 40406.7076 | I467: 41214.84176 | J467: 42039.13859 | K467: 42879.92136 | L467: 43737.51979 | M467: 44612.27019 | N467: 45504.51559 | O467: 46414.6059 | P467: 47342.89802 | Q467: 48289.75598 | R467: 49255.5511 | S467: =R467*(1+S$407+(-(50-$A467)*(S$408/40))) -> 50240.66212 | T467: 51245.47536 | U467: 52270.38487 | V467: 53315.79257 | W467: 54382.10842 | X467: 265 | Y467: 36597.6 | Z467: =OFFSET(B467,0,$C$51-Map!$T$13+1) -> 54382.10842 | AA467: 58
A468: =Data!B348 -> 59 | B468: =HLOOKUP($A$1,Data!$C$1:$AI$379,$X468,FALSE) -> 36400 | C468: =B468*(1+C$407+(-(50-$A468)*(C$408/40))) -> 37128 | D468: 37870.56 | E468: 38627.9712 | F468: 39400.53062 | G468: 40188.54124 | H468: 40992.31206 | I468: 41812.1583 | J468: 42648.40147 | K468: 43501.3695 | L468: 44371.39689 | M468: 45258.82483 | N468: 46164.00132 | O468: 47087.28135 | P468: 48029.02698 | Q468: 48989.60751 | R468: 49969.39967 | S468: 50968.78766 | T468: 51988.16341 | U468: 53027.92668 | V468: 54088.48521 | W468: 55170.25492 | X468: 266 | Y468: 37128 | Z468: =OFFSET(B468,0,$C$51-Map!$T$13+1) -> 55170.25492 | AA468: 59
A469: =Data!B349 -> 60 | B469: =HLOOKUP($A$1,Data!$C$1:$AI$379,$X469,FALSE) -> 36920 | C469: 37658.4 | D469: 38411.568 | E469: 39179.79936 | F469: 39963.39535 | G469: 40762.66325 | H469: 41577.91652 | I469: 42409.47485 | J469: 43257.66435 | K469: 44122.81763 | L469: 45005.27399 | M469: 45905.37947 | N469: 46823.48706 | O469: 47759.9568 | P469: 48715.15593 | Q469: 49689.45905 | R469: 50683.24823 | S469: 51696.9132 | T469: 52730.85146 | U469: 53785.46849 | V469: 54861.17786 | W469: 55958.40142 | X469: 267 | Y469: 37658.4 | Z469: =OFFSET(B469,0,$C$51-Map!$T$13+1) -> 55958.40142 | AA469: 60
A470: =Data!B350 -> 61 | B470: =HLOOKUP($A$1,Data!$C$1:$AI$379,$X470,FALSE) -> 37960 | C470: 38719.2 | D470: 39493.584 | E470: 40283.45568 | F470: 41089.12479 | G470: 41910.90729 | H470: 42749.12544 | I470: 43604.10794 | J470: 44476.1901 | K470: 45365.7139 | L470: 46273.02818 | M470: 47198.48875 | N470: 48142.45852 | O470: 49105.30769 | P470: 50087.41385 | Q470: 51089.16212 | R470: 52110.94537 | S470: 53153.16427 | T470: 54216.22756 | U470: 55300.55211 | V470: 56406.56315 | W470: 57534.69441 | X470: 268 | Y470: 38719.2 | Z470: =OFFSET(B470,0,$C$51-Map!$T$13+1) -> 57534.69441 | AA470: 61
A471: =Data!B351 -> 62 | B471: =HLOOKUP($A$1,Data!$C$1:$AI$379,$X471,FALSE) -> 38480 | C471: 39249.6 | D471: 40034.592 | E471: 40835.28384 | F471: 41651.98952 | G471: 42485.02931 | H471: 43334.72989 | I471: 44201.42449 | J471: 45085.45298 | K471: 45987.16204 | L471: 46906.90528 | M471: 47845.04339 | N471: 48801.94425 | O471: 49777.98314 | P471: 50773.5428 | Q471: 51789.01366 | R471: 52824.79393 | S471: 53881.28981 | T471: 54958.91561 | U471: 56058.09392 | V471: 57179.2558 | W471: 58322.84091 | X471: 269 | Y471: 39249.6 | Z471: =OFFSET(B471,0,$C$51-Map!$T$13+1) -> 58322.84091 | AA471: 62
A472: =Data!B352 -> 63 | B472: =HLOOKUP($A$1,Data!$C$1:$AI$379,$X472,FALSE) -> 39000 | C472: 39780 | D472: 40575.6 | E472: 41387.112 | F472: 42214.85424 | G472: 43059.15132 | H472: 43920.33435 | I472: 44798.74104 | J472: 45694.71586 | K472: 46608.61018 | L472: 47540.78238 | M472: 48491.59803 | N472: 49461.42999 | O472: 50450.65859 | P472: 51459.67176 | Q472: 52488.86519 | R472: 53538.6425 | S472: 54609.41535 | T472: 55701.60366 | U472: 56815.63573 | V472: 57951.94844 | W472: 59110.98741 | X472: 270 | Y472: 39780 | Z472: =OFFSET(B472,0,$C$51-Map!$T$13+1) -> 59110.98741 | AA472: 63
A473: =Data!B353 -> 64 | B473: =HLOOKUP($A$1,Data!$C$1:$AI$379,$X473,FALSE) -> 40040 | C473: 40840.8 | D473: 41657.616 | E473: 42490.76832 | F473: 43340.58369 | G473: 44207.39536 | H473: 45091.54327 | I473: 45993.37413 | J473: 46913.24162 | K473: 47851.50645 | L473: 48808.53658 | M473: 49784.70731 | N473: 50780.40145 | O473: 51796.00948 | P473: 52831.92967 | Q473: 53888.56827 | R473: 54966.33963 | S473: 56065.66642 | T473: 57186.97975 | U473: 58330.71935 | V473: 59497.33373 | W473: 60687.28041 | X473: 271 | Y473: 40840.8 | Z473: =OFFSET(B473,0,$C$51-Map!$T$13+1) -> 60687.28041 | AA473: 64
A474: =Data!B354 -> 65 | B474: =HLOOKUP($A$1,Data!$C$1:$AI$379,$X474,FALSE) -> 40560 | C474: 41371.2 | D474: 42198.624 | E474: 43042.59648 | F474: 43903.44841 | G474: 44781.51738 | H474: 45677.14773 | I474: 46590.69068 | J474: 47522.50449 | K474: 48472.95458 | L474: 49442.41367 | M474: 50431.26195 | N474: 51439.88719 | O474: 52468.68493 | P474: 53518.05863 | Q474: 54588.4198 | R474: 55680.1882 | S474: 56793.79196 | T474: 57929.6678 | U474: 59088.26116 | V474: 60270.02638 | W474: 61475.42691 | X474: 272 | Y474: 41371.2 | Z474: =OFFSET(B474,0,$C$51-Map!$T$13+1) -> 61475.42691 | AA474: 65
... 118 more rows

Sheet S1
A1: =Data!D1 -> 2-Aberdeen City Council-Aberdeen HMA | K1: =Map!T13 -> 2018
A3: 1. Household Projections | X3: 4
A4: Choose NRS household projection variant. | X4: 4 | Y4: 4
X5: 1
X6: 1
X7: 1
X8: 1
X9: 1
X10: 1
C11: =D11-1 -> 2017 | D11: =D16 -> 2018 | E11: =D11+1 -> 2019 | F11: 2020 | G11: 2021 | H11: 2022 | I11: 2023 | J11: 2024 | K11: 2025 | L11: 2026 | M11: 2027 | N11: 2028
A12: Enter Projections Here | C12: 0 | D12: 0 | E12: 0 | F12: 0 | G12: 0 | H12: 0 | I12: 0 | J12: 0 | K12: 0 | L12: 0 | M12: 0 | N12: 0
D13: =N11+1 -> 2029 | E13: =D13+1 -> 2030 | F13: 2031 | G13: 2032 | H13: 2033 | I13: 2034 | J13: 2035 | K13: 2036 | L13: 2037 | M13: 2038 | N13: 2039
D14: 0 | E14: 0 | F14: 0 | G14: 0 | H14: 0 | I14: 0 | J14: 0 | K14: 0 | L14: 0 | M14: 0 | N14: 0
A16: 1a. Household growth Adjustment | D16: =C300 -> 2018 | E16: =D16+1 -> 2019 | F16: 2020 | G16: 2021 | H16: 2022 | I16: 2023 | J16: 2024 | K16: 2025 | L16: 2026 | M16: 2027 | N16: 2028
D17: 0 | E17: 0 | F17: 0 | G17: 0 | H17: 0 | I17: 0 | J17: 0 | K17: 0 | L17: 0 | M17: 0 | N17: 0
D18: =N16+1 -> 2029 | E18: =D18+1 -> 2030 | F18: 2031 | G18: 2032 | H18: 2033 | I18: 2034 | J18: 2035 | K18: 2036 | L18: 2037 | M18: 2038 | N18: 2039
D19: 0 | E19: 0 | F19: 0 | G19: 0 | H19: 0 | I19: 0 | J19: 0 | K19: 0 | L19: 0 | M19: 0 | N19: 0
A21: 2. Existing Need
A22: Either
A25: Total From HoTOC method | D25: =IF(B312=TRUE,SUM(C312:W312),"-") -> 790
A26: Or own exisiting need figures
A29: Existing Need | B29: 0
A31: 2a. Years to clear exisiting need
A34: Existing "Cleared" In? Enter Years | B34: 5
A41: 3. Income, Growth and Distribution
A43: Growth in median income scenario
A45: Change in income distribution
A48: Select part of income distribution interested in
B49: Example A | C49: 75 | D49: %ile
B50: Example B | C50: 25 | D50: %ile
B51: Example Year | C51: 2038
X52: 2
X53: 2
X54: 2
A57: 4. Prices and Afforability | X57: 1
X58: 1
X59: 2
X60: 2
B61: Percentile | C61: 0.25
B64: Income Ratio | C64: 3.6 | X64: 1
A114: 5. Split Need into Tenure
B115: Proportion of market who buy | C115: 0.6
B116: Upper income-to-rent threshold | C116: 0.25
A117: Lower income-to-rent treshohld | B117: Lower I-rent income limit | C117: 0.35
A118: Rent Growth Assumption
X122: 2
X123: 2
X127: 1
A269: User 1
A270: User 2
A271: User 3
A272: 2016 Principal
A273: 2016 Low Migration
A274: 2016 High Migration
A278: Scottish Government Small Area Income Estimates
A279: Own Income data
A299: Households
A300: Year | B300: =Map!T13-1 -> 2017 | C300: =B300+1 -> 2018 | D300: 2019 | E300: 2020 | F300: 2021 | G300: 2022 | H300: 2023 | I300: 2024 | J300: 2025 | K300: 2026 | L300: 2027 | M300: 2028 | N300: 2029 | O300: 2030 | P300: 2031 | Q300: 2032 | R300: 2033 | S300: 2034 | T300: 2035 | U300: 2036 | V300: 2037 | W300: 2038 | X300: Ref
A301: =CONCATENATE(CHOOSE(Y4,A269,A270,A271,A272,A273,A274)) -> 2016 Principal | C301: =HLOOKUP($A$1,Data!$C$1:$AI$184,C300-($B$300-$X$302)+24*($Y$4-1),FALSE) -> 108547 | D301: =HLOOKUP($A$1,Data!$C$1:$AI$184,D300-($B$300-$X$302)+24*($Y$4-1),FALSE) -> 109290 | E301: =HLOOKUP($A$1,Data!$C$1:$AI$184,E300-($B$300-$X$302)+24*($Y$4-1),FALSE) -> 109936 | F301: =HLOOKUP($A$1,Data!$C$1:$AI$184,F300-($B$300-$X$302)+24*($Y$4-1),FALSE) -> 110563 | G301: =HLOOKUP($A$1,Data!$C$1:$AI$184,G300-($B$300-$X$302)+24*($Y$4-1),FALSE) -> 111179 | H301: =HLOOKUP($A$1,Data!$C$1:$AI$184,H300-($B$300-$X$302)+24*($Y$4-1),FALSE) -> 111654 | I301: =HLOOKUP($A$1,Data!$C$1:$AI$184,I300-($B$300-$X$302)+24*($Y$4-1),FALSE) -> 112129 | J301: =HLOOKUP($A$1,Data!$C$1:$AI$184,J300-($B$300-$X$302)+24*($Y$4-1),FALSE) -> 112623 | K301: =HLOOKUP($A$1,Data!$C$1:$AI$184,K300-($B$300-$X$302)+24*($Y$4-1),FALSE) -> 113128 | L301: =HLOOKUP($A$1,Data!$C$1:$AI$184,L300-($B$300-$X$302)+24*($Y$4-1),FALSE) -> 113687 | M301: =HLOOKUP($A$1,Data!$C$1:$AI$184,M300-($B$300-$X$302)+24*($Y$4-1),FALSE) -> 114241 | N301: =HLOOKUP($A$1,Data!$C$1:$AI$184,N300-($B$300-$X$302)+24*($Y$4-1),FALSE) -> 114818 | O301: =HLOOKUP($A$1,Data!$C$1:$AI$184,O300-($B$300-$X$302)+24*($Y$4-1),FALSE) -> 115391 | P301: =HLOOKUP($A$1,Data!$C$1:$AI$184,P300-($B$300-$X$302)+24*($Y$4-1),FALSE) -> 116014 | Q301: =HLOOKUP($A$1,Data!$C$1:$AI$184,Q300-($B$300-$X$302)+24*($Y$4-1),FALSE) -> 116617 | R301: =HLOOKUP($A$1,Data!$C$1:$AI$184,R300-($B$300-$X$302)+24*($Y$4-1),FALSE) -> 117212 | S301: =HLOOKUP($A$1,Data!$C$1:$AI$184,S300-($B$300-$X$302)+24*($Y$4-1),FALSE) -> 117835 | T301: =HLOOKUP($A$1,Data!$C$1:$AI$184,T300-($B$300-$X$302)+24*($Y$4-1),FALSE) -> 118449 | U301: =HLOOKUP($A$1,Data!$C$1:$AI$184,U300-($B$300-$X$302)+24*($Y$4-1),FALSE) -> 119020 | V301: =HLOOKUP($A$1,Data!$C$1:$AI$184,V300-($B$300-$X$302)+24*($Y$4-1),FALSE) -> 119531 | W301: =HLOOKUP($A$1,Data!$C$1:$AI$184,W300-($B$300-$X$302)+24*($Y$4-1),FALSE) -> 120082
A302: =CONCATENATE(CHOOSE(X4,A269,A270,A271,A272,A273,A274)) -> 2016 Principal | C302: =IF($B$308=TRUE,D12,HLOOKUP($A$1,Data!$C$1:$AI$184,C300-($B$300-$X$302)+24*($X$4-1),FALSE)) -> 108547 | D302: =IF($B$308=TRUE,E12,HLOOKUP($A$1,Data!$C$1:$AI$184,D300-($B$300-$X$302)+24*($X$4-1),FALSE)) -> 109290 | E302: =IF($B$308=TRUE,F12,HLOOKUP($A$1,Data!$C$1:$AI$184,E300-($B$300-$X$302)+24*($X$4-1),FALSE)) -> 109936 | F302: =IF($B$308=TRUE,G12,HLOOKUP($A$1,Data!$C$1:$AI$184,F300-($B$300-$X$302)+24*($X$4-1),FALSE)) -> 110563 | G302: =IF($B$308=TRUE,H12,HLOOKUP($A$1,Data!$C$1:$AI$184,G300-($B$300-$X$302)+24*($X$4-1),FALSE)) -> 111179 | H302: =IF($B$308=TRUE,I12,HLOOKUP($A$1,Data!$C$1:$AI$184,H300-($B$300-$X$302)+24*($X$4-1),FALSE)) -> 111654 | I302: =IF($B$308=TRUE,J12,HLOOKUP($A$1,Data!$C$1:$AI$184,I300-($B$300-$X$302)+24*($X$4-1),FALSE)) -> 112129 | J302: =IF($B$308=TRUE,K12,HLOOKUP($A$1,Data!$C$1:$AI$184,J300-($B$300-$X$302)+24*($X$4-1),FALSE)) -> 112623 | K302: =IF($B$308=TRUE,L12,HLOOKUP($A$1,Data!$C$1:$AI$184,K300-($B$300-$X$302)+24*($X$4-1),FALSE)) -> 113128 | L302: =IF($B$308=TRUE,M12,HLOOKUP($A$1,Data!$C$1:$AI$184,L300-($B$300-$X$302)+24*($X$4-1),FALSE)) -> 113687 | M302: =IF($B$308=TRUE,N12,HLOOKUP($A$1,Data!$C$1:$AI$184,M300-($B$300-$X$302)+24*($X$4-1),FALSE)) -> 114241 | N302: =IF($B$308=TRUE,D14,HLOOKUP($A$1,Data!$C$1:$AI$184,N300-($B$300-$X$302)+24*($X$4-1),FALSE)) -> 114818 | O302: =IF($B$308=TRUE,E14,HLOOKUP($A$1,Data!$C$1:$AI$184,O300-($B$300-$X$302)+24*($X$4-1),FALSE)) -> 115391 | P302: =IF($B$308=TRUE,F14,HLOOKUP($A$1,Data!$C$1:$AI$184,P300-($B$300-$X$302)+24*($X$4-1),FALSE)) -> 116014 | Q302: =IF($B$308=TRUE,G14,HLOOKUP($A$1,Data!$C$1:$AI$184,Q300-($B$300-$X$302)+24*($X$4-1),FALSE)) -> 116617 | R302: =IF($B$308=TRUE,H14,HLOOKUP($A$1,Data!$C$1:$AI$184,R300-($B$300-$X$302)+24*($X$4-1),FALSE)) -> 117212 | S302: =IF($B$308=TRUE,I14,HLOOKUP($A$1,Data!$C$1:$AI$184,S300-($B$300-$X$302)+24*($X$4-1),FALSE)) -> 117835 | T302: =IF($B$308=TRUE,J14,HLOOKUP($A$1,Data!$C$1:$AI$184,T300-($B$300-$X$302)+24*($X$4-1),FALSE)) -> 118449 | U302: =IF($B$308=TRUE,K14,HLOOKUP($A$1,Data!$C$1:$AI$184,U300-($B$300-$X$302)+24*($X$4-1),FALSE)) -> 119020 | V302: =IF($B$308=TRUE,L14,HLOOKUP($A$1,Data!$C$1:$AI$184,V300-($B$300-$X$302)+24*($X$4-1),FALSE)) -> 119531 | W302: =IF($B$308=TRUE,M14,HLOOKUP($A$1,Data!$C$1:$AI$184,W300-($B$300-$X$302)+24*($X$4-1),FALSE)) -> 120082 | X302: 17
C303: =D302-C302 -> 743 | D303: =E302-D302 -> 646 | E303: 627 | F303: 616 | G303: 475 | H303: 475 | I303: 494 | J303: 505 | K303: 559 | L303: 554 | M303: =N302-M302 -> 577 | N303: 573 | O303: 623 | P303: 603 | Q303: 595 | R303: 623 | S303: 614 | T303: 571 | U303: 511 | V303: 551 | W303: =V303 -> 551
A304: =A302 -> 2016 Principal | C304: =(C302)*(1+E17) -> 108547 | D304: =(C304+C303)*(1+F17) -> 109290 | E304: =(D304+D303)*(1+G17) -> 109936 | F304: 110563 | G304: 111179 | H304: 111654 | I304: 112129 | J304: 112623 | K304: 113128 | L304: 113687 | M304: =(L304+L303)*(1+D19) -> 114241 | N304: =(M304+M303)*(1+E19) -> 114818 | O304: 115391 | P304: 116014 | Q304: 116617 | R304: 117212 | S304: 117835 | T304: 118449 | U304: 119020 | V304: 119531 | W304: 120082
A305: =CONCATENATE(A301," Change") -> 2016 Principal Change | C305: =D301-C301 -> 743 | D305: =E301-D301 -> 646 | E305: 627 | F305: 616 | G305: 475 | H305: 475 | I305: 494 | J305: 505 | K305: 559 | L305: 554 | M305: 577 | N305: 573 | O305: 623 | P305: 603 | Q305: 595 | R305: 623 | S305: 614 | T305: 571 | U305: 511 | V305: 551 | W305: =V305 -> 551
A306: =CONCATENATE(A302," Change") -> 2016 Principal Change | C306: =D304-C304 -> 743 | D306: =E304-D304 -> 646 | E306: 627 | F306: =G304-F304 -> 616 | G306: 475 | H306: 475 | I306: 494 | J306: 505 | K306: 559 | L306: 554 | M306: 577 | N306: 573 | O306: 623 | P306: 603 | Q306: 595 | R306: 623 | S306: 614 | T306: 571 | U306: 511 | V306: 551 | W306: =V306 -> 551
B308: FALSE
A309: Backlog Need | B309: FALSE | C309: =IF(AND(C300-$K$1+1<=$B$34,C300>=$K$1),$B$29/'S1'!$B$34,0) -> 0 | D309: =IF(AND(D300-$K$1+1<=$B$34,D300>=$K$1),$B$29/'S1'!$B$34,0) -> 0 | E309: =IF(AND(E300-$K$1+1<=$B$34,E300>=$K$1),$B$29/'S1'!$B$34,0) -> 0 | F309: =IF(AND(F300-$K$1+1<=$B$34,F300>=$K$1),$B$29/'S1'!$B$34,0) -> 0 | G309: =IF(AND(G300-$K$1+1<=$B$34,G300>=$K$1),$B$29/'S1'!$B$34,0) -> 0 | H309: =IF(AND(H300-$K$1+1<=$B$34,H300>=$K$1),$B$29/'S1'!$B$34,0) -> 0 | I309: =IF(AND(I300-$K$1+1<=$B$34,I300>=$K$1),$B$29/'S1'!$B$34,0) -> 0 | J309: =IF(AND(J300-$K$1+1<=$B$34,J300>=$K$1),$B$29/'S1'!$B$34,0) -> 0 | K309: =IF(AND(K300-$K$1+1<=$B$34,K300>=$K$1),$B$29/'S1'!$B$34,0) -> 0 | L309: =IF(AND(L300-$K$1+1<=$B$34,L300>=$K$1),$B$29/'S1'!$B$34,0) -> 0 | M309: =IF(AND(M300-$K$1+1<=$B$34,M300>=$K$1),$B$29/'S1'!$B$34,0) -> 0 | N309: =IF(AND(N300-$K$1+1<=$B$34,N300>=$K$1),$B$29/'S1'!$B$34,0) -> 0 | O309: =IF(AND(O300-$K$1+1<=$B$34,O300>=$K$1),$B$29/'S1'!$B$34,0) -> 0 | P309: =IF(AND(P300-$K$1+1<=$B$34,P300>=$K$1),$B$29/'S1'!$B$34,0) -> 0 | Q309: =IF(AND(Q300-$K$1+1<=$B$34,Q300>=$K$1),$B$29/'S1'!$B$34,0) -> 0 | R309: =IF(AND(R300-$K$1+1<=$B$34,R300>=$K$1),$B$29/'S1'!$B$34,0) -> 0 | S309: =IF(AND(S300-$K$1+1<=$B$34,S300>=$K$1),$B$29/'S1'!$B$34,0) -> 0 | T309: =IF(AND(T300-$K$1+1<=$B$34,T300>=$K$1),$B$29/'S1'!$B$34,0) -> 0 | U309: =IF(AND(U300-$K$1+1<=$B$34,U300>=$K$1),$B$29/'S1'!$B$34,0) -> 0 | V309: =IF(AND(V300-$K$1+1<=$B$34,V300>=$K$1),$B$29/'S1'!$B$34,0) -> 0 | W309: =IF(AND(W300-$K$1+1<=$B$34,W300>=$K$1),$B$29/'S1'!$B$34,0) -> 0
A310: Backlog Need (TA) | C310: =IF(AND(C300-$K$1+1<=$B$34,C300>=$K$1),HLOOKUP($A$1,Data!$C$1:$AJ$202,'S1'!$X$310,FALSE)/'S1'!$B$34,0) -> 158 | D310: =IF(AND(D300-$K$1+1<=$B$34,D300>=$K$1),HLOOKUP($A$1,Data!$C$1:$AJ$202,'S1'!$X$310,FALSE)/'S1'!$B$34,0) -> 158 | E310: =IF(AND(E300-$K$1+1<=$B$34,E300>=$K$1),HLOOKUP($A$1,Data!$C$1:$AJ$202,'S1'!$X$310,FALSE)/'S1'!$B$34,0) -> 158 | F310: =IF(AND(F300-$K$1+1<=$B$34,F300>=$K$1),HLOOKUP($A$1,Data!$C$1:$AJ$202,'S1'!$X$310,FALSE)/'S1'!$B$34,0) -> 158 | G310: =IF(AND(G300-$K$1+1<=$B$34,G300>=$K$1),HLOOKUP($A$1,Data!$C$1:$AJ$202,'S1'!$X$310,FALSE)/'S1'!$B$34,0) -> 158 | H310: =IF(AND(H300-$K$1+1<=$B$34,H300>=$K$1),HLOOKUP($A$1,Data!$C$1:$AJ$202,'S1'!$X$310,FALSE)/'S1'!$B$34,0) -> 0 | I310: =IF(AND(I300-$K$1+1<=$B$34,I300>=$K$1),HLOOKUP($A$1,Data!$C$1:$AJ$202,'S1'!$X$310,FALSE)/'S1'!$B$34,0) -> 0 | J310: =IF(AND(J300-$K$1+1<=$B$34,J300>=$K$1),HLOOKUP($A$1,Data!$C$1:$AJ$202,'S1'!$X$310,FALSE)/'S1'!$B$34,0) -> 0 | K310: =IF(AND(K300-$K$1+1<=$B$34,K300>=$K$1),HLOOKUP($A$1,Data!$C$1:$AJ$202,'S1'!$X$310,FALSE)/'S1'!$B$34,0) -> 0 | L310: =IF(AND(L300-$K$1+1<=$B$34,L300>=$K$1),HLOOKUP($A$1,Data!$C$1:$AJ$202,'S1'!$X$310,FALSE)/'S1'!$B$34,0) -> 0 | M310: =IF(AND(M300-$K$1+1<=$B$34,M300>=$K$1),HLOOKUP($A$1,Data!$C$1:$AJ$202,'S1'!$X$310,FALSE)/'S1'!$B$34,0) -> 0 | N310: =IF(AND(N300-$K$1+1<=$B$34,N300>=$K$1),HLOOKUP($A$1,Data!$C$1:$AJ$202,'S1'!$X$310,FALSE)/'S1'!$B$34,0) -> 0 | O310: =IF(AND(O300-$K$1+1<=$B$34,O300>=$K$1),HLOOKUP($A$1,Data!$C$1:$AJ$202,'S1'!$X$310,FALSE)/'S1'!$B$34,0) -> 0 | P310: =IF(AND(P300-$K$1+1<=$B$34,P300>=$K$1),HLOOKUP($A$1,Data!$C$1:$AJ$202,'S1'!$X$310,FALSE)/'S1'!$B$34,0) -> 0 | Q310: =IF(AND(Q300-$K$1+1<=$B$34,Q300>=$K$1),HLOOKUP($A$1,Data!$C$1:$AJ$202,'S1'!$X$310,FALSE)/'S1'!$B$34,0) -> 0 | R310: =IF(AND(R300-$K$1+1<=$B$34,R300>=$K$1),HLOOKUP($A$1,Data!$C$1:$AJ$202,'S1'!$X$310,FALSE)/'S1'!$B$34,0) -> 0 | S310: =IF(AND(S300-$K$1+1<=$B$34,S300>=$K$1),HLOOKUP($A$1,Data!$C$1:$AJ$202,'S1'!$X$310,FALSE)/'S1'!$B$34,0) -> 0 | T310: =IF(AND(T300-$K$1+1<=$B$34,T300>=$K$1),HLOOKUP($A$1,Data!$C$1:$AJ$202,'S1'!$X$310,FALSE)/'S1'!$B$34,0) -> 0 | U310: =IF(AND(U300-$K$1+1<=$B$34,U300>=$K$1),HLOOKUP($A$1,Data!$C$1:$AJ$202,'S1'!$X$310,FALSE)/'S1'!$B$34,0) -> 0 | V310: =IF(AND(V300-$K$1+1<=$B$34,V300>=$K$1),HLOOKUP($A$1,Data!$C$1:$AJ$202,'S1'!$X$310,FALSE)/'S1'!$B$34,0) -> 0 | W310: =IF(AND(W300-$K$1+1<=$B$34,W300>=$K$1),HLOOKUP($A$1,Data!$C$1:$AJ$202,'S1'!$X$310,FALSE)/'S1'!$B$34,0) -> 0 | X310: 202
A311: Backlog Need (Traditional) | C311: =IF(AND(C300-$K$1+1<=$B$34,C300>=$K$1),HLOOKUP($A$1,Data!$C$1:$AJ$201,'S1'!$X311,FALSE)/'S1'!$B$34,0) -> 0 | D311: =IF(AND(D300-$K$1+1<=$B$34,D300>=$K$1),HLOOKUP($A$1,Data!$C$1:$AJ$201,'S1'!$X311,FALSE)/'S1'!$B$34,0) -> 0 | E311: =IF(AND(E300-$K$1+1<=$B$34,E300>=$K$1),HLOOKUP($A$1,Data!$C$1:$AJ$201,'S1'!$X311,FALSE)/'S1'!$B$34,0) -> 0 | F311: =IF(AND(F300-$K$1+1<=$B$34,F300>=$K$1),HLOOKUP($A$1,Data!$C$1:$AJ$201,'S1'!$X311,FALSE)/'S1'!$B$34,0) -> 0 | G311: =IF(AND(G300-$K$1+1<=$B$34,G300>=$K$1),HLOOKUP($A$1,Data!$C$1:$AJ$201,'S1'!$X311,FALSE)/'S1'!$B$34,0) -> 0 | H311: =IF(AND(H300-$K$1+1<=$B$34,H300>=$K$1),HLOOKUP($A$1,Data!$C$1:$AJ$201,'S1'!$X311,FALSE)/'S1'!$B$34,0) -> 0 | I311: =IF(AND(I300-$K$1+1<=$B$34,I300>=$K$1),HLOOKUP($A$1,Data!$C$1:$AJ$201,'S1'!$X311,FALSE)/'S1'!$B$34,0) -> 0 | J311: =IF(AND(J300-$K$1+1<=$B$34,J300>=$K$1),HLOOKUP($A$1,Data!$C$1:$AJ$201,'S1'!$X311,FALSE)/'S1'!$B$34,0) -> 0 | K311: =IF(AND(K300-$K$1+1<=$B$34,K300>=$K$1),HLOOKUP($A$1,Data!$C$1:$AJ$201,'S1'!$X311,FALSE)/'S1'!$B$34,0) -> 0 | L311: =IF(AND(L300-$K$1+1<=$B$34,L300>=$K$1),HLOOKUP($A$1,Data!$C$1:$AJ$201,'S1'!$X311,FALSE)/'S1'!$B$34,0) -> 0 | M311: =IF(AND(M300-$K$1+1<=$B$34,M300>=$K$1),HLOOKUP($A$1,Data!$C$1:$AJ$201,'S1'!$X311,FALSE)/'S1'!$B$34,0) -> 0 | N311: =IF(AND(N300-$K$1+1<=$B$34,N300>=$K$1),HLOOKUP($A$1,Data!$C$1:$AJ$201,'S1'!$X311,FALSE)/'S1'!$B$34,0) -> 0 | O311: =IF(AND(O300-$K$1+1<=$B$34,O300>=$K$1),HLOOKUP($A$1,Data!$C$1:$AJ$201,'S1'!$X311,FALSE)/'S1'!$B$34,0) -> 0 | P311: =IF(AND(P300-$K$1+1<=$B$34,P300>=$K$1),HLOOKUP($A$1,Data!$C$1:$AJ$201,'S1'!$X311,FALSE)/'S1'!$B$34,0) -> 0 | Q311: =IF(AND(Q300-$K$1+1<=$B$34,Q300>=$K$1),HLOOKUP($A$1,Data!$C$1:$AJ$201,'S1'!$X311,FALSE)/'S1'!$B$34,0) -> 0 | R311: =IF(AND(R300-$K$1+1<=$B$34,R300>=$K$1),HLOOKUP($A$1,Data!$C$1:$AJ$201,'S1'!$X311,FALSE)/'S1'!$B$34,0) -> 0 | S311: =IF(AND(S300-$K$1+1<=$B$34,S300>=$K$1),HLOOKUP($A$1,Data!$C$1:$AJ$201,'S1'!$X311,FALSE)/'S1'!$B$34,0) -> 0 | T311: =IF(AND(T300-$K$1+1<=$B$34,T300>=$K$1),HLOOKUP($A$1,Data!$C$1:$AJ$201,'S1'!$X311,FALSE)/'S1'!$B$34,0) -> 0 | U311: =IF(AND(U300-$K$1+1<=$B$34,U300>=$K$1),HLOOKUP($A$1,Data!$C$1:$AJ$201,'S1'!$X311,FALSE)/'S1'!$B$34,0) -> 0 | V311: =IF(AND(V300-$K$1+1<=$B$34,V300>=$K$1),HLOOKUP($A$1,Data!$C$1:$AJ$201,'S1'!$X311,FALSE)/'S1'!$B$34,0) -> 0 | W311: =IF(AND(W300-$K$1+1<=$B$34,W300>=$K$1),HLOOKUP($A$1,Data!$C$1:$AJ$201,'S1'!$X311,FALSE)/'S1'!$B$34,0) -> 0 | X311: 199
A312: =CONCATENATE("Exisiting ",A302) -> Exisiting 2016 Principal | B312: TRUE | C312: =IF($B$312=TRUE,C310,IF($B$310=TRUE,C311,C309)) -> 158 | D312: 158 | E312: 158 | F312: 158 | G312: 158 | H312: 0 | I312: 0 | J312: 0 | K312: 0 | L312: 0 | M312: 0 | N312: 0 | O312: 0 | P312: 0 | Q312: 0 | R312: 0 | S312: 0 | T312: 0 | U312: 0 | V312: 0 | W312: 0
A315: Overall | C315: =C300 -> 2018 | D315: =D300 -> 2019 | E315: 2020 | F315: 2021 | G315: 2022 | H315: 2023 | I315: 2024 | J315: 2025 | K315: 2026 | L315: 2027 | M315: 2028 | N315: 2029 | O315: 2030 | P315: 2031 | Q315: 2032 | R315: 2033 | S315: 2034 | T315: 2035 | U315: 2036 | V315: 2037 | W315: 2038
A316: =CONCATENATE("Exisiting ",A301) -> Exisiting 2016 Principal | C316: =IF(AND(C300-$K$1+1<=CoreAssumptions!$F$10,C300>=$K$1),HLOOKUP($A$1,Data!$C$1:$AJ$202,'S1'!$X$310,FALSE)/CoreAssumptions!$F$10,0) -> 158 | D316: =IF(AND(D300-$K$1+1<=CoreAssumptions!$F$10,D300>=$K$1),HLOOKUP($A$1,Data!$C$1:$AJ$202,'S1'!$X$310,FALSE)/CoreAssumptions!$F$10,0) -> 158 | E316: =IF(AND(E300-$K$1+1<=CoreAssumptions!$F$10,E300>=$K$1),HLOOKUP($A$1,Data!$C$1:$AJ$202,'S1'!$X$310,FALSE)/CoreAssumptions!$F$10,0) -> 158 | F316: =IF(AND(F300-$K$1+1<=CoreAssumptions!$F$10,F300>=$K$1),HLOOKUP($A$1,Data!$C$1:$AJ$202,'S1'!$X$310,FALSE)/CoreAssumptions!$F$10,0) -> 158 | G316: =IF(AND(G300-$K$1+1<=CoreAssumptions!$F$10,G300>=$K$1),HLOOKUP($A$1,Data!$C$1:$AJ$202,'S1'!$X$310,FALSE)/CoreAssumptions!$F$10,0) -> 158 | H316: =IF(AND(H300-$K$1+1<=CoreAssumptions!$F$10,H300>=$K$1),HLOOKUP($A$1,Data!$C$1:$AJ$202,'S1'!$X$310,FALSE)/CoreAssumptions!$F$10,0) -> 0 | I316: =IF(AND(I300-$K$1+1<=CoreAssumptions!$F$10,I300>=$K$1),HLOOKUP($A$1,Data!$C$1:$AJ$202,'S1'!$X$310,FALSE)/CoreAssumptions!$F$10,0) -> 0 | J316: =IF(AND(J300-$K$1+1<=CoreAssumptions!$F$10,J300>=$K$1),HLOOKUP($A$1,Data!$C$1:$AJ$202,'S1'!$X$310,FALSE)/CoreAssumptions!$F$10,0) -> 0 | K316: =IF(AND(K300-$K$1+1<=CoreAssumptions!$F$10,K300>=$K$1),HLOOKUP($A$1,Data!$C$1:$AJ$202,'S1'!$X$310,FALSE)/CoreAssumptions!$F$10,0) -> 0 | L316: =IF(AND(L300-$K$1+1<=CoreAssumptions!$F$10,L300>=$K$1),HLOOKUP($A$1,Data!$C$1:$AJ$202,'S1'!$X$310,FALSE)/CoreAssumptions!$F$10,0) -> 0 | M316: =IF(AND(M300-$K$1+1<=CoreAssumptions!$F$10,M300>=$K$1),HLOOKUP($A$1,Data!$C$1:$AJ$202,'S1'!$X$310,FALSE)/CoreAssumptions!$F$10,0) -> 0 | N316: =IF(AND(N300-$K$1+1<=CoreAssumptions!$F$10,N300>=$K$1),HLOOKUP($A$1,Data!$C$1:$AJ$202,'S1'!$X$310,FALSE)/CoreAssumptions!$F$10,0) -> 0 | O316: =IF(AND(O300-$K$1+1<=CoreAssumptions!$F$10,O300>=$K$1),HLOOKUP($A$1,Data!$C$1:$AJ$202,'S1'!$X$310,FALSE)/CoreAssumptions!$F$10,0) -> 0 | P316: =IF(AND(P300-$K$1+1<=CoreAssumptions!$F$10,P300>=$K$1),HLOOKUP($A$1,Data!$C$1:$AJ$202,'S1'!$X$310,FALSE)/CoreAssumptions!$F$10,0) -> 0 | Q316: =IF(AND(Q300-$K$1+1<=CoreAssumptions!$F$10,Q300>=$K$1),HLOOKUP($A$1,Data!$C$1:$AJ$202,'S1'!$X$310,FALSE)/CoreAssumptions!$F$10,0) -> 0 | R316: =IF(AND(R300-$K$1+1<=CoreAssumptions!$F$10,R300>=$K$1),HLOOKUP($A$1,Data!$C$1:$AJ$202,'S1'!$X$310,FALSE)/CoreAssumptions!$F$10,0) -> 0 | S316: =IF(AND(S300-$K$1+1<=CoreAssumptions!$F$10,S300>=$K$1),HLOOKUP($A$1,Data!$C$1:$AJ$202,'S1'!$X$310,FALSE)/CoreAssumptions!$F$10,0) -> 0 | T316: =IF(AND(T300-$K$1+1<=CoreAssumptions!$F$10,T300>=$K$1),HLOOKUP($A$1,Data!$C$1:$AJ$202,'S1'!$X$310,FALSE)/CoreAssumptions!$F$10,0) -> 0 | U316: =IF(AND(U300-$K$1+1<=CoreAssumptions!$F$10,U300>=$K$1),HLOOKUP($A$1,Data!$C$1:$AJ$202,'S1'!$X$310,FALSE)/CoreAssumptions!$F$10,0) -> 0 | V316: =IF(AND(V300-$K$1+1<=CoreAssumptions!$F$10,V300>=$K$1),HLOOKUP($A$1,Data!$C$1:$AJ$202,'S1'!$X$310,FALSE)/CoreAssumptions!$F$10,0) -> 0 | W316: =IF(AND(W300-$K$1+1<=CoreAssumptions!$F$10,W300>=$K$1),HLOOKUP($A$1,Data!$C$1:$AJ$202,'S1'!$X$310,FALSE)/CoreAssumptions!$F$10,0) -> 0
A317: =CONCATENATE("Newly Arising ",A301) -> Newly Arising 2016 Principal | C317: =C305 -> 743 | D317: =D305 -> 646 | E317: 627 | F317: 616 | G317: 475 | H317: 475 | I317: 494 | J317: 505 | K317: 559 | L317: 554 | M317: 577 | N317: 573 | O317: 623 | P317: 603 | Q317: 595 | R317: 623 | S317: 614 | T317: 571 | U317: 511 | V317: 551 | W317: 551
A318: =CONCATENATE("Newly Arising ",A302) -> Newly Arising 2016 Principal | C318: =C306 -> 743 | D318: 646 | E318: 627 | F318: 616 | G318: 475 | H318: 475 | I318: 494 | J318: 505 | K318: 559 | L318: 554 | M318: 577 | N318: 573 | O318: 623 | P318: 603 | Q318: 595 | R318: 623 | S318: 614 | T318: 571 | U318: 511 | V318: 551 | W318: 551
A319: =CONCATENATE("Total ",A301) -> Total 2016 Principal | C319: =C316+C317 -> 901 | D319: =D316+D317 -> 804 | E319: 785 | F319: 774 | G319: 633 | H319: 475 | I319: 494 | J319: 505 | K319: 559 | L319: 554 | M319: 577 | N319: 573 | O319: 623 | P319: 603 | Q319: 595 | R319: 623 | S319: 614 | T319: 571 | U319: 511 | V319: 551 | W319: 551
A320: =CONCATENATE("Total ",A302) -> Total 2016 Principal | C320: =C318+C312 -> 901 | D320: =D318+D312 -> 804 | E320: 785 | F320: 774 | G320: 633 | H320: 475 | I320: 494 | J320: 505 | K320: 559 | L320: 554 | M320: 577 | N320: 573 | O320: 623 | P320: 603 | Q320: 595 | R320: 623 | S320: 614 | T320: 571 | U320: 511 | V320: 551 | W320: 551
A322: In Current Proportions | C322: =C315 -> 2018 | D322: =D315 -> 2019 | E322: 2020 | F322: 2021 | G322: 2022 | H322: 2023 | I322: 2024 | J322: 2025 | K322: 2026 | L322: 2027 | M322: 2028 | N322: 2029 | O322: 2030 | P322: 2031 | Q322: 2032 | R322: 2033 | S322: 2034 | T322: 2035 | U322: 2036 | V322: 2037 | W322: 2038
A323: Principal Private | C323: =-HLOOKUP($A$1,Data!$C$1:$AI$379,'S1'!$X323,FALSE)*C319/100 -> 0 | D323: =-HLOOKUP($A$1,Data!$C$1:$AI$379,'S1'!$X323,FALSE)*D319/100 -> 0 | E323: =-HLOOKUP($A$1,Data!$C$1:$AI$379,'S1'!$X323,FALSE)*E319/100 -> 0 | F323: =-HLOOKUP($A$1,Data!$C$1:$AI$379,'S1'!$X323,FALSE)*F319/100 -> 0 | G323: =-HLOOKUP($A$1,Data!$C$1:$AI$379,'S1'!$X323,FALSE)*G319/100 -> 0 | H323: =-HLOOKUP($A$1,Data!$C$1:$AI$379,'S1'!$X323,FALSE)*H319/100 -> 0 | I323: =-HLOOKUP($A$1,Data!$C$1:$AI$379,'S1'!$X323,FALSE)*I319/100 -> 0 | J323: =-HLOOKUP($A$1,Data!$C$1:$AI$379,'S1'!$X323,FALSE)*J319/100 -> 0 | K323: =-HLOOKUP($A$1,Data!$C$1:$AI$379,'S1'!$X323,FALSE)*K319/100 -> 0 | L323: =-HLOOKUP($A$1,Data!$C$1:$AI$379,'S1'!$X323,FALSE)*L319/100 -> 0 | M323: =-HLOOKUP($A$1,Data!$C$1:$AI$379,'S1'!$X323,FALSE)*M319/100 -> 0 | N323: =-HLOOKUP($A$1,Data!$C$1:$AI$379,'S1'!$X323,FALSE)*N319/100 -> 0 | O323: =-HLOOKUP($A$1,Data!$C$1:$AI$379,'S1'!$X323,FALSE)*O319/100 -> 0 | P323: =-HLOOKUP($A$1,Data!$C$1:$AI$379,'S1'!$X323,FALSE)*P319/100 -> 0 | Q323: =-HLOOKUP($A$1,Data!$C$1:$AI$379,'S1'!$X323,FALSE)*Q319/100 -> 0 | R323: =-HLOOKUP($A$1,Data!$C$1:$AI$379,'S1'!$X323,FALSE)*R319/100 -> 0 | S323: =-HLOOKUP($A$1,Data!$C$1:$AI$379,'S1'!$X323,FALSE)*S319/100 -> 0 | T323: =-HLOOKUP($A$1,Data!$C$1:$AI$379,'S1'!$X323,FALSE)*T319/100 -> 0 | U323: =-HLOOKUP($A$1,Data!$C$1:$AI$379,'S1'!$X323,FALSE)*U319/100 -> 0 | V323: =-HLOOKUP($A$1,Data!$C$1:$AI$379,'S1'!$X323,FALSE)*V319/100 -> 0 | W323: =-HLOOKUP($A$1,Data!$C$1:$AI$379,'S1'!$X323,FALSE)*W319/100 -> 0 | X323: 216
A324: Principal Social | C324: =-HLOOKUP($A$1,Data!$C$1:$AI$379,'S1'!$X324,FALSE)*C319/100 -> -103074.4 | D324: =-HLOOKUP($A$1,Data!$C$1:$AI$379,'S1'!$X324,FALSE)*D319/100 -> -91977.6 | E324: =-HLOOKUP($A$1,Data!$C$1:$AI$379,'S1'!$X324,FALSE)*E319/100 -> -89804 | F324: =-HLOOKUP($A$1,Data!$C$1:$AI$379,'S1'!$X324,FALSE)*F319/100 -> -88545.6 | G324: =-HLOOKUP($A$1,Data!$C$1:$AI$379,'S1'!$X324,FALSE)*G319/100 -> -72415.2 | H324: =-HLOOKUP($A$1,Data!$C$1:$AI$379,'S1'!$X324,FALSE)*H319/100 -> -54340 | I324: =-HLOOKUP($A$1,Data!$C$1:$AI$379,'S1'!$X324,FALSE)*I319/100 -> -56513.6 | J324: =-HLOOKUP($A$1,Data!$C$1:$AI$379,'S1'!$X324,FALSE)*J319/100 -> -57772 | K324: =-HLOOKUP($A$1,Data!$C$1:$AI$379,'S1'!$X324,FALSE)*K319/100 -> -63949.6 | L324: =-HLOOKUP($A$1,Data!$C$1:$AI$379,'S1'!$X324,FALSE)*L319/100 -> -63377.6 | M324: =-HLOOKUP($A$1,Data!$C$1:$AI$379,'S1'!$X324,FALSE)*M319/100 -> -66008.8 | N324: =-HLOOKUP($A$1,Data!$C$1:$AI$379,'S1'!$X324,FALSE)*N319/100 -> -65551.2 | O324: =-HLOOKUP($A$1,Data!$C$1:$AI$379,'S1'!$X324,FALSE)*O319/100 -> -71271.2 | P324: =-HLOOKUP($A$1,Data!$C$1:$AI$379,'S1'!$X324,FALSE)*P319/100 -> -68983.2 | Q324: =-HLOOKUP($A$1,Data!$C$1:$AI$379,'S1'!$X324,FALSE)*Q319/100 -> -68068 | R324: =-HLOOKUP($A$1,Data!$C$1:$AI$379,'S1'!$X324,FALSE)*R319/100 -> -71271.2 | S324: =-HLOOKUP($A$1,Data!$C$1:$AI$379,'S1'!$X324,FALSE)*S319/100 -> -70241.6 | T324: =-HLOOKUP($A$1,Data!$C$1:$AI$379,'S1'!$X324,FALSE)*T319/100 -> -65322.4 | U324: =-HLOOKUP($A$1,Data!$C$1:$AI$379,'S1'!$X324,FALSE)*U319/100 -> -58458.4 | V324: =-HLOOKUP($A$1,Data!$C$1:$AI$379,'S1'!$X324,FALSE)*V319/100 -> -63034.4 | W324: =-HLOOKUP($A$1,Data!$C$1:$AI$379,'S1'!$X324,FALSE)*W319/100 -> -63034.4 | X324: 217
A325: Principal PRS | C325: =-HLOOKUP($A$1,Data!$C$1:$AI$379,'S1'!$X325,FALSE)*C319/100 -> -107759.6 | D325: =-HLOOKUP($A$1,Data!$C$1:$AI$379,'S1'!$X325,FALSE)*D319/100 -> -96158.4 | E325: =-HLOOKUP($A$1,Data!$C$1:$AI$379,'S1'!$X325,FALSE)*E319/100 -> -93886 | F325: =-HLOOKUP($A$1,Data!$C$1:$AI$379,'S1'!$X325,FALSE)*F319/100 -> -92570.4 | G325: =-HLOOKUP($A$1,Data!$C$1:$AI$379,'S1'!$X325,FALSE)*G319/100 -> -75706.8 | H325: =-HLOOKUP($A$1,Data!$C$1:$AI$379,'S1'!$X325,FALSE)*H319/100 -> -56810 | I325: =-HLOOKUP($A$1,Data!$C$1:$AI$379,'S1'!$X325,FALSE)*I319/100 -> -59082.4 | J325: =-HLOOKUP($A$1,Data!$C$1:$AI$379,'S1'!$X325,FALSE)*J319/100 -> -60398 | K325: =-HLOOKUP($A$1,Data!$C$1:$AI$379,'S1'!$X325,FALSE)*K319/100 -> -66856.4 | L325: =-HLOOKUP($A$1,Data!$C$1:$AI$379,'S1'!$X325,FALSE)*L319/100 -> -66258.4 | M325: =-HLOOKUP($A$1,Data!$C$1:$AI$379,'S1'!$X325,FALSE)*M319/100 -> -69009.2 | N325: =-HLOOKUP($A$1,Data!$C$1:$AI$379,'S1'!$X325,FALSE)*N319/100 -> -68530.8 | O325: =-HLOOKUP($A$1,Data!$C$1:$AI$379,'S1'!$X325,FALSE)*O319/100 -> -74510.8 | P325: =-HLOOKUP($A$1,Data!$C$1:$AI$379,'S1'!$X325,FALSE)*P319/100 -> -72118.8 | Q325: =-HLOOKUP($A$1,Data!$C$1:$AI$379,'S1'!$X325,FALSE)*Q319/100 -> -71162 | R325: =-HLOOKUP($A$1,Data!$C$1:$AI$379,'S1'!$X325,FALSE)*R319/100 -> -74510.8 | S325: =-HLOOKUP($A$1,Data!$C$1:$AI$379,'S1'!$X325,FALSE)*S319/100 -> -73434.4 | T325: =-HLOOKUP($A$1,Data!$C$1:$AI$379,'S1'!$X325,FALSE)*T319/100 -> -68291.6 | U325: =-HLOOKUP($A$1,Data!$C$1:$AI$379,'S1'!$X325,FALSE)*U319/100 -> -61115.6 | V325: =-HLOOKUP($A$1,Data!$C$1:$AI$379,'S1'!$X325,FALSE)*V319/100 -> -65899.6 | W325: =-HLOOKUP($A$1,Data!$C$1:$AI$379,'S1'!$X325,FALSE)*W319/100 -> -65899.6 | X325: 218
A326: Scenario Private | C326: =HLOOKUP($A$1,Data!$C$1:$AI$379,'S1'!$X326,FALSE)*C320/100 -> 0 | D326: =HLOOKUP($A$1,Data!$C$1:$AI$379,'S1'!$X326,FALSE)*D320/100 -> 0 | E326: =HLOOKUP($A$1,Data!$C$1:$AI$379,'S1'!$X326,FALSE)*E320/100 -> 0 | F326: =HLOOKUP($A$1,Data!$C$1:$AI$379,'S1'!$X326,FALSE)*F320/100 -> 0 | G326: =HLOOKUP($A$1,Data!$C$1:$AI$379,'S1'!$X326,FALSE)*G320/100 -> 0 | H326: =HLOOKUP($A$1,Data!$C$1:$AI$379,'S1'!$X326,FALSE)*H320/100 -> 0 | I326: =HLOOKUP($A$1,Data!$C$1:$AI$379,'S1'!$X326,FALSE)*I320/100 -> 0 | J326: =HLOOKUP($A$1,Data!$C$1:$AI$379,'S1'!$X326,FALSE)*J320/100 -> 0 | K326: =HLOOKUP($A$1,Data!$C$1:$AI$379,'S1'!$X326,FALSE)*K320/100 -> 0 | L326: =HLOOKUP($A$1,Data!$C$1:$AI$379,'S1'!$X326,FALSE)*L320/100 -> 0 | M326: =HLOOKUP($A$1,Data!$C$1:$AI$379,'S1'!$X326,FALSE)*M320/100 -> 0 | N326: =HLOOKUP($A$1,Data!$C$1:$AI$379,'S1'!$X326,FALSE)*N320/100 -> 0 | O326: =HLOOKUP($A$1,Data!$C$1:$AI$379,'S1'!$X326,FALSE)*O320/100 -> 0 | P326: =HLOOKUP($A$1,Data!$C$1:$AI$379,'S1'!$X326,FALSE)*P320/100 -> 0 | Q326: =HLOOKUP($A$1,Data!$C$1:$AI$379,'S1'!$X326,FALSE)*Q320/100 -> 0 | R326: =HLOOKUP($A$1,Data!$C$1:$AI$379,'S1'!$X326,FALSE)*R320/100 -> 0 | S326: =HLOOKUP($A$1,Data!$C$1:$AI$379,'S1'!$X326,FALSE)*S320/100 -> 0 | T326: =HLOOKUP($A$1,Data!$C$1:$AI$379,'S1'!$X326,FALSE)*T320/100 -> 0 | U326: =HLOOKUP($A$1,Data!$C$1:$AI$379,'S1'!$X326,FALSE)*U320/100 -> 0 | V326: =HLOOKUP($A$1,Data!$C$1:$AI$379,'S1'!$X326,FALSE)*V320/100 -> 0 | W326: =HLOOKUP($A$1,Data!$C$1:$AI$379,'S1'!$X326,FALSE)*W320/100 -> 0 | X326: 216
A327: Scenario Social | C327: =HLOOKUP($A$1,Data!$C$1:$AI$379,'S1'!$X327,FALSE)*C320/100 -> 103074.4 | D327: =HLOOKUP($A$1,Data!$C$1:$AI$379,'S1'!$X327,FALSE)*D320/100 -> 91977.6 | E327: =HLOOKUP($A$1,Data!$C$1:$AI$379,'S1'!$X327,FALSE)*E320/100 -> 89804 | F327: =HLOOKUP($A$1,Data!$C$1:$AI$379,'S1'!$X327,FALSE)*F320/100 -> 88545.6 | G327: =HLOOKUP($A$1,Data!$C$1:$AI$379,'S1'!$X327,FALSE)*G320/100 -> 72415.2 | H327: =HLOOKUP($A$1,Data!$C$1:$AI$379,'S1'!$X327,FALSE)*H320/100 -> 54340 | I327: =HLOOKUP($A$1,Data!$C$1:$AI$379,'S1'!$X327,FALSE)*I320/100 -> 56513.6 | J327: =HLOOKUP($A$1,Data!$C$1:$AI$379,'S1'!$X327,FALSE)*J320/100 -> 57772 | K327: =HLOOKUP($A$1,Data!$C$1:$AI$379,'S1'!$X327,FALSE)*K320/100 -> 63949.6 | L327: =HLOOKUP($A$1,Data!$C$1:$AI$379,'S1'!$X327,FALSE)*L320/100 -> 63377.6 | M327: =HLOOKUP($A$1,Data!$C$1:$AI$379,'S1'!$X327,FALSE)*M320/100 -> 66008.8 | N327: =HLOOKUP($A$1,Data!$C$1:$AI$379,'S1'!$X327,FALSE)*N320/100 -> 65551.2 | O327: =HLOOKUP($A$1,Data!$C$1:$AI$379,'S1'!$X327,FALSE)*O320/100 -> 71271.2 | P327: =HLOOKUP($A$1,Data!$C$1:$AI$379,'S1'!$X327,FALSE)*P320/100 -> 68983.2 | Q327: =HLOOKUP($A$1,Data!$C$1:$AI$379,'S1'!$X327,FALSE)*Q320/100 -> 68068 | R327: =HLOOKUP($A$1,Data!$C$1:$AI$379,'S1'!$X327,FALSE)*R320/100 -> 71271.2 | S327: =HLOOKUP($A$1,Data!$C$1:$AI$379,'S1'!$X327,FALSE)*S320/100 -> 70241.6 | T327: =HLOOKUP($A$1,Data!$C$1:$AI$379,'S1'!$X327,FALSE)*T320/100 -> 65322.4 | U327: =HLOOKUP($A$1,Data!$C$1:$AI$379,'S1'!$X327,FALSE)*U320/100 -> 58458.4 | V327: =HLOOKUP($A$1,Data!$C$1:$AI$379,'S1'!$X327,FALSE)*V320/100 -> 63034.4 | W327: =HLOOKUP($A$1,Data!$C$1:$AI$379,'S1'!$X327,FALSE)*W320/100 -> 63034.4 | X327: 217
A328: Scenario PRS | C328: =HLOOKUP($A$1,Data!$C$1:$AI$379,'S1'!$X328,FALSE)*C320/100 -> 107759.6 | D328: =HLOOKUP($A$1,Data!$C$1:$AI$379,'S1'!$X328,FALSE)*D320/100 -> 96158.4 | E328: =HLOOKUP($A$1,Data!$C$1:$AI$379,'S1'!$X328,FALSE)*E320/100 -> 93886 | F328: =HLOOKUP($A$1,Data!$C$1:$AI$379,'S1'!$X328,FALSE)*F320/100 -> 92570.4 | G328: =HLOOKUP($A$1,Data!$C$1:$AI$379,'S1'!$X328,FALSE)*G320/100 -> 75706.8 | H328: =HLOOKUP($A$1,Data!$C$1:$AI$379,'S1'!$X328,FALSE)*H320/100 -> 56810 | I328: =HLOOKUP($A$1,Data!$C$1:$AI$379,'S1'!$X328,FALSE)*I320/100 -> 59082.4 | J328: =HLOOKUP($A$1,Data!$C$1:$AI$379,'S1'!$X328,FALSE)*J320/100 -> 60398 | K328: =HLOOKUP($A$1,Data!$C$1:$AI$379,'S1'!$X328,FALSE)*K320/100 -> 66856.4 | L328: =HLOOKUP($A$1,Data!$C$1:$AI$379,'S1'!$X328,FALSE)*L320/100 -> 66258.4 | M328: =HLOOKUP($A$1,Data!$C$1:$AI$379,'S1'!$X328,FALSE)*M320/100 -> 69009.2 | N328: =HLOOKUP($A$1,Data!$C$1:$AI$379,'S1'!$X328,FALSE)*N320/100 -> 68530.8 | O328: =HLOOKUP($A$1,Data!$C$1:$AI$379,'S1'!$X328,FALSE)*O320/100 -> 74510.8 | P328: =HLOOKUP($A$1,Data!$C$1:$AI$379,'S1'!$X328,FALSE)*P320/100 -> 72118.8 | Q328: =HLOOKUP($A$1,Data!$C$1:$AI$379,'S1'!$X328,FALSE)*Q320/100 -> 71162 | R328: =HLOOKUP($A$1,Data!$C$1:$AI$379,'S1'!$X328,FALSE)*R320/100 -> 74510.8 | S328: =HLOOKUP($A$1,Data!$C$1:$AI$379,'S1'!$X328,FALSE)*S320/100 -> 73434.4 | T328: =HLOOKUP($A$1,Data!$C$1:$AI$379,'S1'!$X328,FALSE)*T320/100 -> 68291.6 | U328: =HLOOKUP($A$1,Data!$C$1:$AI$379,'S1'!$X328,FALSE)*U320/100 -> 61115.6 | V328: =HLOOKUP($A$1,Data!$C$1:$AI$379,'S1'!$X328,FALSE)*V320/100 -> 65899.6 | W328: =HLOOKUP($A$1,Data!$C$1:$AI$379,'S1'!$X328,FALSE)*W320/100 -> 65899.6 | X328: 218
A330: Pri ces | B330: =B300 -> 2017 | C330: =B330+1 -> 2018 | D330: 2019 | E330: 2020 | F330: 2021 | G330: 2022 | H330: 2023 | I330: 2024 | J330: 2025 | K330: 2026 | L330: 2027 | M330: 2028 | N330: 2029 | O330: 2030 | P330: 2031 | Q330: 2032 | R330: 2033 | S330: 2034 | T330: 2035 | U330: 2036 | V330: 2037 | W330: 2038
A331: Principal Scenario | B331: =HLOOKUP(B330,PriceScenarios!$C$2:$AE$15,3) -> 0.04 | C331: =HLOOKUP(C330,PriceScenarios!$C$2:$AE$15,3) -> 0.04 | D331: =HLOOKUP(D330,PriceScenarios!$C$2:$AE$15,3) -> 0.04 | E331: =HLOOKUP(E330,PriceScenarios!$C$2:$AE$15,3) -> 0.04 | F331: =HLOOKUP(F330,PriceScenarios!$C$2:$AE$15,3) -> 0.04 | G331: =HLOOKUP(G330,PriceScenarios!$C$2:$AE$15,3) -> 0.04 | H331: =HLOOKUP(H330,PriceScenarios!$C$2:$AE$15,3) -> 0.04 | I331: =HLOOKUP(I330,PriceScenarios!$C$2:$AE$15,3) -> 0.04 | J331: =HLOOKUP(J330,PriceScenarios!$C$2:$AE$15,3) -> 0.04 | K331: =HLOOKUP(K330,PriceScenarios!$C$2:$AE$15,3) -> 0.04 | L331: =HLOOKUP(L330,PriceScenarios!$C$2:$AE$15,3) -> 0.04 | M331: =HLOOKUP(M330,PriceScenarios!$C$2:$AE$15,3) -> 0.04 | N331: =HLOOKUP(N330,PriceScenarios!$C$2:$AE$15,3) -> 0.04 | O331: =HLOOKUP(O330,PriceScenarios!$C$2:$AE$15,3) -> 0.04 | P331: =HLOOKUP(P330,PriceScenarios!$C$2:$AE$15,3) -> 0.04 | Q331: =HLOOKUP(Q330,PriceScenarios!$C$2:$AE$15,3) -> 0.04 | R331: =HLOOKUP(R330,PriceScenarios!$C$2:$AE$15,3) -> 0.04 | S331: =HLOOKUP(S330,PriceScenarios!$C$2:$AE$15,3) -> 0.04 | T331: =HLOOKUP(T330,PriceScenarios!$C$2:$AE$15,3) -> 0.04 | U331: =HLOOKUP(U330,PriceScenarios!$C$2:$AE$15,3) -> 0.04 | V331: =HLOOKUP(V330,PriceScenarios!$C$2:$AE$15,3) -> 0.04 | W331: =HLOOKUP(W330,PriceScenarios!$C$2:$AE$15,3) -> 0.04
A332: Principal Mean | B332: =HLOOKUP($A$1,Data!$C$1:$AI$207,'S1'!$X332,FALSE) -> 225015.4035 | C332: =B332*(1+B331) -> 234016.0197 | D332: =C332*(1+C331) -> 243376.6605 | E332: 253111.7269 | F332: 263236.1959 | G332: 273765.6438 | H332: 284716.2695 | I332: 296104.9203 | J332: 307949.1171 | K332: 320267.0818 | L332: 333077.7651 | M332: 346400.8757 | N332: 360256.9107 | O332: 374667.1872 | P332: 389653.8746 | Q332: 405240.0296 | R332: 421449.6308 | S332: 438307.616 | T332: 455839.9207 | U332: 474073.5175 | V332: 493036.4582 | W332: 512757.9165 | X332: 206
A333: Principal Median | B333: =HLOOKUP($A$1,Data!$C$1:$AI$207,'S1'!$X333,FALSE) -> 195000 | C333: =B333*(1+B331) -> 202800 | D333: =C333*(1+C331) -> 210912 | E333: 219348.48 | F333: 228122.4192 | G333: 237247.316 | H333: 246737.2086 | I333: 256606.697 | J333: 266870.9648 | K333: 277545.8034 | L333: 288647.6356 | M333: 300193.541 | N333: 312201.2826 | O333: 324689.3339 | P333: 337676.9073 | Q333: 351183.9836 | R333: 365231.3429 | S333: 379840.5966 | T333: 395034.2205 | U333: 410835.5893 | V333: 427269.0129 | W333: 444359.7734 | X333: 207
A334: U | B334: =IF(B333<>0,LN(B333),0) -> 12.18075484 | C334: 12.21997555 | D334: 12.25919626 | E334: 12.29841698 | F334: 12.33763769 | G334: 12.3768584 | H334: 12.41607912 | I334: 12.45529983 | J334: 12.49452054 | K334: 12.53374126 | L334: 12.57296197 | M334: 12.61218268 | N334: 12.6514034 | O334: 12.69062411 | P334: 12.72984482 | Q334: 12.76906553 | R334: 12.80828625 | S334: 12.84750696 | T334: 12.88672767 | U334: 12.92594839 | V334: 12.9651691 | W334: 13.00438981
A335: Sigma2 | B335: =IF(B332<>0,2*LN(B332)-2*B334,0) -> 0.2863386028 | C335: 0.2863386028 | D335: 0.2863386028 | E335: 0.2863386028 | F335: 0.2863386028 | G335: 0.2863386028 | H335: 0.2863386028 | I335: 0.2863386028 | J335: 0.2863386028 | K335: 0.2863386028 | L335: 0.2863386028 | M335: 0.2863386028 | N335: 0.2863386028 | O335: 0.2863386028 | P335: 0.2863386028 | Q335: 0.2863386028 | R335: 0.2863386028 | S335: 0.2863386028 | T335: 0.2863386028 | U335: 0.2863386028 | V335: 0.2863386028 | W335: 0.2863386028
A338: =CONCATENATE("Principal ",$C$61*100,"%ile") -> Principal 25%ile | B338: =EXP(SQRT(B335)*NORMSINV(CoreAssumptions!$F$2)+B334) -> 135921.2859 | C338: =EXP(SQRT(C335)*NORMSINV(CoreAssumptions!$F$2)+C334) -> 141358.1374 | D338: =EXP(SQRT(D335)*NORMSINV(CoreAssumptions!$F$2)+D334) -> 147012.4628 | E338: =EXP(SQRT(E335)*NORMSINV(CoreAssumptions!$F$2)+E334) -> 152892.9614 | F338: =EXP(SQRT(F335)*NORMSINV(CoreAssumptions!$F$2)+F334) -> 159008.6798 | G338: =EXP(SQRT(G335)*NORMSINV(CoreAssumptions!$F$2)+G334) -> 165369.027 | H338: =EXP(SQRT(H335)*NORMSINV(CoreAssumptions!$F$2)+H334) -> 171983.7881 | I338: =EXP(SQRT(I335)*NORMSINV(CoreAssumptions!$F$2)+I334) -> 178863.1396 | J338: =EXP(SQRT(J335)*NORMSINV(CoreAssumptions!$F$2)+J334) -> 186017.6652 | K338: =EXP(SQRT(K335)*NORMSINV(CoreAssumptions!$F$2)+K334) -> 193458.3718 | L338: =EXP(SQRT(L335)*NORMSINV(CoreAssumptions!$F$2)+L334) -> 201196.7067 | M338: =EXP(SQRT(M335)*NORMSINV(CoreAssumptions!$F$2)+M334) -> 209244.5749 | N338: =EXP(SQRT(N335)*NORMSINV(CoreAssumptions!$F$2)+N334) -> 217614.3579 | O338: =EXP(SQRT(O335)*NORMSINV(CoreAssumptions!$F$2)+O334) -> 226318.9323 | P338: =EXP(SQRT(P335)*NORMSINV(CoreAssumptions!$F$2)+P334) -> 235371.6895 | Q338: =EXP(SQRT(Q335)*NORMSINV(CoreAssumptions!$F$2)+Q334) -> 244786.5571 | R338: =EXP(SQRT(R335)*NORMSINV(CoreAssumptions!$F$2)+R334) -> 254578.0194 | S338: =EXP(SQRT(S335)*NORMSINV(CoreAssumptions!$F$2)+S334) -> 264761.1402 | T338: =EXP(SQRT(T335)*NORMSINV(CoreAssumptions!$F$2)+T334) -> 275351.5858 | U338: =EXP(SQRT(U335)*NORMSINV(CoreAssumptions!$F$2)+U334) -> 286365.6492 | V338: =EXP(SQRT(V335)*NORMSINV(CoreAssumptions!$F$2)+V334) -> 297820.2752 | W338: =EXP(SQRT(W335)*NORMSINV(CoreAssumptions!$F$2)+W334) -> 309733.0862
A339: Income from Afford | B339: =IF(B338/CoreAssumptions!$F$3<=B419,B419,B338/CoreAssumptions!$F$3) -> 37755.91275 | C339: =IF(C338/CoreAssumptions!$F$3<=C419,C419,C338/CoreAssumptions!$F$3) -> 39266.14926 | D339: =IF(D338/CoreAssumptions!$F$3<=D419,D419,D338/CoreAssumptions!$F$3) -> 40836.79523 | E339: =IF(E338/CoreAssumptions!$F$3<=E419,E419,E338/CoreAssumptions!$F$3) -> 42470.26704 | F339: =IF(F338/CoreAssumptions!$F$3<=F419,F419,F338/CoreAssumptions!$F$3) -> 44169.07773 | G339: =IF(G338/CoreAssumptions!$F$3<=G419,G419,G338/CoreAssumptions!$F$3) -> 45935.84084 | H339: =IF(H338/CoreAssumptions!$F$3<=H419,H419,H338/CoreAssumptions!$F$3) -> 47773.27447 | I339: =IF(I338/CoreAssumptions!$F$3<=I419,I419,I338/CoreAssumptions!$F$3) -> 49684.20545 | J339: =IF(J338/CoreAssumptions!$F$3<=J419,J419,J338/CoreAssumptions!$F$3) -> 51671.57367 | K339: =IF(K338/CoreAssumptions!$F$3<=K419,K419,K338/CoreAssumptions!$F$3) -> 53738.43661 | L339: =IF(L338/CoreAssumptions!$F$3<=L419,L419,L338/CoreAssumptions!$F$3) -> 55887.97408 | M339: =IF(M338/CoreAssumptions!$F$3<=M419,M419,M338/CoreAssumptions!$F$3) -> 58123.49304 | N339: =IF(N338/CoreAssumptions!$F$3<=N419,N419,N338/CoreAssumptions!$F$3) -> 60448.43276 | O339: =IF(O338/CoreAssumptions!$F$3<=O419,O419,O338/CoreAssumptions!$F$3) -> 62866.37007 | P339: =IF(P338/CoreAssumptions!$F$3<=P419,P419,P338/CoreAssumptions!$F$3) -> 65381.02487 | Q339: =IF(Q338/CoreAssumptions!$F$3<=Q419,Q419,Q338/CoreAssumptions!$F$3) -> 67996.26587 | R339: =IF(R338/CoreAssumptions!$F$3<=R419,R419,R338/CoreAssumptions!$F$3) -> 70716.1165 | S339: =IF(S338/CoreAssumptions!$F$3<=S419,S419,S338/CoreAssumptions!$F$3) -> 73544.76116 | T339: =IF(T338/CoreAssumptions!$F$3<=T419,T419,T338/CoreAssumptions!$F$3) -> 76486.55161 | U339: =IF(U338/CoreAssumptions!$F$3<=U419,U419,U338/CoreAssumptions!$F$3) -> 79546.01368 | V339: =IF(V338/CoreAssumptions!$F$3<=V419,V419,V338/CoreAssumptions!$F$3) -> 82727.85422 | W339: =IF(W338/CoreAssumptions!$F$3<=W419,W419,W338/CoreAssumptions!$F$3) -> 86036.96839
B340: =IF(B339>B419,VLOOKUP(B339,B$419:$AA$499,B$418+3),10) -> 60 | C340: =IF(C339>C419,VLOOKUP(C339,C$419:$AA$499,C$418+3),10) -> 62 | D340: =IF(D339>D419,VLOOKUP(D339,D$419:$AA$499,D$418+3),10) -> 63 | E340: =IF(E339>E419,VLOOKUP(E339,E$419:$AA$499,E$418+3),10) -> 63 | F340: =IF(F339>F419,VLOOKUP(F339,F$419:$AA$499,F$418+3),10) -> 65 | G340: =IF(G339>G419,VLOOKUP(G339,G$419:$AA$499,G$418+3),10) -> 66 | H340: =IF(H339>H419,VLOOKUP(H339,H$419:$AA$499,H$418+3),10) -> 67 | I340: =IF(I339>I419,VLOOKUP(I339,I$419:$AA$499,I$418+3),10) -> 68 | J340: =IF(J339>J419,VLOOKUP(J339,J$419:$AA$499,J$418+3),10) -> 69 | K340: =IF(K339>K419,VLOOKUP(K339,K$419:$AA$499,K$418+3),10) -> 70 | L340: =IF(L339>L419,VLOOKUP(L339,L$419:$AA$499,L$418+3),10) -> 71 | M340: =IF(M339>M419,VLOOKUP(M339,M$419:$AA$499,M$418+3),10) -> 72 | N340: =IF(N339>N419,VLOOKUP(N339,N$419:$AA$499,N$418+3),10) -> 73 | O340: =IF(O339>O419,VLOOKUP(O339,O$419:$AA$499,O$418+3),10) -> 74 | P340: =IF(P339>P419,VLOOKUP(P339,P$419:$AA$499,P$418+3),10) -> 75 | Q340: =IF(Q339>Q419,VLOOKUP(Q339,Q$419:$AA$499,Q$418+3),10) -> 76 | R340: =IF(R339>R419,VLOOKUP(R339,R$419:$AA$499,R$418+3),10) -> 77 | S340: =IF(S339>S419,VLOOKUP(S339,S$419:$AA$499,S$418+3),10) -> 78 | T340: =IF(T339>T419,VLOOKUP(T339,T$419:$AA$499,T$418+3),10) -> 78 | U340: =IF(U339>U419,VLOOKUP(U339,U$419:$AA$499,U$418+3),10) -> 79 | V340: =IF(V339>V419,VLOOKUP(V339,V$419:$AA$499,V$418+3),10) -> 80 | W340: =IF(W339>W419,VLOOKUP(W339,W$419:$AA$499,W$418+3),10) -> 81
A341: Principal Market | C341: =C317*(100-C340)/100 -> 282.34 | D341: =D317*(100-D340)/100 -> 239.02 | E341: 231.99 | F341: 215.6 | G341: 161.5 | H341: 156.75 | I341: 158.08 | J341: 156.55 | K341: 167.7 | L341: 160.66 | M341: 161.56 | N341: 154.71 | O341: 161.98 | P341: 150.75 | Q341: 142.8 | R341: 143.29 | S341: 135.08 | T341: 125.62 | U341: 107.31 | V341: 110.2 | W341: 104.69
A342: Princpal Subsidy | C342: =C316+(C317*(C340)/100) -> 618.66 | D342: =D316+(D317*(D340)/100) -> 564.98 | E342: 553.01 | F342: 558.4 | G342: 471.5 | H342: 318.25 | I342: 335.92 | J342: 348.45 | K342: 391.3 | L342: 393.34 | M342: 415.44 | N342: 418.29 | O342: 461.02 | P342: 452.25 | Q342: 452.2 | R342: 479.71 | S342: 478.92 | T342: 445.38 | U342: 403.69 | V342: 440.8 | W342: 446.31
A347: Scenario | B347: =VLOOKUP($X347,PriceScenarios!$B$3:$AD$21,B330-2009,FALSE) -> 0.04 | C347: =VLOOKUP($X347,PriceScenarios!$B$3:$AD$21,C330-2009,FALSE) -> 0.04 | D347: =VLOOKUP($X347,PriceScenarios!$B$3:$AD$21,D330-2009,FALSE) -> 0.04 | E347: =VLOOKUP($X347,PriceScenarios!$B$3:$AD$21,E330-2009,FALSE) -> 0.04 | F347: =VLOOKUP($X347,PriceScenarios!$B$3:$AD$21,F330-2009,FALSE) -> 0.04 | G347: =VLOOKUP($X347,PriceScenarios!$B$3:$AD$21,G330-2009,FALSE) -> 0.04 | H347: =VLOOKUP($X347,PriceScenarios!$B$3:$AD$21,H330-2009,FALSE) -> 0.04 | I347: =VLOOKUP($X347,PriceScenarios!$B$3:$AD$21,I330-2009,FALSE) -> 0.04 | J347: =VLOOKUP($X347,PriceScenarios!$B$3:$AD$21,J330-2009,FALSE) -> 0.04 | K347: =VLOOKUP($X347,PriceScenarios!$B$3:$AD$21,K330-2009,FALSE) -> 0.04 | L347: =VLOOKUP($X347,PriceScenarios!$B$3:$AD$21,L330-2009,FALSE) -> 0.04 | M347: =VLOOKUP($X347,PriceScenarios!$B$3:$AD$21,M330-2009,FALSE) -> 0.04 | N347: =VLOOKUP($X347,PriceScenarios!$B$3:$AD$21,N330-2009,FALSE) -> 0.04 | O347: =VLOOKUP($X347,PriceScenarios!$B$3:$AD$21,O330-2009,FALSE) -> 0.04 | P347: =VLOOKUP($X347,PriceScenarios!$B$3:$AD$21,P330-2009,FALSE) -> 0.04 | Q347: =VLOOKUP($X347,PriceScenarios!$B$3:$AD$21,Q330-2009,FALSE) -> 0.04 | R347: =VLOOKUP($X347,PriceScenarios!$B$3:$AD$21,R330-2009,FALSE) -> 0.04 | S347: =VLOOKUP($X347,PriceScenarios!$B$3:$AD$21,S330-2009,FALSE) -> 0.04 | T347: =VLOOKUP($X347,PriceScenarios!$B$3:$AD$21,T330-2009,FALSE) -> 0.04 | U347: =VLOOKUP($X347,PriceScenarios!$B$3:$AD$21,U330-2009,FALSE) -> 0.04 | V347: =VLOOKUP($X347,PriceScenarios!$B$3:$AD$21,V330-2009,FALSE) -> 0.04 | W347: =VLOOKUP($X347,PriceScenarios!$B$3:$AD$21,W330-2009,FALSE) -> 0.04 | X347: =CHOOSE(X60,PriceScenarios!$B$3,PriceScenarios!$B$4,PriceScenarios!$B$5,PriceScenarios!$B$6,PriceScenarios!$B$7,PriceScenarios!$B$8,PriceScenarios!$B$9,PriceScenarios!$B$10,PriceScenarios!$B$11,PriceScenarios!$B$12,PriceScenarios!$B$13,PriceScenarios!$B$14,PriceScenarios!$B$15,PriceScenarios!$B$16,PriceScenarios!$B$17,PriceScenarios!$B$18,PriceScenarios!$B$19,PriceScenarios!$B$20,PriceScenarios!$B$21) -> Modest Growth
A348: Scenario Mean | B348: =HLOOKUP($A$1,Data!$C$1:$AI$207,'S1'!$X348,FALSE) -> 225015.4035 | C348: =B348*(1+B347) -> 234016.0197 | D348: =C348*(1+C347) -> 243376.6605 | E348: 253111.7269 | F348: 263236.1959 | G348: 273765.6438 | H348: 284716.2695 | I348: 296104.9203 | J348: 307949.1171 | K348: 320267.0818 | L348: 333077.7651 | M348: 346400.8757 | N348: 360256.9107 | O348: 374667.1872 | P348: 389653.8746 | Q348: 405240.0296 | R348: 421449.6308 | S348: 438307.616 | T348: 455839.9207 | U348: 474073.5175 | V348: =U348*(1+U347) -> 493036.4582 | W348: =V348*(1+V347) -> 512757.9165 | X348: 206
A349: Scenario Median | B349: =HLOOKUP($A$1,Data!$C$1:$AI$207,'S1'!$X349,FALSE) -> 195000 | C349: =B349*(1+B347) -> 202800 | D349: =C349*(1+C347) -> 210912 | E349: 219348.48 | F349: 228122.4192 | G349: 237247.316 | H349: 246737.2086 | I349: 256606.697 | J349: 266870.9648 | K349: 277545.8034 | L349: 288647.6356 | M349: 300193.541 | N349: 312201.2826 | O349: 324689.3339 | P349: 337676.9073 | Q349: 351183.9836 | R349: 365231.3429 | S349: 379840.5966 | T349: 395034.2205 | U349: 410835.5893 | V349: =U349*(1+U347) -> 427269.0129 | W349: =V349*(1+V347) -> 444359.7734 | X349: 207
A350: U | B350: =IF(B349<>0,LN(B349),0) -> 12.18075484 | C350: 12.21997555 | D350: 12.25919626 | E350: 12.29841698 | F350: 12.33763769 | G350: 12.3768584 | H350: 12.41607912 | I350: 12.45529983 | J350: 12.49452054 | K350: 12.53374126 | L350: 12.57296197 | M350: 12.61218268 | N350: 12.6514034 | O350: 12.69062411 | P350: 12.72984482 | Q350: 12.76906553 | R350: 12.80828625 | S350: 12.84750696 | T350: 12.88672767 | U350: 12.92594839 | V350: =IF(V349<>0,LN(V349),0) -> 12.9651691 | W350: =IF(W349<>0,LN(W349),0) -> 13.00438981
A351: Sigma2 | B351: =IF(B348<>0,2*LN(B348)-2*B350,0) -> 0.2863386028 | C351: 0.2863386028 | D351: 0.2863386028 | E351: 0.2863386028 | F351: 0.2863386028 | G351: 0.2863386028 | H351: 0.2863386028 | I351: 0.2863386028 | J351: 0.2863386028 | K351: 0.2863386028 | L351: 0.2863386028 | M351: 0.2863386028 | N351: 0.2863386028 | O351: 0.2863386028 | P351: 0.2863386028 | Q351: 0.2863386028 | R351: 0.2863386028 | S351: 0.2863386028 | T351: 0.2863386028 | U351: 0.2863386028 | V351: =IF(V348<>0,2*LN(V348)-2*V350,0) -> 0.2863386028 | W351: =IF(W348<>0,2*LN(W348)-2*W350,0) -> 0.2863386028
A353: =CONCATENATE("Scenario ",$C$61*100,"%ile") -> Scenario 25%ile | B353: =EXP(SQRT(B351)*NORMSINV($C$61)+B350) -> 135921.2859 | C353: 141358.1374 | D353: 147012.4628 | E353: 152892.9614 | F353: 159008.6798 | G353: 165369.027 | H353: 171983.7881 | I353: 178863.1396 | J353: 186017.6652 | K353: 193458.3718 | L353: 201196.7067 | M353: 209244.5749 | N353: 217614.3579 | O353: 226318.9323 | P353: 235371.6895 | Q353: 244786.5571 | R353: 254578.0194 | S353: 264761.1402 | T353: 275351.5858 | U353: 286365.6492 | V353: =EXP(SQRT(V351)*NORMSINV($C$61)+V350) -> 297820.2752 | W353: =EXP(SQRT(W351)*NORMSINV($C$61)+W350) -> 309733.0862
A354: Income from Afford | B354: =IF(B353/$C$64<=B510,B510,B353/$C$64) -> 37755.91275 | C354: =IF(C353/$C$64<=C510,C510,C353/$C$64) -> 39266.14926 | D354: 40836.79523 | E354: 42470.26704 | F354: 44169.07773 | G354: 45935.84084 | H354: 47773.27447 | I354: 49684.20545 | J354: 51671.57367 | K354: 53738.43661 | L354: 55887.97408 | M354: 58123.49304 | N354: 60448.43276 | O354: 62866.37007 | P354: 65381.02487 | Q354: 67996.26587 | R354: 70716.1165 | S354: 73544.76116 | T354: 76486.55161 | U354: 79546.01368 | V354: 82727.85422 | W354: 86036.96839
B355: =IF(B354>B510,VLOOKUP(B354,B510:$AA$590,B509+3),10) -> 60 | C355: =IF(C354>C510,VLOOKUP(C354,C510:$AA$590,C509+3),10) -> 62 | D355: =IF(D354>D510,VLOOKUP(D354,D510:$AA$590,D509+3),10) -> 63 | E355: =IF(E354>E510,VLOOKUP(E354,E510:$AA$590,E509+3),10) -> 63 | F355: =IF(F354>F510,VLOOKUP(F354,F510:$AA$590,F509+3),10) -> 65 | G355: =IF(G354>G510,VLOOKUP(G354,G510:$AA$590,G509+3),10) -> 66 | H355: =IF(H354>H510,VLOOKUP(H354,H510:$AA$590,H509+3),10) -> 67 | I355: =IF(I354>I510,VLOOKUP(I354,I510:$AA$590,I509+3),10) -> 68 | J355: =IF(J354>J510,VLOOKUP(J354,J510:$AA$590,J509+3),10) -> 69 | K355: =IF(K354>K510,VLOOKUP(K354,K510:$AA$590,K509+3),10) -> 70 | L355: =IF(L354>L510,VLOOKUP(L354,L510:$AA$590,L509+3),10) -> 71 | M355: =IF(M354>M510,VLOOKUP(M354,M510:$AA$590,M509+3),10) -> 72 | N355: =IF(N354>N510,VLOOKUP(N354,N510:$AA$590,N509+3),10) -> 73 | O355: =IF(O354>O510,VLOOKUP(O354,O510:$AA$590,O509+3),10) -> 74 | P355: =IF(P354>P510,VLOOKUP(P354,P510:$AA$590,P509+3),10) -> 75 | Q355: =IF(Q354>Q510,VLOOKUP(Q354,Q510:$AA$590,Q509+3),10) -> 76 | R355: =IF(R354>R510,VLOOKUP(R354,R510:$AA$590,R509+3),10) -> 77 | S355: =IF(S354>S510,VLOOKUP(S354,S510:$AA$590,S509+3),10) -> 78 | T355: =IF(T354>T510,VLOOKUP(T354,T510:$AA$590,T509+3),10) -> 78 | U355: =IF(U354>U510,VLOOKUP(U354,U510:$AA$590,U509+3),10) -> 79 | V355: =IF(V354>V510,VLOOKUP(V354,V510:$AA$590,V509+3),10) -> 80 | W355: =IF(W354>W510,VLOOKUP(W354,W510:$AA$590,W509+3),10) -> 81
A356: Scenario Market | C356: =IF(OR($B$312=TRUE,$B$309=FALSE),C318*(100-C355)/100,C320*(100-C355)/100) -> 282.34 | D356: =IF(OR($B$312=TRUE,$B$309=FALSE),D318*(100-D355)/100,D320*(100-D355)/100) -> 239.02 | E356: 231.99 | F356: 215.6 | G356: 161.5 | H356: 156.75 | I356: 158.08 | J356: 156.55 | K356: 167.7 | L356: 160.66 | M356: 161.56 | N356: 154.71 | O356: 161.98 | P356: 150.75 | Q356: 142.8 | R356: 143.29 | S356: 135.08 | T356: 125.62 | U356: 107.31 | V356: 110.2 | W356: 104.69
A357: Scenario Subsidy | C357: =IF(OR($B$309=FALSE,$B$312=TRUE),C312+(C318*(C355)/100),C320*(C355)/100) -> 618.66 | D357: =IF(OR($B$309=FALSE,$B$312=TRUE),D312+(D318*(D355)/100),D320*(D355)/100) -> 564.98 | E357: 553.01 | F357: 558.4 | G357: 471.5 | H357: 318.25 | I357: 335.92 | J357: 348.45 | K357: 391.3 | L357: 393.34 | M357: 415.44 | N357: 418.29 | O357: 461.02 | P357: 452.25 | Q357: 452.2 | R357: 479.71 | S357: 478.92 | T357: 445.38 | U357: 403.69 | V357: 440.8 | W357: 446.31
A360: Intermediate
A362: Rents (Principal)
A363: Rises Principal | B363: =B331 -> 0.04 | C363: =C331 -> 0.04 | D363: 0.04 | E363: 0.04 | F363: 0.04 | G363: 0.04 | H363: 0.04 | I363: 0.04 | J363: 0.04 | K363: 0.04 | L363: 0.04 | M363: 0.04 | N363: 0.04 | O363: 0.04 | P363: 0.04 | Q363: 0.04 | R363: 0.04 | S363: 0.04 | T363: 0.04 | U363: 0.04 | V363: 0.04 | W363: 0.04
A365: Rent Median (Principal) | B365: =HLOOKUP($A$1,Data!$C$1:$AI$211,'S1'!$X365,FALSE) -> 173.0769231 | C365: =B365*(1+B363) -> 180 | D365: =C365*(1+C363) -> 187.2 | E365: 194.688 | F365: 202.47552 | G365: 210.5745408 | H365: 218.9975224 | I365: 227.7574233 | J365: 236.8677203 | K365: 246.3424291 | L365: 256.1961262 | M365: 266.4439713 | N365: 277.1017301 | O365: 288.1857993 | P365: 299.7132313 | Q365: 311.7017606 | R365: 324.169831 | S365: 337.1366242 | T365: 350.6220892 | U365: 364.6469728 | V365: 379.2328517 | W365: 394.4021657 | X365: 210
A366: Rent 30th%ile (Principal) | B366: =HLOOKUP($A$1,Data!$C$1:$AI$211,'S1'!$X366,FALSE) -> 150 | C366: =B366*(1+B363) -> 156 | D366: =C366*(1+C363) -> 162.24 | E366: 168.7296 | F366: 175.478784 | G366: 182.4979354 | H366: 189.7978528 | I366: 197.3897669 | J366: 205.2853576 | K366: 213.4967719 | L366: 222.0366427 | M366: 230.9181084 | N366: 240.1548328 | O366: 249.7610261 | P366: 259.7514671 | Q366: 270.1415258 | R366: 280.9471869 | S366: 292.1850743 | T366: 303.8724773 | U366: 316.0273764 | V366: 328.6684715 | W366: 341.8152103 | X366: 211
A367: Annual Rent Medain | B367: =B365*52 -> 9000 | C367: =C365*52 -> 9360 | D367: 9734.4 | E367: 10123.776 | F367: 10528.72704 | G367: 10949.87612 | H367: 11387.87117 | I367: 11843.38601 | J367: 12317.12145 | K367: 12809.80631 | L367: 13322.19856 | M367: 13855.08651 | N367: 14409.28997 | O367: 14985.66157 | P367: 15585.08803 | Q367: 16208.49155 | R367: 16856.83121 | S367: 17531.10446 | T367: 18232.34864 | U367: 18961.64258 | V367: 19720.10829 | W367: 20508.91262
A368: Annual Rent 30th | B368: =B366*52 -> 7800 | C368: 8112 | D368: 8436.48 | E368: 8773.9392 | F368: 9124.896768 | G368: 9489.892639 | H368: 9869.488344 | I368: 10264.26788 | J368: 10674.83859 | K368: 11101.83214 | L368: 11545.90542 | M368: 12007.74164 | N368: 12488.0513 | O368: 12987.57336 | P368: 13507.07629 | Q368: 14047.35934 | R368: 14609.25372 | S368: 15193.62387 | T368: 15801.36882 | U368: 16433.42357 | V368: 17090.76052 | W368: 17774.39094
A370: Income above | B370: =B367/CoreAssumptions!$F$6 -> 36000 | C370: =C367/CoreAssumptions!$F$6 -> 37440 | D370: =D367/CoreAssumptions!$F$6 -> 38937.6 | E370: =E367/CoreAssumptions!$F$6 -> 40495.104 | F370: =F367/CoreAssumptions!$F$6 -> 42114.90816 | G370: =G367/CoreAssumptions!$F$6 -> 43799.50449 | H370: =H367/CoreAssumptions!$F$6 -> 45551.48467 | I370: =I367/CoreAssumptions!$F$6 -> 47373.54405 | J370: =J367/CoreAssumptions!$F$6 -> 49268.48581 | K370: =K367/CoreAssumptions!$F$6 -> 51239.22525 | L370: =L367/CoreAssumptions!$F$6 -> 53288.79426 | M370: =M367/CoreAssumptions!$F$6 -> 55420.34603 | N370: =N367/CoreAssumptions!$F$6 -> 57637.15987 | O370: =O367/CoreAssumptions!$F$6 -> 59942.64626 | P370: =P367/CoreAssumptions!$F$6 -> 62340.35211 | Q370: =Q367/CoreAssumptions!$F$6 -> 64833.9662 | R370: =R367/CoreAssumptions!$F$6 -> 67427.32485 | S370: =S367/CoreAssumptions!$F$6 -> 70124.41784 | T370: =T367/CoreAssumptions!$F$6 -> 72929.39455 | U370: =U367/CoreAssumptions!$F$6 -> 75846.57034 | V370: =V367/CoreAssumptions!$F$6 -> 78880.43315 | W370: =W367/CoreAssumptions!$F$6 -> 82035.65048
A371: Income below | B371: =B368/CoreAssumptions!$F$5 -> 22285.71429 | C371: =C368/CoreAssumptions!$F$5 -> 23177.14286 | D371: =D368/CoreAssumptions!$F$5 -> 24104.22857 | E371: =E368/CoreAssumptions!$F$5 -> 25068.39771 | F371: =F368/CoreAssumptions!$F$5 -> 26071.13362 | G371: =G368/CoreAssumptions!$F$5 -> 27113.97897 | H371: =H368/CoreAssumptions!$F$5 -> 28198.53813 | I371: =I368/CoreAssumptions!$F$5 -> 29326.47965 | J371: =J368/CoreAssumptions!$F$5 -> 30499.53884 | K371: =K368/CoreAssumptions!$F$5 -> 31719.52039 | L371: =L368/CoreAssumptions!$F$5 -> 32988.30121 | M371: =M368/CoreAssumptions!$F$5 -> 34307.83326 | N371: =N368/CoreAssumptions!$F$5 -> 35680.14659 | O371: =O368/CoreAssumptions!$F$5 -> 37107.35245 | P371: =P368/CoreAssumptions!$F$5 -> 38591.64655 | Q371: =Q368/CoreAssumptions!$F$5 -> 40135.31241 | R371: =R368/CoreAssumptions!$F$5 -> 41740.7249 | S371: =S368/CoreAssumptions!$F$5 -> 43410.3539 | T371: =T368/CoreAssumptions!$F$5 -> 45146.76806 | U371: =U368/CoreAssumptions!$F$5 -> 46952.63878 | V371: =V368/CoreAssumptions!$F$5 -> 48830.74433 | W371: =W368/CoreAssumptions!$F$5 -> 50783.9741
A372: Above percentile | B372: =VLOOKUP(B370,B$419:$AA$499,B$418+3) -> 58 | C372: =VLOOKUP(C370,C$419:$AA$499,C$418+3) -> 59 | D372: =VLOOKUP(D370,D$419:$AA$499,D$418+3) -> 60 | E372: =VLOOKUP(E370,E$419:$AA$499,E$418+3) -> 61 | F372: =VLOOKUP(F370,F$419:$AA$499,F$418+3) -> 62 | G372: =VLOOKUP(G370,G$419:$AA$499,G$418+3) -> 63 | H372: =VLOOKUP(H370,H$419:$AA$499,H$418+3) -> 64 | I372: =VLOOKUP(I370,I$419:$AA$499,I$418+3) -> 65 | J372: =VLOOKUP(J370,J$419:$AA$499,J$418+3) -> 66 | K372: =VLOOKUP(K370,K$419:$AA$499,K$418+3) -> 67 | L372: =VLOOKUP(L370,L$419:$AA$499,L$418+3) -> 69 | M372: =VLOOKUP(M370,M$419:$AA$499,M$418+3) -> 69 | N372: =VLOOKUP(N370,N$419:$AA$499,N$418+3) -> 70 | O372: =VLOOKUP(O370,O$419:$AA$499,O$418+3) -> 72 | P372: =VLOOKUP(P370,P$419:$AA$499,P$418+3) -> 72 | Q372: =VLOOKUP(Q370,Q$419:$AA$499,Q$418+3) -> 73 | R372: =VLOOKUP(R370,R$419:$AA$499,R$418+3) -> 74 | S372: =VLOOKUP(S370,S$419:$AA$499,S$418+3) -> 75 | T372: =VLOOKUP(T370,T$419:$AA$499,T$418+3) -> 76 | U372: =VLOOKUP(U370,U$419:$AA$499,U$418+3) -> 77 | V372: =VLOOKUP(V370,V$419:$AA$499,V$418+3) -> 78 | W372: =VLOOKUP(W370,W$419:$AA$499,W$418+3) -> 79
A373: Below percentile | B373: =IF(ISERROR(VLOOKUP(B371,B$419:$AA$499,B$418+3)),10,VLOOKUP(B371,B$419:$AA$499,B$418+3)) -> 33 | C373: =VLOOKUP(C371,C$419:$AA$499,C$418+3) -> 35 | D373: =VLOOKUP(D371,D$419:$AA$499,D$418+3) -> 36 | E373: =VLOOKUP(E371,E$419:$AA$499,E$418+3) -> 37 | F373: =VLOOKUP(F371,F$419:$AA$499,F$418+3) -> 38 | G373: =VLOOKUP(G371,G$419:$AA$499,G$418+3) -> 39 | H373: =VLOOKUP(H371,H$419:$AA$499,H$418+3) -> 40 | I373: =VLOOKUP(I371,I$419:$AA$499,I$418+3) -> 41 | J373: =VLOOKUP(J371,J$419:$AA$499,J$418+3) -> 42 | K373: =VLOOKUP(K371,K$419:$AA$499,K$418+3) -> 43 | L373: =VLOOKUP(L371,L$419:$AA$499,L$418+3) -> 44 | M373: =VLOOKUP(M371,M$419:$AA$499,M$418+3) -> 45 | N373: =VLOOKUP(N371,N$419:$AA$499,N$418+3) -> 45 | O373: =VLOOKUP(O371,O$419:$AA$499,O$418+3) -> 46 | P373: =VLOOKUP(P371,P$419:$AA$499,P$418+3) -> 47 | Q373: =VLOOKUP(Q371,Q$419:$AA$499,Q$418+3) -> 48 | R373: =VLOOKUP(R371,R$419:$AA$499,R$418+3) -> 49 | S373: =VLOOKUP(S371,S$419:$AA$499,S$418+3) -> 50 | T373: =VLOOKUP(T371,T$419:$AA$499,T$418+3) -> 51 | U373: =VLOOKUP(U371,U$419:$AA$499,U$418+3) -> 52 | V373: =VLOOKUP(V371,V$419:$AA$499,V$418+3) -> 53 | W373: =VLOOKUP(W371,W$419:$AA$499,W$418+3) -> 54
A377: Social Rent | C377: =C319-C378-C379-C380 -> 418.05 | D377: =D319-D378-D379-D380 -> 390.56 | E377: 389.99 | F377: 392.08 | G377: 343.25 | H377: 190 | I377: 202.54 | J377: 212.1 | K377: 240.37 | L377: 243.76 | M377: 259.65 | N377: 257.85 | O377: 286.58 | P377: 283.41 | Q377: 285.6 | R377: 305.27 | S377: 307 | T377: 291.21 | U377: 265.72 | V377: 292.03 | W377: 297.54
A378: BM Rent | C378: =(C372-C373)/100*C317 -> 178.32 | D378: =(D372-D373)/100*D317 -> 155.04 | E378: 150.48 | F378: 147.84 | G378: 114 | H378: 114 | I378: 118.56 | J378: 121.2 | K378: 134.16 | L378: 138.5 | M378: 138.48 | N378: 143.25 | O378: 161.98 | P378: 150.75 | Q378: 148.75 | R378: 155.75 | S378: 153.5 | T378: 142.75 | U378: 127.75 | V378: 137.75 | W378: 137.75
A379: PRS | C379: =(100-C372)/100*C317-C380 -> 135.226 | D379: =(100-D372)/100*D317-D380 -> 114.988 | E379: 105.336 | F379: 104.72 | G379: 78.85 | H379: 76.95 | I379: 78.052 | J379: 77.77 | K379: 83.85 | L379: 75.344 | M379: 81.934 | N379: 79.074 | O379: 77.252 | P379: 78.39 | Q379: 74.97 | R379: 76.006 | S379: 72.452 | T379: 61.668 | U379: 53.144 | V379: 55.1 | W379: 52.896
A380: Buyers | C380: =C341*CoreAssumptions!$F$8 -> 169.404 | D380: =D341*CoreAssumptions!$F$8 -> 143.412 | E380: =E341*CoreAssumptions!$F$8 -> 139.194 | F380: =F341*CoreAssumptions!$F$8 -> 129.36 | G380: =G341*CoreAssumptions!$F$8 -> 96.9 | H380: =H341*CoreAssumptions!$F$8 -> 94.05 | I380: =I341*CoreAssumptions!$F$8 -> 94.848 | J380: =J341*CoreAssumptions!$F$8 -> 93.93 | K380: =K341*CoreAssumptions!$F$8 -> 100.62 | L380: =L341*CoreAssumptions!$F$8 -> 96.396 | M380: =M341*CoreAssumptions!$F$8 -> 96.936 | N380: =N341*CoreAssumptions!$F$8 -> 92.826 | O380: =O341*CoreAssumptions!$F$8 -> 97.188 | P380: =P341*CoreAssumptions!$F$8 -> 90.45 | Q380: =Q341*CoreAssumptions!$F$8 -> 85.68 | R380: =R341*CoreAssumptions!$F$8 -> 85.974 | S380: =S341*CoreAssumptions!$F$8 -> 81.048 | T380: =T341*CoreAssumptions!$F$8 -> 75.372 | U380: =U341*CoreAssumptions!$F$8 -> 64.386 | V380: =V341*CoreAssumptions!$F$8 -> 66.12 | W380: =W341*CoreAssumptions!$F$8 -> 62.814
A382: Rents Scenario | B382: =B330 -> 2017 | C382: =B382+1 -> 2018 | D382: 2019 | E382: 2020 | F382: 2021 | G382: 2022 | H382: 2023 | I382: 2024 | J382: 2025 | K382: 2026 | L382: 2027 | M382: 2028 | N382: 2029 | O382: 2030 | P382: 2031 | Q382: 2032 | R382: 2033 | S382: 2034 | T382: 2035 | U382: 2036 | V382: 2037 | W382: 2038
A383: Rises Scenario | B383: =VLOOKUP($X383,PriceScenarios!$B$3:$AD$21,B382-2009,FALSE) -> 0.04 | C383: =VLOOKUP($X383,PriceScenarios!$B$3:$AD$21,C382-2009,FALSE) -> 0.04 | D383: =VLOOKUP($X383,PriceScenarios!$B$3:$AD$21,D382-2009,FALSE) -> 0.04 | E383: =VLOOKUP($X383,PriceScenarios!$B$3:$AD$21,E382-2009,FALSE) -> 0.04 | F383: =VLOOKUP($X383,PriceScenarios!$B$3:$AD$21,F382-2009,FALSE) -> 0.04 | G383: =VLOOKUP($X383,PriceScenarios!$B$3:$AD$21,G382-2009,FALSE) -> 0.04 | H383: =VLOOKUP($X383,PriceScenarios!$B$3:$AD$21,H382-2009,FALSE) -> 0.04 | I383: =VLOOKUP($X383,PriceScenarios!$B$3:$AD$21,I382-2009,FALSE) -> 0.04 | J383: =VLOOKUP($X383,PriceScenarios!$B$3:$AD$21,J382-2009,FALSE) -> 0.04 | K383: =VLOOKUP($X383,PriceScenarios!$B$3:$AD$21,K382-2009,FALSE) -> 0.04 | L383: =VLOOKUP($X383,PriceScenarios!$B$3:$AD$21,L382-2009,FALSE) -> 0.04 | M383: =VLOOKUP($X383,PriceScenarios!$B$3:$AD$21,M382-2009,FALSE) -> 0.04 | N383: =VLOOKUP($X383,PriceScenarios!$B$3:$AD$21,N382-2009,FALSE) -> 0.04 | O383: =VLOOKUP($X383,PriceScenarios!$B$3:$AD$21,O382-2009,FALSE) -> 0.04 | P383: =VLOOKUP($X383,PriceScenarios!$B$3:$AD$21,P382-2009,FALSE) -> 0.04 | Q383: =VLOOKUP($X383,PriceScenarios!$B$3:$AD$21,Q382-2009,FALSE) -> 0.04 | R383: =VLOOKUP($X383,PriceScenarios!$B$3:$AD$21,R382-2009,FALSE) -> 0.04 | S383: =VLOOKUP($X383,PriceScenarios!$B$3:$AD$21,S382-2009,FALSE) -> 0.04 | T383: =VLOOKUP($X383,PriceScenarios!$B$3:$AD$21,T382-2009,FALSE) -> 0.04 | U383: =VLOOKUP($X383,PriceScenarios!$B$3:$AD$21,U382-2009,FALSE) -> 0.04 | V383: =VLOOKUP($X383,PriceScenarios!$B$3:$AD$21,V382-2009,FALSE) -> 0.04 | W383: =VLOOKUP($X383,PriceScenarios!$B$3:$AD$21,W382-2009,FALSE) -> 0.04 | X383: =CHOOSE(X123,PriceScenarios!$B$3,PriceScenarios!$B$4,PriceScenarios!$B$5,PriceScenarios!$B$6,PriceScenarios!$B$7,PriceScenarios!$B$8,PriceScenarios!$B$9,PriceScenarios!$B$10,PriceScenarios!$B$11,PriceScenarios!$B$12,PriceScenarios!$B$13,PriceScenarios!$B$14,PriceScenarios!$B$15,PriceScenarios!$B$16,PriceScenarios!$B$17,PriceScenarios!$B$18,PriceScenarios!$B$19,PriceScenarios!$B$20,PriceScenarios!$B$21) -> Modest Growth
A385: Rent Median (Scenario) | B385: =HLOOKUP($A$1,Data!$C$1:$AI$211,'S1'!$X385,FALSE) -> 173.0769231 | C385: =B385*(1+B383) -> 180 | D385: =C385*(1+C383) -> 187.2 | E385: 194.688 | F385: 202.47552 | G385: 210.5745408 | H385: 218.9975224 | I385: 227.7574233 | J385: 236.8677203 | K385: 246.3424291 | L385: 256.1961262 | M385: 266.4439713 | N385: 277.1017301 | O385: 288.1857993 | P385: 299.7132313 | Q385: 311.7017606 | R385: 324.169831 | S385: 337.1366242 | T385: 350.6220892 | U385: 364.6469728 | V385: =U385*(1+U383) -> 379.2328517 | W385: =V385*(1+V383) -> 394.4021657 | X385: 210
A386: Rent 30th (Scenario) | B386: =HLOOKUP($A$1,Data!$C$1:$AI$211,'S1'!$X386,FALSE) -> 150 | C386: =B386*(1+B383) -> 156 | D386: =C386*(1+C383) -> 162.24 | E386: 168.7296 | F386: 175.478784 | G386: 182.4979354 | H386: 189.7978528 | I386: 197.3897669 | J386: 205.2853576 | K386: 213.4967719 | L386: 222.0366427 | M386: 230.9181084 | N386: 240.1548328 | O386: 249.7610261 | P386: 259.7514671 | Q386: 270.1415258 | R386: 280.9471869 | S386: 292.1850743 | T386: 303.8724773 | U386: 316.0273764 | V386: =U386*(1+U383) -> 328.6684715 | W386: =V386*(1+V383) -> 341.8152103 | X386: 211
A387: Annual Rent Medain | B387: =B385*52 -> 9000 | C387: =C385*52 -> 9360 | D387: 9734.4 | E387: 10123.776 | F387: 10528.72704 | G387: 10949.87612 | H387: 11387.87117 | I387: 11843.38601 | J387: 12317.12145 | K387: 12809.80631 | L387: 13322.19856 | M387: 13855.08651 | N387: 14409.28997 | O387: 14985.66157 | P387: 15585.08803 | Q387: 16208.49155 | R387: 16856.83121 | S387: 17531.10446 | T387: 18232.34864 | U387: 18961.64258 | V387: =V385*52 -> 19720.10829 | W387: =W385*52 -> 20508.91262
A388: Annual Rent 30th | B388: =B386*52 -> 7800 | C388: 8112 | D388: 8436.48 | E388: 8773.9392 | F388: 9124.896768 | G388: 9489.892639 | H388: 9869.488344 | I388: 10264.26788 | J388: 10674.83859 | K388: 11101.83214 | L388: 11545.90542 | M388: 12007.74164 | N388: 12488.0513 | O388: 12987.57336 | P388: 13507.07629 | Q388: 14047.35934 | R388: 14609.25372 | S388: 15193.62387 | T388: 15801.36882 | U388: 16433.42357 | V388: =V386*52 -> 17090.76052 | W388: =W386*52 -> 17774.39094
A390: Income above | B390: =B387/$C$116 -> 36000 | C390: 37440 | D390: 38937.6 | E390: 40495.104 | F390: 42114.90816 | G390: 43799.50449 | H390: 45551.48467 | I390: 47373.54405 | J390: 49268.48581 | K390: 51239.22525 | L390: 53288.79426 | M390: 55420.34603 | N390: 57637.15987 | O390: 59942.64626 | P390: 62340.35211 | Q390: 64833.9662 | R390: 67427.32485 | S390: 70124.41784 | T390: 72929.39455 | U390: 75846.57034 | V390: =V387/$C$116 -> 78880.43315 | W390: =W387/$C$116 -> 82035.65048
A391: Income below | B391: =B388/$C$117 -> 22285.71429 | C391: 23177.14286 | D391: 24104.22857 | E391: 25068.39771 | F391: 26071.13362 | G391: 27113.97897 | H391: 28198.53813 | I391: 29326.47965 | J391: 30499.53884 | K391: 31719.52039 | L391: 32988.30121 | M391: 34307.83326 | N391: 35680.14659 | O391: 37107.35245 | P391: 38591.64655 | Q391: 40135.31241 | R391: 41740.7249 | S391: 43410.3539 | T391: 45146.76806 | U391: 46952.63878 | V391: =V388/$C$117 -> 48830.74433 | W391: =W388/$C$117 -> 50783.9741
A392: Above percentile | B392: =IF(ISERROR(VLOOKUP(B390,B$510:$AA$590,B$509+3)),10,VLOOKUP(B390,B$510:$AA$590,B$509+3)) -> 58 | C392: =IF(ISERROR(VLOOKUP(C390,C$510:$AA$590,C$509+3)),10,VLOOKUP(C390,C$510:$AA$590,C$509+3)) -> 59 | D392: =IF(ISERROR(VLOOKUP(D390,D$510:$AA$590,D$509+3)),10,VLOOKUP(D390,D$510:$AA$590,D$509+3)) -> 60 | E392: =IF(ISERROR(VLOOKUP(E390,E$510:$AA$590,E$509+3)),10,VLOOKUP(E390,E$510:$AA$590,E$509+3)) -> 61 | F392: =IF(ISERROR(VLOOKUP(F390,F$510:$AA$590,F$509+3)),10,VLOOKUP(F390,F$510:$AA$590,F$509+3)) -> 62 | G392: =IF(ISERROR(VLOOKUP(G390,G$510:$AA$590,G$509+3)),10,VLOOKUP(G390,G$510:$AA$590,G$509+3)) -> 63 | H392: =IF(ISERROR(VLOOKUP(H390,H$510:$AA$590,H$509+3)),10,VLOOKUP(H390,H$510:$AA$590,H$509+3)) -> 64 | I392: =IF(ISERROR(VLOOKUP(I390,I$510:$AA$590,I$509+3)),10,VLOOKUP(I390,I$510:$AA$590,I$509+3)) -> 65 | J392: =IF(ISERROR(VLOOKUP(J390,J$510:$AA$590,J$509+3)),10,VLOOKUP(J390,J$510:$AA$590,J$509+3)) -> 66 | K392: =IF(ISERROR(VLOOKUP(K390,K$510:$AA$590,K$509+3)),10,VLOOKUP(K390,K$510:$AA$590,K$509+3)) -> 67 | L392: =IF(ISERROR(VLOOKUP(L390,L$510:$AA$590,L$509+3)),10,VLOOKUP(L390,L$510:$AA$590,L$509+3)) -> 69 | M392: =IF(ISERROR(VLOOKUP(M390,M$510:$AA$590,M$509+3)),10,VLOOKUP(M390,M$510:$AA$590,M$509+3)) -> 69 | N392: =IF(ISERROR(VLOOKUP(N390,N$510:$AA$590,N$509+3)),10,VLOOKUP(N390,N$510:$AA$590,N$509+3)) -> 70 | O392: =IF(ISERROR(VLOOKUP(O390,O$510:$AA$590,O$509+3)),10,VLOOKUP(O390,O$510:$AA$590,O$509+3)) -> 72 | P392: =IF(ISERROR(VLOOKUP(P390,P$510:$AA$590,P$509+3)),10,VLOOKUP(P390,P$510:$AA$590,P$509+3)) -> 72 | Q392: =IF(ISERROR(VLOOKUP(Q390,Q$510:$AA$590,Q$509+3)),10,VLOOKUP(Q390,Q$510:$AA$590,Q$509+3)) -> 73 | R392: =IF(ISERROR(VLOOKUP(R390,R$510:$AA$590,R$509+3)),10,VLOOKUP(R390,R$510:$AA$590,R$509+3)) -> 74 | S392: =IF(ISERROR(VLOOKUP(S390,S$510:$AA$590,S$509+3)),10,VLOOKUP(S390,S$510:$AA$590,S$509+3)) -> 75 | T392: =IF(ISERROR(VLOOKUP(T390,T$510:$AA$590,T$509+3)),10,VLOOKUP(T390,T$510:$AA$590,T$509+3)) -> 76 | U392: =IF(ISERROR(VLOOKUP(U390,U$510:$AA$590,U$509+3)),10,VLOOKUP(U390,U$510:$AA$590,U$509+3)) -> 77 | V392: =IF(ISERROR(VLOOKUP(V390,V$510:$AA$590,V$509+3)),10,VLOOKUP(V390,V$510:$AA$590,V$509+3)) -> 78 | W392: =IF(ISERROR(VLOOKUP(W390,W$510:$AA$590,W$509+3)),10,VLOOKUP(W390,W$510:$AA$590,W$509+3)) -> 79
A393: Below percentile | B393: =IF(ISERROR(VLOOKUP(B391,B$510:$AA$590,B$509+3)),10,(VLOOKUP(B391,B$510:$AA$590,B$509+3))) -> 33 | C393: =IF(ISERROR(VLOOKUP(C391,C$510:$AA$590,C$509+3)),10,(VLOOKUP(C391,C$510:$AA$590,C$509+3))) -> 35 | D393: =IF(ISERROR(VLOOKUP(D391,D$510:$AA$590,D$509+3)),10,(VLOOKUP(D391,D$510:$AA$590,D$509+3))) -> 36 | E393: =IF(ISERROR(VLOOKUP(E391,E$510:$AA$590,E$509+3)),10,(VLOOKUP(E391,E$510:$AA$590,E$509+3))) -> 37 | F393: =IF(ISERROR(VLOOKUP(F391,F$510:$AA$590,F$509+3)),10,(VLOOKUP(F391,F$510:$AA$590,F$509+3))) -> 38 | G393: =IF(ISERROR(VLOOKUP(G391,G$510:$AA$590,G$509+3)),10,(VLOOKUP(G391,G$510:$AA$590,G$509+3))) -> 39 | H393: =IF(ISERROR(VLOOKUP(H391,H$510:$AA$590,H$509+3)),10,(VLOOKUP(H391,H$510:$AA$590,H$509+3))) -> 40 | I393: =IF(ISERROR(VLOOKUP(I391,I$510:$AA$590,I$509+3)),10,(VLOOKUP(I391,I$510:$AA$590,I$509+3))) -> 41 | J393: =IF(ISERROR(VLOOKUP(J391,J$510:$AA$590,J$509+3)),10,(VLOOKUP(J391,J$510:$AA$590,J$509+3))) -> 42 | K393: =IF(ISERROR(VLOOKUP(K391,K$510:$AA$590,K$509+3)),10,(VLOOKUP(K391,K$510:$AA$590,K$509+3))) -> 43 | L393: =IF(ISERROR(VLOOKUP(L391,L$510:$AA$590,L$509+3)),10,(VLOOKUP(L391,L$510:$AA$590,L$509+3))) -> 44 | M393: =IF(ISERROR(VLOOKUP(M391,M$510:$AA$590,M$509+3)),10,(VLOOKUP(M391,M$510:$AA$590,M$509+3))) -> 45 | N393: =IF(ISERROR(VLOOKUP(N391,N$510:$AA$590,N$509+3)),10,(VLOOKUP(N391,N$510:$AA$590,N$509+3))) -> 45 | O393: =IF(ISERROR(VLOOKUP(O391,O$510:$AA$590,O$509+3)),10,(VLOOKUP(O391,O$510:$AA$590,O$509+3))) -> 46 | P393: =IF(ISERROR(VLOOKUP(P391,P$510:$AA$590,P$509+3)),10,(VLOOKUP(P391,P$510:$AA$590,P$509+3))) -> 47 | Q393: =IF(ISERROR(VLOOKUP(Q391,Q$510:$AA$590,Q$509+3)),10,(VLOOKUP(Q391,Q$510:$AA$590,Q$509+3))) -> 48 | R393: =IF(ISERROR(VLOOKUP(R391,R$510:$AA$590,R$509+3)),10,(VLOOKUP(R391,R$510:$AA$590,R$509+3))) -> 49 | S393: =IF(ISERROR(VLOOKUP(S391,S$510:$AA$590,S$509+3)),10,(VLOOKUP(S391,S$510:$AA$590,S$509+3))) -> 50 | T393: =IF(ISERROR(VLOOKUP(T391,T$510:$AA$590,T$509+3)),10,(VLOOKUP(T391,T$510:$AA$590,T$509+3))) -> 51 | U393: =IF(ISERROR(VLOOKUP(U391,U$510:$AA$590,U$509+3)),10,(VLOOKUP(U391,U$510:$AA$590,U$509+3))) -> 52 | V393: =IF(ISERROR(VLOOKUP(V391,V$510:$AA$590,V$509+3)),10,(VLOOKUP(V391,V$510:$AA$590,V$509+3))) -> 53 | W393: =IF(ISERROR(VLOOKUP(W391,W$510:$AA$590,W$509+3)),10,(VLOOKUP(W391,W$510:$AA$590,W$509+3))) -> 54
A397: Social Rent | C397: =C320-C398-C399-C400 -> 418.05 | D397: 390.56 | E397: 389.99 | F397: 392.08 | G397: 343.25 | H397: 190 | I397: 202.54 | J397: 212.1 | K397: 240.37 | L397: 243.76 | M397: 259.65 | N397: 257.85 | O397: 286.58 | P397: 283.41 | Q397: 285.6 | R397: 305.27 | S397: 307 | T397: 291.21 | U397: 265.72 | V397: 292.03 | W397: 297.54
A398: BM Rent | C398: =IF($B$312=TRUE,(C392-C393)/100*C318,IF($B$309=TRUE,(C392-C393)/100*C320,(C392-C393)/100*C318)) -> 178.32 | D398: =IF($B$312=TRUE,(D392-D393)/100*D318,IF($B$309=TRUE,(D392-D393)/100*D320,(D392-D393)/100*D318)) -> 155.04 | E398: 150.48 | F398: 147.84 | G398: 114 | H398: 114 | I398: 118.56 | J398: 121.2 | K398: 134.16 | L398: 138.5 | M398: 138.48 | N398: 143.25 | O398: 161.98 | P398: 150.75 | Q398: 148.75 | R398: 155.75 | S398: 153.5 | T398: 142.75 | U398: 127.75 | V398: 137.75 | W398: 137.75
A399: PRS | C399: =IF($B$312=TRUE,(100-C392)/100*C318-C400,IF($B$309=TRUE,(100-C392)/100*C320-C400,(100-C392)/100*C318-C400)) -> 135.226 | D399: =IF($B$312=TRUE,(100-D392)/100*D318-D400,IF($B$309=TRUE,(100-D392)/100*D320-D400,(100-D392)/100*D318-D400)) -> 114.988 | E399: 105.336 | F399: 104.72 | G399: 78.85 | H399: 76.95 | I399: 78.052 | J399: 77.77 | K399: 83.85 | L399: 75.344 | M399: 81.934 | N399: 79.074 | O399: 77.252 | P399: 78.39 | Q399: 74.97 | R399: 76.006 | S399: 72.452 | T399: 61.668 | U399: 53.144 | V399: 55.1 | W399: 52.896
A400: Buyers | C400: =C356*$C$115 -> 169.404 | D400: =D356*$C$115 -> 143.412 | E400: 139.194 | F400: 129.36 | G400: 96.9 | H400: 94.05 | I400: 94.848 | J400: 93.93 | K400: 100.62 | L400: 96.396 | M400: 96.936 | N400: 92.826 | O400: 97.188 | P400: 90.45 | Q400: 85.68 | R400: 85.974 | S400: 81.048 | T400: 75.372 | U400: 64.386 | V400: 66.12 | W400: 62.814
A406: Income Change
A407: Principal | C407: =OFFSET(IncomeScenarios!D4,0,Map!$T$13-2012) -> 0.02 | D407: =OFFSET(IncomeScenarios!E4,0,Map!$T$13-2012) -> 0.02 | E407: =OFFSET(IncomeScenarios!F4,0,Map!$T$13-2012) -> 0.02 | F407: =OFFSET(IncomeScenarios!G4,0,Map!$T$13-2012) -> 0.02 | G407: =OFFSET(IncomeScenarios!H4,0,Map!$T$13-2012) -> 0.02 | H407: =OFFSET(IncomeScenarios!I4,0,Map!$T$13-2012) -> 0.02 | I407: =OFFSET(IncomeScenarios!J4,0,Map!$T$13-2012) -> 0.02 | J407: =OFFSET(IncomeScenarios!K4,0,Map!$T$13-2012) -> 0.02 | K407: =OFFSET(IncomeScenarios!L4,0,Map!$T$13-2012) -> 0.02 | L407: =OFFSET(IncomeScenarios!M4,0,Map!$T$13-2012) -> 0.02 | M407: =OFFSET(IncomeScenarios!N4,0,Map!$T$13-2012) -> 0.02 | N407: =OFFSET(IncomeScenarios!O4,0,Map!$T$13-2012) -> 0.02 | O407: =OFFSET(IncomeScenarios!P4,0,Map!$T$13-2012) -> 0.02 | P407: =OFFSET(IncomeScenarios!Q4,0,Map!$T$13-2012) -> 0.02 | Q407: =OFFSET(IncomeScenarios!R4,0,Map!$T$13-2012) -> 0.02 | R407: =OFFSET(IncomeScenarios!S4,0,Map!$T$13-2012) -> 0.02 | S407: =OFFSET(IncomeScenarios!T4,0,Map!$T$13-2012) -> 0.02 | T407: =OFFSET(IncomeScenarios!U4,0,Map!$T$13-2012) -> 0.02 | U407: =OFFSET(IncomeScenarios!V4,0,Map!$T$13-2012) -> 0.02 | V407: =OFFSET(IncomeScenarios!W4,0,Map!$T$13-2012) -> 0.02 | W407: =OFFSET(IncomeScenarios!X4,0,Map!$T$13-2012) -> 0.02
A408: Principle Distribution | C408: =OFFSET(IncomeScenarios!D26,0,Map!$T$13-2012) -> 0 | D408: =OFFSET(IncomeScenarios!E26,0,Map!$T$13-2012) -> 0 | E408: =OFFSET(IncomeScenarios!F26,0,Map!$T$13-2012) -> 0 | F408: =OFFSET(IncomeScenarios!G26,0,Map!$T$13-2012) -> 0 | G408: =OFFSET(IncomeScenarios!H26,0,Map!$T$13-2012) -> 0 | H408: =OFFSET(IncomeScenarios!I26,0,Map!$T$13-2012) -> 0 | I408: =OFFSET(IncomeScenarios!J26,0,Map!$T$13-2012) -> 0 | J408: =OFFSET(IncomeScenarios!K26,0,Map!$T$13-2012) -> 0 | K408: =OFFSET(IncomeScenarios!L26,0,Map!$T$13-2012) -> 0 | L408: =OFFSET(IncomeScenarios!M26,0,Map!$T$13-2012) -> 0 | M408: =OFFSET(IncomeScenarios!N26,0,Map!$T$13-2012) -> 0 | N408: =OFFSET(IncomeScenarios!O26,0,Map!$T$13-2012) -> 0 | O408: =OFFSET(IncomeScenarios!P26,0,Map!$T$13-2012) -> 0 | P408: =OFFSET(IncomeScenarios!Q26,0,Map!$T$13-2012) -> 0 | Q408: =OFFSET(IncomeScenarios!R26,0,Map!$T$13-2012) -> 0 | R408: =OFFSET(IncomeScenarios!S26,0,Map!$T$13-2012) -> 0 | S408: =OFFSET(IncomeScenarios!T26,0,Map!$T$13-2012) -> 0 | T408: =OFFSET(IncomeScenarios!U26,0,Map!$T$13-2012) -> 0 | U408: =OFFSET(IncomeScenarios!V26,0,Map!$T$13-2012) -> 0 | V408: =OFFSET(IncomeScenarios!W26,0,Map!$T$13-2012) -> 0 | W408: =OFFSET(IncomeScenarios!X26,0,Map!$T$13-2012) -> 0
A409: Scenario | C409: =OFFSET(IncomeScenarios!D2,$X$53,Map!$T$13-2012) -> 0.02 | D409: =OFFSET(IncomeScenarios!E2,$X$53,Map!$T$13-2012) -> 0.02 | E409: =OFFSET(IncomeScenarios!F2,$X$53,Map!$T$13-2012) -> 0.02 | F409: =OFFSET(IncomeScenarios!G2,$X$53,Map!$T$13-2012) -> 0.02 | G409: =OFFSET(IncomeScenarios!H2,$X$53,Map!$T$13-2012) -> 0.02 | H409: =OFFSET(IncomeScenarios!I2,$X$53,Map!$T$13-2012) -> 0.02 | I409: =OFFSET(IncomeScenarios!J2,$X$53,Map!$T$13-2012) -> 0.02 | J409: =OFFSET(IncomeScenarios!K2,$X$53,Map!$T$13-2012) -> 0.02 | K409: =OFFSET(IncomeScenarios!L2,$X$53,Map!$T$13-2012) -> 0.02 | L409: =OFFSET(IncomeScenarios!M2,$X$53,Map!$T$13-2012) -> 0.02 | M409: =OFFSET(IncomeScenarios!N2,$X$53,Map!$T$13-2012) -> 0.02 | N409: =OFFSET(IncomeScenarios!O2,$X$53,Map!$T$13-2012) -> 0.02 | O409: =OFFSET(IncomeScenarios!P2,$X$53,Map!$T$13-2012) -> 0.02 | P409: =OFFSET(IncomeScenarios!Q2,$X$53,Map!$T$13-2012) -> 0.02 | Q409: =OFFSET(IncomeScenarios!R2,$X$53,Map!$T$13-2012) -> 0.02 | R409: =OFFSET(IncomeScenarios!S2,$X$53,Map!$T$13-2012) -> 0.02 | S409: =OFFSET(IncomeScenarios!T2,$X$53,Map!$T$13-2012) -> 0.02 | T409: =OFFSET(IncomeScenarios!U2,$X$53,Map!$T$13-2012) -> 0.02 | U409: =OFFSET(IncomeScenarios!V2,$X$53,Map!$T$13-2012) -> 0.02 | V409: =OFFSET(IncomeScenarios!W2,$X$53,Map!$T$13-2012) -> 0.02 | W409: =OFFSET(IncomeScenarios!X2,$X$53,Map!$T$13-2012) -> 0.02
A410: Scenario Distribution | C410: =OFFSET(IncomeScenarios!D24,$X$54,Map!$T$13-2012) -> 0 | D410: =OFFSET(IncomeScenarios!E24,$X$54,Map!$T$13-2012) -> 0 | E410: =OFFSET(IncomeScenarios!F24,$X$54,Map!$T$13-2012) -> 0 | F410: =OFFSET(IncomeScenarios!G24,$X$54,Map!$T$13-2012) -> 0 | G410: =OFFSET(IncomeScenarios!H24,$X$54,Map!$T$13-2012) -> 0 | H410: =OFFSET(IncomeScenarios!I24,$X$54,Map!$T$13-2012) -> 0 | I410: =OFFSET(IncomeScenarios!J24,$X$54,Map!$T$13-2012) -> 0 | J410: =OFFSET(IncomeScenarios!K24,$X$54,Map!$T$13-2012) -> 0 | K410: =OFFSET(IncomeScenarios!L24,$X$54,Map!$T$13-2012) -> 0 | L410: =OFFSET(IncomeScenarios!M24,$X$54,Map!$T$13-2012) -> 0 | M410: =OFFSET(IncomeScenarios!N24,$X$54,Map!$T$13-2012) -> 0 | N410: =OFFSET(IncomeScenarios!O24,$X$54,Map!$T$13-2012) -> 0 | O410: =OFFSET(IncomeScenarios!P24,$X$54,Map!$T$13-2012) -> 0 | P410: =OFFSET(IncomeScenarios!Q24,$X$54,Map!$T$13-2012) -> 0 | Q410: =OFFSET(IncomeScenarios!R24,$X$54,Map!$T$13-2012) -> 0 | R410: =OFFSET(IncomeScenarios!S24,$X$54,Map!$T$13-2012) -> 0 | S410: =OFFSET(IncomeScenarios!T24,$X$54,Map!$T$13-2012) -> 0 | T410: =OFFSET(IncomeScenarios!U24,$X$54,Map!$T$13-2012) -> 0 | U410: =OFFSET(IncomeScenarios!V24,$X$54,Map!$T$13-2012) -> 0 | V410: =OFFSET(IncomeScenarios!W24,$X$54,Map!$T$13-2012) -> 0 | W410: =OFFSET(IncomeScenarios!X24,$X$54,Map!$T$13-2012) -> 0
A412: Principal
A413: Income
B414: =B382 -> 2017 | C414: =B414+1 -> 2018 | D414: 2019 | E414: 2020 | F414: 2021 | G414: 2022 | H414: 2023 | I414: 2024 | J414: 2025 | K414: 2026 | L414: 2027 | M414: 2028 | N414: 2029 | O414: 2030 | P414: 2031 | Q414: 2032 | R414: 2033 | S414: 2034 | T414: 2035 | U414: 2036 | V414: 2037 | W414: 2038
A415: Principal Median | B415: =B459 -> 30680 | C415: =C459 -> 31293.6 | D415: 31919.472 | E415: 32557.86144 | F415: 33209.01867 | G415: 33873.19904 | H415: 34550.66302 | I415: 35241.67628 | J415: 35946.50981 | K415: 36665.44001 | L415: 37398.74881 | M415: 38146.72378 | N415: 38909.65826 | O415: 39687.85142 | P415: 40481.60845 | Q415: 41291.24062 | R415: 42117.06543 | S415: 42959.40674 | T415: 43818.59488 | U415: 44694.96677 | V415: 45588.86611 | W415: 46500.64343
A416: =CONCATENATE("Principal ",C49,"%ile") -> Principal 75%ile | B416: =VLOOKUP($C$49,$A$419:$W$499,25-B418,FALSE) -> 49400 | C416: 50388 | D416: 51395.76 | E416: 52423.6752 | F416: 53472.1487 | G416: 54541.59168 | H416: 55632.42351 | I416: 56745.07198 | J416: 57879.97342 | K416: 59037.57289 | L416: 60218.32435 | M416: 61422.69083 | N416: 62651.14465 | O416: 63904.16754 | P416: 65182.2509 | Q416: 66485.89591 | R416: 67815.61383 | S416: 69171.92611 | T416: 70555.36463 | U416: 71966.47192 | V416: 73405.80136 | W416: 74873.91739
A417: =CONCATENATE("Principal",C50,"%ile") -> Principal25%ile | B417: =VLOOKUP($C$50,$A$419:$W$499,25-B418,FALSE) -> 18200 | C417: 18564 | D417: 18935.28 | E417: 19313.9856 | F417: 19700.26531 | G417: 20094.27062 | H417: 20496.15603 | I417: 20906.07915 | J417: 21324.20073 | K417: 21750.68475 | L417: 22185.69844 | M417: 22629.41241 | N417: 23082.00066 | O417: 23543.64067 | P417: 24014.51349 | Q417: 24494.80376 | R417: 24984.69983 | S417: 25484.39383 | T417: 25994.08171 | U417: 26513.96334 | V417: 27044.24261 | W417: 27585.12746
A418: 1 | B418: 23 | C418: =B418-1 -> 22 | D418: 21 | E418: 20 | F418: 19 | G418: 18 | H418: 17 | I418: 16 | J418: 15 | K418: 14 | L418: 13 | M418: 12 | N418: 11 | O418: 10 | P418: 9 | Q418: 8 | R418: 7 | S418: 6 | T418: 5 | U418: 4 | V418: 3 | W418: 2 | Y418: =2018 -> 2018 | Z418: =CONCATENATE("Principal ",C51) -> Principal 2038
A419: =Data!B299 -> 10 | B419: =HLOOKUP($A$1,Data!$C$1:$AI$379,$X419,FALSE) -> 11440 | C419: =B419*(1+C$407+(-(50-$A419)*(C$408/40))) -> 11668.8 | D419: =C419*(1+D$407+(-(50-$A419)*(D$408/40))) -> 11902.176 | E419: 12140.21952 | F419: 12383.02391 | G419: 12630.68439 | H419: 12883.29808 | I419: 13140.96404 | J419: 13403.78332 | K419: 13671.85899 | L419: 13945.29616 | M419: 14224.20209 | N419: 14508.68613 | O419: 14798.85985 | P419: 15094.83705 | Q419: 15396.73379 | R419: 15704.66847 | S419: 16018.76184 | T419: =S419*(1+T$407+(-(50-$A419)*(T$408/40))) -> 16339.13707 | U419: 16665.91981 | V419: 16999.23821 | W419: 17339.22297 | X419: 217 | Y419: =C419 -> 11668.8 | Z419: =OFFSET(B419,0,$C$51-Map!$T$13+1) -> 17339.22297 | AA419: =A419 -> 10
A420: =Data!B300 -> 11 | B420: =HLOOKUP($A$1,Data!$C$1:$AI$379,$X420,FALSE) -> 11960 | C420: =B420*(1+C$407+(-(50-$A420)*(C$408/40))) -> 12199.2 | D420: 12443.184 | E420: 12692.04768 | F420: 12945.88863 | G420: 13204.80641 | H420: 13468.90253 | I420: 13738.28059 | J420: 14013.0462 | K420: 14293.30712 | L420: 14579.17326 | M420: 14870.75673 | N420: 15168.17186 | O420: 15471.5353 | P420: 15780.96601 | Q420: 16096.58533 | R420: 16418.51703 | S420: 16746.88737 | T420: 17081.82512 | U420: 17423.46162 | V420: 17771.93086 | W420: 18127.36947 | X420: =X419+1 -> 218 | Y420: 12199.2 | Z420: =OFFSET(B420,0,$C$51-Map!$T$13+1) -> 18127.36947 | AA420: 11
A421: =Data!B301 -> 12 | B421: =HLOOKUP($A$1,Data!$C$1:$AI$379,$X421,FALSE) -> 12480 | C421: 12729.6 | D421: 12984.192 | E421: 13243.87584 | F421: 13508.75336 | G421: 13778.92842 | H421: 14054.50699 | I421: 14335.59713 | J421: 14622.30907 | K421: 14914.75526 | L421: 15213.05036 | M421: 15517.31137 | N421: 15827.6576 | O421: 16144.21075 | P421: 16467.09496 | Q421: 16796.43686 | R421: 17132.3656 | S421: 17475.01291 | T421: 17824.51317 | U421: 18181.00343 | V421: 18544.6235 | W421: 18915.51597 | X421: =X420+1 -> 219 | Y421: 12729.6 | Z421: =OFFSET(B421,0,$C$51-Map!$T$13+1) -> 18915.51597 | AA421: 12
A422: =Data!B302 -> 13 | B422: =HLOOKUP($A$1,Data!$C$1:$AI$379,$X422,FALSE) -> 13000 | C422: 13260 | D422: 13525.2 | E422: 13795.704 | F422: 14071.61808 | G422: 14353.05044 | H422: 14640.11145 | I422: 14932.91368 | J422: 15231.57195 | K422: 15536.20339 | L422: 15846.92746 | M422: 16163.86601 | N422: 16487.14333 | O422: 16816.8862 | P422: 17153.22392 | Q422: 17496.2884 | R422: 17846.21417 | S422: 18203.13845 | T422: 18567.20122 | U422: 18938.54524 | V422: 19317.31615 | W422: 19703.66247 | X422: 220 | Y422: 13260 | Z422: =OFFSET(B422,0,$C$51-Map!$T$13+1) -> 19703.66247 | AA422: 13
A423: =Data!B303 -> 14 | B423: =HLOOKUP($A$1,Data!$C$1:$AI$379,$X423,FALSE) -> 13520 | C423: 13790.4 | D423: 14066.208 | E423: 14347.53216 | F423: 14634.4828 | G423: 14927.17246 | H423: 15225.71591 | I423: 15530.23023 | J423: 15840.83483 | K423: 16157.65153 | L423: 16480.80456 | M423: 16810.42065 | N423: 17146.62906 | O423: 17489.56164 | P423: 17839.35288 | Q423: 18196.13993 | R423: 18560.06273 | S423: 18931.26399 | T423: 19309.88927 | U423: 19696.08705 | V423: 20090.00879 | W423: 20491.80897 | X423: 221 | Y423: 13790.4 | Z423: =OFFSET(B423,0,$C$51-Map!$T$13+1) -> 20491.80897 | AA423: 14
A424: =Data!B304 -> 15 | B424: =HLOOKUP($A$1,Data!$C$1:$AI$379,$X424,FALSE) -> 13520 | C424: 13790.4 | D424: 14066.208 | E424: 14347.53216 | F424: 14634.4828 | G424: 14927.17246 | H424: 15225.71591 | I424: 15530.23023 | J424: 15840.83483 | K424: 16157.65153 | L424: 16480.80456 | M424: 16810.42065 | N424: 17146.62906 | O424: 17489.56164 | P424: 17839.35288 | Q424: 18196.13993 | R424: 18560.06273 | S424: 18931.26399 | T424: 19309.88927 | U424: 19696.08705 | V424: 20090.00879 | W424: 20491.80897 | X424: 222 | Y424: 13790.4 | Z424: =OFFSET(B424,0,$C$51-Map!$T$13+1) -> 20491.80897 | AA424: 15
A425: =Data!B305 -> 16 | B425: =HLOOKUP($A$1,Data!$C$1:$AI$379,$X425,FALSE) -> 14040 | C425: 14320.8 | D425: 14607.216 | E425: 14899.36032 | F425: 15197.34753 | G425: 15501.29448 | H425: 15811.32037 | I425: 16127.54677 | J425: 16450.09771 | K425: 16779.09966 | L425: 17114.68166 | M425: 17456.97529 | N425: 17806.1148 | O425: 18162.23709 | P425: 18525.48183 | Q425: 18895.99147 | R425: 19273.9113 | S425: 19659.38953 | T425: 20052.57732 | U425: 20453.62886 | V425: 20862.70144 | W425: 21279.95547 | X425: 223 | Y425: 14320.8 | Z425: =OFFSET(B425,0,$C$51-Map!$T$13+1) -> 21279.95547 | AA425: 16
A426: =Data!B306 -> 17 | B426: =HLOOKUP($A$1,Data!$C$1:$AI$379,$X426,FALSE) -> 14560 | C426: 14851.2 | D426: 15148.224 | E426: 15451.18848 | F426: 15760.21225 | G426: 16075.41649 | H426: 16396.92482 | I426: 16724.86332 | J426: 17059.36059 | K426: 17400.5478 | L426: 17748.55876 | M426: 18103.52993 | N426: 18465.60053 | O426: 18834.91254 | P426: 19211.61079 | Q426: 19595.84301 | R426: 19987.75987 | S426: 20387.51506 | T426: 20795.26536 | U426: 21211.17067 | V426: 21635.39409 | W426: 22068.10197 | X426: 224 | Y426: 14851.2 | Z426: =OFFSET(B426,0,$C$51-Map!$T$13+1) -> 22068.10197 | AA426: 17
A427: =Data!B307 -> 18 | B427: =HLOOKUP($A$1,Data!$C$1:$AI$379,$X427,FALSE) -> 15080 | C427: 15381.6 | D427: 15689.232 | E427: 16003.01664 | F427: 16323.07697 | G427: 16649.53851 | H427: 16982.52928 | I427: 17322.17987 | J427: 17668.62347 | K427: 18021.99593 | L427: 18382.43585 | M427: 18750.08457 | N427: 19125.08626 | O427: 19507.58799 | P427: 19897.73975 | Q427: 20295.69454 | R427: 20701.60843 | S427: 21115.6406 | T427: 21537.95341 | U427: 21968.71248 | V427: 22408.08673 | W427: 22856.24847 | X427: 225 | Y427: 15381.6 | Z427: =OFFSET(B427,0,$C$51-Map!$T$13+1) -> 22856.24847 | AA427: 18
A428: =Data!B308 -> 19 | B428: =HLOOKUP($A$1,Data!$C$1:$AI$379,$X428,FALSE) -> 15600 | C428: 15912 | D428: 16230.24 | E428: 16554.8448 | F428: 16885.9417 | G428: 17223.66053 | H428: 17568.13374 | I428: 17919.49642 | J428: 18277.88634 | K428: 18643.44407 | L428: 19016.31295 | M428: 19396.63921 | N428: 19784.572 | O428: 20180.26344 | P428: 20583.8687 | Q428: 20995.54608 | R428: 21415.457 | S428: 21843.76614 | T428: 22280.64146 | U428: 22726.25429 | V428: 23180.77938 | W428: 23644.39496 | X428: 226 | Y428: 15912 | Z428: =OFFSET(B428,0,$C$51-Map!$T$13+1) -> 23644.39496 | AA428: 19
A429: =Data!B309 -> 20 | B429: =HLOOKUP($A$1,Data!$C$1:$AI$379,$X429,FALSE) -> 15600 | C429: 15912 | D429: 16230.24 | E429: 16554.8448 | F429: 16885.9417 | G429: 17223.66053 | H429: 17568.13374 | I429: 17919.49642 | J429: 18277.88634 | K429: 18643.44407 | L429: 19016.31295 | M429: 19396.63921 | N429: 19784.572 | O429: 20180.26344 | P429: 20583.8687 | Q429: 20995.54608 | R429: 21415.457 | S429: 21843.76614 | T429: 22280.64146 | U429: 22726.25429 | V429: 23180.77938 | W429: 23644.39496 | X429: 227 | Y429: 15912 | Z429: =OFFSET(B429,0,$C$51-Map!$T$13+1) -> 23644.39496 | AA429: 20
A430: =Data!B310 -> 21 | B430: =HLOOKUP($A$1,Data!$C$1:$AI$379,$X430,FALSE) -> 16120 | C430: 16442.4 | D430: 16771.248 | E430: 17106.67296 | F430: 17448.80642 | G430: 17797.78255 | H430: 18153.7382 | I430: 18516.81296 | J430: 18887.14922 | K430: 19264.89221 | L430: 19650.19005 | M430: 20043.19385 | N430: 20444.05773 | O430: 20852.93888 | P430: 21269.99766 | Q430: 21695.39761 | R430: 22129.30557 | S430: 22571.89168 | T430: 23023.32951 | U430: 23483.7961 | V430: 23953.47202 | W430: 24432.54146 | X430: 228 | Y430: 16442.4 | Z430: =OFFSET(B430,0,$C$51-Map!$T$13+1) -> 24432.54146 | AA430: 21
A431: =Data!B311 -> 22 | B431: =HLOOKUP($A$1,Data!$C$1:$AI$379,$X431,FALSE) -> 16640 | C431: 16972.8 | D431: 17312.256 | E431: 17658.50112 | F431: 18011.67114 | G431: 18371.90457 | H431: 18739.34266 | I431: 19114.12951 | J431: 19496.4121 | K431: 19886.34034 | L431: 20284.06715 | M431: 20689.74849 | N431: 21103.54346 | O431: 21525.61433 | P431: 21956.12662 | Q431: 22395.24915 | R431: 22843.15413 | S431: 23300.01722 | T431: 23766.01756 | U431: 24241.33791 | V431: 24726.16467 | W431: 25220.68796 | X431: 229 | Y431: 16972.8 | Z431: =OFFSET(B431,0,$C$51-Map!$T$13+1) -> 25220.68796 | AA431: 22
A432: =Data!B312 -> 23 | B432: =HLOOKUP($A$1,Data!$C$1:$AI$379,$X432,FALSE) -> 17160 | C432: 17503.2 | D432: 17853.264 | E432: 18210.32928 | F432: 18574.53587 | G432: 18946.02658 | H432: 19324.94711 | I432: 19711.44606 | J432: 20105.67498 | K432: 20507.78848 | L432: 20917.94425 | M432: 21336.30313 | N432: 21763.02919 | O432: 22198.28978 | P432: 22642.25557 | Q432: 23095.10069 | R432: 23557.0027 | S432: 24028.14275 | T432: 24508.70561 | U432: 24998.87972 | V432: 25498.85731 | W432: 26008.83446 | X432: 230 | Y432: 17503.2 | Z432: =OFFSET(B432,0,$C$51-Map!$T$13+1) -> 26008.83446 | AA432: 23
A433: =Data!B313 -> 24 | B433: =HLOOKUP($A$1,Data!$C$1:$AI$379,$X433,FALSE) -> 17680 | C433: 18033.6 | D433: 18394.272 | E433: 18762.15744 | F433: 19137.40059 | G433: 19520.1486 | H433: 19910.55157 | I433: 20308.7626 | J433: 20714.93786 | K433: 21129.23661 | L433: 21551.82135 | M433: 21982.85777 | N433: 22422.51493 | O433: 22870.96523 | P433: 23328.38453 | Q433: 23794.95222 | R433: 24270.85127 | S433: 24756.26829 | T433: 25251.39366 | U433: 25756.42153 | V433: 26271.54996 | W433: 26796.98096 | X433: 231 | Y433: 18033.6 | Z433: =OFFSET(B433,0,$C$51-Map!$T$13+1) -> 26796.98096 | AA433: 24
A434: =Data!B314 -> 25 | B434: =HLOOKUP($A$1,Data!$C$1:$AI$379,$X434,FALSE) -> 18200 | C434: 18564 | D434: 18935.28 | E434: 19313.9856 | F434: 19700.26531 | G434: 20094.27062 | H434: 20496.15603 | I434: 20906.07915 | J434: 21324.20073 | K434: 21750.68475 | L434: 22185.69844 | M434: 22629.41241 | N434: 23082.00066 | O434: 23543.64067 | P434: 24014.51349 | Q434: 24494.80376 | R434: 24984.69983 | S434: 25484.39383 | T434: 25994.08171 | U434: 26513.96334 | V434: 27044.24261 | W434: 27585.12746 | X434: 232 | Y434: 18564 | Z434: =OFFSET(B434,0,$C$51-Map!$T$13+1) -> 27585.12746 | AA434: 25
A435: =Data!B315 -> 26 | B435: =HLOOKUP($A$1,Data!$C$1:$AI$379,$X435,FALSE) -> 18200 | C435: 18564 | D435: 18935.28 | E435: 19313.9856 | F435: 19700.26531 | G435: 20094.27062 | H435: 20496.15603 | I435: 20906.07915 | J435: 21324.20073 | K435: 21750.68475 | L435: 22185.69844 | M435: 22629.41241 | N435: 23082.00066 | O435: 23543.64067 | P435: 24014.51349 | Q435: 24494.80376 | R435: =Q435*(1+R$407+(-(50-$A435)*(R$408/40))) -> 24984.69983 | S435: 25484.39383 | T435: 25994.08171 | U435: 26513.96334 | V435: 27044.24261 | W435: 27585.12746 | X435: 233 | Y435: 18564 | Z435: =OFFSET(B435,0,$C$51-Map!$T$13+1) -> 27585.12746 | AA435: 26
A436: =Data!B316 -> 27 | B436: =HLOOKUP($A$1,Data!$C$1:$AI$379,$X436,FALSE) -> 18720 | C436: =B436*(1+C$407+(-(50-$A436)*(C$408/40))) -> 19094.4 | D436: 19476.288 | E436: 19865.81376 | F436: 20263.13004 | G436: 20668.39264 | H436: 21081.76049 | I436: 21503.3957 | J436: 21933.46361 | K436: 22372.13288 | L436: 22819.57554 | M436: 23275.96705 | N436: 23741.48639 | O436: 24216.31612 | P436: 24700.64244 | Q436: 25194.65529 | R436: 25698.5484 | S436: 26212.51937 | T436: 26736.76975 | U436: 27271.50515 | V436: 27816.93525 | W436: 28373.27396 | X436: 234 | Y436: 19094.4 | Z436: =OFFSET(B436,0,$C$51-Map!$T$13+1) -> 28373.27396 | AA436: 27
A437: =Data!B317 -> 28 | B437: =HLOOKUP($A$1,Data!$C$1:$AI$379,$X437,FALSE) -> 19240 | C437: 19624.8 | D437: 20017.296 | E437: 20417.64192 | F437: 20825.99476 | G437: 21242.51465 | H437: 21667.36495 | I437: 22100.71225 | J437: 22542.72649 | K437: 22993.58102 | L437: 23453.45264 | M437: 23922.52169 | N437: 24400.97213 | O437: 24888.99157 | P437: 25386.7714 | Q437: 25894.50683 | R437: 26412.39697 | S437: 26940.64491 | T437: 27479.4578 | U437: 28029.04696 | V437: 28589.6279 | W437: 29161.42046 | X437: 235 | Y437: 19624.8 | Z437: =OFFSET(B437,0,$C$51-Map!$T$13+1) -> 29161.42046 | AA437: 28
A438: =Data!B318 -> 29 | B438: =HLOOKUP($A$1,Data!$C$1:$AI$379,$X438,FALSE) -> 19760 | C438: 20155.2 | D438: 20558.304 | E438: 20969.47008 | F438: 21388.85948 | G438: 21816.63667 | H438: 22252.9694 | I438: 22698.02879 | J438: 23151.98937 | K438: 23615.02916 | L438: 24087.32974 | M438: 24569.07633 | N438: 25060.45786 | O438: 25561.66702 | P438: 26072.90036 | Q438: 26594.35837 | R438: 27126.24553 | S438: 27668.77044 | T438: 28222.14585 | U438: 28786.58877 | V438: 29362.32054 | W438: 29949.56696 | X438: 236 | Y438: 20155.2 | Z438: =OFFSET(B438,0,$C$51-Map!$T$13+1) -> 29949.56696 | AA438: 29
A439: =Data!B319 -> 30 | B439: =HLOOKUP($A$1,Data!$C$1:$AI$379,$X439,FALSE) -> 20280 | C439: 20685.6 | D439: 21099.312 | E439: 21521.29824 | F439: 21951.7242 | G439: 22390.75869 | H439: 22838.57386 | I439: 23295.34534 | J439: 23761.25225 | K439: 24236.47729 | L439: 24721.20684 | M439: 25215.63097 | N439: 25719.94359 | O439: 26234.34247 | P439: 26759.02931 | Q439: 27294.2099 | R439: 27840.0941 | S439: 28396.89598 | T439: 28964.8339 | U439: 29544.13058 | V439: 30135.01319 | W439: 30737.71345 | X439: 237 | Y439: 20685.6 | Z439: =OFFSET(B439,0,$C$51-Map!$T$13+1) -> 30737.71345 | AA439: 30
A440: =Data!B320 -> 31 | B440: =HLOOKUP($A$1,Data!$C$1:$AI$379,$X440,FALSE) -> 20800 | C440: 21216 | D440: 21640.32 | E440: 22073.1264 | F440: 22514.58893 | G440: 22964.88071 | H440: 23424.17832 | I440: 23892.66189 | J440: 24370.51512 | K440: 24857.92543 | L440: 25355.08394 | M440: 25862.18561 | N440: 26379.42933 | O440: 26907.01791 | P440: 27445.15827 | Q440: 27994.06144 | R440: 28553.94267 | S440: 29125.02152 | T440: 29707.52195 | U440: 30301.67239 | V440: 30907.70584 | W440: 31525.85995 | X440: 238 | Y440: 21216 | Z440: =OFFSET(B440,0,$C$51-Map!$T$13+1) -> 31525.85995 | AA440: 31
A441: =Data!B321 -> 32 | B441: =HLOOKUP($A$1,Data!$C$1:$AI$379,$X441,FALSE) -> 21320 | C441: 21746.4 | D441: 22181.328 | E441: 22624.95456 | F441: 23077.45365 | G441: 23539.00272 | H441: 24009.78278 | I441: 24489.97843 | J441: 24979.778 | K441: 25479.37356 | L441: 25988.96103 | M441: 26508.74025 | N441: 27038.91506 | O441: 27579.69336 | P441: 28131.28723 | Q441: 28693.91297 | R441: 29267.79123 | S441: 29853.14706 | T441: 30450.21 | U441: 31059.2142 | V441: 31680.39848 | W441: 32314.00645 | X441: 239 | Y441: 21746.4 | Z441: =OFFSET(B441,0,$C$51-Map!$T$13+1) -> 32314.00645 | AA441: 32
A442: =Data!B322 -> 33 | B442: =HLOOKUP($A$1,Data!$C$1:$AI$379,$X442,FALSE) -> 21840 | C442: 22276.8 | D442: 22722.336 | E442: 23176.78272 | F442: 23640.31837 | G442: 24113.12474 | H442: 24595.38724 | I442: 25087.29498 | J442: 25589.04088 | K442: 26100.8217 | L442: 26622.83813 | M442: 27155.2949 | N442: 27698.40079 | O442: 28252.36881 | P442: 28817.41619 | Q442: 29393.76451 | R442: 29981.6398 | S442: 30581.2726 | T442: 31192.89805 | U442: 31816.75601 | V442: 32453.09113 | W442: 33102.15295 | X442: 240 | Y442: 22276.8 | Z442: =OFFSET(B442,0,$C$51-Map!$T$13+1) -> 33102.15295 | AA442: 33
A443: =Data!B323 -> 34 | B443: =HLOOKUP($A$1,Data!$C$1:$AI$379,$X443,FALSE) -> 22360 | C443: 22807.2 | D443: 23263.344 | E443: 23728.61088 | F443: 24203.1831 | G443: 24687.24676 | H443: 25180.99169 | I443: 25684.61153 | J443: 26198.30376 | K443: 26722.26983 | L443: 27256.71523 | M443: 27801.84954 | N443: 28357.88653 | O443: 28925.04426 | P443: 29503.54514 | Q443: 30093.61604 | R443: 30695.48837 | S443: 31309.39813 | T443: 31935.5861 | U443: 32574.29782 | V443: 33225.78377 | W443: 33890.29945 | X443: 241 | Y443: 22807.2 | Z443: =OFFSET(B443,0,$C$51-Map!$T$13+1) -> 33890.29945 | AA443: 34
A444: =Data!B324 -> 35 | B444: =HLOOKUP($A$1,Data!$C$1:$AI$379,$X444,FALSE) -> 22360 | C444: 22807.2 | D444: 23263.344 | E444: 23728.61088 | F444: 24203.1831 | G444: 24687.24676 | H444: 25180.99169 | I444: 25684.61153 | J444: 26198.30376 | K444: 26722.26983 | L444: 27256.71523 | M444: 27801.84954 | N444: 28357.88653 | O444: 28925.04426 | P444: 29503.54514 | Q444: 30093.61604 | R444: 30695.48837 | S444: 31309.39813 | T444: 31935.5861 | U444: 32574.29782 | V444: 33225.78377 | W444: 33890.29945 | X444: 242 | Y444: 22807.2 | Z444: =OFFSET(B444,0,$C$51-Map!$T$13+1) -> 33890.29945 | AA444: 35
A445: =Data!B325 -> 36 | B445: =HLOOKUP($A$1,Data!$C$1:$AI$379,$X445,FALSE) -> 22880 | C445: 23337.6 | D445: 23804.352 | E445: 24280.43904 | F445: 24766.04782 | G445: 25261.36878 | H445: 25766.59615 | I445: 26281.92808 | J445: 26807.56664 | K445: 27343.71797 | L445: 27890.59233 | M445: 28448.40418 | N445: 29017.37226 | O445: 29597.7197 | P445: 30189.6741 | Q445: 30793.46758 | R445: 31409.33693 | S445: 32037.52367 | T445: 32678.27414 | U445: 33331.83963 | V445: 33998.47642 | W445: 34678.44595 | X445: 243 | Y445: 23337.6 | Z445: =OFFSET(B445,0,$C$51-Map!$T$13+1) -> 34678.44595 | AA445: 36
A446: =Data!B326 -> 37 | B446: =HLOOKUP($A$1,Data!$C$1:$AI$379,$X446,FALSE) -> 23400 | C446: 23868 | D446: 24345.36 | E446: 24832.2672 | F446: 25328.91254 | G446: 25835.49079 | H446: 26352.20061 | I446: 26879.24462 | J446: 27416.82952 | K446: 27965.16611 | L446: 28524.46943 | M446: 29094.95882 | N446: 29676.85799 | O446: 30270.39515 | P446: 30875.80306 | Q446: 31493.31912 | R446: 32123.1855 | S446: 32765.64921 | T446: 33420.96219 | U446: 34089.38144 | V446: 34771.16907 | W446: 35466.59245 | X446: 244 | Y446: 23868 | Z446: =OFFSET(B446,0,$C$51-Map!$T$13+1) -> 35466.59245 | AA446: 37
A447: =Data!B327 -> 38 | B447: =HLOOKUP($A$1,Data!$C$1:$AI$379,$X447,FALSE) -> 23920 | C447: 24398.4 | D447: 24886.368 | E447: 25384.09536 | F447: 25891.77727 | G447: 26409.61281 | H447: 26937.80507 | I447: 27476.56117 | J447: 28026.09239 | K447: 28586.61424 | L447: 29158.34653 | M447: 29741.51346 | N447: 30336.34373 | O447: 30943.0706 | P447: 31561.93201 | Q447: 32193.17065 | R447: 32837.03407 | S447: 33493.77475 | T447: 34163.65024 | U447: 34846.92325 | V447: 35543.86171 | W447: 36254.73895 | X447: 245 | Y447: 24398.4 | Z447: =OFFSET(B447,0,$C$51-Map!$T$13+1) -> 36254.73895 | AA447: 38
A448: =Data!B328 -> 39 | B448: =HLOOKUP($A$1,Data!$C$1:$AI$379,$X448,FALSE) -> 24440 | C448: 24928.8 | D448: 25427.376 | E448: 25935.92352 | F448: 26454.64199 | G448: 26983.73483 | H448: 27523.40953 | I448: 28073.87772 | J448: 28635.35527 | K448: 29208.06238 | L448: 29792.22362 | M448: 30388.0681 | N448: 30995.82946 | O448: 31615.74605 | P448: 32248.06097 | Q448: 32893.02219 | R448: 33550.88263 | S448: 34221.90029 | T448: 34906.33829 | U448: 35604.46506 | V448: 36316.55436 | W448: 37042.88544 | X448: 246 | Y448: 24928.8 | Z448: =OFFSET(B448,0,$C$51-Map!$T$13+1) -> 37042.88544 | AA448: 39
A449: =Data!B329 -> 40 | B449: =HLOOKUP($A$1,Data!$C$1:$AI$379,$X449,FALSE) -> 24960 | C449: 25459.2 | D449: 25968.384 | E449: 26487.75168 | F449: 27017.50671 | G449: 27557.85685 | H449: 28109.01398 | I449: 28671.19426 | J449: 29244.61815 | K449: 29829.51051 | L449: 30426.10072 | M449: 31034.62274 | N449: 31655.31519 | O449: 32288.4215 | P449: 32934.18993 | Q449: 33592.87372 | R449: 34264.7312 | S449: 34950.02582 | T449: 35649.02634 | U449: 36362.00687 | V449: 37089.247 | W449: 37831.03194 | X449: 247 | Y449: 25459.2 | Z449: =OFFSET(B449,0,$C$51-Map!$T$13+1) -> 37831.03194 | AA449: 40
A450: =Data!B330 -> 41 | B450: =HLOOKUP($A$1,Data!$C$1:$AI$379,$X450,FALSE) -> 25480 | C450: 25989.6 | D450: 26509.392 | E450: 27039.57984 | F450: 27580.37144 | G450: 28131.97887 | H450: 28694.61844 | I450: 29268.51081 | J450: 29853.88103 | K450: 30450.95865 | L450: 31059.97782 | M450: 31681.17738 | N450: 32314.80093 | O450: 32961.09694 | P450: 33620.31888 | Q450: 34292.72526 | R450: 34978.57977 | S450: 35678.15136 | T450: 36391.71439 | U450: 37119.54868 | V450: 37861.93965 | W450: 38619.17844 | X450: 248 | Y450: 25989.6 | Z450: =OFFSET(B450,0,$C$51-Map!$T$13+1) -> 38619.17844 | AA450: 41
A451: =Data!B331 -> 42 | B451: =HLOOKUP($A$1,Data!$C$1:$AI$379,$X451,FALSE) -> 26000 | C451: 26520 | D451: 27050.4 | E451: 27591.408 | F451: 28143.23616 | G451: 28706.10088 | H451: 29280.2229 | I451: 29865.82736 | J451: 30463.14391 | K451: 31072.40678 | L451: 31693.85492 | M451: 32327.73202 | N451: 32974.28666 | O451: 33633.77239 | P451: 34306.44784 | Q451: 34992.5768 | R451: 35692.42833 | S451: =R451*(1+S$407+(-(50-$A451)*(S$408/40))) -> 36406.2769 | T451: 37134.40244 | U451: 37877.09049 | V451: 38634.6323 | W451: 39407.32494 | X451: 249 | Y451: 26520 | Z451: =OFFSET(B451,0,$C$51-Map!$T$13+1) -> 39407.32494 | AA451: 42
A452: =Data!B332 -> 43 | B452: =HLOOKUP($A$1,Data!$C$1:$AI$379,$X452,FALSE) -> 26520 | C452: =B452*(1+C$407+(-(50-$A452)*(C$408/40))) -> 27050.4 | D452: 27591.408 | E452: 28143.23616 | F452: 28706.10088 | G452: 29280.2229 | H452: 29865.82736 | I452: 30463.14391 | J452: 31072.40678 | K452: 31693.85492 | L452: 32327.73202 | M452: 32974.28666 | N452: 33633.77239 | O452: 34306.44784 | P452: 34992.5768 | Q452: 35692.42833 | R452: 36406.2769 | S452: 37134.40244 | T452: 37877.09049 | U452: 38634.6323 | V452: 39407.32494 | W452: 40195.47144 | X452: 250 | Y452: 27050.4 | Z452: =OFFSET(B452,0,$C$51-Map!$T$13+1) -> 40195.47144 | AA452: 43
A453: =Data!B333 -> 44 | B453: =HLOOKUP($A$1,Data!$C$1:$AI$379,$X453,FALSE) -> 27040 | C453: 27580.8 | D453: 28132.416 | E453: 28695.06432 | F453: 29268.96561 | G453: 29854.34492 | H453: 30451.43182 | I453: 31060.46045 | J453: 31681.66966 | K453: 32315.30306 | L453: 32961.60912 | M453: 33620.8413 | N453: 34293.25812 | O453: 34979.12329 | P453: 35678.70575 | Q453: 36392.27987 | R453: 37120.12547 | S453: 37862.52797 | T453: 38619.77853 | U453: 39392.17411 | V453: 40180.01759 | W453: 40983.61794 | X453: 251 | Y453: 27580.8 | Z453: =OFFSET(B453,0,$C$51-Map!$T$13+1) -> 40983.61794 | AA453: 44
A454: =Data!B334 -> 45 | B454: =HLOOKUP($A$1,Data!$C$1:$AI$379,$X454,FALSE) -> 27560 | C454: 28111.2 | D454: 28673.424 | E454: 29246.89248 | F454: 29831.83033 | G454: 30428.46694 | H454: 31037.03627 | I454: 31657.777 | J454: 32290.93254 | K454: 32936.75119 | L454: 33595.48622 | M454: 34267.39594 | N454: 34952.74386 | O454: 35651.79874 | P454: 36364.83471 | Q454: 37092.1314 | R454: 37833.97403 | S454: 38590.65351 | T454: 39362.46658 | U454: 40149.71591 | V454: 40952.71023 | W454: 41771.76444 | X454: 252 | Y454: 28111.2 | Z454: =OFFSET(B454,0,$C$51-Map!$T$13+1) -> 41771.76444 | AA454: 45
A455: =Data!B335 -> 46 | B455: =HLOOKUP($A$1,Data!$C$1:$AI$379,$X455,FALSE) -> 28600 | C455: 29172 | D455: 29755.44 | E455: 30350.5488 | F455: 30957.55978 | G455: 31576.71097 | H455: 32208.24519 | I455: 32852.41009 | J455: 33509.4583 | K455: 34179.64746 | L455: 34863.24041 | M455: 35560.50522 | N455: 36271.71532 | O455: 36997.14963 | P455: 37737.09262 | Q455: 38491.83448 | R455: 39261.67117 | S455: 40046.90459 | T455: 40847.84268 | U455: 41664.79953 | V455: 42498.09552 | W455: 43348.05744 | X455: 253 | Y455: 29172 | Z455: =OFFSET(B455,0,$C$51-Map!$T$13+1) -> 43348.05744 | AA455: 46
A456: =Data!B336 -> 47 | B456: =HLOOKUP($A$1,Data!$C$1:$AI$379,$X456,FALSE) -> 29120 | C456: 29702.4 | D456: 30296.448 | E456: 30902.37696 | F456: 31520.4245 | G456: 32150.83299 | H456: 32793.84965 | I456: 33449.72664 | J456: 34118.72117 | K456: 34801.0956 | L456: 35497.11751 | M456: 36207.05986 | N456: 36931.20106 | O456: 37669.82508 | P456: 38423.22158 | Q456: 39191.68601 | R456: 39975.51973 | S456: 40775.03013 | T456: 41590.53073 | U456: 42422.34134 | V456: 43270.78817 | W456: 44136.20393 | X456: 254 | Y456: 29702.4 | Z456: =OFFSET(B456,0,$C$51-Map!$T$13+1) -> 44136.20393 | AA456: 47
A457: =Data!B337 -> 48 | B457: =HLOOKUP($A$1,Data!$C$1:$AI$379,$X457,FALSE) -> 29640 | C457: 30232.8 | D457: 30837.456 | E457: 31454.20512 | F457: 32083.28922 | G457: 32724.95501 | H457: 33379.45411 | I457: 34047.04319 | J457: 34727.98405 | K457: 35422.54373 | L457: 36130.99461 | M457: 36853.6145 | N457: 37590.68679 | O457: 38342.50053 | P457: 39109.35054 | Q457: 39891.53755 | R457: 40689.3683 | S457: 41503.15566 | T457: 42333.21878 | U457: 43179.88315 | V457: 44043.48082 | W457: 44924.35043 | X457: 255 | Y457: 30232.8 | Z457: =OFFSET(B457,0,$C$51-Map!$T$13+1) -> 44924.35043 | AA457: 48
A458: =Data!B338 -> 49 | B458: =HLOOKUP($A$1,Data!$C$1:$AI$379,$X458,FALSE) -> 30160 | C458: 30763.2 | D458: 31378.464 | E458: 32006.03328 | F458: 32646.15395 | G458: 33299.07702 | H458: 33965.05857 | I458: 34644.35974 | J458: 35337.24693 | K458: 36043.99187 | L458: 36764.87171 | M458: 37500.16914 | N458: 38250.17252 | O458: 39015.17597 | P458: 39795.47949 | Q458: 40591.38908 | R458: 41403.21687 | S458: 42231.2812 | T458: 43075.90683 | U458: 43937.42496 | V458: 44816.17346 | W458: 45712.49693 | X458: 256 | Y458: 30763.2 | Z458: =OFFSET(B458,0,$C$51-Map!$T$13+1) -> 45712.49693 | AA458: 49
A459: =Data!B339 -> 50 | B459: =HLOOKUP($A$1,Data!$C$1:$AI$379,$X459,FALSE) -> 30680 | C459: 31293.6 | D459: 31919.472 | E459: 32557.86144 | F459: 33209.01867 | G459: 33873.19904 | H459: 34550.66302 | I459: 35241.67628 | J459: 35946.50981 | K459: 36665.44001 | L459: 37398.74881 | M459: 38146.72378 | N459: 38909.65826 | O459: 39687.85142 | P459: 40481.60845 | Q459: 41291.24062 | R459: 42117.06543 | S459: 42959.40674 | T459: 43818.59488 | U459: 44694.96677 | V459: 45588.86611 | W459: 46500.64343 | X459: 257 | Y459: 31293.6 | Z459: =OFFSET(B459,0,$C$51-Map!$T$13+1) -> 46500.64343 | AA459: 50
A460: =Data!B340 -> 51 | B460: =HLOOKUP($A$1,Data!$C$1:$AI$379,$X460,FALSE) -> 31200 | C460: 31824 | D460: 32460.48 | E460: 33109.6896 | F460: 33771.88339 | G460: 34447.32106 | H460: 35136.26748 | I460: 35838.99283 | J460: 36555.77269 | K460: 37286.88814 | L460: 38032.6259 | M460: 38793.27842 | N460: 39569.14399 | O460: 40360.52687 | P460: 41167.73741 | Q460: 41991.09216 | R460: 42830.914 | S460: 43687.53228 | T460: 44561.28292 | U460: 45452.50858 | V460: 46361.55875 | W460: 47288.78993 | X460: 258 | Y460: 31824 | Z460: =OFFSET(B460,0,$C$51-Map!$T$13+1) -> 47288.78993 | AA460: 51
A461: =Data!B341 -> 52 | B461: =HLOOKUP($A$1,Data!$C$1:$AI$379,$X461,FALSE) -> 31720 | C461: 32354.4 | D461: 33001.488 | E461: 33661.51776 | F461: 34334.74812 | G461: 35021.44308 | H461: 35721.87194 | I461: 36436.30938 | J461: 37165.03557 | K461: 37908.33628 | L461: 38666.503 | M461: 39439.83306 | N461: 40228.62972 | O461: 41033.20232 | P461: 41853.86636 | Q461: 42690.94369 | R461: 43544.76257 | S461: 44415.65782 | T461: 45303.97097 | U461: 46210.05039 | V461: 47134.2514 | W461: 48076.93643 | X461: 259 | Y461: 32354.4 | Z461: =OFFSET(B461,0,$C$51-Map!$T$13+1) -> 48076.93643 | AA461: 52
A462: =Data!B342 -> 53 | B462: =HLOOKUP($A$1,Data!$C$1:$AI$379,$X462,FALSE) -> 32240 | C462: 32884.8 | D462: 33542.496 | E462: 34213.34592 | F462: 34897.61284 | G462: 35595.5651 | H462: 36307.4764 | I462: 37033.62593 | J462: 37774.29844 | K462: 38529.78441 | L462: 39300.3801 | M462: 40086.3877 | N462: 40888.11546 | O462: 41705.87777 | P462: 42539.99532 | Q462: 43390.79523 | R462: 44258.61113 | S462: 45143.78335 | T462: 46046.65902 | U462: 46967.5922 | V462: 47906.94405 | W462: 48865.08293 | X462: 260 | Y462: 32884.8 | Z462: =OFFSET(B462,0,$C$51-Map!$T$13+1) -> 48865.08293 | AA462: 53
A463: =Data!B343 -> 54 | B463: =HLOOKUP($A$1,Data!$C$1:$AI$379,$X463,FALSE) -> 33280 | C463: 33945.6 | D463: 34624.512 | E463: 35317.00224 | F463: 36023.34228 | G463: 36743.80913 | H463: 37478.68531 | I463: 38228.25902 | J463: 38992.8242 | K463: 39772.68068 | L463: 40568.1343 | M463: 41379.49698 | N463: 42207.08692 | O463: 43051.22866 | P463: 43912.25323 | Q463: 44790.4983 | R463: 45686.30827 | S463: 46600.03443 | T463: 47532.03512 | U463: 48482.67582 | V463: 49452.32934 | W463: 50441.37592 | X463: 261 | Y463: 33945.6 | Z463: =OFFSET(B463,0,$C$51-Map!$T$13+1) -> 50441.37592 | AA463: 54
A464: =Data!B344 -> 55 | B464: =HLOOKUP($A$1,Data!$C$1:$AI$379,$X464,FALSE) -> 33800 | C464: 34476 | D464: 35165.52 | E464: 35868.8304 | F464: 36586.20701 | G464: 37317.93115 | H464: 38064.28977 | I464: 38825.57557 | J464: 39602.08708 | K464: 40394.12882 | L464: 41202.0114 | M464: 42026.05162 | N464: 42866.57266 | O464: 43723.90411 | P464: 44598.38219 | Q464: 45490.34984 | R464: 46400.15683 | S464: 47328.15997 | T464: 48274.72317 | U464: 49240.21763 | V464: 50225.02198 | W464: 51229.52242 | X464: 262 | Y464: 34476 | Z464: =OFFSET(B464,0,$C$51-Map!$T$13+1) -> 51229.52242 | AA464: 55
A465: =Data!B345 -> 56 | B465: =HLOOKUP($A$1,Data!$C$1:$AI$379,$X465,FALSE) -> 34320 | C465: 35006.4 | D465: 35706.528 | E465: 36420.65856 | F465: 37149.07173 | G465: 37892.05317 | H465: 38649.89423 | I465: 39422.89211 | J465: 40211.34996 | K465: 41015.57696 | L465: 41835.88849 | M465: 42672.60626 | N465: 43526.05839 | O465: 44396.57956 | P465: 45284.51115 | Q465: 46190.20137 | R465: 47114.0054 | S465: 48056.28551 | T465: 49017.41122 | U465: 49997.75944 | V465: 50997.71463 | W465: 52017.66892 | X465: 263 | Y465: 35006.4 | Z465: =OFFSET(B465,0,$C$51-Map!$T$13+1) -> 52017.66892 | AA465: 56
A466: =Data!B346 -> 57 | B466: =HLOOKUP($A$1,Data!$C$1:$AI$379,$X466,FALSE) -> 34840 | C466: 35536.8 | D466: 36247.536 | E466: 36972.48672 | F466: 37711.93645 | G466: 38466.17518 | H466: 39235.49869 | I466: 40020.20866 | J466: 40820.61283 | K466: 41637.02509 | L466: 42469.76559 | M466: 43319.1609 | N466: 44185.54412 | O466: 45069.25501 | P466: 45970.64011 | Q466: 46890.05291 | R466: 47827.85397 | S466: 48784.41104 | T466: 49760.09927 | U466: 50755.30125 | V466: 51770.40728 | W466: 52805.81542 | X466: 264 | Y466: 35536.8 | Z466: =OFFSET(B466,0,$C$51-Map!$T$13+1) -> 52805.81542 | AA466: 57
A467: =Data!B347 -> 58 | B467: =HLOOKUP($A$1,Data!$C$1:$AI$379,$X467,FALSE) -> 35880 | C467: 36597.6 | D467: 37329.552 | E467: 38076.14304 | F467: 38837.6659 | G467: 39614.41922 | H467: 40406.7076 | I467: 41214.84176 | J467: 42039.13859 | K467: 42879.92136 | L467: 43737.51979 | M467: 44612.27019 | N467: 45504.51559 | O467: 46414.6059 | P467: 47342.89802 | Q467: 48289.75598 | R467: 49255.5511 | S467: =R467*(1+S$407+(-(50-$A467)*(S$408/40))) -> 50240.66212 | T467: 51245.47536 | U467: 52270.38487 | V467: 53315.79257 | W467: 54382.10842 | X467: 265 | Y467: 36597.6 | Z467: =OFFSET(B467,0,$C$51-Map!$T$13+1) -> 54382.10842 | AA467: 58
A468: =Data!B348 -> 59 | B468: =HLOOKUP($A$1,Data!$C$1:$AI$379,$X468,FALSE) -> 36400 | C468: =B468*(1+C$407+(-(50-$A468)*(C$408/40))) -> 37128 | D468: 37870.56 | E468: 38627.9712 | F468: 39400.53062 | G468: 40188.54124 | H468: 40992.31206 | I468: 41812.1583 | J468: 42648.40147 | K468: 43501.3695 | L468: 44371.39689 | M468: 45258.82483 | N468: 46164.00132 | O468: 47087.28135 | P468: 48029.02698 | Q468: 48989.60751 | R468: 49969.39967 | S468: 50968.78766 | T468: 51988.16341 | U468: 53027.92668 | V468: 54088.48521 | W468: 55170.25492 | X468: 266 | Y468: 37128 | Z468: =OFFSET(B468,0,$C$51-Map!$T$13+1) -> 55170.25492 | AA468: 59
A469: =Data!B349 -> 60 | B469: =HLOOKUP($A$1,Data!$C$1:$AI$379,$X469,FALSE) -> 36920 | C469: 37658.4 | D469: 38411.568 | E469: 39179.79936 | F469: 39963.39535 | G469: 40762.66325 | H469: 41577.91652 | I469: 42409.47485 | J469: 43257.66435 | K469: 44122.81763 | L469: 45005.27399 | M469: 45905.37947 | N469: 46823.48706 | O469: 47759.9568 | P469: 48715.15593 | Q469: 49689.45905 | R469: 50683.24823 | S469: 51696.9132 | T469: 52730.85146 | U469: 53785.46849 | V469: 54861.17786 | W469: 55958.40142 | X469: 267 | Y469: 37658.4 | Z469: =OFFSET(B469,0,$C$51-Map!$T$13+1) -> 55958.40142 | AA469: 60
A470: =Data!B350 -> 61 | B470: =HLOOKUP($A$1,Data!$C$1:$AI$379,$X470,FALSE) -> 37960 | C470: 38719.2 | D470: 39493.584 | E470: 40283.45568 | F470: 41089.12479 | G470: 41910.90729 | H470: 42749.12544 | I470: 43604.10794 | J470: 44476.1901 | K470: 45365.7139 | L470: 46273.02818 | M470: 47198.48875 | N470: 48142.45852 | O470: 49105.30769 | P470: 50087.41385 | Q470: 51089.16212 | R470: 52110.94537 | S470: 53153.16427 | T470: 54216.22756 | U470: 55300.55211 | V470: 56406.56315 | W470: 57534.69441 | X470: 268 | Y470: 38719.2 | Z470: =OFFSET(B470,0,$C$51-Map!$T$13+1) -> 57534.69441 | AA470: 61
A471: =Data!B351 -> 62 | B471: =HLOOKUP($A$1,Data!$C$1:$AI$379,$X471,FALSE) -> 38480 | C471: 39249.6 | D471: 40034.592 | E471: 40835.28384 | F471: 41651.98952 | G471: 42485.02931 | H471: 43334.72989 | I471: 44201.42449 | J471: 45085.45298 | K471: 45987.16204 | L471: 46906.90528 | M471: 47845.04339 | N471: 48801.94425 | O471: 49777.98314 | P471: 50773.5428 | Q471: 51789.01366 | R471: 52824.79393 | S471: 53881.28981 | T471: 54958.91561 | U471: 56058.09392 | V471: 57179.2558 | W471: 58322.84091 | X471: 269 | Y471: 39249.6 | Z471: =OFFSET(B471,0,$C$51-Map!$T$13+1) -> 58322.84091 | AA471: 62
A472: =Data!B352 -> 63 | B472: =HLOOKUP($A$1,Data!$C$1:$AI$379,$X472,FALSE) -> 39000 | C472: 39780 | D472: 40575.6 | E472: 41387.112 | F472: 42214.85424 | G472: 43059.15132 | H472: 43920.33435 | I472: 44798.74104 | J472: 45694.71586 | K472: 46608.61018 | L472: 47540.78238 | M472: 48491.59803 | N472: 49461.42999 | O472: 50450.65859 | P472: 51459.67176 | Q472: 52488.86519 | R472: 53538.6425 | S472: 54609.41535 | T472: 55701.60366 | U472: 56815.63573 | V472: 57951.94844 | W472: 59110.98741 | X472: 270 | Y472: 39780 | Z472: =OFFSET(B472,0,$C$51-Map!$T$13+1) -> 59110.98741 | AA472: 63
A473: =Data!B353 -> 64 | B473: =HLOOKUP($A$1,Data!$C$1:$AI$379,$X473,FALSE) -> 40040 | C473: 40840.8 | D473: 41657.616 | E473: 42490.76832 | F473: 43340.58369 | G473: 44207.39536 | H473: 45091.54327 | I473: 45993.37413 | J473: 46913.24162 | K473: 47851.50645 | L473: 48808.53658 | M473: 49784.70731 | N473: 50780.40145 | O473: 51796.00948 | P473: 52831.92967 | Q473: 53888.56827 | R473: 54966.33963 | S473: 56065.66642 | T473: 57186.97975 | U473: 58330.71935 | V473: 59497.33373 | W473: 60687.28041 | X473: 271 | Y473: 40840.8 | Z473: =OFFSET(B473,0,$C$51-Map!$T$13+1) -> 60687.28041 | AA473: 64
A474: =Data!B354 -> 65 | B474: =HLOOKUP($A$1,Data!$C$1:$AI$379,$X474,FALSE) -> 40560 | C474: 41371.2 | D474: 42198.624 | E474: 43042.59648 | F474: 43903.44841 | G474: 44781.51738 | H474: 45677.14773 | I474: 46590.69068 | J474: 47522.50449 | K474: 48472.95458 | L474: 49442.41367 | M474: 50431.26195 | N474: 51439.88719 | O474: 52468.68493 | P474: 53518.05863 | Q474: 54588.4198 | R474: 55680.1882 | S474: 56793.79196 | T474: 57929.6678 | U474: 59088.26116 | V474: 60270.02638 | W474: 61475.42691 | X474: 272 | Y474: 41371.2 | Z474: =OFFSET(B474,0,$C$51-Map!$T$13+1) -> 61475.42691 | AA474: 65
... 118 more rows

Sheet Tool Schematic

Sheet Map
A2: 1 | O2: Area Selection Screen
Q6: 3. PRESS SET AREA
A7: 1 | K7: AberdeenCity | L7: Aberdeen City | M7: =IF($A$2=A7,TRUE,FALSE) -> TRUE | O7: 1. SELECT AREA
A8: =A7+1 -> 2 | K8: Aberdeenshire | L8: Aberdeenshire | M8: =IF($A$2=A8,TRUE,FALSE) -> FALSE
A9: =A8+1 -> 3 | K9: Angus | L9: Angus | M9: FALSE
A10: 4 | K10: ArgyllBute | L10: Argyll & Bute | M10: FALSE
A11: 5 | K11: Clackmannanshire | L11: Clackmannanshire | M11: FALSE | AB11: Instructions | AC11: =O12 -> 2-Aberdeen City Council-Aberdeen HMA
A12: 6 | K12: DumfriesGalloway | L12: Dumfries & Galloway | M12: FALSE | O12: 2-Aberdeen City Council-Aberdeen HMA | Z12: 1 | AA12: =IF(O12<>"",CONCATENATE("S",Z12),"Blank") -> S1 | AB12: All | AC12: =O13 -> 0
A13: 7 | K13: DundeeCity | L13: Dundee City | M13: FALSE | S13: 2. ENTER START YEAR | T13: 2018 | Z13: =Z12+1 -> 2 | AA13: =IF(O13<>"",CONCATENATE("S",Z13),"Blank") -> Blank | AB13: =O12 -> 2-Aberdeen City Council-Aberdeen HMA | AC13: =O14 -> 0
A14: 8 | K14: EastAyrshire | L14: East Ayrshire | M14: FALSE | Z14: =Z13+1 -> 3 | AA14: Blank | AB14: =O13 -> 0 | AC14: =O15 -> 0
A15: 9 | K15: EastDunbartonshire | L15: East Dunbartonshire | M15: FALSE | Z15: 4 | AA15: Blank | AB15: 0 | AC15: 0
A16: 10 | K16: EastLothian | L16: East Lothian | M16: FALSE | Z16: 5 | AA16: Blank | AB16: 0 | AC16: 0
A17: 11 | K17: EastRenfrewshire | L17: East Renfrewshire | M17: FALSE | Z17: 6 | AA17: Blank | AB17: 0 | AC17: 0
A18: 12 | K18: Edinburgh | L18: Edinburgh City | M18: FALSE | Z18: 7 | AA18: Blank | AB18: 0 | AC18: 0
A19: 13 | K19: EileanSiar | L19: Eilean Siar | M19: FALSE | Z19: 8 | AA19: Blank | AB19: 0 | AC19: 0
A20: 14 | K20: Falkirk | L20: Falkirk | M20: FALSE | Z20: 9 | AA20: Blank | AB20: 0 | AC20: 0
A21: 15 | K21: Fife | L21: Fife | M21: FALSE | Z21: 10 | AA21: Blank | AB21: 0 | AC21: 0
A22: 16 | K22: GlasgowCity | L22: Glasgow City | M22: FALSE | Z22: 11 | AA22: Blank | AB22: 0 | AC22: 0
A23: 17 | K23: Highland | L23: Highland | M23: FALSE | Z23: 12 | AA23: Blank | AB23: 0 | AC23: 0
A24: 18 | K24: Inverclyde | L24: Inverclyde | M24: FALSE | Z24: 13 | AA24: Blank | AB24: 0 | AC24: 0
A25: 19 | K25: Midlothian | L25: Midlothian | M25: FALSE | Z25: 14 | AA25: Blank | AB25: 0 | AC25: 0
A26: 20 | K26: Moray | L26: Moray | M26: FALSE | Z26: 15 | AA26: Blank | AB26: 0 | AC26: 0
A27: 21 | K27: NorthAyrshire | L27: North Ayrshire | M27: FALSE | Z27: 16 | AA27: Blank | AB27: 0 | AC27: 0
A28: 22 | K28: NorthLanarkshire | L28: North Lanarkshire | M28: FALSE | Z28: 17 | AA28: Blank | AB28: 0 | AC28: 0
A29: 23 | K29: OrkneyIslands | L29: Orkney Islands | M29: FALSE | Z29: 18 | AA29: Blank | AB29: 0 | AC29: 0
A30: 24 | K30: PerthKinross | L30: Perth & Kinross | M30: FALSE | Z30: 19 | AA30: Blank | AB30: 0 | AC30: 0
A31: 25 | K31: Renfrewshire | L31: Renfrewshire | M31: FALSE | Z31: 20 | AA31: Blank | AB31: 0 | AC31: 0
A32: 26 | K32: ScottishBorders | L32: Scottish Borders | M32: FALSE | Z32: 21 | AA32: =IF(O32<>"",CONCATENATE("S",Z32),"Blank") -> Blank
A33: 27 | K33: ShetlandIslands | L33: Shetland Islands | M33: FALSE | Z33: 22 | AA33: Blank
A34: 28 | K34: SouthAyrshire | L34: South Ayrshire | M34: FALSE | Z34: 23 | AA34: Blank
A35: 29 | K35: SouthLanarkshire | L35: South Lanarkshire | M35: FALSE | Z35: 24 | AA35: Blank
A36: 30 | K36: Stirling | L36: Stirling | M36: FALSE | Z36: 25 | AA36: Blank
A37: 31 | K37: WestDunbartonshire | L37: West Dunbartonshire | M37: FALSE | Z37: 26 | AA37: Blank
A38: 32 | K38: WestLothian | L38: West Lothian | M38: FALSE | Z38: 27 | AA38: Blank
A39: 33 | M39: FALSE | Z39: 28 | AA39: Blank
A40: 34 | K40: Aberdeen/Shire | L40: Aberdeen/Shire | M40: FALSE | Z40: 29 | AA40: Blank
A41: 35 | K41: GCV | L41: GCV | M41: FALSE | Z41: 30 | AA41: Blank
A42: 36 | K42: SESPlan LA | L42: SESPlan LA | M42: FALSE | Z42: 31 | AA42: Blank
A43: 37 | K43: SESPlan HMA | Z43: 32 | AA43: Blank
A44: =A43+1 -> 38 | K44: TayPlan | L44: TayPlan | M44: =IF($A$2=A44,TRUE,FALSE) -> FALSE
A45: 39
A46: =A45+1 -> 40 | K46: Cairngorms | L46: Cairngorms NP | M46: =IF($A$2=A46,TRUE,FALSE) -> FALSE
A47: 41 | K47: Loch Lomond & Trossachs NP | L47: Loch Lomond & Trossachs NP | M47: FALSE
A48: 42 | K48: Loch Lomond & Trossachs NP | L48: Loch Lomond & Trossachs NP | M48: =IF($A$2=A48,TRUE,FALSE) -> FALSE
K60: GreaterDundee | L60: Greater Dundee | M60: =IF($A$2=A46,TRUE,FALSE) -> FALSE
L61: SESPlan HMA | M61: =IF($A$2=A44,TRUE,FALSE) -> FALSE
A89: FALSE
A90: FALSE

Sheet MapCheck (hidden)
C1: Link To Map Sheet | F1: HMA Area Which Get Returned to Map Sheet
F2: 1 | G2: 2 | H2: 3 | I2: 4 | J2: 5 | K2: 6 | L2: 7 | M2: 8 | N2: 9 | O2: 10 | P2: =O2+1 -> 11 | Q2: 12 | R2: 13 | S2: 14 | T2: 15 | U2: 16 | V2: =U2+1 -> 17 | W2: 18 | X2: 19 | Y2: 20 | Z2: 21 | AA2: 22 | AB2: 23 | AC2: 24 | AD2: 25 | AE2: 26 | AF2: 27 | AG2: 28 | AH2: 29 | AI2: 30 | AJ2: 31 | AK2: =AJ2+1 -> 32
C3: =Map!L7 -> Aberdeen City | D3: =Map!K7 -> AberdeenCity | E3: =Map!M7 -> TRUE | F3: 2-Aberdeen City Council-Aberdeen HMA | G3: FALSE | H3: FALSE | I3: FALSE | J3: FALSE | K3: FALSE | L3: FALSE | M3: FALSE | N3: FALSE | O3: FALSE | P3: FALSE | Q3: FALSE | R3: FALSE | S3: FALSE | T3: FALSE | U3: FALSE | V3: FALSE | W3: FALSE | X3: FALSE | Y3: FALSE | Z3: FALSE | AA3: FALSE | AB3: FALSE | AC3: FALSE | AD3: FALSE | AE3: FALSE | AF3: FALSE | AG3: FALSE | AH3: FALSE | AI3: FALSE | AJ3: FALSE | AK3: FALSE
C4: =Map!L8 -> Aberdeenshire | D4: =Map!K8 -> Aberdeenshire | E4: =Map!M8 -> FALSE | F4: 2-Aberdeenshire Council-Aberdeen HMA | G4: 2-Aberdeenshire Council-Rural HMA | H4: FALSE | I4: FALSE | J4: FALSE | K4: FALSE | L4: FALSE | M4: FALSE | N4: FALSE | O4: FALSE | P4: FALSE | Q4: FALSE | R4: FALSE | S4: FALSE | T4: FALSE | U4: FALSE | V4: FALSE | W4: FALSE | X4: FALSE | Y4: FALSE | Z4: FALSE | AA4: FALSE | AB4: FALSE | AC4: FALSE | AD4: FALSE | AE4: FALSE | AF4: FALSE | AG4: FALSE | AH4: FALSE | AI4: FALSE | AJ4: FALSE | AK4: FALSE
C5: =Map!L9 -> Angus | D5: =Map!K9 -> Angus | E5: =Map!M9 -> FALSE | F5: 2-Angus Council-East Angus HMA | G5: 2-Angus Council-Greater Dundee HMA | H5: 2-Angus Council-North Angus HMA | I5: 2-Angus Council-West Angus HMA | J5: FALSE | K5: FALSE | L5: FALSE | M5: FALSE | N5: FALSE | O5: FALSE | P5: FALSE | Q5: FALSE | R5: FALSE | S5: FALSE | T5: FALSE | U5: FALSE | V5: FALSE | W5: FALSE | X5: FALSE | Y5: FALSE | Z5: FALSE | AA5: FALSE | AB5: FALSE | AC5: FALSE | AD5: FALSE | AE5: FALSE | AF5: FALSE | AG5: FALSE | AH5: FALSE | AI5: FALSE | AJ5: FALSE | AK5: FALSE
C6: =Map!L10 -> Argyll & Bute | D6: =Map!K10 -> ArgyllBute | E6: =Map!M10 -> FALSE | F6: 2-Argyll & Bute Council-Bute HMA | G6: 2-Argyll & Bute Council-Coll & Tiree HMA | H6: 2-Argyll & Bute Council-Cowal HMA | I6: 2-Argyll & Bute Council-Helensburgh & Lomond HMA | J6: 2-Argyll & Bute Council-Islay, Jura & Colonsay HMA | K6: 2-Argyll & Bute Council-Kintyre HMA | L6: 2-Argyll & Bute Council-Lorn & Inner Isles HMA | M6: 2-Argyll & Bute Council-Mid Argyll HMA | N6: 2-Argyll & Bute Council-Mull & Iona HMA | O6: FALSE | P6: FALSE | Q6: FALSE | R6: FALSE | S6: FALSE | T6: FALSE | U6: FALSE | V6: FALSE | W6: FALSE | X6: FALSE | Y6: FALSE | Z6: FALSE | AA6: FALSE | AB6: FALSE | AC6: FALSE | AD6: FALSE | AE6: FALSE | AF6: FALSE | AG6: FALSE | AH6: FALSE | AI6: FALSE | AJ6: FALSE | AK6: FALSE
C7: =Map!L11 -> Clackmannanshire | D7: =Map!K11 -> Clackmannanshire | E7: =Map!M11 -> FALSE | F7: 2-Clackmannanshire Council-Alloa HMA | G7: 2-Clackmannanshire Council-Dollar HMA | H7: 2-Clackmannanshire Council-Hillsfoot HMA | I7: FALSE | J7: FALSE | K7: FALSE | L7: FALSE | M7: FALSE | N7: FALSE | O7: FALSE | P7: FALSE | Q7: FALSE | R7: FALSE | S7: FALSE | T7: FALSE | U7: FALSE | V7: FALSE | W7: FALSE | X7: FALSE | Y7: FALSE | Z7: FALSE | AA7: FALSE | AB7: FALSE | AC7: FALSE | AD7: FALSE | AE7: FALSE | AF7: FALSE | AG7: FALSE | AH7: FALSE | AI7: FALSE | AJ7: FALSE | AK7: FALSE
C8: =Map!L12 -> Dumfries & Galloway | D8: =Map!K12 -> DumfriesGalloway | E8: =Map!M12 -> FALSE | F8: 2-Dumfries & Galloway Council-Annan HMA | G8: 2-Dumfries & Galloway Council-Dumfries HMA | H8: 2-Dumfries & Galloway Council-Eskdale HMA | I8: 2-Dumfries & Galloway Council-Mid Galloway HMA | J8: 2-Dumfries & Galloway Council-Stewarty HMA | K8: 2-Dumfries & Galloway Council-Stranraer HMA | L8: FALSE | M8: FALSE | N8: FALSE | O8: FALSE | P8: FALSE | Q8: FALSE | R8: FALSE | S8: FALSE | T8: FALSE | U8: FALSE | V8: FALSE | W8: FALSE | X8: FALSE | Y8: FALSE | Z8: FALSE | AA8: FALSE | AB8: FALSE | AC8: FALSE | AD8: FALSE | AE8: FALSE | AF8: FALSE | AG8: FALSE | AH8: FALSE | AI8: FALSE | AJ8: FALSE | AK8: FALSE
C9: =Map!L13 -> Dundee City | D9: =Map!K13 -> DundeeCity | E9: =Map!M13 -> FALSE | F9: 2-Dundee City HMA | G9: FALSE | H9: FALSE | I9: FALSE | J9: FALSE | K9: FALSE | L9: FALSE | M9: FALSE | N9: FALSE | O9: FALSE | P9: FALSE | Q9: FALSE | R9: FALSE | S9: FALSE | T9: FALSE | U9: FALSE | V9: FALSE | W9: FALSE | X9: FALSE | Y9: FALSE | Z9: FALSE | AA9: FALSE | AB9: FALSE | AC9: FALSE | AD9: FALSE | AE9: FALSE | AF9: FALSE | AG9: FALSE | AH9: FALSE | AI9: FALSE | AJ9: FALSE | AK9: FALSE
C10: =Map!L14 -> East Ayrshire | D10: =Map!K14 -> EastAyrshire | E10: =Map!M14 -> FALSE | F10: 2-East Ayrshire Council -Cummnock HMA | G10: 2-East Ayrshire Council -Doon Valley HMA | H10: 2-East Ayrshire Council -Kilmarnock & Loudoun HMA | I10: FALSE | J10: FALSE | K10: FALSE | L10: FALSE | M10: FALSE | N10: FALSE | O10: FALSE | P10: FALSE | Q10: FALSE | R10: FALSE | S10: FALSE | T10: FALSE | U10: FALSE | V10: FALSE | W10: FALSE | X10: FALSE | Y10: FALSE | Z10: FALSE | AA10: FALSE | AB10: FALSE | AC10: FALSE | AD10: FALSE | AE10: FALSE | AF10: FALSE | AG10: FALSE | AH10: FALSE | AI10: FALSE | AJ10: FALSE | AK10: FALSE
C11: =Map!L15 -> East Dunbartonshire | D11: =Map!K15 -> EastDunbartonshire | E11: =Map!M15 -> FALSE | F11: 2-East Dunbartonshire Council-East Dunbartonshire Council HMA | G11: FALSE | H11: FALSE | I11: FALSE | J11: FALSE | K11: FALSE | L11: FALSE | M11: FALSE | N11: FALSE | O11: FALSE | P11: FALSE | Q11: FALSE | R11: FALSE | S11: FALSE | T11: FALSE | U11: FALSE | V11: FALSE | W11: FALSE | X11: FALSE | Y11: FALSE | Z11: FALSE | AA11: FALSE | AB11: FALSE | AC11: FALSE | AD11: FALSE | AE11: FALSE | AF11: FALSE | AG11: FALSE | AH11: FALSE | AI11: FALSE | AJ11: FALSE | AK11: FALSE
C12: =Map!L16 -> East Lothian | D12: =Map!K16 -> EastLothian | E12: =Map!M16 -> FALSE | F12: ELC01 | G12: ELC02 | H12: ELC03 | I12: FALSE | J12: FALSE | K12: FALSE | L12: FALSE | M12: FALSE | N12: FALSE | O12: FALSE | P12: FALSE | Q12: FALSE | R12: FALSE | S12: FALSE | T12: FALSE | U12: FALSE | V12: FALSE | W12: FALSE | X12: FALSE | Y12: FALSE | Z12: FALSE | AA12: FALSE | AB12: FALSE | AC12: FALSE | AD12: FALSE | AE12: FALSE | AF12: FALSE | AG12: FALSE | AH12: FALSE | AI12: FALSE | AJ12: FALSE | AK12: FALSE
C13: =Map!L17 -> East Renfrewshire | D13: =Map!K17 -> EastRenfrewshire | E13: =Map!M17 -> FALSE | F13: 2-East Renfrewshire Council-East Renfrewshire Council HMA | G13: FALSE | H13: FALSE | I13: FALSE | J13: FALSE | K13: FALSE | L13: FALSE | M13: FALSE | N13: FALSE | O13: FALSE | P13: FALSE | Q13: FALSE | R13: FALSE | S13: FALSE | T13: FALSE | U13: FALSE | V13: FALSE | W13: FALSE | X13: FALSE | Y13: FALSE | Z13: FALSE | AA13: FALSE | AB13: FALSE | AC13: FALSE | AD13: FALSE | AE13: FALSE | AF13: FALSE | AG13: FALSE | AH13: FALSE | AI13: FALSE | AJ13: FALSE | AK13: FALSE
C14: =Map!L18 -> Edinburgh City | D14: =Map!K18 -> Edinburgh | E14: =Map!M18 -> FALSE | F14: CEC | G14: FALSE | H14: FALSE | I14: FALSE | J14: FALSE | K14: FALSE | L14: FALSE | M14: FALSE | N14: FALSE | O14: FALSE | P14: FALSE | Q14: FALSE | R14: FALSE | S14: FALSE | T14: FALSE | U14: FALSE | V14: FALSE | W14: FALSE | X14: FALSE | Y14: FALSE | Z14: FALSE | AA14: FALSE | AB14: FALSE | AC14: FALSE | AD14: FALSE | AE14: FALSE | AF14: FALSE | AG14: FALSE | AH14: FALSE | AI14: FALSE | AJ14: FALSE | AK14: FALSE
C15: =Map!L19 -> Eilean Siar | D15: =Map!K19 -> EileanSiar | E15: =Map!M19 -> FALSE | F15: 2-Eilean Siar Council-Rural HMA | G15: 2-Eilean Siar Council-Stornoway HMA | H15: FALSE | I15: FALSE | J15: FALSE | K15: FALSE | L15: FALSE | M15: FALSE | N15: FALSE | O15: FALSE | P15: FALSE | Q15: FALSE | R15: FALSE | S15: FALSE | T15: FALSE | U15: FALSE | V15: FALSE | W15: FALSE | X15: FALSE | Y15: FALSE | Z15: FALSE | AA15: FALSE | AB15: FALSE | AC15: FALSE | AD15: FALSE | AE15: FALSE | AF15: FALSE | AG15: FALSE | AH15: FALSE | AI15: FALSE | AJ15: FALSE | AK15: FALSE
C16: =Map!L20 -> Falkirk | D16: =Map!K20 -> Falkirk | E16: =Map!M20 -> FALSE | F16: Polmont & Rural South | G16: Falkirk HMA | H16: Denny & Bonnybridge | I16: Bo'ness | J16: Grangemouth | K16: Stenhousemuir Larbert & Rural North | L16: FALSE | M16: FALSE | N16: FALSE | O16: FALSE | P16: FALSE | Q16: FALSE | R16: FALSE | S16: FALSE | T16: FALSE | U16: FALSE | V16: FALSE | W16: FALSE | X16: FALSE | Y16: FALSE | Z16: FALSE | AA16: FALSE | AB16: FALSE | AC16: FALSE | AD16: FALSE | AE16: FALSE | AF16: FALSE | AG16: FALSE | AH16: FALSE | AI16: FALSE | AJ16: FALSE | AK16: FALSE
C17: =Map!L21 -> Fife | D17: =Map!K21 -> Fife | E17: =Map!M21 -> FALSE | F17: FC01 | G17: FC02 | H17: 2-Fife Council North-Cupar & North West Fife HMA | I17: 2-Fife Council North-St Andrews and North East Fife HMA | J17: FALSE | K17: FALSE | L17: FALSE | M17: FALSE | N17: FALSE | O17: FALSE | P17: FALSE | Q17: FALSE | R17: FALSE | S17: FALSE | T17: FALSE | U17: FALSE | V17: FALSE | W17: FALSE | X17: FALSE | Y17: FALSE | Z17: FALSE | AA17: FALSE | AB17: FALSE | AC17: FALSE | AD17: FALSE | AE17: FALSE | AF17: FALSE | AG17: FALSE | AH17: FALSE | AI17: FALSE | AJ17: FALSE | AK17: FALSE
C18: =Map!L22 -> Glasgow City | D18: =Map!K22 -> GlasgowCity | E18: =Map!M22 -> FALSE | F18: 2-Glasgow City Council-Glasgow City Council HMA | G18: FALSE | H18: FALSE | I18: FALSE | J18: FALSE | K18: FALSE | L18: FALSE | M18: FALSE | N18: FALSE | O18: FALSE | P18: FALSE | Q18: FALSE | R18: FALSE | S18: FALSE | T18: FALSE | U18: FALSE | V18: FALSE | W18: FALSE | X18: FALSE | Y18: FALSE | Z18: FALSE | AA18: FALSE | AB18: FALSE | AC18: FALSE | AD18: FALSE | AE18: FALSE | AF18: FALSE | AG18: FALSE | AH18: FALSE | AI18: FALSE | AJ18: FALSE | AK18: FALSE
C19: =Map!L23 -> Highland | D19: =Map!K23 -> Highland | E19: =Map!M23 -> FALSE | F19: 2-Highland Council-Badenoch & Strathspey HMA | G19: 2-Highland Council-Caithness HMA | H19: 2-Highland Council-East Ross HMA | I19: 2-Highland Council-Inverness HMA | J19: 2-Highland Council-Lochaber HMA | K19: 2-Highland Council-Mid Ross HMA | L19: 2-Highland Council-Nairn HMA | M19: 2-Highland Council-Skye & Lochalsh HMA | N19: 2-Highland Council-Sutherland HMA | O19: 2-Highland Council-West Ross HMA | P19: FALSE | Q19: FALSE | R19: FALSE | S19: FALSE | T19: FALSE | U19: FALSE | V19: FALSE | W19: FALSE | X19: FALSE | Y19: FALSE | Z19: FALSE | AA19: FALSE | AB19: FALSE | AC19: FALSE | AD19: FALSE | AE19: FALSE | AF19: FALSE | AG19: FALSE | AH19: FALSE | AI19: FALSE | AJ19: FALSE | AK19: FALSE
C20: =Map!L24 -> Inverclyde | D20: =Map!K24 -> Inverclyde | E20: =Map!M24 -> FALSE | F20: 2-Inverclyde Council-Inverclyde Council HMA | G20: FALSE | H20: FALSE | I20: FALSE | J20: FALSE | K20: FALSE | L20: FALSE | M20: FALSE | N20: FALSE | O20: FALSE | P20: FALSE | Q20: FALSE | R20: FALSE | S20: FALSE | T20: FALSE | U20: FALSE | V20: FALSE | W20: FALSE | X20: FALSE | Y20: FALSE | Z20: FALSE | AA20: FALSE | AB20: FALSE | AC20: FALSE | AD20: FALSE | AE20: FALSE | AF20: FALSE | AG20: FALSE | AH20: FALSE | AI20: FALSE | AJ20: FALSE | AK20: FALSE
C21: =Map!L25 -> Midlothian | D21: =Map!K25 -> Midlothian | E21: =Map!M25 -> FALSE | F21: MC01 | G21: MC02 | H21: MC03 | I21: FALSE | J21: FALSE | K21: FALSE | L21: FALSE | M21: FALSE | N21: FALSE | O21: FALSE | P21: FALSE | Q21: FALSE | R21: FALSE | S21: FALSE | T21: FALSE | U21: FALSE | V21: FALSE | W21: FALSE | X21: FALSE | Y21: FALSE | Z21: FALSE | AA21: FALSE | AB21: FALSE | AC21: FALSE | AD21: FALSE | AE21: FALSE | AF21: FALSE | AG21: FALSE | AH21: FALSE | AI21: FALSE | AJ21: FALSE | AK21: FALSE
C22: =Map!L26 -> Moray | D22: =Map!K26 -> Moray | E22: =Map!M26 -> FALSE | F22: 2-Moray Council-Buckie HMA | G22: 2-Moray Council-Cairngorms National Park HMA | H22: 2-Moray Council-Elgin HMA | I22: 2-Moray Council-Forres HMA | J22: 2-Moray Council-Keith HMA | K22: 2-Moray Council-Speyside HMA | L22: FALSE | M22: FALSE | N22: FALSE | O22: FALSE | P22: FALSE | Q22: FALSE | R22: FALSE | S22: FALSE | T22: FALSE | U22: FALSE | V22: FALSE | W22: FALSE | X22: FALSE | Y22: FALSE | Z22: FALSE | AA22: FALSE | AB22: FALSE | AC22: FALSE | AD22: FALSE | AE22: FALSE | AF22: FALSE | AG22: FALSE | AH22: FALSE | AI22: FALSE | AJ22: FALSE | AK22: FALSE
C23: =Map!L27 -> North Ayrshire | D23: =Map!K27 -> NorthAyrshire | E23: =Map!M27 -> FALSE | F23: 2-North Ayrshire Council-Arran HMA | G23: 2-North Ayrshire Council-Garnock Valley HMA | H23: 2-North Ayrshire Council-Irvine/ Kilwinning HMA | I23: 2-North Ayrshire Council-North Coast HMA | J23: 2-North Ayrshire Council-Three Towns HMA | K23: FALSE | L23: FALSE | M23: FALSE | N23: FALSE | O23: FALSE | P23: FALSE | Q23: FALSE | R23: FALSE | S23: FALSE | T23: FALSE | U23: FALSE | V23: FALSE | W23: FALSE | X23: FALSE | Y23: FALSE | Z23: FALSE | AA23: FALSE | AB23: FALSE | AC23: FALSE | AD23: FALSE | AE23: FALSE | AF23: FALSE | AG23: FALSE | AH23: FALSE | AI23: FALSE | AJ23: FALSE | AK23: FALSE
C24: =Map!L28 -> North Lanarkshire | D24: =Map!K28 -> NorthLanarkshire | E24: =Map!M28 -> FALSE | F24: 2-North Lanarkshire Council -North Lanarkshire Council HMA | G24: FALSE | H24: FALSE | I24: FALSE | J24: FALSE | K24: FALSE | L24: FALSE | M24: FALSE | N24: FALSE | O24: FALSE | P24: FALSE | Q24: FALSE | R24: FALSE | S24: FALSE | T24: FALSE | U24: FALSE | V24: FALSE | W24: FALSE | X24: FALSE | Y24: FALSE | Z24: FALSE | AA24: FALSE | AB24: FALSE | AC24: FALSE | AD24: FALSE | AE24: FALSE | AF24: FALSE | AG24: FALSE | AH24: FALSE | AI24: FALSE | AJ24: FALSE | AK24: FALSE
C25: =Map!L29 -> Orkney Islands | D25: =Map!K29 -> OrkneyIslands | E25: =Map!M29 -> FALSE | F25: Kirkwall | G25: Stromness Parish | H25: West Mainland | I25: East Mainland | J25: Isles | K25: FALSE | L25: FALSE | M25: FALSE | N25: FALSE | O25: FALSE | P25: FALSE | Q25: FALSE | R25: FALSE | S25: FALSE | T25: FALSE | U25: FALSE | V25: FALSE | W25: FALSE | X25: FALSE | Y25: FALSE | Z25: FALSE | AA25: FALSE | AB25: FALSE | AC25: FALSE | AD25: FALSE | AE25: FALSE | AF25: FALSE | AG25: FALSE | AH25: FALSE | AI25: FALSE | AJ25: FALSE | AK25: FALSE
C26: =Map!L30 -> Perth & Kinross | D26: =Map!K30 -> PerthKinross | E26: =Map!M30 -> FALSE | F26: 2-Perth & Kinross Council -Strathearn HMA | G26: 2-Perth & Kinross Council -Strathmore & Glens HMA | H26: 2-Perth & Kinross Council-Greater Dundee HMA | I26: 2-Perth & Kinross Council-Greater Perth HMA | J26: 2-Perth & Kinross Council-Highland Perthshire HMA | K26: 2-Perth & Kinross Council-Kinross HMA | L26: FALSE | M26: FALSE | N26: FALSE | O26: FALSE | P26: FALSE | Q26: FALSE | R26: FALSE | S26: FALSE | T26: FALSE | U26: FALSE | V26: FALSE | W26: FALSE | X26: FALSE | Y26: FALSE | Z26: FALSE | AA26: FALSE | AB26: FALSE | AC26: FALSE | AD26: FALSE | AE26: FALSE | AF26: FALSE | AG26: FALSE | AH26: FALSE | AI26: FALSE | AJ26: FALSE | AK26: FALSE
C27: =Map!L31 -> Renfrewshire | D27: =Map!K31 -> Renfrewshire | E27: =Map!M31 -> FALSE | F27: 2-Renfrewshire Council-Renfrewshire Council HMA | G27: FALSE | H27: FALSE | I27: FALSE | J27: FALSE | K27: FALSE | L27: FALSE | M27: FALSE | N27: FALSE | O27: FALSE | P27: FALSE | Q27: FALSE | R27: FALSE | S27: FALSE | T27: FALSE | U27: FALSE | V27: FALSE | W27: FALSE | X27: FALSE | Y27: FALSE | Z27: FALSE | AA27: FALSE | AB27: FALSE | AC27: FALSE | AD27: FALSE | AE27: FALSE | AF27: FALSE | AG27: FALSE | AH27: FALSE | AI27: FALSE | AJ27: FALSE | AK27: FALSE
C28: =Map!L32 -> Scottish Borders | D28: =Map!K32 -> ScottishBorders | E28: =Map!M32 -> FALSE | F28: SBC01 | G28: SBC02 | H28: SBC03 | I28: SBC04 | J28: FALSE | K28: FALSE | L28: FALSE | M28: FALSE | N28: FALSE | O28: FALSE | P28: FALSE | Q28: FALSE | R28: FALSE | S28: FALSE | T28: FALSE | U28: FALSE | V28: FALSE | W28: FALSE | X28: FALSE | Y28: FALSE | Z28: FALSE | AA28: FALSE | AB28: FALSE | AC28: FALSE | AD28: FALSE | AE28: FALSE | AF28: FALSE | AG28: FALSE | AH28: FALSE | AI28: FALSE | AJ28: FALSE | AK28: FALSE
C29: =Map!L33 -> Shetland Islands | D29: =Map!K33 -> ShetlandIslands | E29: =Map!M33 -> FALSE | F29: 2-Shetland Council-Central Mainland HMA | G29: 2-Shetland Council-Lerwick & Bressay HMA | H29: 2-Shetland Council-North Isles, Whalsay & Skerries HMA | I29: 2-Shetland Council-North Mainland HMA | J29: 2-Shetland Council-South Mainland HMA | K29: 2-Shetland Council-West Mainland HMA | L29: FALSE | M29: FALSE | N29: FALSE | O29: FALSE | P29: FALSE | Q29: FALSE | R29: FALSE | S29: FALSE | T29: FALSE | U29: FALSE | V29: FALSE | W29: FALSE | X29: FALSE | Y29: FALSE | Z29: FALSE | AA29: FALSE | AB29: FALSE | AC29: FALSE | AD29: FALSE | AE29: FALSE | AF29: FALSE | AG29: FALSE | AH29: FALSE | AI29: FALSE | AJ29: FALSE | AK29: FALSE
C30: =Map!L34 -> South Ayrshire | D30: =Map!K34 -> SouthAyrshire | E30: =Map!M34 -> FALSE | F30: 2-South Ayrshire Council-Ayr HMA | G30: 2-South Ayrshire Council-Girvan & South Carrick HMA | H30: FALSE | I30: FALSE | J30: FALSE | K30: FALSE | L30: FALSE | M30: FALSE | N30: FALSE | O30: FALSE | P30: FALSE | Q30: FALSE | R30: FALSE | S30: FALSE | T30: FALSE | U30: FALSE | V30: FALSE | W30: FALSE | X30: FALSE | Y30: FALSE | Z30: FALSE | AA30: FALSE | AB30: FALSE | AC30: FALSE | AD30: FALSE | AE30: FALSE | AF30: FALSE | AG30: FALSE | AH30: FALSE | AI30: FALSE | AJ30: FALSE | AK30: FALSE
C31: =Map!L35 -> South Lanarkshire | D31: =Map!K35 -> SouthLanarkshire | E31: =Map!M35 -> FALSE | F31: 2-South Lanarkshire Council-South Lanarkshire Council HMA | G31: FALSE | H31: FALSE | I31: FALSE | J31: FALSE | K31: FALSE | L31: FALSE | M31: FALSE | N31: FALSE | O31: FALSE | P31: FALSE | Q31: FALSE | R31: FALSE | S31: FALSE | T31: FALSE | U31: FALSE | V31: FALSE | W31: FALSE | X31: FALSE | Y31: FALSE | Z31: FALSE | AA31: FALSE | AB31: FALSE | AC31: FALSE | AD31: FALSE | AE31: FALSE | AF31: FALSE | AG31: FALSE | AH31: FALSE | AI31: FALSE | AJ31: FALSE | AK31: FALSE
C32: =Map!L36 -> Stirling | D32: =Map!K36 -> Stirling | E32: =Map!M36 -> FALSE | F32: 2-Stirling Council-National Park HMA | G32: 2-Stirling Council-Stirling Core HMA | H32: 2-Stirling Council-Stirling Rural HMA | I32: FALSE | J32: FALSE | K32: FALSE | L32: FALSE | M32: FALSE | N32: FALSE | O32: FALSE | P32: FALSE | Q32: FALSE | R32: FALSE | S32: FALSE | T32: FALSE | U32: FALSE | V32: FALSE | W32: FALSE | X32: FALSE | Y32: FALSE | Z32: FALSE | AA32: FALSE | AB32: FALSE | AC32: FALSE | AD32: FALSE | AE32: FALSE | AF32: FALSE | AG32: FALSE | AH32: FALSE | AI32: FALSE | AJ32: FALSE | AK32: FALSE
C33: =Map!L37 -> West Dunbartonshire | D33: =Map!K37 -> WestDunbartonshire | E33: =Map!M37 -> FALSE | F33: 2-West Dunbartonshire Council-West Dunbartonshire Council HMA | G33: FALSE | H33: FALSE | I33: FALSE | J33: FALSE | K33: FALSE | L33: FALSE | M33: FALSE | N33: FALSE | O33: FALSE | P33: FALSE | Q33: FALSE | R33: FALSE | S33: FALSE | T33: FALSE | U33: FALSE | V33: FALSE | W33: FALSE | X33: FALSE | Y33: FALSE | Z33: FALSE | AA33: FALSE | AB33: FALSE | AC33: FALSE | AD33: FALSE | AE33: FALSE | AF33: FALSE | AG33: FALSE | AH33: FALSE | AI33: FALSE | AJ33: FALSE | AK33: FALSE
C34: =Map!L38 -> West Lothian | D34: =Map!K38 -> WestLothian | E34: =Map!M38 -> FALSE | F34: WLC01 | G34: WLC02 | H34: WLC03 | I34: FALSE | J34: FALSE | K34: FALSE | L34: FALSE | M34: FALSE | N34: FALSE | O34: FALSE | P34: FALSE | Q34: FALSE | R34: FALSE | S34: FALSE | T34: FALSE | U34: FALSE | V34: FALSE | W34: FALSE | X34: FALSE | Y34: FALSE | Z34: FALSE | AA34: FALSE | AB34: FALSE | AC34: FALSE | AD34: FALSE | AE34: FALSE | AF34: FALSE | AG34: FALSE | AH34: FALSE | AI34: FALSE | AJ34: FALSE | AK34: FALSE
C35: =Map!L39 -> 0 | D35: =Map!K39 -> 0 | E35: =Map!M39 -> FALSE | F35: AberdeenCity | G35: Aberdeenshire | H35: Angus | I35: ArgyllBute | J35: Clackmannanshire | K35: DumfriesGalloway | L35: DundeeCity | M35: EastAyrshire | N35: EastDunbartonshire | O35: EastLothian | P35: EastRenfrewshire | Q35: Edinburgh | R35: EileanSiar | S35: Falkirk | T35: Fife | U35: GlasgowCity | V35: Highland | W35: Inverclyde | X35: Midlothian | Y35: Moray | Z35: NorthAyrshire | AA35: NorthLanarkshire | AB35: OrkneyIslands | AC35: PerthKinross | AD35: Renfrewshire | AE35: ScottishBorders | AF35: ShetlandIslands | AG35: SouthAyrshire | AH35: SouthLanarkshire | AI35: Stirling | AJ35: WestDunbartonshire | AK35: WestLothian
C36: =Map!L40 -> Aberdeen/Shire | D36: =Map!K40 -> Aberdeen/Shire | E36: =Map!M40 -> FALSE | F36: 2-Aberdeen City Council-Aberdeen HMA | G36: 2-Aberdeenshire Council-Aberdeen HMA | H36: FALSE | I36: FALSE | J36: FALSE | K36: FALSE | L36: FALSE | M36: FALSE | N36: FALSE | O36: FALSE | P36: FALSE | Q36: FALSE | R36: FALSE | S36: FALSE | T36: FALSE | U36: FALSE | V36: FALSE | W36: FALSE | X36: FALSE | Y36: FALSE | Z36: FALSE | AA36: FALSE | AB36: FALSE | AC36: FALSE | AD36: FALSE | AE36: FALSE | AF36: FALSE | AG36: FALSE | AH36: FALSE | AI36: FALSE | AJ36: FALSE | AK36: FALSE
C37: =Map!L41 -> GCV | D37: =Map!K41 -> GCV | E37: =Map!M41 -> FALSE | F37: 1-Glasgow & the Clyde Valley SDPA-East Dunbartonshire Council HMA | G37: 1-Glasgow & the Clyde Valley SDPA-East Renfrewshire Council HMA | H37: 1-Glasgow & the Clyde Valley SDPA-Glasgow City Council HMA | I37: 1-Glasgow & the Clyde Valley SDPA-Inverclyde Council HMA | J37: 1-Glasgow & the Clyde Valley SDPA-North Lanarkshire Council HMA | K37: 1-Glasgow & the Clyde Valley SDPA-Renfrewshire Council HMA | L37: 1-Glasgow & the Clyde Valley SDPA-South Lanarkshire Council HMA | M37: 1-Glasgow & the Clyde Valley SDPA-West Dunbartonshire Council HMA | N37: FALSE | O37: FALSE | P37: FALSE | Q37: FALSE | R37: FALSE | S37: FALSE | T37: FALSE | U37: FALSE | V37: FALSE | W37: FALSE | X37: FALSE | Y37: FALSE | Z37: FALSE | AA37: FALSE | AB37: FALSE | AC37: FALSE | AD37: FALSE | AE37: FALSE | AF37: FALSE | AG37: FALSE | AH37: FALSE | AI37: FALSE | AJ37: FALSE | AK37: FALSE
C38: =Map!L42 -> SESPlan LA | D38: =Map!K42 -> SESPlan LA | E38: =Map!M42 -> FALSE | F38: 1-SESPlan SDPA-East Lothian Council HMA | G38: 1-SESPlan SDPA-Edinburgh City Council HMA | H38: 1-SESPlan SDPA-Mid and East Fife HMA | I38: 1-SESPlan SDPA-Midlothian Council HMA | J38: 1-SESPlan SDPA-Scottish Borders Council | K38: 1-SESPlan SDPA-West Lothian Council HMA | L38: FALSE | M38: FALSE | N38: FALSE | O38: FALSE | P38: FALSE | Q38: FALSE | R38: FALSE | S38: FALSE | T38: FALSE | U38: FALSE | V38: FALSE | W38: FALSE | X38: FALSE | Y38: FALSE | Z38: FALSE | AA38: FALSE | AB38: FALSE | AC38: FALSE | AD38: FALSE | AE38: FALSE | AF38: FALSE | AG38: FALSE | AH38: FALSE | AI38: FALSE | AJ38: FALSE | AK38: FALSE
C39: =Map!L43 -> 0 | D39: =Map!K43 -> SESPlan HMA | E39: =Map!M43 -> 0 | F39: ELC01 | G39: ELC02 | H39: ELC03 | I39: CEC | J39: FC01 | K39: FC02 | L39: MC01 | M39: MC02 | N39: MC03 | O39: SBC01 | P39: SBC02 | Q39: SBC03 | R39: SBC04 | S39: WLC01 | T39: WLC03 | W39: FALSE | X39: FALSE | Y39: FALSE | Z39: FALSE | AA39: FALSE | AB39: FALSE | AC39: FALSE | AD39: FALSE | AE39: FALSE | AF39: FALSE | AG39: FALSE | AH39: FALSE | AI39: FALSE | AJ39: FALSE | AK39: FALSE
C40: =Map!L44 -> TayPlan | D40: =Map!K44 -> TayPlan | E40: =Map!M44 -> FALSE | F40: 1-TayPlan SDPA-Cupar & North West Fife HMA | G40: 1-TayPlan SDPA-East Angus HMA | H40: 1-TayPlan SDPA-Greater Dundee HMA | I40: 1-TayPlan SDPA-Greater Perth HMA | J40: 1-TayPlan SDPA-Highland Perthshire HMA | K40: 1-TayPlan SDPA-Kinross HMA | L40: 1-TayPlan SDPA-North Angus HMA | M40: 1-TayPlan SDPA-St Andrews and North East Fife HMA | N40: 1-TayPlan SDPA-Strathearn HMA | O40: 1-TayPlan SDPA-Strathmore & Glens HMA | P40: 1-TayPlan SDPA-West Angus HMA | Q40: FALSE | R40: FALSE | S40: FALSE | T40: FALSE | U40: FALSE | V40: FALSE | W40: FALSE | X40: FALSE | Y40: FALSE | Z40: FALSE | AA40: FALSE | AB40: FALSE | AC40: FALSE | AD40: FALSE | AE40: FALSE | AF40: FALSE | AG40: FALSE | AH40: FALSE | AI40: FALSE | AJ40: FALSE | AK40: FALSE
C41: =Map!L45 -> 0 | D41: =Map!K45 -> 0 | E41: =Map!M45 -> 0 | F41: 4-Dundee City Centre MAA Sub Area | G41: 4-Dundee City East MAA Sub Area | H41: 4-Dundee City North MAA Sub Area | I41: 4-Dundee City West MAA Sub Area | J41: 4-Greater Perth Sub Area | K41: 4-South Angus HMA Sub Area | L41: 4-St Andrews & North East Fife Sub Area | M41: FALSE | N41: FALSE | O41: FALSE | P41: FALSE | Q41: FALSE | R41: FALSE | S41: FALSE | T41: FALSE | U41: FALSE | V41: FALSE | W41: FALSE | X41: FALSE | Y41: FALSE | Z41: FALSE | AA41: FALSE | AB41: FALSE | AC41: FALSE | AD41: FALSE | AE41: FALSE | AF41: FALSE | AG41: FALSE | AH41: FALSE | AI41: FALSE | AJ41: FALSE | AK41: FALSE
C42: =Map!L46 -> Cairngorms NP | D42: =Map!K46 -> Cairngorms | E42: =Map!M46 -> FALSE | F42: 5-CNP Aberdeenshire | G42: 5-CNP Highland | H42: 5-CNP Moray | I42: FALSE | J42: FALSE | K42: FALSE | L42: FALSE | M42: FALSE | N42: FALSE | O42: FALSE | P42: FALSE | Q42: FALSE | R42: FALSE | S42: FALSE | T42: FALSE | U42: FALSE | V42: FALSE | W42: FALSE | X42: FALSE | Y42: FALSE | Z42: FALSE | AA42: FALSE | AB42: FALSE | AC42: FALSE | AD42: FALSE | AE42: FALSE | AF42: FALSE | AG42: FALSE | AH42: FALSE | AI42: FALSE | AJ42: FALSE | AK42: FALSE
C43: =Map!L47 -> Loch Lomond & Trossachs NP | D43: =Map!K47 -> Loch Lomond & Trossachs NP | E43: =Map!M47 -> FALSE | F43: 5-LLTNP Argyll & Bute | G43: 5-LLTNP Stirling | H43: 5-LLTNP West Dunbartonshire | J43: FALSE | K43: FALSE | L43: FALSE | M43: FALSE | N43: FALSE | O43: FALSE | P43: FALSE | Q43: FALSE | R43: FALSE | S43: FALSE | T43: FALSE | U43: FALSE | V43: FALSE | W43: FALSE | X43: FALSE | Y43: FALSE | Z43: FALSE | AA43: FALSE | AB43: FALSE | AC43: FALSE | AD43: FALSE | AE43: FALSE | AF43: FALSE | AG43: FALSE | AH43: FALSE | AI43: FALSE | AJ43: FALSE | AK43: FALSE
H63: Scotland

Sheet Results
B1: RESULTS - Average new build needed, per year, by tenure | X1: 3 Years | Y1: 3 | Z1: =Y1+2 -> 5 | AA1: =C2 -> 2018 | AB1: =AC1-1 -> 2022 | AC1: =AA1+Z1 -> 2023 | AD1: =AE1-1 -> 2027 | AE1: =AC1+Z1 -> 2028 | AF1: =AE1+Z1-1 -> 2032 | AG1: =IF(Y1<4,AE1+Z1,0) -> 2033 | AH1: =IF(Y1<4,AG1+Z1-1,0) -> 2037 | AI1: =IF(Y1<3,AG1+Z1,0) -> 0 | AJ1: =IF(Y1<3,AI1+Z1-1,0) -> 0 | AM1: =START_YEAR -> 2018 | AN1: =AM1+1 -> 2019 | AO1: =AN1+1 -> 2020 | AP1: 2021 | AQ1: 2022 | AR1: 2023 | AS1: 2024 | AT1: 2025 | AU1: 2026 | AV1: 2027 | AW1: 2028 | AX1: 2029 | AY1: 2030 | AZ1: 2031 | BA1: 2032 | BB1: 2033 | BC1: 2034 | BD1: 2035 | BE1: 2036 | BF1: 2037 | BG1: 2038
B2: INPUT START YEAR | C2: 2018 | M2: RESULTS Average new build required per year. To get a figure for five years, for example, multiply by five. | N2: RESULTS Average new build required per year. To get a figure for five years, for example, multiply by five. | O2: RESULTS Average new build required per year. To get a figure for five years, for example, multiply by five. | P2: RESULTS Average new build required per year. To get a figure for five years, for example, multiply by five. | Q2: RESULTS Average new build required per year. To get a figure for five years, for example, multiply by five. | R2: RESULTS Average new build required per year. To get a figure for five years, for example, multiply by five. | X2: 4 Years | AM2: d | AN2: e | AO2: f | AP2: g | AQ2: h | AR2: i | AS2: j | AT2: k | AU2: l | AV2: m | AW2: n | AX2: o | AY2: p | AZ2: q | BA2: r | BB2: s | BC2: t | BD2: u | BE2: v | BF2: w | BG2: x
B3: CHOOSE TIME PERIOD | X3: 5 Years
X4: 6 Years
D5: Core Tool Default Settings | H5: User Scenario | X5: 7 Years
D6: =IF($AA$1>0,CONCATENATE($AA$1," - ",$AB$1),"") -> 2018 - 2022 | E6: =IF($AC$1>0,CONCATENATE($AC$1," - ",$AD$1),"") -> 2023 - 2027 | F6: =IF($AE$1>0,CONCATENATE($AE$1," - ",$AF$1),"") -> 2028 - 2032 | G6: =IF($AG$1>0,CONCATENATE($AG$1," - ",$AH$1),"") -> 2033 - 2037 | H6: =IF($AA$1>0,CONCATENATE($AA$1," - ",$AB$1),"") -> 2018 - 2022 | I6: =IF($AC$1>0,CONCATENATE($AC$1," - ",$AD$1),"") -> 2023 - 2027 | J6: =IF($AE$1>0,CONCATENATE($AE$1," - ",$AF$1),"") -> 2028 - 2032 | K6: =IF($AG$1>0,CONCATENATE($AG$1," - ",$AH$1),"") -> 2033 - 2037
C7: Total (Top Level) | D7: =AVERAGE(INDIRECT(CONCATENATE($X$7,"!",$AA$7,$W7,":",$AB$7,$W7))) -> 779.4 | E7: =AVERAGE(INDIRECT(CONCATENATE($X$7,"!",$AC$7,$W7,":",$AD$7,$W7))) -> 517.4 | F7: =AVERAGE(INDIRECT(CONCATENATE($X$7,"!",$AE$7,$W7,":",$AF$7,$W7))) -> 594.2 | G7: =IF($G$6<>"",AVERAGE(INDIRECT(CONCATENATE($X$7,"!",$AG$7,$W7,":",$AH$7,$W7))),"") -> 574 | H7: =AVERAGE(INDIRECT(CONCATENATE($Z$7,"!",$AA$7,$Y7,":",$AB$7,$Y7))) -> 779.4 | I7: =AVERAGE(INDIRECT(CONCATENATE($Z$7,"!",$AC$7,$Y7,":",$AD$7,$Y7))) -> 517.4 | J7: =AVERAGE(INDIRECT(CONCATENATE($Z$7,"!",$AE$7,$Y7,":",$AF$7,$Y7))) -> 594.2 | K7: =IF($K$6<>"",AVERAGE(INDIRECT(CONCATENATE($Z$7,"!",$AG$7,$Y7,":",$AH$7,$Y7))),"") -> 574 | R7: -1 | W7: 10 | X7: RawResultsCore | Y7: 11 | Z7: RawResultsScenario | AA7: =HLOOKUP(AA$1,$AM$1:$BG$2,2) -> d | AB7: =HLOOKUP(AB$1,$AM$1:$BG$2,2) -> h | AC7: =HLOOKUP(AC$1,$AM$1:$BG$2,2) -> i | AD7: m | AE7: n | AF7: r | AG7: s | AH7: w
C8: Total (Sum of Sub Areas) | D8: 779.4 | E8: 517.4 | F8: 594.2 | G8: 574 | H8: 779.4 | I8: 517.4 | J8: 594.2 | K8: 574 | W8: 40 | Y8: 41
B9: Top Level | C9: Social rent | D9: 386.786 | E9: 217.754 | F9: 274.618 | G9: 292.246 | H9: 386.786 | I9: 217.754 | J9: 274.618 | K9: 292.246 | W9: 29 | Y9: 29
C10: Below Market | D10: 149.136 | E10: 125.284 | F10: 148.642 | G10: 143.5 | H10: 149.136 | I10: 125.284 | J10: 148.642 | K10: 143.5 | P10: Core vs Scenario Rounded | W10: 30 | Y10: 30
C11: PRS | D11: 107.824 | E11: 78.3932 | F11: 78.324 | G11: 63.674 | H11: 107.824 | I11: 78.3932 | J11: 78.324 | K11: 63.674 | W11: 31 | Y11: 31
C12: Buyers | D12: 135.654 | E12: 95.9688 | F12: 92.616 | G12: 74.58 | H12: 135.654 | I12: 95.9688 | J12: 92.616 | K12: 74.58 | O12: =D6 -> 2018 - 2022 | P12: =E6 -> 2023 - 2027 | Q12: =F6 -> 2028 - 2032 | R12: =G6 -> 2033 - 2037 | S12: =#REF! ->  | W12: 32 | Y12: 32
B13: Summed | C13: Social rent | D13: 386.786 | E13: 217.754 | F13: 274.618 | G13: 292.246 | H13: 386.786 | I13: 217.754 | J13: 274.618 | K13: 292.246 | N13: =C13 -> Social rent | O13: =IF(D13<H13,CONCATENATE(ROUND(D13,R7)," - ",ROUND(H13,R7)),CONCATENATE(ROUND(H13,R7)," - ",ROUND(D13,R7))) -> 390 - 390 | P13: =IF(E13<I13,CONCATENATE(ROUND(E13,R7)," - ",ROUND(I13,R7)),CONCATENATE(ROUND(I13,R7)," - ",ROUND(E13,R7))) -> 220 - 220 | Q13: =IF(F13<J13,CONCATENATE(ROUND(F13,R7)," - ",ROUND(J13,R7)),CONCATENATE(ROUND(J13,R7)," - ",ROUND(F13,R7))) -> 270 - 270 | R13: =IF(G13<K13,CONCATENATE(ROUND(G13,R7)," - ",ROUND(K13,R7)),CONCATENATE(ROUND(K13,R7)," - ",ROUND(G13,R7))) -> 290 - 290 | W13: 59 | Y13: 59
C14: Below Market | D14: 149.136 | E14: 125.284 | F14: 148.642 | G14: 143.5 | H14: 149.136 | I14: 125.284 | J14: 148.642 | K14: 143.5 | N14: =C14 -> Below Market | O14: =IF(D14<H14,CONCATENATE(ROUND(D14,R7)," - ",ROUND(H14,R7)),CONCATENATE(ROUND(H14,R7)," - ",ROUND(D14,R7))) -> 150 - 150 | P14: =IF(E14<I14,CONCATENATE(ROUND(E14,R7)," - ",ROUND(I14,R7)),CONCATENATE(ROUND(I14,R7)," - ",ROUND(E14,R7))) -> 130 - 130 | Q14: =IF(F14<J14,CONCATENATE(ROUND(F14,R7)," - ",ROUND(J14,R7)),CONCATENATE(ROUND(J14,R7)," - ",ROUND(F14,R7))) -> 150 - 150 | R14: =IF(G14<K14,CONCATENATE(ROUND(G14,R7)," - ",ROUND(K14,R7)),CONCATENATE(ROUND(K14,R7)," - ",ROUND(G14,R7))) -> 140 - 140 | W14: 60 | Y14: 60
C15: PRS | D15: 107.824 | E15: 78.3932 | F15: 78.324 | G15: 63.674 | H15: 107.824 | I15: 78.3932 | J15: 78.324 | K15: 63.674 | N15: =C15 -> PRS | O15: =IF(D15<H15,CONCATENATE(ROUND(D15,R7)," - ",ROUND(H15,R7)),CONCATENATE(ROUND(H15,R7)," - ",ROUND(D15,R7))) -> 110 - 110 | P15: =IF(E15<I15,CONCATENATE(ROUND(E15,R7)," - ",ROUND(I15,R7)),CONCATENATE(ROUND(I15,R7)," - ",ROUND(E15,R7))) -> 80 - 80 | Q15: =IF(F15<J15,CONCATENATE(ROUND(F15,R7)," - ",ROUND(J15,R7)),CONCATENATE(ROUND(J15,R7)," - ",ROUND(F15,R7))) -> 80 - 80 | R15: =IF(G15<K15,CONCATENATE(ROUND(G15,R7)," - ",ROUND(K15,R7)),CONCATENATE(ROUND(K15,R7)," - ",ROUND(G15,R7))) -> 60 - 60 | W15: 61 | Y15: 61
C16: Buyers | D16: =AVERAGE(INDIRECT(CONCATENATE($X$7,"!",$AA$7,$W16,":",$AB$7,$W16))) -> 135.654 | E16: 95.9688 | F16: 92.616 | G16: 74.58 | H16: 135.654 | I16: 95.9688 | J16: 92.616 | K16: 74.58 | N16: =C16 -> Buyers | O16: =IF(D16<H16,CONCATENATE(ROUND(D16,R7)," - ",ROUND(H16,R7)),CONCATENATE(ROUND(H16,R7)," - ",ROUND(D16,R7))) -> 140 - 140 | P16: =IF(E16<I16,CONCATENATE(ROUND(E16,R7)," - ",ROUND(I16,R7)),CONCATENATE(ROUND(I16,R7)," - ",ROUND(E16,R7))) -> 100 - 100 | Q16: =IF(F16<J16,CONCATENATE(ROUND(F16,R7)," - ",ROUND(J16,R7)),CONCATENATE(ROUND(J16,R7)," - ",ROUND(F16,R7))) -> 90 - 90 | R16: =IF(G16<K16,CONCATENATE(ROUND(G16,R7)," - ",ROUND(K16,R7)),CONCATENATE(ROUND(K16,R7)," - ",ROUND(G16,R7))) -> 70 - 70 | W16: 62 | Y16: 62
B17: Constrained | C17: Social rent | D17: =D13/D$8*D$7 -> 386.786 | E17: =E13/E$8*E$7 -> 217.754 | F17: =F13/F$8*F$7 -> 274.618 | G17: =IF(G$6<>"",G13/G$8*G$7,"") -> 292.246 | H17: =H13/H$8*H$7 -> 386.786 | I17: 217.754 | J17: 274.618 | K17: =IF(K$6<>"",K13/K$8*K$7,"") -> 292.246
C18: Below Market | D18: =D14/D$8*D$7 -> 149.136 | E18: 125.284 | F18: 148.642 | G18: 143.5 | H18: 149.136 | I18: 125.284 | J18: =J14/J$8*J$7 -> 148.642 | K18: 143.5 | N18: Total | O18: =IF(D8<H8,CONCATENATE(ROUND(D8,R7)," - ",ROUND(H8,R7)),CONCATENATE(ROUND(H8,R7)," - ",ROUND(D8,R7))) -> 780 - 780 | P18: =IF(E8<I8,CONCATENATE(ROUND(E8,R7)," - ",ROUND(I8,R7)),CONCATENATE(ROUND(I8,R7)," - ",ROUND(E8,R7))) -> 520 - 520 | Q18: =IF(F8<J8,CONCATENATE(ROUND(F8,R7)," - ",ROUND(J8,R7)),CONCATENATE(ROUND(J8,R7)," - ",ROUND(F8,R7))) -> 590 - 590 | R18: =IF(G8<K8,CONCATENATE(ROUND(G8,R7)," - ",ROUND(K8,R7)),CONCATENATE(ROUND(K8,R7)," - ",ROUND(G8,R7))) -> 570 - 570
C19: PRS | D19: 107.824 | E19: 78.3932 | F19: 78.324 | G19: 63.674 | H19: 107.824 | I19: 78.3932 | J19: =J15/J$8*J$7 -> 78.324 | K19: 63.674
C20: Buyers | D20: =D16/D$8*D$7 -> 135.654 | E20: 95.9688 | F20: 92.616 | G20: 74.58 | H20: 135.654 | I20: 95.9688 | J20: 92.616 | K20: 74.58 | N20: Affordable | O20: =IF(D13+D14<H13+H14,CONCATENATE(ROUND(D13+D14,R7)," - ",ROUND(H13+H14,R7)),CONCATENATE(ROUND(H13+H14,R7)," - ",ROUND(D13+D14,R7))) -> 540 - 540 | P20: =IF(E13+E14<I13+I14,CONCATENATE(ROUND(E13+E14,R7)," - ",ROUND(I13+I14,R7)),CONCATENATE(ROUND(I13+I14,R7)," - ",ROUND(E13+E14,R7))) -> 340 - 340 | Q20: =IF(F13+F14<J13+J14,CONCATENATE(ROUND(F13+F14,R7)," - ",ROUND(J13+J14,R7)),CONCATENATE(ROUND(J13+J14,R7)," - ",ROUND(F13+F14,R7))) -> 420 - 420 | R20: =IF(G13+G14<K13+K14,CONCATENATE(ROUND(G13+G14,R7)," - ",ROUND(K13+K14,R7)),CONCATENATE(ROUND(K13+K14,R7)," - ",ROUND(G13+G14,R7))) -> 440 - 440
B22: =RawResultsCore!B65 -> 2-Aberdeen City Council-Aberdeen HMA | D22: Core Tool Default Settings | H22: User Scenario
C23: Total (Top Level) | D23: =AVERAGE(INDIRECT(CONCATENATE($X$7,"!",$AA$7,$W23,":",$AB$7,$W23))) -> 779.4 | E23: =AVERAGE(INDIRECT(CONCATENATE($X$7,"!",$AC$7,$W23,":",$AD$7,$W23))) -> 517.4 | F23: =AVERAGE(INDIRECT(CONCATENATE($X$7,"!",$AE$7,$W23,":",$AF$7,$W23))) -> 594.2 | G23: =IF($G$6<>"",AVERAGE(INDIRECT(CONCATENATE($X$7,"!",$AG$7,$W23,":",$AH$7,$W23))),"") -> 574 | H23: =AVERAGE(INDIRECT(CONCATENATE($Z$7,"!",$AA$7,$Y23,":",$AB$7,$Y23))) -> 779.4 | I23: =AVERAGE(INDIRECT(CONCATENATE($Z$7,"!",$AC$7,$Y23,":",$AD$7,$Y23))) -> 517.4 | J23: =AVERAGE(INDIRECT(CONCATENATE($Z$7,"!",$AE$7,$Y23,":",$AF$7,$Y23))) -> 594.2 | K23: =IF($K$6<>"",AVERAGE(INDIRECT(CONCATENATE($Z$7,"!",$AG$7,$Y23,":",$AH$7,$Y23))),"") -> 574 | W23: 71 | Y23: 72
C24: Total (Constrained) | D24: =IF(D23<>"",D23*D$8/D$7,"") -> 779.4 | E24: =IF(E23<>"",E23*E$8/E$7,"") -> 517.4 | F24: 594.2 | G24: 574 | H24: =IF(H23<>"",H23*H$7/H$8,"") -> 779.4 | I24: =IF(I23<>"",I23*I$7/I$8,"") -> 517.4 | J24: =IF(J23<>"",J23*J$7/J$8,"") -> 594.2 | K24: =IF(K23<>"",K23*K$7/K$8,"") -> 574
B25: Top Level | C25: Social rent | D25: 386.786 | E25: 217.754 | F25: 274.618 | G25: =IF($G$6<>"",AVERAGE(INDIRECT(CONCATENATE($X$7,"!",$AG$7,$W25,":",$AH$7,$W25))),"") -> 292.246 | H25: =AVERAGE(INDIRECT(CONCATENATE($Z$7,"!",$AA$7,$Y25,":",$AB$7,$Y25))) -> 386.786 | I25: =AVERAGE(INDIRECT(CONCATENATE($Z$7,"!",$AC$7,$Y25,":",$AD$7,$Y25))) -> 217.754 | J25: =AVERAGE(INDIRECT(CONCATENATE($Z$7,"!",$AE$7,$Y25,":",$AF$7,$Y25))) -> 274.618 | K25: =IF($K$6<>"",AVERAGE(INDIRECT(CONCATENATE($Z$7,"!",$AG$7,$Y25,":",$AH$7,$Y25))),"") -> 292.246 | N25: =C25 -> Social rent | O25: =IF(D25<H25,CONCATENATE(ROUND(D25,R7)," - ",ROUND(H25,R7)),CONCATENATE(ROUND(H25,R7)," - ",ROUND(D25,R7))) -> 390 - 390 | P25: =IF(E25<I25,CONCATENATE(ROUND(E25,R7)," - ",ROUND(I25,R7)),CONCATENATE(ROUND(I25,R7)," - ",ROUND(E25,R7))) -> 220 - 220 | Q25: =IF(F25<J25,CONCATENATE(ROUND(F25,R7)," - ",ROUND(J25,R7)),CONCATENATE(ROUND(J25,R7)," - ",ROUND(F25,R7))) -> 270 - 270 | R25: =IF(G25<K25,CONCATENATE(ROUND(G25,R7)," - ",ROUND(K25,R7)),CONCATENATE(ROUND(K25,R7)," - ",ROUND(G25,R7))) -> 290 - 290 | W25: 90 | Y25: 90
C26: Below Market | D26: 149.136 | E26: 125.284 | F26: 148.642 | G26: =IF($G$6<>"",AVERAGE(INDIRECT(CONCATENATE($X$7,"!",$AG$7,$W26,":",$AH$7,$W26))),"") -> 143.5 | H26: =AVERAGE(INDIRECT(CONCATENATE($Z$7,"!",$AA$7,$Y26,":",$AB$7,$Y26))) -> 149.136 | I26: =AVERAGE(INDIRECT(CONCATENATE($Z$7,"!",$AC$7,$Y26,":",$AD$7,$Y26))) -> 125.284 | J26: =AVERAGE(INDIRECT(CONCATENATE($Z$7,"!",$AE$7,$Y26,":",$AF$7,$Y26))) -> 148.642 | K26: =IF($K$6<>"",AVERAGE(INDIRECT(CONCATENATE($Z$7,"!",$AG$7,$Y26,":",$AH$7,$Y26))),"") -> 143.5 | N26: =C26 -> Below Market | O26: =IF(D26<H26,CONCATENATE(ROUND(D26,R7)," - ",ROUND(H26,R7)),CONCATENATE(ROUND(H26,R7)," - ",ROUND(D26,R7))) -> 150 - 150 | P26: =IF(E26<I26,CONCATENATE(ROUND(E26,R7)," - ",ROUND(I26,R7)),CONCATENATE(ROUND(I26,R7)," - ",ROUND(E26,R7))) -> 130 - 130 | Q26: =IF(F26<J26,CONCATENATE(ROUND(F26,R7)," - ",ROUND(J26,R7)),CONCATENATE(ROUND(J26,R7)," - ",ROUND(F26,R7))) -> 150 - 150 | R26: =IF(G26<K26,CONCATENATE(ROUND(G26,R7)," - ",ROUND(K26,R7)),CONCATENATE(ROUND(K26,R7)," - ",ROUND(G26,R7))) -> 140 - 140 | W26: 91 | Y26: 91
C27: PRS | D27: 107.824 | E27: 78.3932 | F27: 78.324 | G27: =IF($G$6<>"",AVERAGE(INDIRECT(CONCATENATE($X$7,"!",$AG$7,$W27,":",$AH$7,$W27))),"") -> 63.674 | H27: =AVERAGE(INDIRECT(CONCATENATE($Z$7,"!",$AA$7,$Y27,":",$AB$7,$Y27))) -> 107.824 | I27: =AVERAGE(INDIRECT(CONCATENATE($Z$7,"!",$AC$7,$Y27,":",$AD$7,$Y27))) -> 78.3932 | J27: =AVERAGE(INDIRECT(CONCATENATE($Z$7,"!",$AE$7,$Y27,":",$AF$7,$Y27))) -> 78.324 | K27: =IF($K$6<>"",AVERAGE(INDIRECT(CONCATENATE($Z$7,"!",$AG$7,$Y27,":",$AH$7,$Y27))),"") -> 63.674 | N27: =C27 -> PRS | O27: =IF(D27<H27,CONCATENATE(ROUND(D27,R7)," - ",ROUND(H27,R7)),CONCATENATE(ROUND(H27,R7)," - ",ROUND(D27,R7))) -> 110 - 110 | P27: =IF(E27<I27,CONCATENATE(ROUND(E27,R7)," - ",ROUND(I27,R7)),CONCATENATE(ROUND(I27,R7)," - ",ROUND(E27,R7))) -> 80 - 80 | Q27: =IF(F27<J27,CONCATENATE(ROUND(F27,R7)," - ",ROUND(J27,R7)),CONCATENATE(ROUND(J27,R7)," - ",ROUND(F27,R7))) -> 80 - 80 | R27: =IF(G27<K27,CONCATENATE(ROUND(G27,R7)," - ",ROUND(K27,R7)),CONCATENATE(ROUND(K27,R7)," - ",ROUND(G27,R7))) -> 60 - 60 | W27: 92 | Y27: 92
C28: Buyers | D28: 135.654 | E28: 95.9688 | F28: 92.616 | G28: =IF($G$6<>"",AVERAGE(INDIRECT(CONCATENATE($X$7,"!",$AG$7,$W28,":",$AH$7,$W28))),"") -> 74.58 | H28: =AVERAGE(INDIRECT(CONCATENATE($Z$7,"!",$AA$7,$Y28,":",$AB$7,$Y28))) -> 135.654 | I28: =AVERAGE(INDIRECT(CONCATENATE($Z$7,"!",$AC$7,$Y28,":",$AD$7,$Y28))) -> 95.9688 | J28: =AVERAGE(INDIRECT(CONCATENATE($Z$7,"!",$AE$7,$Y28,":",$AF$7,$Y28))) -> 92.616 | K28: =IF($K$6<>"",AVERAGE(INDIRECT(CONCATENATE($Z$7,"!",$AG$7,$Y28,":",$AH$7,$Y28))),"") -> 74.58 | N28: =C28 -> Buyers | O28: =IF(D28<H28,CONCATENATE(ROUND(D28,R7)," - ",ROUND(H28,R7)),CONCATENATE(ROUND(H28,R7)," - ",ROUND(D28,R7))) -> 140 - 140 | P28: =IF(E28<I28,CONCATENATE(ROUND(E28,R7)," - ",ROUND(I28,R7)),CONCATENATE(ROUND(I28,R7)," - ",ROUND(E28,R7))) -> 100 - 100 | Q28: =IF(F28<J28,CONCATENATE(ROUND(F28,R7)," - ",ROUND(J28,R7)),CONCATENATE(ROUND(J28,R7)," - ",ROUND(F28,R7))) -> 90 - 90 | R28: =IF(G28<K28,CONCATENATE(ROUND(G28,R7)," - ",ROUND(K28,R7)),CONCATENATE(ROUND(K28,R7)," - ",ROUND(G28,R7))) -> 70 - 70 | W28: 93 | Y28: 93
B29: Constrained | C29: Social rent | D29: =IF(D25<>"",D25*D$7/D$8,"") -> 386.786 | E29: =IF(E25<>"",E25*E$7/E$8,"") -> 217.754 | F29: 274.618 | G29: 292.246 | H29: =IF(H25<>"",H25*H$7/H$8,"") -> 386.786 | I29: =IF(I25<>"",I25*I$7/I$8,"") -> 217.754 | J29: 274.618 | K29: 292.246
C30: Below Market | D30: =IF(D26<>"",D26*D$7/D$8,"") -> 149.136 | E30: 125.284 | F30: 148.642 | G30: 143.5 | H30: =IF(H26<>"",H26*H$7/H$8,"") -> 149.136 | I30: 125.284 | J30: 148.642 | K30: 143.5 | N30: Total | O30: =IF(D23<H23,CONCATENATE(ROUND(D23,R7)," - ",ROUND(H23,R7)),CONCATENATE(ROUND(H23,R7)," - ",ROUND(D23,R7))) -> 780 - 780 | P30: =IF(E23<I23,CONCATENATE(ROUND(E23,R7)," - ",ROUND(I23,R7)),CONCATENATE(ROUND(I23,R7)," - ",ROUND(E23,R7))) -> 520 - 520 | Q30: =IF(F23<J23,CONCATENATE(ROUND(F23,R7)," - ",ROUND(J23,R7)),CONCATENATE(ROUND(J23,R7)," - ",ROUND(F23,R7))) -> 590 - 590 | R30: =IF(G23<K23,CONCATENATE(ROUND(G23,R7)," - ",ROUND(K23,R7)),CONCATENATE(ROUND(K23,R7)," - ",ROUND(G23,R7))) -> 570 - 570
C31: PRS | D31: 107.824 | E31: 78.3932 | F31: 78.324 | G31: 63.674 | H31: 107.824 | I31: 78.3932 | J31: 78.324 | K31: 63.674
C32: Buyers | D32: 135.654 | E32: 95.9688 | F32: 92.616 | G32: 74.58 | H32: 135.654 | I32: 95.9688 | J32: 92.616 | K32: 74.58 | N32: Affordable | O32: =IF(D25+D26<H25+H26,CONCATENATE(ROUND(D25+D26,R7)," - ",ROUND(H25+H26,R7)),CONCATENATE(ROUND(H25+H26,R7)," - ",ROUND(D25+D26,R7))) -> 540 - 540 | P32: =IF(E25+E26<I25+I26,CONCATENATE(ROUND(E25+E26,R7)," - ",ROUND(I25+I26,R7)),CONCATENATE(ROUND(I25+I26,R7)," - ",ROUND(E25+E26,R7))) -> 340 - 340 | Q32: =IF(F25+F26<J25+J26,CONCATENATE(ROUND(F25+F26,R7)," - ",ROUND(J25+J26,R7)),CONCATENATE(ROUND(J25+J26,R7)," - ",ROUND(F25+F26,R7))) -> 420 - 420 | R32: =IF(G25+G26<K25+K26,CONCATENATE(ROUND(G25+G26,R7)," - ",ROUND(K25+K26,R7)),CONCATENATE(ROUND(K25+K26,R7)," - ",ROUND(G25+G26,R7))) -> 440 - 440
N33: Market | O33: =IF(D27+D28<H27+H28,CONCATENATE(ROUND(D27+D28,R7)," - ",ROUND(H27+H28,R7)),CONCATENATE(ROUND(H27+H28,R7)," - ",ROUND(D27+D28,R7))) -> 240 - 240 | P33: =IF(E27+E28<I27+I28,CONCATENATE(ROUND(E27+E28,R7)," - ",ROUND(I27+I28,R7)),CONCATENATE(ROUND(I27+I28,R7)," - ",ROUND(E27+E28,R7))) -> 170 - 170 | Q33: =IF(F27+F28<J27+J28,CONCATENATE(ROUND(F27+F28,R7)," - ",ROUND(J27+J28,R7)),CONCATENATE(ROUND(J27+J28,R7)," - ",ROUND(F27+F28,R7))) -> 170 - 170 | R33: =IF(G27+G28<K27+K28,CONCATENATE(ROUND(G27+G28,R7)," - ",ROUND(K27+K28,R7)),CONCATENATE(ROUND(K27+K28,R7)," - ",ROUND(G27+G28,R7))) -> 140 - 140
B34: =RawResultsCore!B95 -> Blank | D34: Core Tool Default Settings | H34: User Scenario
C35: Total (Top Level) | D35: =AVERAGE(INDIRECT(CONCATENATE($X$7,"!",$AA$7,$W35,":",$AB$7,$W35))) -> 0 | E35: =AVERAGE(INDIRECT(CONCATENATE($X$7,"!",$AC$7,$W35,":",$AD$7,$W35))) -> 0 | F35: =AVERAGE(INDIRECT(CONCATENATE($X$7,"!",$AE$7,$W35,":",$AF$7,$W35))) -> 0 | G35: =IF($G$6<>"",AVERAGE(INDIRECT(CONCATENATE($X$7,"!",$AG$7,$W35,":",$AH$7,$W35))),"") -> 0 | H35: =AVERAGE(INDIRECT(CONCATENATE($Z$7,"!",$AA$7,$Y35,":",$AB$7,$Y35))) -> 0 | I35: =AVERAGE(INDIRECT(CONCATENATE($Z$7,"!",$AC$7,$Y35,":",$AD$7,$Y35))) -> 0 | J35: =AVERAGE(INDIRECT(CONCATENATE($Z$7,"!",$AE$7,$Y35,":",$AF$7,$Y35))) -> 0 | K35: =IF($K$6<>"",AVERAGE(INDIRECT(CONCATENATE($Z$7,"!",$AG$7,$Y35,":",$AH$7,$Y35))),"") -> 0 | W35: =W23+30 -> 101 | Y35: =Y23+30 -> 102
C36: Total (Constrained) | D36: =IF(D35<>"",D35*D$8/D$7,"") -> 0 | E36: =IF(E35<>"",E35*E$8/E$7,"") -> 0 | F36: =IF(F35<>"",F35*F$8/F$7,"") -> 0 | G36: =IF(G35<>"",G35*G$8/G$7,"") -> 0 | H36: =IF(H35<>"",H35*H$7/H$8,"") -> 0 | I36: =IF(I35<>"",I35*I$7/I$8,"") -> 0 | J36: =IF(J35<>"",J35*J$7/J$8,"") -> 0 | K36: =IF(K35<>"",K35*K$7/K$8,"") -> 0
B37: Top Level | C37: Social rent | D37: =AVERAGE(INDIRECT(CONCATENATE($X$7,"!",$AA$7,$W37,":",$AB$7,$W37))) -> 0 | E37: 0 | F37: 0 | G37: =IF($G$6<>"",AVERAGE(INDIRECT(CONCATENATE($X$7,"!",$AG$7,$W37,":",$AH$7,$W37))),"") -> 0 | H37: =AVERAGE(INDIRECT(CONCATENATE($Z$7,"!",$AA$7,$Y37,":",$AB$7,$Y37))) -> 0 | I37: =AVERAGE(INDIRECT(CONCATENATE($Z$7,"!",$AC$7,$Y37,":",$AD$7,$Y37))) -> 0 | J37: =AVERAGE(INDIRECT(CONCATENATE($Z$7,"!",$AE$7,$Y37,":",$AF$7,$Y37))) -> 0 | K37: =IF($K$6<>"",AVERAGE(INDIRECT(CONCATENATE($Z$7,"!",$AG$7,$Y37,":",$AH$7,$Y37))),"") -> 0 | N37: =C37 -> Social rent | O37: =IF(D37<H37,CONCATENATE(ROUND(D37,R7)," - ",ROUND(H37,R7)),CONCATENATE(ROUND(H37,R7)," - ",ROUND(D37,R7))) -> 0 - 0 | P37: =IF(E37<I37,CONCATENATE(ROUND(E37,R7)," - ",ROUND(I37,R7)),CONCATENATE(ROUND(I37,R7)," - ",ROUND(E37,R7))) -> 0 - 0 | Q37: =IF(F37<J37,CONCATENATE(ROUND(F37,R7)," - ",ROUND(J37,R7)),CONCATENATE(ROUND(J37,R7)," - ",ROUND(F37,R7))) -> 0 - 0 | R37: =IF(G37<K37,CONCATENATE(ROUND(G37,R7)," - ",ROUND(K37,R7)),CONCATENATE(ROUND(K37,R7)," - ",ROUND(G37,R7))) -> 0 - 0 | W37: =W25+30 -> 120 | Y37: 120
C38: Below Market | D38: 0 | E38: 0 | F38: 0 | G38: =IF($G$6<>"",AVERAGE(INDIRECT(CONCATENATE($X$7,"!",$AG$7,$W38,":",$AH$7,$W38))),"") -> 0 | H38: =AVERAGE(INDIRECT(CONCATENATE($Z$7,"!",$AA$7,$Y38,":",$AB$7,$Y38))) -> 0 | I38: =AVERAGE(INDIRECT(CONCATENATE($Z$7,"!",$AC$7,$Y38,":",$AD$7,$Y38))) -> 0 | J38: =AVERAGE(INDIRECT(CONCATENATE($Z$7,"!",$AE$7,$Y38,":",$AF$7,$Y38))) -> 0 | K38: =IF($K$6<>"",AVERAGE(INDIRECT(CONCATENATE($Z$7,"!",$AG$7,$Y38,":",$AH$7,$Y38))),"") -> 0 | N38: =C38 -> Below Market | O38: =IF(D38<H38,CONCATENATE(ROUND(D38,R7)," - ",ROUND(H38,R7)),CONCATENATE(ROUND(H38,R7)," - ",ROUND(D38,R7))) -> 0 - 0 | P38: =IF(E38<I38,CONCATENATE(ROUND(E38,R7)," - ",ROUND(I38,R7)),CONCATENATE(ROUND(I38,R7)," - ",ROUND(E38,R7))) -> 0 - 0 | Q38: =IF(F38<J38,CONCATENATE(ROUND(F38,R7)," - ",ROUND(J38,R7)),CONCATENATE(ROUND(J38,R7)," - ",ROUND(F38,R7))) -> 0 - 0 | R38: =IF(G38<K38,CONCATENATE(ROUND(G38,R7)," - ",ROUND(K38,R7)),CONCATENATE(ROUND(K38,R7)," - ",ROUND(G38,R7))) -> 0 - 0 | W38: 121 | Y38: 121
C39: PRS | D39: 0 | E39: 0 | F39: 0 | G39: =IF($G$6<>"",AVERAGE(INDIRECT(CONCATENATE($X$7,"!",$AG$7,$W39,":",$AH$7,$W39))),"") -> 0 | H39: =AVERAGE(INDIRECT(CONCATENATE($Z$7,"!",$AA$7,$Y39,":",$AB$7,$Y39))) -> 0 | I39: =AVERAGE(INDIRECT(CONCATENATE($Z$7,"!",$AC$7,$Y39,":",$AD$7,$Y39))) -> 0 | J39: =AVERAGE(INDIRECT(CONCATENATE($Z$7,"!",$AE$7,$Y39,":",$AF$7,$Y39))) -> 0 | K39: =IF($K$6<>"",AVERAGE(INDIRECT(CONCATENATE($Z$7,"!",$AG$7,$Y39,":",$AH$7,$Y39))),"") -> 0 | N39: =C39 -> PRS | O39: =IF(D39<H39,CONCATENATE(ROUND(D39,R7)," - ",ROUND(H39,R7)),CONCATENATE(ROUND(H39,R7)," - ",ROUND(D39,R7))) -> 0 - 0 | P39: =IF(E39<I39,CONCATENATE(ROUND(E39,R7)," - ",ROUND(I39,R7)),CONCATENATE(ROUND(I39,R7)," - ",ROUND(E39,R7))) -> 0 - 0 | Q39: =IF(F39<J39,CONCATENATE(ROUND(F39,R7)," - ",ROUND(J39,R7)),CONCATENATE(ROUND(J39,R7)," - ",ROUND(F39,R7))) -> 0 - 0 | R39: =IF(G39<K39,CONCATENATE(ROUND(G39,R7)," - ",ROUND(K39,R7)),CONCATENATE(ROUND(K39,R7)," - ",ROUND(G39,R7))) -> 0 - 0 | W39: 122 | Y39: 122
C40: Buyers | D40: 0 | E40: 0 | F40: 0 | G40: =IF($G$6<>"",AVERAGE(INDIRECT(CONCATENATE($X$7,"!",$AG$7,$W40,":",$AH$7,$W40))),"") -> 0 | H40: =AVERAGE(INDIRECT(CONCATENATE($Z$7,"!",$AA$7,$Y40,":",$AB$7,$Y40))) -> 0 | I40: =AVERAGE(INDIRECT(CONCATENATE($Z$7,"!",$AC$7,$Y40,":",$AD$7,$Y40))) -> 0 | J40: =AVERAGE(INDIRECT(CONCATENATE($Z$7,"!",$AE$7,$Y40,":",$AF$7,$Y40))) -> 0 | K40: =IF($K$6<>"",AVERAGE(INDIRECT(CONCATENATE($Z$7,"!",$AG$7,$Y40,":",$AH$7,$Y40))),"") -> 0 | N40: =C40 -> Buyers | O40: =IF(D40<H40,CONCATENATE(ROUND(D40,R7)," - ",ROUND(H40,R7)),CONCATENATE(ROUND(H40,R7)," - ",ROUND(D40,R7))) -> 0 - 0 | P40: =IF(E40<I40,CONCATENATE(ROUND(E40,R7)," - ",ROUND(I40,R7)),CONCATENATE(ROUND(I40,R7)," - ",ROUND(E40,R7))) -> 0 - 0 | Q40: =IF(F40<J40,CONCATENATE(ROUND(F40,R7)," - ",ROUND(J40,R7)),CONCATENATE(ROUND(J40,R7)," - ",ROUND(F40,R7))) -> 0 - 0 | R40: =IF(G40<K40,CONCATENATE(ROUND(G40,R7)," - ",ROUND(K40,R7)),CONCATENATE(ROUND(K40,R7)," - ",ROUND(G40,R7))) -> 0 - 0 | W40: 123 | Y40: 123
B41: Constrained | C41: Social rent | D41: =IF(D37<>"",D37*D$7/D$8,"") -> 0 | E41: =IF(E37<>"",E37*E$7/E$8,"") -> 0 | F41: 0 | G41: 0 | H41: =IF(H37<>"",H37*H$7/H$8,"") -> 0 | I41: =IF(I37<>"",I37*I$7/I$8,"") -> 0 | J41: 0 | K41: 0
C42: Below Market | D42: =IF(D38<>"",D38*D$7/D$8,"") -> 0 | E42: 0 | F42: 0 | G42: 0 | H42: =IF(H38<>"",H38*H$7/H$8,"") -> 0 | I42: 0 | J42: 0 | K42: 0 | N42: Total | O42: =IF(D35<H35,CONCATENATE(ROUND(D35,R7)," - ",ROUND(H35,R7)),CONCATENATE(ROUND(H35,R7)," - ",ROUND(D35,R7))) -> 0 - 0 | P42: =IF(E35<I35,CONCATENATE(ROUND(E35,R7)," - ",ROUND(I35,R7)),CONCATENATE(ROUND(I35,R7)," - ",ROUND(E35,R7))) -> 0 - 0 | Q42: =IF(F35<J35,CONCATENATE(ROUND(F35,R7)," - ",ROUND(J35,R7)),CONCATENATE(ROUND(J35,R7)," - ",ROUND(F35,R7))) -> 0 - 0 | R42: =IF(G35<K35,CONCATENATE(ROUND(G35,R7)," - ",ROUND(K35,R7)),CONCATENATE(ROUND(K35,R7)," - ",ROUND(G35,R7))) -> 0 - 0
C43: PRS | D43: =IF(D39<>"",D39*D$7/D$8,"") -> 0 | E43: 0 | F43: 0 | G43: 0 | H43: =IF(H39<>"",H39*H$7/H$8,"") -> 0 | I43: 0 | J43: 0 | K43: 0
C44: Buyers | D44: =IF(D40<>"",D40*D$7/D$8,"") -> 0 | E44: 0 | F44: 0 | G44: 0 | H44: =IF(H40<>"",H40*H$7/H$8,"") -> 0 | I44: 0 | J44: 0 | K44: 0 | N44: Affordable | O44: =IF(D37+D38<H37+H38,CONCATENATE(ROUND(D37+D38,R7)," - ",ROUND(H37+H38,R7)),CONCATENATE(ROUND(H37+H38,R7)," - ",ROUND(D37+D38,R7))) -> 0 - 0 | P44: =IF(E37+E38<I37+I38,CONCATENATE(ROUND(E37+E38,R7)," - ",ROUND(I37+I38,R7)),CONCATENATE(ROUND(I37+I38,R7)," - ",ROUND(E37+E38,R7))) -> 0 - 0 | Q44: =IF(F37+F38<J37+J38,CONCATENATE(ROUND(F37+F38,R7)," - ",ROUND(J37+J38,R7)),CONCATENATE(ROUND(J37+J38,R7)," - ",ROUND(F37+F38,R7))) -> 0 - 0 | R44: =IF(G37+G38<K37+K38,CONCATENATE(ROUND(G37+G38,R7)," - ",ROUND(K37+K38,R7)),CONCATENATE(ROUND(K37+K38,R7)," - ",ROUND(G37+G38,R7))) -> 0 - 0
N45: Market | O45: =IF(D39+D40<H39+H40,CONCATENATE(ROUND(D39+D40,R7)," - ",ROUND(H39+H40,R7)),CONCATENATE(ROUND(H39+H40,R7)," - ",ROUND(D39+D40,R7))) -> 0 - 0 | P45: =IF(E39+E40<I39+I40,CONCATENATE(ROUND(E39+E40,R7)," - ",ROUND(I39+I40,R7)),CONCATENATE(ROUND(I39+I40,R7)," - ",ROUND(E39+E40,R7))) -> 0 - 0 | Q45: =IF(F39+F40<J39+J40,CONCATENATE(ROUND(F39+F40,R7)," - ",ROUND(J39+J40,R7)),CONCATENATE(ROUND(J39+J40,R7)," - ",ROUND(F39+F40,R7))) -> 0 - 0 | R45: =IF(G39+G40<K39+K40,CONCATENATE(ROUND(G39+G40,R7)," - ",ROUND(K39+K40,R7)),CONCATENATE(ROUND(K39+K40,R7)," - ",ROUND(G39+G40,R7))) -> 0 - 0
B46: =RawResultsCore!B125 -> Blank | D46: Core Tool Default Settings | H46: User Scenario
C47: Total (Top Level) | D47: =AVERAGE(INDIRECT(CONCATENATE($X$7,"!",$AA$7,$W47,":",$AB$7,$W47))) -> 0 | E47: =AVERAGE(INDIRECT(CONCATENATE($X$7,"!",$AC$7,$W47,":",$AD$7,$W47))) -> 0 | F47: =AVERAGE(INDIRECT(CONCATENATE($X$7,"!",$AE$7,$W47,":",$AF$7,$W47))) -> 0 | G47: =IF($G$6<>"",AVERAGE(INDIRECT(CONCATENATE($X$7,"!",$AG$7,$W47,":",$AH$7,$W47))),"") -> 0 | H47: =AVERAGE(INDIRECT(CONCATENATE($Z$7,"!",$AA$7,$Y47,":",$AB$7,$Y47))) -> 0 | I47: =AVERAGE(INDIRECT(CONCATENATE($Z$7,"!",$AC$7,$Y47,":",$AD$7,$Y47))) -> 0 | J47: =AVERAGE(INDIRECT(CONCATENATE($Z$7,"!",$AE$7,$Y47,":",$AF$7,$Y47))) -> 0 | K47: =IF($K$6<>"",AVERAGE(INDIRECT(CONCATENATE($Z$7,"!",$AG$7,$Y47,":",$AH$7,$Y47))),"") -> 0 | W47: =W35+30 -> 131 | Y47: =Y35+30 -> 132
C48: Total (Constrained) | D48: =IF(D47<>"",D47*D$8/D$7,"") -> 0 | E48: =IF(E47<>"",E47*E$8/E$7,"") -> 0 | F48: =IF(F47<>"",F47*F$8/F$7,"") -> 0 | G48: =IF(G47<>"",G47*G$8/G$7,"") -> 0 | H48: =IF(H47<>"",H47*H$7/H$8,"") -> 0 | I48: =IF(I47<>"",I47*I$7/I$8,"") -> 0 | J48: =IF(J47<>"",J47*J$7/J$8,"") -> 0 | K48: =IF(K47<>"",K47*K$7/K$8,"") -> 0
B49: Top Level | C49: Social rent | D49: 0 | E49: 0 | F49: 0 | G49: =IF($G$6<>"",AVERAGE(INDIRECT(CONCATENATE($X$7,"!",$AG$7,$W49,":",$AH$7,$W49))),"") -> 0 | H49: =AVERAGE(INDIRECT(CONCATENATE($Z$7,"!",$AA$7,$Y49,":",$AB$7,$Y49))) -> 0 | I49: =AVERAGE(INDIRECT(CONCATENATE($Z$7,"!",$AC$7,$Y49,":",$AD$7,$Y49))) -> 0 | J49: =AVERAGE(INDIRECT(CONCATENATE($Z$7,"!",$AE$7,$Y49,":",$AF$7,$Y49))) -> 0 | K49: =IF($K$6<>"",AVERAGE(INDIRECT(CONCATENATE($Z$7,"!",$AG$7,$Y49,":",$AH$7,$Y49))),"") -> 0 | N49: =C49 -> Social rent | O49: =IF(D49<H49,CONCATENATE(ROUND(D49,R7)," - ",ROUND(H49,R7)),CONCATENATE(ROUND(H49,R7)," - ",ROUND(D49,R7))) -> 0 - 0 | P49: =IF(E49<I49,CONCATENATE(ROUND(E49,R7)," - ",ROUND(I49,R7)),CONCATENATE(ROUND(I49,R7)," - ",ROUND(E49,R7))) -> 0 - 0 | Q49: =IF(F49<J49,CONCATENATE(ROUND(F49,R7)," - ",ROUND(J49,R7)),CONCATENATE(ROUND(J49,R7)," - ",ROUND(F49,R7))) -> 0 - 0 | R49: =IF(G49<K49,CONCATENATE(ROUND(G49,R7)," - ",ROUND(K49,R7)),CONCATENATE(ROUND(K49,R7)," - ",ROUND(G49,R7))) -> 0 - 0 | W49: =W37+30 -> 150 | Y49: 150
C50: Below Market | D50: 0 | E50: 0 | F50: 0 | G50: =IF($G$6<>"",AVERAGE(INDIRECT(CONCATENATE($X$7,"!",$AG$7,$W50,":",$AH$7,$W50))),"") -> 0 | H50: =AVERAGE(INDIRECT(CONCATENATE($Z$7,"!",$AA$7,$Y50,":",$AB$7,$Y50))) -> 0 | I50: =AVERAGE(INDIRECT(CONCATENATE($Z$7,"!",$AC$7,$Y50,":",$AD$7,$Y50))) -> 0 | J50: =AVERAGE(INDIRECT(CONCATENATE($Z$7,"!",$AE$7,$Y50,":",$AF$7,$Y50))) -> 0 | K50: =IF($K$6<>"",AVERAGE(INDIRECT(CONCATENATE($Z$7,"!",$AG$7,$Y50,":",$AH$7,$Y50))),"") -> 0 | N50: =C50 -> Below Market | O50: =IF(D50<H50,CONCATENATE(ROUND(D50,R7)," - ",ROUND(H50,R7)),CONCATENATE(ROUND(H50,R7)," - ",ROUND(D50,R7))) -> 0 - 0 | P50: =IF(E50<I50,CONCATENATE(ROUND(E50,R7)," - ",ROUND(I50,R7)),CONCATENATE(ROUND(I50,R7)," - ",ROUND(E50,R7))) -> 0 - 0 | Q50: =IF(F50<J50,CONCATENATE(ROUND(F50,R7)," - ",ROUND(J50,R7)),CONCATENATE(ROUND(J50,R7)," - ",ROUND(F50,R7))) -> 0 - 0 | R50: =IF(G50<K50,CONCATENATE(ROUND(G50,R7)," - ",ROUND(K50,R7)),CONCATENATE(ROUND(K50,R7)," - ",ROUND(G50,R7))) -> 0 - 0 | W50: 151 | Y50: 151
C51: PRS | D51: 0 | E51: 0 | F51: 0 | G51: =IF($G$6<>"",AVERAGE(INDIRECT(CONCATENATE($X$7,"!",$AG$7,$W51,":",$AH$7,$W51))),"") -> 0 | H51: =AVERAGE(INDIRECT(CONCATENATE($Z$7,"!",$AA$7,$Y51,":",$AB$7,$Y51))) -> 0 | I51: =AVERAGE(INDIRECT(CONCATENATE($Z$7,"!",$AC$7,$Y51,":",$AD$7,$Y51))) -> 0 | J51: =AVERAGE(INDIRECT(CONCATENATE($Z$7,"!",$AE$7,$Y51,":",$AF$7,$Y51))) -> 0 | K51: =IF($K$6<>"",AVERAGE(INDIRECT(CONCATENATE($Z$7,"!",$AG$7,$Y51,":",$AH$7,$Y51))),"") -> 0 | N51: =C51 -> PRS | O51: =IF(D51<H51,CONCATENATE(ROUND(D51,R7)," - ",ROUND(H51,R7)),CONCATENATE(ROUND(H51,R7)," - ",ROUND(D51,R7))) -> 0 - 0 | P51: =IF(E51<I51,CONCATENATE(ROUND(E51,R7)," - ",ROUND(I51,R7)),CONCATENATE(ROUND(I51,R7)," - ",ROUND(E51,R7))) -> 0 - 0 | Q51: =IF(F51<J51,CONCATENATE(ROUND(F51,R7)," - ",ROUND(J51,R7)),CONCATENATE(ROUND(J51,R7)," - ",ROUND(F51,R7))) -> 0 - 0 | R51: =IF(G51<K51,CONCATENATE(ROUND(G51,R7)," - ",ROUND(K51,R7)),CONCATENATE(ROUND(K51,R7)," - ",ROUND(G51,R7))) -> 0 - 0 | W51: 152 | Y51: 152
C52: Buyers | D52: 0 | E52: 0 | F52: 0 | G52: =IF($G$6<>"",AVERAGE(INDIRECT(CONCATENATE($X$7,"!",$AG$7,$W52,":",$AH$7,$W52))),"") -> 0 | H52: =AVERAGE(INDIRECT(CONCATENATE($Z$7,"!",$AA$7,$Y52,":",$AB$7,$Y52))) -> 0 | I52: =AVERAGE(INDIRECT(CONCATENATE($Z$7,"!",$AC$7,$Y52,":",$AD$7,$Y52))) -> 0 | J52: =AVERAGE(INDIRECT(CONCATENATE($Z$7,"!",$AE$7,$Y52,":",$AF$7,$Y52))) -> 0 | K52: =IF($K$6<>"",AVERAGE(INDIRECT(CONCATENATE($Z$7,"!",$AG$7,$Y52,":",$AH$7,$Y52))),"") -> 0 | N52: =C52 -> Buyers | O52: =IF(D52<H52,CONCATENATE(ROUND(D52,R7)," - ",ROUND(H52,R7)),CONCATENATE(ROUND(H52,R7)," - ",ROUND(D52,R7))) -> 0 - 0 | P52: =IF(E52<I52,CONCATENATE(ROUND(E52,R7)," - ",ROUND(I52,R7)),CONCATENATE(ROUND(I52,R7)," - ",ROUND(E52,R7))) -> 0 - 0 | Q52: =IF(F52<J52,CONCATENATE(ROUND(F52,R7)," - ",ROUND(J52,R7)),CONCATENATE(ROUND(J52,R7)," - ",ROUND(F52,R7))) -> 0 - 0 | R52: =IF(G52<K52,CONCATENATE(ROUND(G52,R7)," - ",ROUND(K52,R7)),CONCATENATE(ROUND(K52,R7)," - ",ROUND(G52,R7))) -> 0 - 0 | W52: 153 | Y52: 153
B53: Constrained | C53: Social rent | D53: =IF(D49<>"",D49*D$7/D$8,"") -> 0 | E53: =IF(E49<>"",E49*E$7/E$8,"") -> 0 | F53: 0 | G53: 0 | H53: =IF(H49<>"",H49*H$7/H$8,"") -> 0 | I53: =IF(I49<>"",I49*I$7/I$8,"") -> 0 | J53: 0 | K53: 0
C54: Below Market | D54: =IF(D50<>"",D50*D$7/D$8,"") -> 0 | E54: 0 | F54: 0 | G54: 0 | H54: =IF(H50<>"",H50*H$7/H$8,"") -> 0 | I54: 0 | J54: 0 | K54: 0 | N54: Total | O54: =IF(D47<H47,CONCATENATE(ROUND(D47,R7)," - ",ROUND(H47,R7)),CONCATENATE(ROUND(H47,R7)," - ",ROUND(D47,R7))) -> 0 - 0 | P54: =IF(E47<I47,CONCATENATE(ROUND(E47,R7)," - ",ROUND(I47,R7)),CONCATENATE(ROUND(I47,R7)," - ",ROUND(E47,R7))) -> 0 - 0 | Q54: =IF(F47<J47,CONCATENATE(ROUND(F47,R7)," - ",ROUND(J47,R7)),CONCATENATE(ROUND(J47,R7)," - ",ROUND(F47,R7))) -> 0 - 0 | R54: =IF(G47<K47,CONCATENATE(ROUND(G47,R7)," - ",ROUND(K47,R7)),CONCATENATE(ROUND(K47,R7)," - ",ROUND(G47,R7))) -> 0 - 0
C55: PRS | D55: =IF(D51<>"",D51*D$7/D$8,"") -> 0 | E55: 0 | F55: 0 | G55: 0 | H55: =IF(H51<>"",H51*H$7/H$8,"") -> 0 | I55: 0 | J55: 0 | K55: 0
C56: Buyers | D56: =IF(D52<>"",D52*D$7/D$8,"") -> 0 | E56: 0 | F56: 0 | G56: 0 | H56: =IF(H52<>"",H52*H$7/H$8,"") -> 0 | I56: 0 | J56: 0 | K56: 0 | N56: Affordable | O56: =IF(D49+D50<H49+H50,CONCATENATE(ROUND(D49+D50,R7)," - ",ROUND(H49+H50,R7)),CONCATENATE(ROUND(H49+H50,R7)," - ",ROUND(D49+D50,R7))) -> 0 - 0 | P56: =IF(E49+E50<I49+I50,CONCATENATE(ROUND(E49+E50,R7)," - ",ROUND(I49+I50,R7)),CONCATENATE(ROUND(I49+I50,R7)," - ",ROUND(E49+E50,R7))) -> 0 - 0 | Q56: =IF(F49+F50<J49+J50,CONCATENATE(ROUND(F49+F50,R7)," - ",ROUND(J49+J50,R7)),CONCATENATE(ROUND(J49+J50,R7)," - ",ROUND(F49+F50,R7))) -> 0 - 0 | R56: =IF(G49+G50<K49+K50,CONCATENATE(ROUND(G49+G50,R7)," - ",ROUND(K49+K50,R7)),CONCATENATE(ROUND(K49+K50,R7)," - ",ROUND(G49+G50,R7))) -> 0 - 0
N57: Market | O57: =IF(D51+D52<H51+H52,CONCATENATE(ROUND(D51+D52,R7)," - ",ROUND(H51+H52,R7)),CONCATENATE(ROUND(H51+H52,R7)," - ",ROUND(D51+D52,R7))) -> 0 - 0 | P57: =IF(E51+E52<I51+I52,CONCATENATE(ROUND(E51+E52,R7)," - ",ROUND(I51+I52,R7)),CONCATENATE(ROUND(I51+I52,R7)," - ",ROUND(E51+E52,R7))) -> 0 - 0 | Q57: =IF(F51+F52<J51+J52,CONCATENATE(ROUND(F51+F52,R7)," - ",ROUND(J51+J52,R7)),CONCATENATE(ROUND(J51+J52,R7)," - ",ROUND(F51+F52,R7))) -> 0 - 0 | R57: =IF(G51+G52<K51+K52,CONCATENATE(ROUND(G51+G52,R7)," - ",ROUND(K51+K52,R7)),CONCATENATE(ROUND(K51+K52,R7)," - ",ROUND(G51+G52,R7))) -> 0 - 0
B58: =RawResultsCore!B155 -> Blank | D58: Core Tool Default Settings | H58: User Scenario
C59: Total (Top Level) | D59: =AVERAGE(INDIRECT(CONCATENATE($X$7,"!",$AA$7,$W59,":",$AB$7,$W59))) -> 0 | E59: =AVERAGE(INDIRECT(CONCATENATE($X$7,"!",$AC$7,$W59,":",$AD$7,$W59))) -> 0 | F59: =AVERAGE(INDIRECT(CONCATENATE($X$7,"!",$AE$7,$W59,":",$AF$7,$W59))) -> 0 | G59: =IF($G$6<>"",AVERAGE(INDIRECT(CONCATENATE($X$7,"!",$AG$7,$W59,":",$AH$7,$W59))),"") -> 0 | H59: =AVERAGE(INDIRECT(CONCATENATE($Z$7,"!",$AA$7,$Y59,":",$AB$7,$Y59))) -> 0 | I59: =AVERAGE(INDIRECT(CONCATENATE($Z$7,"!",$AC$7,$Y59,":",$AD$7,$Y59))) -> 0 | J59: =AVERAGE(INDIRECT(CONCATENATE($Z$7,"!",$AE$7,$Y59,":",$AF$7,$Y59))) -> 0 | K59: =IF($K$6<>"",AVERAGE(INDIRECT(CONCATENATE($Z$7,"!",$AG$7,$Y59,":",$AH$7,$Y59))),"") -> 0 | W59: =W47+30 -> 161 | Y59: =Y47+30 -> 162
C60: Total (Constrained) | D60: =IF(D59<>"",D59*D$8/D$7,"") -> 0 | E60: =IF(E59<>"",E59*E$8/E$7,"") -> 0 | F60: =IF(F59<>"",F59*F$8/F$7,"") -> 0 | G60: =IF(G59<>"",G59*G$8/G$7,"") -> 0 | H60: =IF(H59<>"",H59*H$7/H$8,"") -> 0 | I60: =IF(I59<>"",I59*I$7/I$8,"") -> 0 | J60: =IF(J59<>"",J59*J$7/J$8,"") -> 0 | K60: =IF(K59<>"",K59*K$7/K$8,"") -> 0
B61: Top Level | C61: Social rent | D61: 0 | E61: 0 | F61: 0 | G61: =IF($G$6<>"",AVERAGE(INDIRECT(CONCATENATE($X$7,"!",$AG$7,$W61,":",$AH$7,$W61))),"") -> 0 | H61: =AVERAGE(INDIRECT(CONCATENATE($Z$7,"!",$AA$7,$Y61,":",$AB$7,$Y61))) -> 0 | I61: =AVERAGE(INDIRECT(CONCATENATE($Z$7,"!",$AC$7,$Y61,":",$AD$7,$Y61))) -> 0 | J61: =AVERAGE(INDIRECT(CONCATENATE($Z$7,"!",$AE$7,$Y61,":",$AF$7,$Y61))) -> 0 | K61: =IF($K$6<>"",AVERAGE(INDIRECT(CONCATENATE($Z$7,"!",$AG$7,$Y61,":",$AH$7,$Y61))),"") -> 0 | N61: =C61 -> Social rent | O61: =IF(D61<H61,CONCATENATE(ROUND(D61,R7)," - ",ROUND(H61,R7)),CONCATENATE(ROUND(H61,R7)," - ",ROUND(D61,R7))) -> 0 - 0 | P61: =IF(E61<I61,CONCATENATE(ROUND(E61,R7)," - ",ROUND(I61,R7)),CONCATENATE(ROUND(I61,R7)," - ",ROUND(E61,R7))) -> 0 - 0 | Q61: =IF(F61<J61,CONCATENATE(ROUND(F61,R7)," - ",ROUND(J61,R7)),CONCATENATE(ROUND(J61,R7)," - ",ROUND(F61,R7))) -> 0 - 0 | R61: =IF(G61<K61,CONCATENATE(ROUND(G61,R7)," - ",ROUND(K61,R7)),CONCATENATE(ROUND(K61,R7)," - ",ROUND(G61,R7))) -> 0 - 0 | W61: =W49+30 -> 180 | Y61: 180
C62: Below Market | D62: 0 | E62: 0 | F62: 0 | G62: =IF($G$6<>"",AVERAGE(INDIRECT(CONCATENATE($X$7,"!",$AG$7,$W62,":",$AH$7,$W62))),"") -> 0 | H62: =AVERAGE(INDIRECT(CONCATENATE($Z$7,"!",$AA$7,$Y62,":",$AB$7,$Y62))) -> 0 | I62: =AVERAGE(INDIRECT(CONCATENATE($Z$7,"!",$AC$7,$Y62,":",$AD$7,$Y62))) -> 0 | J62: =AVERAGE(INDIRECT(CONCATENATE($Z$7,"!",$AE$7,$Y62,":",$AF$7,$Y62))) -> 0 | K62: =IF($K$6<>"",AVERAGE(INDIRECT(CONCATENATE($Z$7,"!",$AG$7,$Y62,":",$AH$7,$Y62))),"") -> 0 | N62: =C62 -> Below Market | O62: =IF(D62<H62,CONCATENATE(ROUND(D62,R7)," - ",ROUND(H62,R7)),CONCATENATE(ROUND(H62,R7)," - ",ROUND(D62,R7))) -> 0 - 0 | P62: =IF(E62<I62,CONCATENATE(ROUND(E62,R7)," - ",ROUND(I62,R7)),CONCATENATE(ROUND(I62,R7)," - ",ROUND(E62,R7))) -> 0 - 0 | Q62: =IF(F62<J62,CONCATENATE(ROUND(F62,R7)," - ",ROUND(J62,R7)),CONCATENATE(ROUND(J62,R7)," - ",ROUND(F62,R7))) -> 0 - 0 | R62: =IF(G62<K62,CONCATENATE(ROUND(G62,R7)," - ",ROUND(K62,R7)),CONCATENATE(ROUND(K62,R7)," - ",ROUND(G62,R7))) -> 0 - 0 | W62: 181 | Y62: 181
C63: PRS | D63: 0 | E63: 0 | F63: 0 | G63: =IF($G$6<>"",AVERAGE(INDIRECT(CONCATENATE($X$7,"!",$AG$7,$W63,":",$AH$7,$W63))),"") -> 0 | H63: =AVERAGE(INDIRECT(CONCATENATE($Z$7,"!",$AA$7,$Y63,":",$AB$7,$Y63))) -> 0 | I63: =AVERAGE(INDIRECT(CONCATENATE($Z$7,"!",$AC$7,$Y63,":",$AD$7,$Y63))) -> 0 | J63: =AVERAGE(INDIRECT(CONCATENATE($Z$7,"!",$AE$7,$Y63,":",$AF$7,$Y63))) -> 0 | K63: =IF($K$6<>"",AVERAGE(INDIRECT(CONCATENATE($Z$7,"!",$AG$7,$Y63,":",$AH$7,$Y63))),"") -> 0 | N63: =C63 -> PRS | O63: =IF(D63<H63,CONCATENATE(ROUND(D63,R7)," - ",ROUND(H63,R7)),CONCATENATE(ROUND(H63,R7)," - ",ROUND(D63,R7))) -> 0 - 0 | P63: =IF(E63<I63,CONCATENATE(ROUND(E63,R7)," - ",ROUND(I63,R7)),CONCATENATE(ROUND(I63,R7)," - ",ROUND(E63,R7))) -> 0 - 0 | Q63: =IF(F63<J63,CONCATENATE(ROUND(F63,R7)," - ",ROUND(J63,R7)),CONCATENATE(ROUND(J63,R7)," - ",ROUND(F63,R7))) -> 0 - 0 | R63: =IF(G63<K63,CONCATENATE(ROUND(G63,R7)," - ",ROUND(K63,R7)),CONCATENATE(ROUND(K63,R7)," - ",ROUND(G63,R7))) -> 0 - 0 | W63: 182 | Y63: 182
C64: Buyers | D64: 0 | E64: 0 | F64: 0 | G64: =IF($G$6<>"",AVERAGE(INDIRECT(CONCATENATE($X$7,"!",$AG$7,$W64,":",$AH$7,$W64))),"") -> 0 | H64: =AVERAGE(INDIRECT(CONCATENATE($Z$7,"!",$AA$7,$Y64,":",$AB$7,$Y64))) -> 0 | I64: =AVERAGE(INDIRECT(CONCATENATE($Z$7,"!",$AC$7,$Y64,":",$AD$7,$Y64))) -> 0 | J64: =AVERAGE(INDIRECT(CONCATENATE($Z$7,"!",$AE$7,$Y64,":",$AF$7,$Y64))) -> 0 | K64: =IF($K$6<>"",AVERAGE(INDIRECT(CONCATENATE($Z$7,"!",$AG$7,$Y64,":",$AH$7,$Y64))),"") -> 0 | N64: =C64 -> Buyers | O64: =IF(D64<H64,CONCATENATE(ROUND(D64,R7)," - ",ROUND(H64,R7)),CONCATENATE(ROUND(H64,R7)," - ",ROUND(D64,R7))) -> 0 - 0 | P64: =IF(E64<I64,CONCATENATE(ROUND(E64,R7)," - ",ROUND(I64,R7)),CONCATENATE(ROUND(I64,R7)," - ",ROUND(E64,R7))) -> 0 - 0 | Q64: =IF(F64<J64,CONCATENATE(ROUND(F64,R7)," - ",ROUND(J64,R7)),CONCATENATE(ROUND(J64,R7)," - ",ROUND(F64,R7))) -> 0 - 0 | R64: =IF(G64<K64,CONCATENATE(ROUND(G64,R7)," - ",ROUND(K64,R7)),CONCATENATE(ROUND(K64,R7)," - ",ROUND(G64,R7))) -> 0 - 0 | W64: 183 | Y64: 183
B65: Constrained | C65: Social rent | D65: =IF(D61<>"",D61*D$7/D$8,"") -> 0 | E65: =IF(E61<>"",E61*E$7/E$8,"") -> 0 | F65: 0 | G65: 0 | H65: =IF(H61<>"",H61*H$7/H$8,"") -> 0 | I65: =IF(I61<>"",I61*I$7/I$8,"") -> 0 | J65: 0 | K65: 0
C66: Below Market | D66: =IF(D62<>"",D62*D$7/D$8,"") -> 0 | E66: 0 | F66: 0 | G66: 0 | H66: =IF(H62<>"",H62*H$7/H$8,"") -> 0 | I66: 0 | J66: 0 | K66: 0 | N66: Total | O66: =IF(D59<H59,CONCATENATE(ROUND(D59,R7)," - ",ROUND(H59,R7)),CONCATENATE(ROUND(H59,R7)," - ",ROUND(D59,R7))) -> 0 - 0 | P66: =IF(E59<I59,CONCATENATE(ROUND(E59,R7)," - ",ROUND(I59,R7)),CONCATENATE(ROUND(I59,R7)," - ",ROUND(E59,R7))) -> 0 - 0 | Q66: =IF(F59<J59,CONCATENATE(ROUND(F59,R7)," - ",ROUND(J59,R7)),CONCATENATE(ROUND(J59,R7)," - ",ROUND(F59,R7))) -> 0 - 0 | R66: =IF(G59<K59,CONCATENATE(ROUND(G59,R7)," - ",ROUND(K59,R7)),CONCATENATE(ROUND(K59,R7)," - ",ROUND(G59,R7))) -> 0 - 0
C67: PRS | D67: =IF(D63<>"",D63*D$7/D$8,"") -> 0 | E67: 0 | F67: 0 | G67: 0 | H67: =IF(H63<>"",H63*H$7/H$8,"") -> 0 | I67: 0 | J67: 0 | K67: 0
C68: Buyers | D68: =IF(D64<>"",D64*D$7/D$8,"") -> 0 | E68: 0 | F68: 0 | G68: 0 | H68: =IF(H64<>"",H64*H$7/H$8,"") -> 0 | I68: 0 | J68: 0 | K68: 0 | N68: Affordable | O68: =IF(D61+D62<H61+H62,CONCATENATE(ROUND(D61+D62,R7)," - ",ROUND(H61+H62,R7)),CONCATENATE(ROUND(H61+H62,R7)," - ",ROUND(D61+D62,R7))) -> 0 - 0 | P68: =IF(E61+E62<I61+I62,CONCATENATE(ROUND(E61+E62,R7)," - ",ROUND(I61+I62,R7)),CONCATENATE(ROUND(I61+I62,R7)," - ",ROUND(E61+E62,R7))) -> 0 - 0 | Q68: =IF(F61+F62<J61+J62,CONCATENATE(ROUND(F61+F62,R7)," - ",ROUND(J61+J62,R7)),CONCATENATE(ROUND(J61+J62,R7)," - ",ROUND(F61+F62,R7))) -> 0 - 0 | R68: =IF(G61+G62<K61+K62,CONCATENATE(ROUND(G61+G62,R7)," - ",ROUND(K61+K62,R7)),CONCATENATE(ROUND(K61+K62,R7)," - ",ROUND(G61+G62,R7))) -> 0 - 0
N69: Market | O69: =IF(D63+D64<H63+H64,CONCATENATE(ROUND(D63+D64,R7)," - ",ROUND(H63+H64,R7)),CONCATENATE(ROUND(H63+H64,R7)," - ",ROUND(D63+D64,R7))) -> 0 - 0 | P69: =IF(E63+E64<I63+I64,CONCATENATE(ROUND(E63+E64,R7)," - ",ROUND(I63+I64,R7)),CONCATENATE(ROUND(I63+I64,R7)," - ",ROUND(E63+E64,R7))) -> 0 - 0 | Q69: =IF(F63+F64<J63+J64,CONCATENATE(ROUND(F63+F64,R7)," - ",ROUND(J63+J64,R7)),CONCATENATE(ROUND(J63+J64,R7)," - ",ROUND(F63+F64,R7))) -> 0 - 0 | R69: =IF(G63+G64<K63+K64,CONCATENATE(ROUND(G63+G64,R7)," - ",ROUND(K63+K64,R7)),CONCATENATE(ROUND(K63+K64,R7)," - ",ROUND(G63+G64,R7))) -> 0 - 0
B70: =RawResultsCore!B185 -> Blank | D70: Core Tool Default Settings | H70: User Scenario
C71: Total (Top Level) | D71: =AVERAGE(INDIRECT(CONCATENATE($X$7,"!",$AA$7,$W71,":",$AB$7,$W71))) -> 0 | E71: =AVERAGE(INDIRECT(CONCATENATE($X$7,"!",$AC$7,$W71,":",$AD$7,$W71))) -> 0 | F71: =AVERAGE(INDIRECT(CONCATENATE($X$7,"!",$AE$7,$W71,":",$AF$7,$W71))) -> 0 | G71: =IF($G$6<>"",AVERAGE(INDIRECT(CONCATENATE($X$7,"!",$AG$7,$W71,":",$AH$7,$W71))),"") -> 0 | H71: =AVERAGE(INDIRECT(CONCATENATE($Z$7,"!",$AA$7,$Y71,":",$AB$7,$Y71))) -> 0 | I71: =AVERAGE(INDIRECT(CONCATENATE($Z$7,"!",$AC$7,$Y71,":",$AD$7,$Y71))) -> 0 | J71: =AVERAGE(INDIRECT(CONCATENATE($Z$7,"!",$AE$7,$Y71,":",$AF$7,$Y71))) -> 0 | K71: =IF($K$6<>"",AVERAGE(INDIRECT(CONCATENATE($Z$7,"!",$AG$7,$Y71,":",$AH$7,$Y71))),"") -> 0 | W71: =W59+30 -> 191 | Y71: =Y59+30 -> 192
C72: Total (Constrained) | D72: =IF(D71<>"",D71*D$8/D$7,"") -> 0 | E72: =IF(E71<>"",E71*E$8/E$7,"") -> 0 | F72: =IF(F71<>"",F71*F$8/F$7,"") -> 0 | G72: =IF(G71<>"",G71*G$8/G$7,"") -> 0 | H72: =IF(H71<>"",H71*H$7/H$8,"") -> 0 | I72: =IF(I71<>"",I71*I$7/I$8,"") -> 0 | J72: =IF(J71<>"",J71*J$7/J$8,"") -> 0 | K72: =IF(K71<>"",K71*K$7/K$8,"") -> 0
B73: Top Level | C73: Social rent | D73: 0 | E73: 0 | F73: 0 | G73: =IF($G$6<>"",AVERAGE(INDIRECT(CONCATENATE($X$7,"!",$AG$7,$W73,":",$AH$7,$W73))),"") -> 0 | H73: =AVERAGE(INDIRECT(CONCATENATE($Z$7,"!",$AA$7,$Y73,":",$AB$7,$Y73))) -> 0 | I73: =AVERAGE(INDIRECT(CONCATENATE($Z$7,"!",$AC$7,$Y73,":",$AD$7,$Y73))) -> 0 | J73: =AVERAGE(INDIRECT(CONCATENATE($Z$7,"!",$AE$7,$Y73,":",$AF$7,$Y73))) -> 0 | K73: =IF($K$6<>"",AVERAGE(INDIRECT(CONCATENATE($Z$7,"!",$AG$7,$Y73,":",$AH$7,$Y73))),"") -> 0 | N73: =C73 -> Social rent | O73: =IF(D73<H73,CONCATENATE(ROUND(D73,R7)," - ",ROUND(H73,R7)),CONCATENATE(ROUND(H73,R7)," - ",ROUND(D73,R7))) -> 0 - 0 | P73: =IF(E73<I73,CONCATENATE(ROUND(E73,R7)," - ",ROUND(I73,R7)),CONCATENATE(ROUND(I73,R7)," - ",ROUND(E73,R7))) -> 0 - 0 | Q73: =IF(F73<J73,CONCATENATE(ROUND(F73,R7)," - ",ROUND(J73,R7)),CONCATENATE(ROUND(J73,R7)," - ",ROUND(F73,R7))) -> 0 - 0 | R73: =IF(G73<K73,CONCATENATE(ROUND(G73,R7)," - ",ROUND(K73,R7)),CONCATENATE(ROUND(K73,R7)," - ",ROUND(G73,R7))) -> 0 - 0 | W73: =W61+30 -> 210 | Y73: 210
C74: Below Market | D74: 0 | E74: 0 | F74: 0 | G74: =IF($G$6<>"",AVERAGE(INDIRECT(CONCATENATE($X$7,"!",$AG$7,$W74,":",$AH$7,$W74))),"") -> 0 | H74: =AVERAGE(INDIRECT(CONCATENATE($Z$7,"!",$AA$7,$Y74,":",$AB$7,$Y74))) -> 0 | I74: =AVERAGE(INDIRECT(CONCATENATE($Z$7,"!",$AC$7,$Y74,":",$AD$7,$Y74))) -> 0 | J74: =AVERAGE(INDIRECT(CONCATENATE($Z$7,"!",$AE$7,$Y74,":",$AF$7,$Y74))) -> 0 | K74: =IF($K$6<>"",AVERAGE(INDIRECT(CONCATENATE($Z$7,"!",$AG$7,$Y74,":",$AH$7,$Y74))),"") -> 0 | N74: =C74 -> Below Market | O74: =IF(D74<H74,CONCATENATE(ROUND(D74,R7)," - ",ROUND(H74,R7)),CONCATENATE(ROUND(H74,R7)," - ",ROUND(D74,R7))) -> 0 - 0 | P74: =IF(E74<I74,CONCATENATE(ROUND(E74,R7)," - ",ROUND(I74,R7)),CONCATENATE(ROUND(I74,R7)," - ",ROUND(E74,R7))) -> 0 - 0 | Q74: =IF(F74<J74,CONCATENATE(ROUND(F74,R7)," - ",ROUND(J74,R7)),CONCATENATE(ROUND(J74,R7)," - ",ROUND(F74,R7))) -> 0 - 0 | R74: =IF(G74<K74,CONCATENATE(ROUND(G74,R7)," - ",ROUND(K74,R7)),CONCATENATE(ROUND(K74,R7)," - ",ROUND(G74,R7))) -> 0 - 0 | W74: 211 | Y74: 211
C75: PRS | D75: 0 | E75: 0 | F75: 0 | G75: =IF($G$6<>"",AVERAGE(INDIRECT(CONCATENATE($X$7,"!",$AG$7,$W75,":",$AH$7,$W75))),"") -> 0 | H75: =AVERAGE(INDIRECT(CONCATENATE($Z$7,"!",$AA$7,$Y75,":",$AB$7,$Y75))) -> 0 | I75: =AVERAGE(INDIRECT(CONCATENATE($Z$7,"!",$AC$7,$Y75,":",$AD$7,$Y75))) -> 0 | J75: =AVERAGE(INDIRECT(CONCATENATE($Z$7,"!",$AE$7,$Y75,":",$AF$7,$Y75))) -> 0 | K75: =IF($K$6<>"",AVERAGE(INDIRECT(CONCATENATE($Z$7,"!",$AG$7,$Y75,":",$AH$7,$Y75))),"") -> 0 | N75: =C75 -> PRS | O75: =IF(D75<H75,CONCATENATE(ROUND(D75,R7)," - ",ROUND(H75,R7)),CONCATENATE(ROUND(H75,R7)," - ",ROUND(D75,R7))) -> 0 - 0 | P75: =IF(E75<I75,CONCATENATE(ROUND(E75,R7)," - ",ROUND(I75,R7)),CONCATENATE(ROUND(I75,R7)," - ",ROUND(E75,R7))) -> 0 - 0 | Q75: =IF(F75<J75,CONCATENATE(ROUND(F75,R7)," - ",ROUND(J75,R7)),CONCATENATE(ROUND(J75,R7)," - ",ROUND(F75,R7))) -> 0 - 0 | R75: =IF(G75<K75,CONCATENATE(ROUND(G75,R7)," - ",ROUND(K75,R7)),CONCATENATE(ROUND(K75,R7)," - ",ROUND(G75,R7))) -> 0 - 0 | W75: 212 | Y75: 212
